Workbook

Sheet Chart Index (hidden)
A7: Preview | B7: Sheet (and graph link) | C7: Chart Title | D7: Chart Series
B8: طراحی همه الگوها | C8: رسم دستی چادر2 | D8: انحنا, صاف
B9: طراحی همه الگوها | C9: رسم دستی چادر 3 | D9: انحنا, صاف
B10: طراحی همه الگوها | C10: رسم دستی چادر 5 | D10: انحنا, صاف
B11: طراحی همه الگوها | C11: طراحی چادرها و رسم چادر 4 | D11: شبیه ساز دست خمیده و سر, شبیه ساز دامن, رسم یا طراحی چادر4
B12: طراحی همه الگوها | C12: چادر1 و مقنعه برای پرینت | D12: شبیه ساز دست خمیده و سر, شبیه ساز دامن, چادر 1 با نقطه گذاری
B13: طراحی همه الگوها | C13: شلوار پشت | D13: 1شبیه ساز, 2کمر شلوار, 3وسط شلوار و خط اتو, 4پهلو, 6فاق, 7لبه پایین, 9کمر جدا, اطلاعات اندام در شلوار
B14: طراحی همه الگوها | C14: طراحی پشت یقه | D14: شبیه ساز برش, شبیه ساز انحنا, طراحی یقه گرد
B15: طراحی همه الگوها | C15: طراحی جلو یقه | D15: شبیه ساز اندام, طراحی یقه شکاری
B16: طراحی همه الگوها | C16: شلوار جلو | D16: 1شبیه ساز جلو, 2کمر شلوار, 3وسط شلوار, 4پهلو, 6فاق, 7لبه پایین شلوار, 8زیپ, 9کمر جدا, 10جیب مردانه, 11جیب جین, اطلاعات اندام در شلوار
B17: طراحی همه الگوها | C17: طراحی جلو دامن ترک با کمر پهن | D17: شبیه ساز دامن تنگ, کمر پهن, خط مرکزی جلو کمر, خطوط اصلی دامن ترک, خطوط فرعی دامن ترک, خط اوزمان, پیلی
B18: طراحی همه الگوها | C18: طراحی پشت دامن ترک با کمر پهن | D18: شبیه ساز دامن تنگ, کمر یکسره, خطوط اصلی دامن ترک, خطوط فرعی دامن ترک, پیلی
B19: طراحی همه الگوها | C19: آستین | D19: شبیه ساز آستین, آستین بلند یا کوتاه, مچ آستین بلند یا کوتاه
B20: طراحی همه الگوها | C20: الگو پشت | D20: 0 اطلاعات اندام, 72شبیه ساز بالاتنه بدون ساسون, 2شبیه ساز دامن, 5حلقه آستین بدون ساسون, 6سرشانه بدون ساسون, 10پهلو صاف وپایین لباس, 17یقه گرد , 18خط پشت در پیراهن, 24بدون شیفت ساسون کمر
B21: طراحی همه الگوها | C21: یقه و کلاه | D21: شومیزیه
B22: طراحی همه الگوها | C22: الگو جلو | D22: 0اطلاعات اندام, 1شبیه ساز بالاتنه, 2شبیه ساز دامن, 6حلقه آستین بدون ساسون , 7سرشانه بدون ساسون, 11پهلو صاف , 22یقه گرد چرخیده, 23جادکمه یقه گرد در پیراهن, 29پایین پیراهن بدون ترک, 70ساسون کمر, 76جادکمه متصل به یقه

Sheet محاسبات (hidden)
A1: height_print | B1: 30.73496831
A2: width_print | B2: 30.62378054
A3: charts_resized | K3: محاسبات بافت | NU3: یقه شکاری | OF3: یقه شومیزیه نوک تیز تا خط جادکمه | OQ3: یقه شومیزیه معمولی تا خط جادکمه | PB3: یقه ب ب غیر مسطح | PM3: یقه ب ب معمولی | PX3: راهنما نقشه بافت | QI3: نقشه بافت بالاتنه
A4: print_body_chartS | NU4: بافت انتخابی | OC4: نقشه بافت | OF4: بافت انتخابی | ON4: نقشه بافت | OQ4: بافت انتخابی | OY4: نقشه بافت | PB4: بافت انتخابی | PJ4: نقشه بافت | PM4: بافت انتخابی | PU4: نقشه بافت | PX4: متغیرهای ورودی | QF4: راهنمای نقشه بافت | QI4: متغیرهای ورودی | QN4: نقشه بافت بالاتنه
A5: ActiveWindow.Zoom | B5: 15 | E5: متغیرهای ورودی مربوط به ضخامت میل (متناسب با ضخامت نخ) | H5: میل 2 و 2.5 | I5: میل 3 و 3.5 | J5: میل 4 و 4.5 | S5: متغیرهای ورودی یقه شومیزیه بافت انتخابی | W5: یقه ب ب تا خط مرکزی جلو | AE5: متغیر محاسبه ای یقه انگلیسی | AJ5: سلول مرجع | NU5: a1 | NV5: =O33 -> 203 | OB5: =NV30 -> -25 | OC5: =NV31 -> 5 | OD5: w1 | OF5: e1 | OG5: =R34 -> 150 | OM5: =OG35 -> -25 | ON5: =OG36 -> 5 | OO5: m1 | OQ5: e1 | OR5: =U34 -> 140 | OX5: =OR35 -> -25 | OY5: =OR36 -> 5 | OZ5: m1 | PB5: c1 | PC5: =X33 -> 155 | PI5: =PB60 -> -25 | PJ5: =PC60 -> 5 | PK5: n1 | PM5: c1 | PN5: =AA33 -> 178 | PT5: =PM60 -> -25 | PU5: =PN60 -> 5 | PV5: n1 | PX5: Xt1 | PY5: ='متغیرها '!C865 -> -45 | PZ5: جابجایی افقی کل راهنما نقشه | QE5: =PX29 -> -45 | QF5: 5 | QG5: t1 | QJ5: =QJ9 -> 12 | QK5: جابجایی افقی | QM5: =QI69 -> 10.410015 | QN5: =QJ69 -> 135.2293721 | QO5: 26'
A6: per_font_size_chart | B6: =0.1*'طراحی مدل 213'!B322 -> 0.8 | E6: (بدون احتساب بافت انتخابی) a'0 ضریب تعداد رج | F6: =IF(F8=2,H6,IF(F8=3,I6,J6)) -> 3.5 | H6: 3.5 | I6: 2.8 | J6: 2.3 | K6: a''0 | N6: متغیرهای ورودی یقه شکاری کشباف | R6: =ROUND(S12*S9,1) -> 2.7 | S6: پهنا (cm)= | W6: متغیر محاسبه ای | AE6: d'3 | AF6: ='متغیرها '!C167*H124 -> 3.136 | AH6: تعداد دانه در یک سانت eb0 | AI6: ea0 تعداد رج در یک سانت | AJ6: میزان جمع شوندگی عمودی مدل | AK6: میزان جمع شوندگی افقی مدل | AL6: ارتفاع رجها به سانتیمتر | AM6: تعداد رج | AN6: پهنا به سانتیمتر | AO6: تعداد دانه | AP6: اسم مدل | AQ6: شماره مدل | NU6: a2 | NV6: 7 | OA6: باکس نوشتهa1 | OD6: =OA6 -> باکس نوشتهa1 | OF6: e2 | OG6: 6 | OL6: باکس نوشتهe1 | OO6: =OL6 -> باکس نوشتهe1 | OQ6: e2 | OR6: 6 | OW6: باکس نوشتهe1 | OZ6: =OW6 -> باکس نوشتهe1 | PB6: c2 | PC6: 4 | PH6: باکس نوشتهc1 | PK6: =PH6 -> باکس نوشتهc1 | PM6: c2 | PN6: 4 | PS6: باکس نوشتهc1 | PV6: =PS6 -> باکس نوشتهc1 | PX6: Yt1 | PY6: ='متغیرها '!C866 -> 5 | PZ6: جابجایی عمودی کل راهنما نقشه | QE6: -41.5 | QF6: 5 | QG6: t2 | QJ6: =QJ10 -> 7 | QK6: جابجایی عمودی | QM6: =QI68 -> 10.410015 | QN6: =QJ68 -> 52.7 | QO6: 1'
A7: ChartFieldRange( باید خالی باشد ) | E7: (بدون احتساب بافت انتخابی) b'0 ضریب تعداد دانه | F7: =IF(F8=2,H7,IF(F8=3,I7,J7)) -> 2.6 | H7: 2.6 | I7: 2 | J7: 1.6 | K7: b''0 | N7: =ROUND(O11*(0.4*G166+0.037*H131),1) -> 6.7 | O7: پهنا (cm)= | R7: =ROUND(S13*S9,1) -> 4.8 | S7: پهنا (cm)= | W7: c'6 | X7: =DD692-DD682 -> 7.429699873 | AE7: d11 | AF7: =(0.95+1.45*'متغیرها '!C164)*(0.4*G166+0.037*H131) -> 6.161630325 | AH7: =AO7/AN7 -> 1.875 | AI7: =AM7/AL7 -> 3.333333333 | AJ7: =(10/3)*((AM7/AL7)*(1/F6)-1) -> -0.1587301587 | AK7: =(100/68)*((AO7/AN7)*(1/F7)-1) -> -0.4100678733 | AL7: ='طراحی همه الگوها'!H294 -> 6 | AM7: 20 | AN7: ='طراحی همه الگوها'!H293 -> 16 | AO7: 30 | AP7: ='طراحی همه الگوها'!G292 -> اول مخصوص کاربر | AQ7: 1 | NU7: a3 | NV7: 23 | NZ7: متغیرهای ورودی | OB7: =NZ13 -> -25 | OC7: =OA13 -> 5 | OD7: =NY13 -> w1 | OF7: e3 | OG7: 15 | OK7: متغیرهای ورودی | OM7: =OK13 -> -25 | ON7: =OL13 -> 5 | OO7: =OJ13 -> m1 | OQ7: e3 | OR7: 16 | OV7: متغیرهای ورودی | OX7: =OV13 -> -25 | OY7: =OW13 -> 5 | OZ7: =OU13 -> m1 | PB7: c3 | PC7: 8 | PG7: متغیرهای ورودی | PI7: =PG13 -> -25 | PJ7: =PH13 -> 5 | PK7: =PF13 -> n1 | PM7: c3 | PN7: 8 | PR7: متغیرهای ورودی | PT7: =PR13 -> -25 | PU7: =PS13 -> 5 | PV7: =PQ13 -> n1 | PX7: w11 | PY7: =4/PX18 -> 1.428571429 | PZ7: ارتفاع هر رج | QB7: نسبت سایز افقی | QC7: =PY17 -> 42 | QD7: انحنا چپگرد | QG7: =QD7 -> انحنا چپگرد
A8: show_temp_print_sheet | B8: 0 | E8: انتخاب ضخامت میل بافتنی f1 | F8: ='متغیرها '!C834 -> 2 | N8: متغیر محاسبه ای یقه شکاری | R8: متغیر محاسبه ای شومیزیه | W8: c6 | X8: =ROUNDUP(X19*X7,0) -> 36 | AE8: d'12 | AF8: =G263-G258 -> 23.94820431 | AH8: 30 | AI8: 20 | AJ8: =(10/3)*((AM8/AL8)*(1/F6)-1) -> 15.71428571 | AK8: =(100/68)*((AO8/AN8)*(1/F7)-1) -> 15.49773756 | AL8: ='طراحی همه الگوها'!H298 -> 1 | AM8: 20 | AN8: ='طراحی همه الگوها'!H297 -> 1 | AO8: 30 | AP8: ='طراحی همه الگوها'!G296 -> دوم مخصوص کاربر | AQ8: =AQ7+1 -> 2 | NU8: a4 | NV8: 47 | NY8: طول باکس نوشته | NZ8: =NV35 -> 4.5 | OA8: h3 | OB8: =NZ18 -> -3.338942308 | OC8: =OA18 -> 5 | OD8: =NY18 -> h8 | OF8: e4 | OG8: 27 | OJ8: طول باکس نوشته | OK8: =OG40 -> 4.5 | OL8: h3 | OM8: =OK18 -> 1.355769231 | ON8: =OL18 -> 5 | OO8: =OJ18 -> h8 | OQ8: e4 | OR8: 32 | OU8: طول باکس نوشته | OV8: =OR40 -> 4.5 | OW8: h3 | OX8: =OV18 -> -0.5512820513 | OY8: =OW18 -> 5 | OZ8: =OU18 -> h8 | PB8: c4 | PC8: 19 | PF8: طول باکس نوشته | PG8: =PC37 -> 4.5 | PH8: h3 | PI8: =PG18 -> 2.309294872 | PJ8: =PH18 -> 5 | PK8: =PF18 -> h8 | PM8: c4 | PN8: 20 | PQ8: طول باکس نوشته | PR8: =PN37 -> 4.5 | PS8: h3 | PT8: =PR18 -> 6.695512821 | PU8: =PS18 -> 5 | PV8: =PQ18 -> h8 | PX8: g9 | PY8: 0.5 | PZ8: پهنای نیم دایره | QB8: ارتفاع نیم دایره | QC8: =PY14 -> 1.428571429 | QD8: بزرگی فلش | QE8: =QC11 -> -41.5 | QF8: =QD11 -> 5 | QG8: =QB11 -> t2 | QI8: نقاط ورودی | QM8: =QI68 -> 10.410015 | QN8: =QJ68 -> 52.7 | QO8: 1'
A9: per_line_size_chart | E9: از آستین رگلان γ9 | F9: =DE542 -> 0.6600464444 | I9: مقادیر قدیمی تا تاریخ 12 99 | N9: a7 | O9: =O16*O11*(0.4*G166+0.037*H131) -> 22.17682898 | R9: e'1 | S9: =(0.4*G166+0.037*H131) -> 3.024113043 | W9: c7 | X9: 0.15 | AE9: d12 | AF9: =ROUND(F6*AF8,0) -> 84 | AH9: 30 | AI9: 20 | AJ9: =(10/3)*((AM9/AL9)*(1/F6)-1) -> 15.71428571 | AK9: =(100/68)*((AO9/AN9)*(1/F7)-1) -> 15.49773756 | AL9: ='طراحی همه الگوها'!H302 -> 1 | AM9: 20 | AN9: ='طراحی همه الگوها'!H301 -> 1 | AO9: 30 | AP9: ='طراحی همه الگوها'!G300 -> سوم مخصوص کاربر | AQ9: 3 | EN9: رسم دستی چادر 4 | ET9: رسم و طراحی چادر شماره 4 | FF9: رسم چادر شماره 5 | FN9: طراحی چادر شماره 5 | FR9: طراحی چادر شماره 5 | GA9: پروسیجر یافتن راس سوم مثلث با داشتن دو راس و دو ضلع | GG9: پروسیجر چرخش یک نقطه حول نقطه دیگر | GM9: کامل شده | GP9: رسم باکس زیپ دامن- باکس دوطرفه راست و چپ | GQ9: مولفه افقی | GR9: مولفه عمودی | GU9: به دست آوردن راس سوم مثلث وقتی دو راس و دو ضلع را داریم | HA9: جلو(k''5 →k6) | HB9: =SQRT(POWER((#REF!-#REF!),2)+POWER((#REF!-#REF!),2)) ->  | HC9: ضلع راست | HO9: قرینه | NU9: a5 | NV9: 71 | NY9: پهنای باکس نوشته | NZ9: =NV36 -> 0.5 | OA9: h4 | OF9: e5 | OG9: 42 | OJ9: پهنای باکس نوشته | OK9: =OG41 -> 0.5 | OL9: h4 | OQ9: e5 | OR9: 49 | OU9: پهنای باکس نوشته | OV9: =OR41 -> 0.5 | OW9: h4 | PB9: c10 | PC9: 6 | PF9: پهنای باکس نوشته | PG9: =PC38 -> 0.5 | PH9: h4 | PM9: c10 | PN9: 6 | PQ9: پهنای باکس نوشته | PR9: =PN38 -> 0.5 | PS9: h4 | PX9: f'4 | PY9: 0.4 | PZ9: بزرگی فلش رج | QB9: پهنای نیم دایره | QC9: =PY8 -> 0.5 | QD9: =PY16 -> 0.5714285714 | QE9: =QC15 -> -41.1325 | QF9: =QD15 -> 5.2 | QG9: =QB15 -> g5 | QJ9: =C100 -> 12 | QK9: شیفت افقی جلو | QM9: =QI71 -> 23.43933657 | QN9: =QJ71 -> 52.7 | QO9: 50
E10: γ10 از آستین رگلان | F10: =DE543 -> 0.5685004352 | H10: میل 2 و 2.5 | I10: میل 3 و 3.5 | J10: میل 4 و 4.5 | N10: متغیرهای ورودی یقه شکاری کشباف | R10: e''1 | S10: =S13*S9 -> 4.838580868 | W10: c8 | X10: 0.25 | AE10: d''12 | AF10: =G264+AX147 -> 7.209770714 | AH10: 30 | AI10: 20 | AJ10: =(10/3)*((AM10/AL10)*(1/F6)-1) -> 15.71428571 | AK10: =(100/68)*((AO10/AN10)*(1/F7)-1) -> 15.49773756 | AL10: ='طراحی همه الگوها'!H306 -> 1 | AM10: 20 | AN10: ='طراحی همه الگوها'!H305 -> 1 | AO10: 30 | AP10: ='طراحی همه الگوها'!G304 -> چهارم مخصوص کاربر | AQ10: 4 | ET10: رسم دستی چادر4 با نقطه گذاری | EY10: خطوط پرینت الگو یا طراحی چادر4 | FB10: رسم دستی چادر 5 (بر حسب سانتیمتر) | FG10: صاف | FK10: انحنا | FN10: اسم نقطه | FO10: مولفه افقی | FP10: مولفه عمودی | FR10: =FO14 -> 12 | FS10: 168.48394 | FT10: s'6 | GC10: اطلاعات ورودی | GG10: رادیان | GH10: =-#REF! ->  | GI10: زاویه چرخش | GJ10: چرخش مخالف عقربه های ساعت | GO10: نقطه ورودی بالا | GP10: b5 | GQ10: =#REF! ->  | GR10: =#REF! ->  | GU10: درجه α1 | GV10: رادیان α1 | GW10: xdp'6 | GX10: ydp'6 | GY10: (dp4→dp'6) | GZ10: (dp4→dp6)-(dp4→dp'6) | HA10: (k6 →45)جلو | HB10: =SQRT(POWER((#REF!-#REF!),2)+POWER((#REF!-#REF!),2)) ->  | HC10: ضلع چپ | HO10: =-HK10+HP9 -> 0 | HP10: =HL10 -> 0 | NU10: a6 | NV10: 9 | OB10: =NZ20 -> -3.338942308 | OC10: =OA20 -> 5.25 | OD10: =NY20 -> h10 | OF10: e6 | OG10: 6 | OM10: =OK20 -> 1.355769231 | ON10: =OL20 -> 5.25 | OO10: =OJ20 -> h10 | OQ10: e6 | OR10: 6 | OX10: =OV20 -> -0.5512820513 | OY10: =OW20 -> 5.25 | OZ10: =OU20 -> h10 | PB10: c11 | PC10: 4 | PI10: =PG20 -> 2.309294872 | PJ10: =PH20 -> 5.25 | PK10: =PF20 -> h10 | PM10: c11 | PN10: 4 | PT10: =PR20 -> 6.695512821 | PU10: =PS20 -> 5.25 | PV10: =PQ20 -> h10 | PX10: f5 | PY10: 0.5 | PZ10: زاویه فلش رج | QB10: نقطه شروع انحنا | QC10: مولفه افقی | QD10: مولفه عمودی | QE10: =QC14 -> -40.975 | QF10: =QD14 -> 5.714285714 | QG10: =QB14 -> g4 | QJ10: 7 | QK10: شیفت عمودی جلو | QM10: =QI70 -> 36.36639748 | QN10: =QJ70 -> 53.22706078 | QO10: 7
E11: (نصف طول دور گردن بعلاوه جادکمه) (b'1)/2+b'2 | F11: =AZ102-BD98+SQRT(POWER((AZ102-AZ145),2)+POWER((BA145-BA102),2))+SQRT(POWER((AZ145-AZ148),2)+POWER((BA145-BA148),2))+SQRT(POWER((AZ148-AZ140),2)+POWER((BA148-BA140),2))+SQRT(POWER((BK138-BK132),2)+POWER((BL138-BL132),2))+SQRT(POWER((BK132-BK135),2)+POWER((BL132-BL135),2))+SQRT(POWER((BK135-BK104),2)+POWER((BL104-BL135),2)) -> 24.43392384 | H11: 3.5 | I11: 2.8 | J11: 2.6 | K11: a''0 | N11: ضریب پهنای یقه (1.5 الی 3) | O11: =EF682/EF679 -> 2.2 | S11: متغیرهای ورودی یقه شومیزیه بافت انتخابی | W11: c12 | X11: =2*(F11-F12) -> 45.68787767 | AE11: یقه انگلیسی بافت جودانه | AH11: 30 | AI11: 20 | AJ11: =(10/3)*((AM11/AL11)*(1/F6)-1) -> 15.71428571 | AK11: =(100/68)*((AO11/AN11)*(1/F7)-1) -> 15.49773756 | AL11: ='طراحی همه الگوها'!H310 -> 1 | AM11: 20 | AN11: ='طراحی همه الگوها'!H309 -> 1 | AO11: 30 | AP11: ='طراحی همه الگوها'!G308 -> پنجم مخصوص کاربر | AQ11: 5 | DA11: رسم دستی چادر 2 (بر حسب سانتیمتر) | DD11: رسم چادر شماره 2 | DL11: نقاط ورودی | DP11: طراحی چادر شماره 2 | DX11: طراحی چادر شماره 3 | EB11: رسم دستی چادر 3 (بر حسب سانتیمتر) | EE11: رسم چادر شماره 3 | ET11: =EP29 -> 12 | EU11: =EQ30 -> -5 | EV11: 2 | EX11: =EP30 -> 2.7 | EY11: =EQ30 -> -5 | EZ11: 3 | FF11: =FF15-'طراحی همه الگوها'!U274 -> 64.6 | FG11: =FG15 -> 99.9 | FH11: خط پهلو | FJ11: =FF30 -> 94.1 | FK11: =FG30 -> 110.9 | FL11: 13 | FN11: s1 | FO11: =DB400 -> 12 | FP11: =DC400 -> 165.955 | FR11: 19.79674568 | FS11: 165.4817211 | FT11: s''7 | GA11: اسم نقطه | GB11: مولفه افقی | GC11: مولفه عمودی | GG11: مولفه افقی | GH11: مولفه عمودی | GI11: اسم نقطه | GK11: نقطه خروجی چرخیده | GO11: نقطه ورودی پایین | GP11: b6 | GQ11: =#REF! ->  | GR11: =#REF! ->  | GT11: 2 | GU11: -100 | GV11: =RADIANS(GU11) -> -1.745329252 | GW11: =HB13+HB10*COS(GV11) ->  | GX11: =HC13-HB10*SIN(GV11) ->  | GY11: =SQRT(POWER((HB12-GW11),2)+POWER((HC12-GX11),2)) ->  | GZ11: =ABS(HB9-GY11) ->  | HA11: اسم نقطه | HB11: مولفه افقی | HC11: مولفه عمودی | HO11: =-HK11+HP9 -> 0 | HP11: 0 | NU11: a10 | NV11: 5 | OB11: =NZ21 -> -3.338942308 | OC11: =OA21 -> 4.75 | OD11: =NY21 -> h11 | OF11: e7 | OG11: 4 | OM11: =OK21 -> 1.355769231 | ON11: =OL21 -> 4.75 | OO11: =OJ21 -> h11 | OQ11: e7 | OR11: 4 | OX11: =OV21 -> -0.5512820513 | OY11: =OW21 -> 4.75 | OZ11: =OU21 -> h11 | PB11: خطا | PI11: =PG21 -> 2.309294872 | PJ11: =PH21 -> 4.75 | PK11: =PF21 -> h11 | PM11: خطا | PT11: =PR21 -> 6.695512821 | PU11: =PS21 -> 4.75 | PV11: =PQ21 -> h11 | PX11: f9 | PY11: 0.5 | PZ11: بزرگی خط عمودی دانه | QB11: =PZ30 -> t2 | QC11: =PX30 -> -41.5 | QD11: =PY30 -> 5 | QE11: =QC16 -> -41.1325 | QF11: =QD16 -> 6.228571429 | QG11: =QB16 -> g6 | QJ11: 10 | QK11: شیفت افقی پشت
E12: ( از خط مرکزی جلو تا خط جادکمه = طول جادکمه) b'2 | F12: =AZ102-BD98 -> 1.589985 | H12: 2.3 | I12: 1.8 | J12: 1.7 | K12: b''0 | N12: a15 | O12: =EE699-EE697+SQRT(POWER((EE699-EE701),2)+POWER((EF699-EF701),2))+SQRT(POWER((EE701-EE704),2)+POWER((EF701-EF704),2))+SQRT(POWER((EE704-EE705),2)+POWER((EF704-EF705),2))+SQRT(POWER((EE705-EE703),2)+POWER((EF705-EF703),2)) -> 22.79457287 | R12: ضریب پهنای پایه یقه (1 الی 2) | S12: =DH682/DH679 -> 0.9 | W12: c13 | X12: =2*(SQRT(POWER((DC682-DC683),2)+POWER((DD682-DD683),2))+SQRT(POWER((DC683-DC684),2)+POWER((DD683-DD684),2))+SQRT(POWER((DC684-DC685),2)+POWER((DD684-DD685),2))+SQRT(POWER((DC685-DC686),2)+POWER((DD685-DD686),2))+SQRT(POWER((DC686-DC687),2)+POWER((DD686-DD687),2))+SQRT(POWER((DC687-DC688),2)+POWER((DD687-DD688),2))+SQRT(POWER((DC688-DC689),2)+POWER((DD688-DD689),2))+SQRT(POWER((DC689-DC690),2)+POWER((DD689-DD690),2))) -> 76.5129802 | AE12: b'1 نوار باز شده گردن - دور تا دور گردن | AF12: =DP680+DP681 -> 22.79457287 | AH12: 30 | AI12: 20 | AJ12: =(10/3)*((AM12/AL12)*(1/F6)-1) -> 15.71428571 | AK12: =(100/68)*((AO12/AN12)*(1/F7)-1) -> 15.49773756 | AL12: ='طراحی همه الگوها'!H314 -> 1 | AM12: 20 | AN12: ='طراحی همه الگوها'!H313 -> 1 | AO12: 30 | AP12: ='طراحی همه الگوها'!G312 -> ششم مخصوص کاربر | AQ12: 6 | CI12: نقاط ورودی | CM12: رسم چادر شماره 1 و مقنعه چانه دار | CQ12: نقاط ورودی | CU12: رسم مقنعه دراپه | DE12: صاف | DI12: انحنا | DL12: اسم نقطه | DM12: مولفه افقی | DN12: مولفه عمودی | DP12: =DM23 -> 12 | DQ12: 168.48394 | DR12: s6 | DT12: طراحی چادر شماره 3 | DX12: =DU14 -> 12 | DY12: 168.48394 | DZ12: s'6 | EF12: صاف | EJ12: انحنا | ET12: =EP29 -> 12 | EU12: =EQ29 -> 172.7 | EV12: 1 | EX12: =EP32 -> 18.07889484 | EY12: =EQ32 -> -5.805973726 | EZ12: 6 | FJ12: =FJ11+0.45*(FJ15-FJ11) -> 105.35 | FK12: =FK11+0.25*(FK15-FK11) -> 137.35 | FL12: 13' | FN12: s3 | FO12: =DB402 -> 18.13548 | FP12: =DC402 -> 157.77265 | FR12: 32.7913218 | FS12: 144.4661887 | FT12: s''8 | FZ12: راس پایین | GA12: منهای شیفتa50 | GB12: =ER37 -> 92.04619465 | GC12: =ES37 -> 0 | GD12: ضلع پایین | GE12: =EZ25 -> 8 | GG12: =#REF! ->  | GH12: =#REF! ->  | GI12: a40 | GJ12: نقطه مرکزی چرخش | GK12: مولفه افقی | GL12: مولفه عمودی | GM12: اسم نقطه | GO12: متغیر ورودی پهنا | GP12: a20 | GQ12: =#REF! ->  | GR12: (سانتیمتر) | GU12: =GU11+GT11 -> -98 | GV12: -1.710422667 | GW12: =HB13+HB10*COS(GV12) ->  | GX12: =HC13-HB10*SIN(GV12) ->  | GY12: =SQRT(POWER((HB12-GW12),2)+POWER((HC12-GX12),2)) ->  | GZ12: =ABS(HB9-GY12) ->  | HA12: پشتk''5 | HB12: =GQ33 ->  | HC12: =GR33 ->  | HD12: راس راست | HO12: =-HK12+HP9 -> 0 | HP12: 0 | NU12: a11 | NV12: 2 | NY12: نقطه شروع رج(چپ) | NZ12: مولفه افقی | OA12: مولفه عمودی | OF12: e8 | OG12: 4 | OJ12: نقطه شروع رج(چپ) | OK12: مولفه افقی | OL12: مولفه عمودی | OQ12: e8 | OR12: 4 | OU12: نقطه شروع رج(چپ) | OV12: مولفه افقی | OW12: مولفه عمودی | PB12: c16 | PC12: =X15 -> 126 | PD12: تعداد دانه دور یقه ب ب | PF12: نقطه شروع رج(چپ) | PG12: مولفه افقی | PH12: مولفه عمودی | PM12: c16 | PN12: =X15 -> 126 | PO12: تعداد دانه دور یقه ب ب | PQ12: نقطه شروع رج(چپ) | PR12: مولفه افقی | PS12: مولفه عمودی | PX12: f10 | PY12: 0.3 | PZ12: بزرگی فلش دانه | QB12: g11 | QC12: =QC16+0.8*(QC14-QC16) -> -41.0065 | QD12: =QD14+0.6*(QD16-QD14) -> 6.022857143 | QE12: =QC13 -> -41.5 | QF12: =QD13 -> 6.428571429 | QG12: =QB13 -> g2 | QJ12: 10 | QK12: شیفت عمودی پشت | QM12: =QI70 -> 36.36639748 | QN12: =QJ70 -> 53.22706078 | QO12: 7
E13: گشادی بالای مچ آستین (cm) b'11 | F13: =ROUND(DY522-DY523,0) -> 32 | N13: a'25 | O13: =F11-O12 -> 1.639350964 | R13: ضریب پهنای برگرد یقه (1.5 الی 3) | S13: =DH710/DH707 -> 1.6 | W13: c14 | X13: =0.88*X12 -> 67.33142257 | AH13: 30 | AI13: 20 | AJ13: =(10/3)*((AM13/AL13)*(1/F6)-1) -> 15.71428571 | AK13: =(100/68)*((AO13/AN13)*(1/F7)-1) -> 15.49773756 | AL13: ='طراحی همه الگوها'!H318 -> 1 | AM13: 20 | AN13: ='طراحی همه الگوها'!H317 -> 1 | AO13: 30 | AP13: ='طراحی همه الگوها'!G316 -> هفتم مخصوص کاربر | AQ13: 7 | CI13: مولفه افقی | CJ13: مولفه عمودی | CK13: اسم نقطه | CM13: مولفه افقی | CN13: مولفه عمودی | CO13: اسم نقطه | CQ13: مولفه افقی | CR13: مولفه عمودی | CS13: اسم نقطه | CU13: مولفه افقی | CV13: مولفه عمودی | CW13: اسم نقطه | DD13: =DB37+'طراحی همه الگوها'!U190 -> 14.8 | DE13: =DE14 -> 0 | DF13: 5 | DH13: =DD17 -> 14.8 | DI13: =DE17 -> 26.8 | DJ13: 11 | DL13: s2 | DM13: =DB401 -> 16.294836 | DN13: =DC401 -> 163.9094125 | DP13: 18.90290209 | DQ13: 166.1323716 | DR13: s7 | DT13: اسم نقطه | DU13: مولفه افقی | DV13: مولفه عمودی | DX13: 18.49195498 | DY13: 165.3756551 | DZ13: s'7 | EE13: =DB37 -> 0 | EF13: ='طراحی همه الگوها'!U210+EC35 -> 165.7 | EG13: 1 | EI13: =EE32 -> 177.7 | EJ13: =EF32 -> 165.7 | EK13: 11 | FF13: 0 | FG13: =FC42 -> 0 | FH13: 1 | FJ13: =FJ11+0.75*(FJ15-FJ11) -> 112.85 | FK13: =FK11+0.5*(FK15-FK11) -> 163.8 | FL13: 28 | FN13: s5 | FO13: =DB404 -> 12 | FP13: =DC404 -> 147.772 | FR13: 48.38481316 | FS13: 125.2519876 | FT13: s''9 | FZ13: راس بالا | GA13: منهای شیفتe18 | GB13: =FB27-EW21 -> 0 | GC13: =FC27 -> 0 | GD13: ضلع بالا | GE13: =EZ26 -> 0 | GG13: =#REF!-#REF!+#REF! ->  | GH13: =#REF! ->  | GI13: a48-b16+f22 | GJ13: نقطه قبل از چرخش | GK13: =IF(GH13>GH12,IF(GG13>GG12,GG12+SQRT(POWER(GG13-GG12,2)+POWER(GH13-GH12,2))*COS(ATAN((GH13-GH12)/(GG13-GG12+0.000123))+GH10),GG12-SQRT(POWER(GG13-GG12,2)+POWER(GH13-GH12,2))*COS(ATAN((GH13-GH12)/(GG12-GG13+0.000123))-GH10)),IF(GG13>GG12,GG12+SQRT(POWER(GG13-GG12,2)+POWER(GH13-GH12,2))*COS(ATAN((GH12-GH13)/(GG13-GG12+0.000123))-GH10),GG12-SQRT(POWER(GG13-GG12,2)+POWER(GH13-GH12,2))*COS(ATAN((GH12-GH13)/(GG12-GG13+0.000123))+GH10))) ->  | GL13: =IF(GH13>GH12,IF(GG13>GG12,GH12+SQRT(POWER(GG13-GG12,2)+POWER(GH13-GH12,2))*SIN(ATAN((GH13-GH12)/(GG13-GG12+0.000123))+GH10),GH12+SQRT(POWER(GG13-GG12,2)+POWER(GH13-GH12,2))*SIN(ATAN((GH13-GH12)/(GG12-GG13+0.000123))-GH10)),IF(GG13>GG12,GH12-SQRT(POWER(GG13-GG12,2)+POWER(GH13-GH12,2))*SIN(ATAN((GH12-GH13)/(GG13-GG12+0.000123))-GH10),GH12-SQRT(POWER(GG13-GG12,2)+POWER(GH13-GH12,2))*SIN(ATAN((GH12-GH13)/(GG12-GG13+0.000123))+GH10))) ->  | GM13: e52 | GO13: متغیر ورودی طول | GP13: a21 | GQ13: =#REF! ->  | GU13: =GU12+GT11 -> -96 | GV13: -1.675516082 | GW13: =HB13+HB10*COS(GV13) ->  | GX13: =HC13-HB10*SIN(GV13) ->  | GY13: =SQRT(POWER((HB12-GW13),2)+POWER((HC12-GX13),2)) ->  | GZ13: =ABS(HB9-GY13) ->  | HA13: 42پشت | HB13: =GQ35 -> 1 | HC13: =GR35 -> 0 | HD13: راس چپ | HO13: =-HK13+HP9 -> 0 | HP13: 0 | NU13: a25 | NV13: 4 | NY13: w1 | NZ13: =NV30 -> -25 | OA13: =NV31 -> 5 | OB13: =NZ20 -> -3.338942308 | OC13: =OA20 -> 5.25 | OD13: =NY20 -> h10 | OF13: e9 | OG13: 2 | OJ13: m1 | OK13: =OG35 -> -25 | OL13: =OG36 -> 5 | OM13: =OK20 -> 1.355769231 | ON13: =OL20 -> 5.25 | OO13: =OJ20 -> h10 | OQ13: e9 | OR13: 2 | OU13: m1 | OV13: =OR35 -> -25 | OW13: =OR36 -> 5 | OX13: =OV20 -> -0.5512820513 | OY13: =OW20 -> 5.25 | OZ13: =OU20 -> h10 | PB13: c17 | PC13: =X16 -> 86 | PD13: تعداد دانه دور یقه لباس | PF13: n1 | PG13: =PB60 -> -25 | PH13: =PC60 -> 5 | PI13: =PG20 -> 2.309294872 | PJ13: =PH20 -> 5.25 | PK13: =PF20 -> h10 | PM13: c17 | PN13: =X16 -> 86 | PO13: تعداد دانه دور یقه لباس | PQ13: n1 | PR13: =PM60 -> -25 | PS13: =PN60 -> 5 | PT13: =PR20 -> 6.695512821 | PU13: =PS20 -> 5.25 | PV13: =PQ20 -> h10 | PX13: f11 | PY13: 0.75 | PZ13: زاویه فلش دانه | QB13: g2 | QC13: =QC11 -> -41.5 | QD13: =QD11+QC8 -> 6.428571429 | QJ13: 0 | QK13: شیفت افقی تکه جلو | QM13: =QI65 -> 35.51687435 | QN13: =QJ65 -> 90.52706078 | QO13: 9
E14: تعداد دانه ها در بالای مچ آستین b'12 | F14: =ROUND(I34*F13,0) -> 60 | H14: محاسبه برای بافت بالاتنه ( بافت انتخابی) | N14: یقه شکاری | R14: یقه شومیزیه تا خط جادکمه | W14: c15 | X14: =ROUND(X20*X13,0) -> 185 | AH14: 30 | AI14: 20 | AJ14: =(10/3)*((AM14/AL14)*(1/F6)-1) -> 15.71428571 | AK14: =(100/68)*((AO14/AN14)*(1/F7)-1) -> 15.49773756 | AL14: ='طراحی همه الگوها'!H322 -> 1 | AM14: 20 | AN14: ='طراحی همه الگوها'!H321 -> 1 | AO14: 30 | AP14: ='طراحی همه الگوها'!G320 -> هشتم مخصوص کاربر | AQ14: 8 | CI14: =DB406 -> 12 | CJ14: =DC406 -> 167.98 | CK14: شبیه ساز s15 | CM14: =CI39 -> 89.7 | CN14: =CJ39 -> 172.7 | CO14: j5 | CQ14: =DB404 -> 12 | CR14: =DC404 -> 147.772 | CS14: شبیه ساز s5 | CU14: =CQ27 -> 12 | CV14: =CR27 -> 98.1015 | CW14: d6 | DD14: =DB37 -> 0 | DE14: =CR36 -> 0 | DF14: 2 | DH14: ='طراحی همه الگوها'!U190+'طراحی همه الگوها'!U199 -> 36 | DI14: =DE14+'طراحی همه الگوها'!U201 -> 29.7 | DJ14: 17 | DL14: s3 | DM14: =DB402 -> 18.13548 | DN14: =DC402 -> 157.77265 | DP14: 35.00967362 | DQ14: 148.8875364 | DR14: s8 | DT14: s'6 | DU14: =DM16 -> 12 | DV14: =1.003*DN16 -> 168.48394 | DX14: 33.63984994 | DY14: 143.6176605 | DZ14: s'8 | EE14: =DB37 -> 0 | EF14: =EF13-'طراحی همه الگوها'!U212 -> 92.3 | EG14: 4 | EI14: =EI15+0.7*(EI13-EI15) -> 175.87 | EJ14: =EJ15+0.4*(EJ13-EJ15) -> 140.98 | EK14: 13' | ET14: =EP31 -> 20.7 | EU14: =EQ31 -> 7 | EV14: 5 | EX14: =EP32 -> 18.07889484 | EY14: =EQ32 -> -5.805973726 | EZ14: 6 | FF14: =FF13+'طراحی همه الگوها'!U249 -> 83.7 | FG14: =FG13 -> 0 | FH14: 2 | FJ14: =FJ11+0.95*(FJ15-FJ11) -> 117.85 | FK14: =FK11+0.8*(FK15-FK11) -> 195.54 | FL14: 13''' | FN14: s'6 | FO14: =DU14 -> 12 | FP14: =DV14 -> 168.48394 | FR14: 63.97830451 | FS14: 108.4395617 | FT14: s''10 | FZ14: c19 | GA14: =ATAN((GB13-GB12)/(GC13-GC12)) ->  | GC14: محاسبات | GQ14: ماکزیمم متغیر ورودی ضریب طول | GR14: 20 | GU14: =GU13+GT11 -> -94 | GV14: -1.640609497 | GW14: =HB13+HB10*COS(GV14) ->  | GX14: =HC13-HB10*SIN(GV14) ->  | GY14: =SQRT(POWER((HB12-GW14),2)+POWER((HC12-GX14),2)) ->  | GZ14: =ABS(HB9-GY14) ->  | HA14: k6 | HB14: =HB13+HB10*COS(RADIANS(GT24)) ->  | HC14: =HC13-HB10*SIN(RADIANS(GT24)) ->  | HD14: راس سوم | HO14: =-HK14+HP9 -> 0 | HP14: 0 | NU14: خطا | NY14: نقطه پایان رج(راست) | NZ14: مولفه افقی | OA14: مولفه عمودی | OB14: =NZ23 -> 1.161057692 | OC14: =OA23 -> 5.25 | OD14: =NY23 -> h13 | OF14: e10 | OG14: 6 | OJ14: نقطه پایان رج(راست) | OK14: مولفه افقی | OL14: مولفه عمودی | OM14: =OK23 -> 5.855769231 | ON14: =OL23 -> 5.25 | OO14: =OJ23 -> h13 | OQ14: e10 | OR14: 6 | OU14: نقطه پایان رج(راست) | OV14: مولفه افقی | OW14: مولفه عمودی | OX14: =OV23 -> 3.948717949 | OY14: =OW23 -> 5.25 | OZ14: =OU23 -> h13 | PB14: b''1 | PC14: =G46 -> 92 | PF14: نقطه پایان رج(راست) | PG14: مولفه افقی | PH14: مولفه عمودی | PI14: =PG23 -> 6.809294872 | PJ14: =PH23 -> 5.25 | PK14: =PF23 -> h13 | PM14: b''1 | PN14: =G46 -> 92 | PQ14: نقطه پایان رج(راست) | PR14: مولفه افقی | PS14: مولفه عمودی | PT14: =PR23 -> 11.19551282 | PU14: =PS23 -> 5.25 | PV14: =PQ23 -> h13 | PX14: g3 | PY14: =PY7 -> 1.428571429 | PZ14: ارتفاع نیم دایره | QB14: g4 | QC14: =QC11+QC9*QC7/40 -> -40.975 | QD14: =QD11+0.5*QC8 -> 5.714285714 | QE14: =QC18 -> -41.25662296 | QF14: =QD18 -> 5.710705726 | QG14: =QB18 -> g8 | QJ14: 0 | QK14: شیفت افقی تکه پشت | QM14: =QI66 -> 34.89998649 | QN14: =QJ66 -> 121.9928371 | QO14: 12
E15: تعداد دانه های اضافه شده زیر بغل b8 | F15: =ROUNDUP(I22*(AX119+AX114+BI116),0) -> 12 | H15: تعداد رج در یک سانت جادکمه | I15: =F6+0.3*I17*F6 -> 3.333333333 | N15: بافت انتخابی یقه شکاری | R15: جمع شوندگی عمودی e9 | S15: =OFFSET(AJ6,S20,0) -> 1.164021164 | W15: c16 | X15: =ROUND(X20*X11,0) -> 126 | AH15: 30 | AI15: 20 | AJ15: =(10/3)*((AM15/AL15)*(1/F6)-1) -> 15.71428571 | AK15: =(100/68)*((AO15/AN15)*(1/F7)-1) -> 15.49773756 | AL15: ='طراحی همه الگوها'!H326 -> 1 | AM15: 20 | AN15: ='طراحی همه الگوها'!H325 -> 1 | AO15: 30 | AP15: ='طراحی همه الگوها'!G324 -> نهم مخصوص کاربر | AQ15: 9 | CJ15: ='متغیرها '!C52 -> 7 | CK15: شیفت عمودی | CM15: =CI36 -> 12 | CN15: =CJ36 -> 172.7 | CO15: j1 | CQ15: =CI37 -> 12 | CR15: =CJ37 -> 107 | CS15: j2 | CU15: =CQ25 -> 12 | CV15: =CR25 -> 183.2165 | CW15: d3 | DD15: =DB37 -> 0 | DE15: ='طراحی همه الگوها'!U188+CR36 -> 173.7 | DF15: 1 | DH15: =DD21 -> 57.1 | DI15: =DE21 -> 35.2 | DJ15: 10 | DL15: خط سینه | DM15: =DT400 -> 12 | DN15: =DU400 -> 123.7 | DP15: 52.26692884 | DQ15: 137.1296943 | DR15: s9 | DT15: s'7 | DU15: =DU14+0.12*(DU18-DU14) -> 18.49195498 | DV15: =DV18+0.95*(DV14-DV18) -> 165.3756551 | DX15: 49.8697374 | DY15: 124.9679509 | DZ15: s'9 | EE15: =DB37 -> 0 | EF15: =EC35 -> 0 | EG15: 2 | EI15: =EE31-'طراحی همه الگوها'!U220 -> 171.6 | EJ15: =EF31 -> 124.5 | EK15: 13 | ET15: =EP29 -> 12 | EU15: =EQ31 -> 7 | EV15: 4 | EX15: =EX14+0.3*(EX17-EX14) -> 36.5097563 | EY15: =EY14+0.05*(EY17-EY14) -> -4.761275024 | EZ15: 6'' | FF15: =FF13+'طراحی همه الگوها'!U249 -> 83.7 | FG15: =FG13+'طراحی همه الگوها'!U251 -> 99.9 | FH15: 4 | FJ15: =FF34 -> 119.1 | FK15: =FG34 -> 216.7 | FL15: 15 | FN15: s''7 | FO15: =FO14+0.15*(FO18-FO14) -> 19.79674568 | FP15: =FP18+0.95*(FP14-FP18) -> 165.4817211 | FR15: 72.46358588 | FS15: 99.95428029 | FT15: k4 شبیه ساز | GA15: درجه α | GB15: x | GC15: y | GD15: c21 | GE15: c'17 | GG15: پروسیجر چرخش چند نقطه حول نقطه دیگر | GM15: کامل شده | GO15: m1 | GP15: =ATAN(IF(GQ11>GQ10,1,-1)*(GQ11-GQ10)/(GR10-GR11)) ->  | GQ15: m2 | GR15: =SQRT(POWER(GQ10-GQ11,2)+POWER(GR10-GR11,2)) ->  | GU15: =GU14+GT11 -> -92 | GV15: -1.605702912 | GW15: =HB13+HB10*COS(GV15) ->  | GX15: =HC13-HB10*SIN(GV15) ->  | GY15: =SQRT(POWER((HB12-GW15),2)+POWER((HC12-GX15),2)) ->  | GZ15: =ABS(HB9-GY15) ->  | HA15: رسم مثلث | HO15: =-HK15+HP9 -> 0 | HP15: 0 | NU15: b''1-2*a25 | NV15: =NV17-2*NV13 -> 84 | NY15: w2 | NZ15: =NU49 -> 22.82211538 | OA15: =NV49 -> 5 | OF15: e11 | OG15: 4 | OJ15: m2 | OK15: =OF61 -> 32.21153846 | OL15: =OG61 -> 5 | OQ15: e11 | OR15: 4 | OU15: m2 | OV15: =OQ61 -> 28.3974359 | OW15: =OR61 -> 5 | PB15: b2 | PC15: =ROUND(F12*I16,0) -> 3 | PD15: دانه ها جادکمه | PF15: n2 | PG15: =PB61 -> 34.11858974 | PH15: =PC61 -> 5 | PM15: b2 | PN15: =ROUND(F12*I16,0) -> 3 | PO15: دانه ها جادکمه | PQ15: n2 | PR15: =PM61 -> 42.89102564 | PS15: =PN61 -> 5 | PX15: n0 | PY15: =PX19*40/PY17 -> 1.904761905 | PZ15: ضریب کاهش تعداد دانه ها | QB15: g5 | QC15: =QC11+0.7*(QC14-QC11) -> -41.1325 | QD15: =QD11+0.28*(QD14-QD11) -> 5.2 | QE15: =QC12 -> -41.0065 | QF15: =QD12 -> 6.022857143 | QG15: =QB12 -> g11 | QJ15: 0 | QK15: شیفت عمودی تکه پشت
E16: تعداد دانه های سرتاسر آستین در قسمت زیر بغل b20 | F16: =ROUNDUP(F15+I21*F29*COS(0.4*(F9+F10))+G44+0.5*F27,0) -> 95 | H16: تعداد دانه در یک سانت جادکمه | I16: =F7+0.68*I18*F7 -> 1.875 | N16: aa0 تعداد رج در یک سانت | O16: =F6+0.3*O19*F6 -> 3.333333333 | R16: جمع شوندگی افقی e8 | S16: =OFFSET(AJ6,S20,1) -> 0.08650519031 | W16: c17 | X16: =G46-G42 -> 86 | AH16: 30 | AI16: 20 | AJ16: =(10/3)*((AM16/AL16)*(1/F6)-1) -> 15.71428571 | AK16: =(100/68)*((AO16/AN16)*(1/F7)-1) -> 15.49773756 | AL16: ='طراحی همه الگوها'!H330 -> 1 | AM16: 20 | AN16: ='طراحی همه الگوها'!H329 -> 1 | AO16: 30 | AP16: ='طراحی همه الگوها'!G328 -> دهم مخصوص کاربر | AQ16: 10 | CI16: دور سر | CJ16: ='متغیرها '!U85 -> 57 | CK16: w12 | CR16: =CJ22 -> 160 | CS16: تمام قد | DD16: =DB37+'طراحی همه الگوها'!U190 -> 14.8 | DE16: =DE15 -> 173.7 | DF16: 4 | DH16: ='طراحی همه الگوها'!U190+'طراحی همه الگوها'!U192+'طراحی همه الگوها'!U202 -> 67.7 | DI16: =DE14+'طراحی همه الگوها'!U204 -> 33.7 | DJ16: 20 | DL16: s15 | DM16: =DB406 -> 12 | DN16: =DC406 -> 167.98 | DP16: 69.52418406 | DQ16: 129.2911328 | DR16: s10 | DT16: s'8 | DU16: =DU14+0.4*(DU18-DU14) -> 33.63984994 | DV16: =DV18+0.6*(DV14-DV18) -> 143.6176605 | DX16: 66.09962485 | DY16: 106.3182413 | DZ16: s'10 | EE16: =DB37+'طراحی همه الگوها'!U216 -> 110 | EF16: =EF15 -> 0 | EG16: 8 | ET16: =EP29 -> 12 | EU16: =EQ30 -> -5 | EV16: 2 | EX16: =EX14+0.7*(EX17-EX14) -> 61.08423824 | EY16: =EY14+0.4*(EY17-EY14) -> 2.551615894 | EZ16: 6''' | FF16: =FF13+'طراحی همه الگوها'!U249-'طراحی همه الگوها'!U255 -> 76.1 | FG16: =FG15 -> 99.9 | FH16: 8 | FN16: s''8 | FO16: =FO14+0.4*(FO18-FO14) -> 32.7913218 | FP16: =FP18+0.6*(FP14-FP18) -> 144.4661887 | GA16: 2 | GB16: =GB12+GE12*SIN(RADIANS(GA16)+GA14) ->  | GC16: =GC12+GE12*COS(RADIANS(GA16)+GA14) ->  | GD16: =IF(GB13>GB16,ATAN((GC13-GC16)/(GB13-GB16)),ATAN((GC13-GC16)/(GB16-GB13))) ->  | GE16: =IF(GB13>GB16,(GB13-GB16)/COS(GD16),(GB16-GB13)/COS(GD16)) ->  | GG16: رادیان | GH16: 1 | GI16: زاویه چرخش | GJ16: چرخش مخالف عقربه های ساعت | GO16: نقطه خروجی بالا | GP16: b28 | GQ16: =GQ10+IF(GQ11>GQ10,1,-1)*GQ12*COS(GP15) ->  | GR16: =GR10+GQ12*SIN(GP15) ->  | GU16: =GU15+GT11 -> -90 | GV16: -1.570796327 | GW16: =HB13+HB10*COS(GV16) ->  | GX16: =HC13-HB10*SIN(GV16) ->  | GY16: =SQRT(POWER((HB12-GW16),2)+POWER((HC12-GX16),2)) ->  | GZ16: =ABS(HB9-GY16) ->  | HA16: =HA12 -> پشتk''5 | HO16: =-HK16+HP9 -> 0 | HP16: 0 | NU16: b2 | NV16: =F25 -> 5 | NY16: نقاط خروجی | NZ16: مولفه افقی | OA16: مولفه عمودی | OB16: =NZ21 -> -3.338942308 | OC16: =OA21 -> 4.75 | OD16: =NY21 -> h11 | OF16: خطا | OJ16: نقاط خروجی | OK16: مولفه افقی | OL16: مولفه عمودی | OM16: =OK21 -> 1.355769231 | ON16: =OL21 -> 4.75 | OO16: =OJ21 -> h11 | OQ16: خطا | OU16: نقاط خروجی | OV16: مولفه افقی | OW16: مولفه عمودی | OX16: =OV21 -> -0.5512820513 | OY16: =OW21 -> 4.75 | OZ16: =OU21 -> h11 | PB16: =X19 -> 4.722222222 | PC16: ca0 تعداد رج در یک سانت | PF16: نقاط خروجی | PG16: مولفه افقی | PH16: مولفه عمودی | PI16: =PG21 -> 2.309294872 | PJ16: =PH21 -> 4.75 | PK16: =PF21 -> h11 | PM16: =X19 -> 4.722222222 | PN16: ca0 تعداد رج در یک سانت | PQ16: نقاط خروجی | PR16: مولفه افقی | PS16: مولفه عمودی | PT16: =PR21 -> 6.695512821 | PU16: =PS21 -> 4.75 | PV16: =PQ21 -> h11 | PX16: f4 | PY16: =PY9*PY7 -> 0.5714285714 | PZ16: بزرگی فلش رج | QB16: g6 | QC16: =QC15 -> -41.1325 | QD16: =QD13-QD15+QD11 -> 6.228571429 | QJ16: جلو | QM16: =QI66 -> 34.89998649 | QN16: =QJ66 -> 121.9928371 | QO16: 12
E17: تعداد دانه های اضافه شده در کنار آستین در هر طرف b21 | F17: =0.5*(F16-F14) -> 17.5 | H17: جمع شوندگی عمودی بافت جادکمه | I17: =OFFSET(AJ6,I19,0) -> -0.1587301587 | N17: تعداد دانه در یک سانت ab0 | O17: =F7+0.68*O20*F7 -> 4.457142857 | R17: ea0 تعداد رج در یک سانت | S17: =F6+0.3*S15*F6 -> 4.722222222 | W17: جمع شوندگی عمودی e9 | X17: =OFFSET(AJ6,X21,0) -> 1.164021164 | AE17: یقه انگلیسی | AH17: =AO17/AN17 -> 1.945945946 | AI17: =AM17/AL17 -> 2.888888889 | AJ17: =(10/3)*((AM17/AL17)*(1/I6)-1) -> 0.1058201058 | AK17: =(100/68)*((AO17/AN17)*(1/I7)-1) -> -0.03974562798 | AL17: 13.5 | AM17: 39 | AN17: 18.5 | AO17: 36 | AP17: ساده | AQ17: 11 | CJ17: ='متغیرها '!U76 -> 80 | CK17: t3 | CM17: =CI36 -> 12 | CN17: =CJ36 -> 172.7 | CO17: j1 | CR17: ='متغیرها '!C52 -> 7 | CS17: شیفت عمودی | CU17: =CQ25 -> 12 | CV17: =CR25 -> 183.2165 | CW17: d3 | DD17: =DB37+'طراحی همه الگوها'!U190 -> 14.8 | DE17: =DE14+'طراحی همه الگوها'!U195 -> 26.8 | DF17: 11 | DH17: =DD25 -> 78.2 | DI17: =DE25 -> 27.621 | DJ17: 7 | DL17: زاویه متوسط سرشانه | DM17: ='متغیرها '!B245 -> 0.3200907981 | DN17: α2 | DT17: s'9 | DU17: =DU14+0.7*(DU18-DU14) -> 49.8697374 | DV17: =DV18+0.3*(DV14-DV18) -> 124.9679509 | EE17: =EE16 -> 110 | EF17: =EF16+'طراحی همه الگوها'!U221 -> 6.1 | EG17: 14 | EI17: =EE15 -> 0 | EJ17: =EF15 -> 0 | EK17: 2 | ET17: =EP30 -> 2.7 | EU17: =EQ30 -> -5 | EV17: 3 | EX17: =EP34 -> 79.5150997 | EY17: =EQ34 -> 15.08800032 | EZ17: 8 | FF17: =FF13 -> 0 | FG17: =FG15 -> 99.9 | FH17: 3 | FJ17: =FF32 -> 0 | FK17: =FG32 -> 124.9 | FL17: 18 | FN17: s''9 | FO17: =FO14+0.7*(FO18-FO14) -> 48.38481316 | FP17: =FP18+0.28*(FP14-FP18) -> 125.2519876 | FR17: =FO19 -> 72.46358588 | FS17: 99.95428029 | FT17: k4 شبیه ساز | GA17: 4 | GB17: =GB12+GE12*SIN(RADIANS(GA17)+GA14) ->  | GC17: =GC12+GE12*COS(RADIANS(GA17)+GA14) ->  | GD17: =IF(GB13>GB17,ATAN((GC13-GC17)/(GB13-GB17)),ATAN((GC13-GC17)/(GB17-GB13))) ->  | GE17: =IF(GB13>GB17,(GB13-GB17)/COS(GD17),(GB17-GB13)/COS(GD17)) ->  | GG17: مولفه افقی | GH17: مولفه عمودی | GI17: اسم نقطه | GK17: نقطه خروجی چرخیده | GO17: نقطه خروجی پایین | GP17: b27 | GQ17: =GQ18+IF(GQ11>GQ10,1,-1)*GQ12*COS(GP15) ->  | GR17: =GR18+GQ12*SIN(GP15) ->  | GU17: =GU16+GT11 -> -88 | GV17: -1.535889742 | GW17: =HB13+HB10*COS(GV17) ->  | GX17: =HC13-HB10*SIN(GV17) ->  | GY17: =SQRT(POWER((HB12-GW17),2)+POWER((HC12-GX17),2)) ->  | GZ17: =ABS(HB9-GY17) ->  | HA17: 42پشت | HB17: 1 | HC17: 0 | HO17: =-HK17+HP9 -> 0 | HP17: 0 | NU17: b''1 | NV17: =G46 -> 92 | NY17: h5 | NZ17: =NZ13+0.5*(NZ15-NZ13) -> -1.088942308 | OA17: =OA13 -> 5 | OB17: =NZ22 -> 1.161057692 | OC17: =OA22 -> 4.75 | OD17: =NY22 -> h12 | OF17: e12-4*eb0*b'2 | OG17: =ROUND(S19-4*S18*F12,0) -> 117 | OJ17: h5 | OK17: =OK13+0.5*(OK15-OK13) -> 3.605769231 | OL17: =OL13 -> 5 | OM17: =OK22 -> 5.855769231 | ON17: =OL22 -> 4.75 | OO17: =OJ22 -> h12 | OQ17: e12-4*eb0*b'2 | OR17: =OG17 -> 117 | OU17: h5 | OV17: =OV13+0.5*(OV15-OV13) -> 1.698717949 | OW17: =OW13 -> 5 | OX17: =OV22 -> 3.948717949 | OY17: =OW22 -> 4.75 | OZ17: =OU22 -> h12 | PB17: =X20 -> 2.752941176 | PC17: تعداد دانه در یک سانت cb0 | PF17: h5 | PG17: =PG13+0.5*(PG15-PG13) -> 4.559294872 | PH17: =PH13 -> 5 | PI17: =PG22 -> 6.809294872 | PJ17: =PH22 -> 4.75 | PK17: =PF22 -> h12 | PM17: =X20 -> 2.752941176 | PN17: تعداد دانه در یک سانت cb0 | PQ17: h5 | PR17: =PR13+0.5*(PR15-PR13) -> 8.945512821 | PS17: =PS13 -> 5 | PT17: =PR22 -> 11.19551282 | PU17: =PS22 -> 4.75 | PV17: =PQ22 -> h12 | PX17: w'12 | PY17: 42 | PZ17: نسبت نقشه بافت به سایز واقعی | QB17: g7 | QC17: =QC12+0.7*QD9*SIN(RADIANS(30)+2*ATAN((QC12-QC15)/(QD12-QD15+0.0001))) -> -40.71201625 | QD17: =QD12-0.7*QD9*COS(RADIANS(30)+2*ATAN((QC12-QC15)/(QD12-QD15+0.0001))) -> 5.752155604 | QE17: =QC12 -> -41.0065 | QF17: =QD12 -> 6.022857143 | QG17: =QB12 -> g11 | QK17: یقه گرد جلو | QM17: =QI75 -> 47.20510807 | QN17: =QJ75 -> 116.5200673 | QO17: k''5
E18: طول اضافه شده در کنار آستین در هر طرف b'21 | F18: =F17/I22 -> 9.333333333 | H18: جمع شوندگی افقی بافت جادکمه | I18: =OFFSET(AJ6,I19,1) -> -0.4100678733 | N18: متغیر ورودی بافت یقه شکاری | R18: تعداد دانه در یک سانت eb0 | S18: =F7+0.68*S16*F7 -> 2.752941176 | W18: جمع شوندگی افقی e8 | X18: =OFFSET(AJ6,X21,1) -> 0.08650519031 | AE18: بافت جودانه | AH18: 2.117647059 | AI18: 3.777777778 | AJ18: =(10/3)*((AM18/AL18)*(1/I6)-1) -> 1.164021164 | AK18: =(100/68)*((AO18/AN18)*(1/I7)-1) -> 0.08650519031 | AL18: 13.5 | AM18: 51 | AN18: 17 | AO18: 36 | AP18: همه از زیر | AQ18: 12 | CJ18: ='متغیرها '!U56 -> 99.9 | CK18: e | CM18: =CI37 -> 12 | CN18: =CJ37 -> 107 | CO18: j2 | CQ18: محاسبات | CU18: =CQ26 -> 84.345 | CV18: =CR26 -> 110.8715 | CW18: d4 | DD18: =DB37+'طراحی همه الگوها'!U190 -> 14.8 | DE18: =DE14 -> 0 | DF18: 5 | DL18: دست صاف شبیه ساز k4 | DM18: =F406 -> 86.98959014 | DN18: =J406 -> 123.5015223 | DP18: =DM28 -> 63.89189987 | DQ18: =DN28 -> 112.3003302 | DR18: s12 | DT18: s'10 | DU18: =EC41-('متغیرها '!C19*'متغیرها '!U83)*COS(DM17+RADIANS(EC40)) -> 66.09962485 | DV18: =ED41+('متغیرها '!C19*'متغیرها '!U83)*SIN(DM17+RADIANS(EC40)) -> 106.3182413 | DX18: =DU20 -> 55.70515517 | DY18: 95.92377164 | DZ18: s'12 | EE18: =DB37+'طراحی همه الگوها'!U216 -> 110 | EF18: =EF15+'طراحی همه الگوها'!U217 -> 67.7 | EG18: 9 | EI18: =EI17+0.3*(EI20-EI17) -> 18.144 | EJ18: =EJ17+0.15*(EJ20-EJ17) -> 2.25 | EK18: 16' | FF18: =FF13 -> 0 | FG18: =FG17-'طراحی همه الگوها'!U252 -> 85.9 | FH18: 5 | FJ18: =FJ17+'طراحی همه الگوها'!U268 -> 22.4 | FK18: =FG31+'طراحی همه الگوها'!U269 -> 125.8 | FL18: 24 | FN18: s''10 | FO18: =EC41-0.2*'متغیرها '!U83*COS(DM17+RADIANS(EC40)) -> 63.97830451 | FP18: =ED41+0.2*'متغیرها '!U83*SIN(DM17+RADIANS(EC40)) -> 108.4395617 | FR18: 60.7424131 | FS18: 78.18087633 | FT18: s''11 | GA18: 6 | GB18: =GB12+GE12*SIN(RADIANS(GA18)+GA14) ->  | GC18: =GC12+GE12*COS(RADIANS(GA18)+GA14) ->  | GD18: =IF(GB13>GB18,ATAN((GC13-GC18)/(GB13-GB18)),ATAN((GC13-GC18)/(GB18-GB13))) ->  | GE18: =IF(GB13>GB18,(GB13-GB18)/COS(GD18),(GB18-GB13)/COS(GD18)) ->  | GG18: 2 | GH18: 1 | GI18: a40 | GJ18: نقطه مرکزی چرخش | GK18: مولفه افقی | GL18: مولفه عمودی | GM18: اسم نقطه | GO18: نقطه خروجی میانه | GP18: b26 | GQ18: =GQ10+IF(GQ11>GQ10,1,-1)*GQ13*GR15*SIN(GP15)/GR14 ->  | GR18: =GR10-GQ13*GR15*COS(GP15)/GR14 ->  | GU18: =GU17+GT11 -> -86 | GV18: -1.500983157 | GW18: =HB13+HB10*COS(GV18) ->  | GX18: =HC13-HB10*SIN(GV18) ->  | GY18: =SQRT(POWER((HB12-GW18),2)+POWER((HC12-GX18),2)) ->  | GZ18: =ABS(HB9-GY18) ->  | HO18: =-HK18+HP9 -> 0 | HP18: 0 | NU18: نوشته ها یقه شکاری | NY18: h8 | NZ18: =NZ17-0.5*NZ8 -> -3.338942308 | OA18: =OA13 -> 5 | OF18: e12 | OG18: =ROUND(S19,0) -> 135 | OJ18: h8 | OK18: =OK17-0.5*OK8 -> 1.355769231 | OL18: =OL13 -> 5 | OQ18: e12 | OR18: =ROUND(S19,0) -> 135 | OU18: h8 | OV18: =OV17-0.5*OV8 -> -0.5512820513 | OW18: =OW13 -> 5 | PB18: =I16 -> 1.875 | PC18: تعداد دانه در یک سانت جادکمه | PF18: h8 | PG18: =PG17-0.5*PG8 -> 2.309294872 | PH18: =PH13 -> 5 | PM18: =I16 -> 1.875 | PN18: تعداد دانه در یک سانت جادکمه | PQ18: h8 | PR18: =PR17-0.5*PR8 -> 6.695512821 | PS18: =PS13 -> 5 | PX18: 2.8 | PY18: تعداد رج در یک سانت | QB18: g8 | QC18: =QC12-0.7*QD9*SIN(RADIANS(30)+ATAN((QC12-QC15)/(QD12-QD15+0.0001))) -> -41.25662296 | QD18: =QD12-0.7*QD9*COS(RADIANS(30)+ATAN((QC12-QC15)/(QD12-QD15+0.0001))) -> 5.710705726 | QE18: =QC17 -> -40.71201625 | QF18: =QD17 -> 5.752155604 | QG18: =QB17 -> g7 | QI18: =FF150 -> 20.01085635 | QJ18: 145.770561 | QK18: 25
E19: هر b11 رج در بافت آستین یکدانه از ابتدا و یکدانه از انتها کم شود | F19: =IF(OR(ROUND(F21/F17,0)>50,ROUND(F21/F17,0)<-50),0,ROUND(F21/F17,0)) -> 3 | H19: بافت انتخابی جادکمه | I19: ='متغیرها '!C835 -> 1 | N19: جمع شوندگی عمودی a9 | O19: =OFFSET(AJ6,O21,0) -> -0.1587301587 | R19: e12 | S19: =S18*2*F11 -> 134.5303101 | W19: ca0 تعداد رج در یک سانت | X19: =F6+0.3*X17*F6 -> 4.722222222 | AE19: d1 | AF19: =F45+2*F44+2*ROUND(F7*O238,0)-2*AF21 -> 129 | AH19: 1.8 | AI19: 2.666666667 | AJ19: =(10/3)*((AM19/AL19)*(1/I6)-1) -> -0.1587301587 | AK19: =(100/68)*((AO19/AN19)*(1/I7)-1) -> -0.1470588235 | AL19: 13.5 | AM19: 36 | AN19: 20 | AO19: 36 | AP19: جودانه | AQ19: 13 | CJ19: ='متغیرها '!U58 -> 100.1 | CK19: g | CQ19: (d1 → d2) | CR19: =0.45*'متغیرها '!U85 -> 25.65 | DD19: =DD18+'طراحی همه الگوها'!U192 -> 57.1 | DE19: =DE14 -> 0 | DF19: 8 | DH19: =DD18 -> 14.8 | DI19: =DE18 -> 0 | DJ19: 5 | DL19: شبیه ساز 26 | DM19: =DX388 -> 12 | DN19: =DY388 -> 137.7059388 | DP19: =DP18+0.25*(DP21-DP18) -> 68.6189249 | DQ19: =DQ21+0.5*(DQ18-DQ21) -> 59.65016509 | DR19: s12' | DT19: s'11 | DU19: =DU29-'طراحی همه الگوها'!U226*SIN(DM17+RADIANS(EC40)) -> 63.05906569 | DV19: =DV29-'طراحی همه الگوها'!U226*COS(DM17+RADIANS(EC40)) -> 90.5497601 | DX19: 65.27360862 | DY19: 51.46188582 | DZ19: s''13 | EE19: =EE26 -> 61.9 | EF19: =EF14+'طراحی همه الگوها'!U215 -> 96.1 | EG19: 7 | EI19: =DB37+'طراحی همه الگوها'!U227 -> 36.288 | EJ19: =EJ17+'طراحی همه الگوها'!U228 -> 6.8 | EK19: 22 | ET19: =EP29 -> 12 | EU19: =EQ35 -> 112.8882329 | EV19: 13 | EX19: =EP31 -> 20.7 | EY19: =EQ31 -> 7 | EZ19: 5 | FF19: =FF13 -> 0 | FG19: =FG13 -> 0 | FH19: 1 | FJ19: =FJ17+'طراحی همه الگوها'!U270 -> 44.9 | FK19: =FG31+'طراحی همه الگوها'!U271 -> 129.8 | FL19: 26 | FN19: k4 شبیه ساز | FO19: =K384 -> 72.46358588 | FP19: =L384 -> 99.95428029 | FR19: 37.30006754 | FS19: 60.76215315 | FT19: s'11 | GA19: 8 | GB19: =GB12+GE12*SIN(RADIANS(GA19)+GA14) ->  | GC19: =GC12+GE12*COS(RADIANS(GA19)+GA14) ->  | GD19: =IF(GB13>GB19,ATAN((GC13-GC19)/(GB13-GB19)),ATAN((GC13-GC19)/(GB19-GB13))) ->  | GE19: =IF(GB13>GB19,(GB13-GB19)/COS(GD19),(GB19-GB13)/COS(GD19)) ->  | GG19: 1 | GH19: 2 | GI19: نقطه 1 | GJ19: نقطه قبل از چرخش | GK19: =IF(GH19>GH18,IF(GG19>GG18,GG18+SQRT(POWER(GG19-GG18,2)+POWER(GH19-GH18,2))*COS(ATAN((GH19-GH18)/(GG19-GG18+0.000123))+GH16),GG18-SQRT(POWER(GG19-GG18,2)+POWER(GH19-GH18,2))*COS(ATAN((GH19-GH18)/(GG18-GG19+0.000123))-GH16)),IF(GG19>GG18,GG18+SQRT(POWER(GG19-GG18,2)+POWER(GH19-GH18,2))*COS(ATAN((GH18-GH19)/(GG19-GG18+0.000123))-GH16),GG18-SQRT(POWER(GG19-GG18,2)+POWER(GH19-GH18,2))*COS(ATAN((GH18-GH19)/(GG18-GG19+0.000123))+GH16))) -> 0.6182452327 | GL19: =IF(GH19>GH18,IF(GG19>GG18,GH18+SQRT(POWER(GG19-GG18,2)+POWER(GH19-GH18,2))*SIN(ATAN((GH19-GH18)/(GG19-GG18+0.000123))+GH16),GH18+SQRT(POWER(GG19-GG18,2)+POWER(GH19-GH18,2))*SIN(ATAN((GH19-GH18)/(GG18-GG19+0.000123))-GH16)),IF(GG19>GG18,GH18-SQRT(POWER(GG19-GG18,2)+POWER(GH19-GH18,2))*SIN(ATAN((GH18-GH19)/(GG19-GG18+0.000123))-GH16),GH18-SQRT(POWER(GG19-GG18,2)+POWER(GH19-GH18,2))*SIN(ATAN((GH18-GH19)/(GG18-GG19+0.000123))+GH16))) -> 0.6987463478 | GM19: نقطه چرخیده | GU19: =GU18+GT11 -> -84 | GV19: -1.466076572 | GW19: =HB13+HB10*COS(GV19) ->  | GX19: =HC13-HB10*SIN(GV19) ->  | GY19: =SQRT(POWER((HB12-GW19),2)+POWER((HC12-GX19),2)) ->  | GZ19: =ABS(HB9-GY19) ->  | HA19: =HA13 -> 42پشت | HB19: =HB13 -> 1 | HC19: =HC13 -> 0 | HO19: =-HK19+HP9 -> 0 | HP19: 0 | NU19: a1 | NV19: =TEXT(0,NV5)&" دانه سر می اندازیم" -> 203 دانه سر می اندازیم | NY19: h9 | NZ19: =NZ17+0.5*NZ8 -> 1.161057692 | OA19: =OA13 -> 5 | OB19: =NZ22 -> 1.161057692 | OC19: =OA22 -> 4.75 | OD19: =NY22 -> h12 | OF19: b''1 | OG19: =G46 -> 92 | OJ19: h9 | OK19: =OK17+0.5*OK8 -> 5.855769231 | OL19: =OL13 -> 5 | OM19: =OK22 -> 5.855769231 | ON19: =OL22 -> 4.75 | OO19: =OJ22 -> h12 | OQ19: b''1 | OR19: =OG19 -> 92 | OU19: h9 | OV19: =OV17+0.5*OV8 -> 3.948717949 | OW19: =OW13 -> 5 | OX19: =OV22 -> 3.948717949 | OY19: =OW22 -> 4.75 | OZ19: =OU22 -> h12 | PB19: =IF(PB20<11," مخصوص ",F8) -> 2 | PC19: انتخاب ضخامت میل بافتنی f1 | PF19: h9 | PG19: =PG17+0.5*PG8 -> 6.809294872 | PH19: =PH13 -> 5 | PI19: =PG22 -> 6.809294872 | PJ19: =PH22 -> 4.75 | PK19: =PF22 -> h12 | PM19: =IF(PM20<11," مخصوص ",F8) -> 2 | PN19: انتخاب ضخامت میل بافتنی f1 | PQ19: h9 | PR19: =PR17+0.5*PR8 -> 11.19551282 | PS19: =PS13 -> 5 | PT19: =PR22 -> 11.19551282 | PU19: =PS22 -> 4.75 | PV19: =PQ22 -> h12 | PX19: 2 | PY19: تعداد دانه در یک سانت | QI19: 18.40868508 | QJ19: 140.4999665 | QK19: 30 | QM19: =QI75 -> 47.20510807 | QN19: =QJ75 -> 116.5200673 | QO19: k''5
E20: b22 | F20: =SQRT(POWER(F33,2)-POWER(F18,2)) -> 14.20876099 | N20: جمع شوندگی افقی a8 | O20: =OFFSET(AJ6,O21,1) -> 1.050420168 | R20: بافت انتخابی یقه شومیزیه | S20: ='متغیرها '!C844 -> 12 | W20: تعداد دانه در یک سانت cb0 | X20: =F7+0.68*X18*F7 -> 2.752941176 | AE20: d2 | AF20: =ROUND(F6*AF6,0) -> 11 | AH20: 3.428571429 | AI20: 2.666666667 | AJ20: =(10/3)*((AM20/AL20)*(1/I6)-1) -> -0.1587301587 | AK20: =(100/68)*((AO20/AN20)*(1/I7)-1) -> 1.050420168 | AL20: 13.5 | AM20: 36 | AN20: 10.5 | AO20: 36 | AP20: کشباف (دوتایی) | AQ20: 14 | CI20: محاسبات | CM20: =CI37 -> 12 | CN20: =CJ37 -> 107 | CO20: j2 | CQ20: (d1 →d4) | CR20: ='طراحی همه الگوها'!U178+'طراحی همه الگوها'!U177 -> 77.7 | CU20: =CQ31 -> 12 | CV20: =CR31 -> 104.893505 | CW20: j'2 | DD20: =DD18+'طراحی همه الگوها'!U192 -> 57.1 | DE20: =DE14+'طراحی همه الگوها'!U193 -> 13.8 | DF20: 9 | DH20: ='طراحی همه الگوها'!U190+'طراحی همه الگوها'!U199 -> 36 | DI20: =DE14+'طراحی همه الگوها'!U200 -> 4.8 | DJ20: 16 | DP20: =DP18+0.6*(DP21-DP18) -> 75.23675995 | DQ20: =DQ21+0.2*(DQ18-DQ21) -> 28.06006604 | DR20: s12'' | DT20: s'12 | DU20: =DU18-'طراحی همه الگوها'!U225*SIN(DM17+RADIANS(EC40)) -> 55.70515517 | DV20: =DV18-'طراحی همه الگوها'!U225*COS(DM17+RADIANS(EC40)) -> 95.92377164 | DX20: 73.24731983 | DY20: 29.23094291 | DZ20: s'''13 | EE20: =DB37+'طراحی همه الگوها'!U216 -> 110 | EF20: =EF18+'طراحی همه الگوها'!U218 -> 124.5 | EG20: 10 | EI20: =DB37+'طراحی همه الگوها'!U222 -> 60.48 | EJ20: =EF15+'طراحی همه الگوها'!U223 -> 15 | EK20: 16 | ET20: =EP35 -> 43.91872614 | EU20: =EQ35 -> 112.8882329 | EV20: 9 | EX20: =EP33 -> 32.48382851 | EY20: =EQ33 -> 7.617564284 | EZ20: 7 | FJ20: =FF37 -> 56.1 | FK20: =FG37 -> 133.8 | FL20: 17 | FN20: s''11 | FO20: =FO22+0.8*(FO19-FO22) -> 60.7424131 | FP20: =FP22+0.5*(FP19-FP22) -> 78.18087633 | FR20: 13.85772197 | FS20: 56.40747236 | FT20: s11 | GA20: 10 | GB20: =GB12+GE12*SIN(RADIANS(GA20)+GA14) ->  | GC20: =GC12+GE12*COS(RADIANS(GA20)+GA14) ->  | GD20: =IF(GB13>GB20,ATAN((GC13-GC20)/(GB13-GB20)),ATAN((GC13-GC20)/(GB20-GB13))) ->  | GE20: =IF(GB13>GB20,(GB13-GB20)/COS(GD20),(GB20-GB13)/COS(GD20)) ->  | GG20: 1 | GH20: 2 | GI20: نقطه2 | GJ20: نقطه قبل از چرخش | GK20: =IF(GH20>GH18,IF(GG20>GG18,GG18+SQRT(POWER(GG20-GG18,2)+POWER(GH20-GH18,2))*COS(ATAN((GH20-GH18)/(GG20-GG18+0.000123))+GH16),GG18-SQRT(POWER(GG20-GG18,2)+POWER(GH20-GH18,2))*COS(ATAN((GH20-GH18)/(GG18-GG20+0.000123))-GH16)),IF(GG20>GG18,GG18+SQRT(POWER(GG20-GG18,2)+POWER(GH20-GH18,2))*COS(ATAN((GH18-GH20)/(GG20-GG18+0.000123))-GH16),GG18-SQRT(POWER(GG20-GG18,2)+POWER(GH20-GH18,2))*COS(ATAN((GH18-GH20)/(GG18-GG20+0.000123))+GH16))) -> 0.6182452327 | GL20: =IF(GH20>GH18,IF(GG20>GG18,GH18+SQRT(POWER(GG20-GG18,2)+POWER(GH20-GH18,2))*SIN(ATAN((GH20-GH18)/(GG20-GG18+0.000123))+GH16),GH18+SQRT(POWER(GG20-GG18,2)+POWER(GH20-GH18,2))*SIN(ATAN((GH20-GH18)/(GG18-GG20+0.000123))-GH16)),IF(GG20>GG18,GH18-SQRT(POWER(GG20-GG18,2)+POWER(GH20-GH18,2))*SIN(ATAN((GH18-GH20)/(GG20-GG18+0.000123))-GH16),GH18-SQRT(POWER(GG20-GG18,2)+POWER(GH20-GH18,2))*SIN(ATAN((GH18-GH20)/(GG18-GG20+0.000123))+GH16))) -> 0.6987463478 | GM20: نقطه چرخیده | GP20: رسم باکس زیپ دامن- باکس راست | GQ20: مولفه افقی | GR20: مولفه عمودی | GU20: =GU19+GT11 -> -82 | GV20: -1.431169987 | GW20: =HB13+HB10*COS(GV20) ->  | GX20: =HC13-HB10*SIN(GV20) ->  | GY20: =SQRT(POWER((HB12-GW20),2)+POWER((HC12-GX20),2)) ->  | GZ20: =ABS(HB9-GY20) ->  | HA20: =HA14 -> k6 | HB20: =#REF! ->  | HC20: =#REF! ->  | HO20: =-HK20+HP9 -> 0 | HP20: 0 | NU20: a2 | NV20: =TEXT(0,NV6)&" رج بافت انتخابی یقه میبافیم" -> 7 رج بافت انتخابی یقه میبافیم | NY20: h10 | NZ20: =NZ18 -> -3.338942308 | OA20: =OA18+0.5*NZ9 -> 5.25 | OB20: =NZ23 -> 1.161057692 | OC20: =OA23 -> 5.25 | OD20: =NY23 -> h13 | OF20: خطا | OG20: =R46 ->  | OJ20: h10 | OK20: =OK18 -> 1.355769231 | OL20: =OL18+0.5*OK9 -> 5.25 | OM20: =OK23 -> 5.855769231 | ON20: =OL23 -> 5.25 | OO20: =OJ23 -> h13 | OQ20: خطا | OR20: =U46 ->  | OU20: h10 | OV20: =OV18 -> -0.5512820513 | OW20: =OW18+0.5*OV9 -> 5.25 | OX20: =OV23 -> 3.948717949 | OY20: =OW23 -> 5.25 | OZ20: =OU23 -> h13 | PB20: =X21 -> 12 | PC20: بافت انتخابی یقه ب ب | PF20: h10 | PG20: =PG18 -> 2.309294872 | PH20: =PH18+0.5*PG9 -> 5.25 | PI20: =PG23 -> 6.809294872 | PJ20: =PH23 -> 5.25 | PK20: =PF23 -> h13 | PM20: =X21 -> 12 | PN20: بافت انتخابی یقه ب ب | PQ20: h10 | PR20: =PR18 -> 6.695512821 | PS20: =PS18+0.5*PR9 -> 5.25 | PT20: =PR23 -> 11.19551282 | PU20: =PS23 -> 5.25 | PV20: =PQ23 -> h13 | QE20: =PX31 -> -41.5 | QF20: =PY31 -> 6.428571429 | QG20: =PZ31 -> t3 | QI20: 15.20434254 | QJ20: 136.283491 | QK20: 28 | QM20: =QI74 -> 53.33694048 | QN20: =QJ74 -> 124.2732205 | QO20: k''4
E21: b'22 | F21: =F20*I33 -> 47.36253664 | H21: a0 تعداد رج در یک سانت جلو | I21: =F6+0.3*I23*F6 -> 3.333333333 | N21: بافت انتخابی یقه شکاری | O21: ='متغیرها '!C841 -> 14 | R21: بافت انتخابی یقه شومیزیه | S21: =OFFSET(AJ6,S20,6) -> همه از زیر | W21: بافت انتخابی یقه ب ب | X21: ='متغیرها '!C847 -> 12 | AE21: d3 | AF21: =ROUND(F7*AF6,0) -> 8 | AH21: 2.057142857 | AI21: 2.962962963 | AJ21: =(10/3)*((AM21/AL21)*(1/I6)-1) -> 0.1940035273 | AK21: =(100/68)*((AO21/AN21)*(1/I7)-1) -> 0.04201680672 | AL21: 13.5 | AM21: 40 | AN21: 17.5 | AO21: 36 | AP21: سبدی (5 تایی) | AQ21: 15 | CI21: قد سرشانه تا زمین | CJ21: =0.5*(CJ17+CJ18+CJ19) -> 140 | CM21: =CI47 -> 24 | CN21: =CJ47 -> 107 | CO21: j13 | CQ21: (d5 →d6) | CR21: =5+0.1*CR20 -> 12.77 | DD21: =DD18+'طراحی همه الگوها'!U192 -> 57.1 | DE21: =DE14+'طراحی همه الگوها'!U194 -> 35.2 | DF21: 10 | DH21: =DD20 -> 57.1 | DI21: =DE20 -> 13.8 | DJ21: 9 | DL21: طراحی چادر شماره 2 | DP21: =DM30 -> 82.8 | DQ21: =DN30 -> 7 | DR21: s13 | DT21: s''13 | DU21: =DU20+0.3*(DU23-DU20) -> 65.27360862 | DV21: =DV23+0.5*(DV20-DV23) -> 51.46188582 | DX21: 87.6 | DY21: 7 | DZ21: s'13 | EE21: =DB37+'طراحی همه الگوها'!U216 -> 110 | EF21: =EF18 -> 67.7 | EG21: 9 | EI21: =EI20+0.5*(EI22-EI20) -> 85.24 | EJ21: =EJ22+0.8*(EJ20-EJ22) -> 13.22 | EK21: 14' | FF21: =FF13+'طراحی همه الگوها'!U249-'طراحی همه الگوها'!U253 -> 56.1 | FG21: =FG15 -> 99.9 | FH21: 6 | FN21: s'11 | FO21: =FO22+0.4*(FO19-FO22) -> 37.30006754 | FP21: =FP22+0.1*(FP19-FP22) -> 60.76215315 | GA21: 12 | GB21: =GB12+GE12*SIN(RADIANS(GA21)+GA14) ->  | GC21: =GC12+GE12*COS(RADIANS(GA21)+GA14) ->  | GD21: =IF(GB13>GB21,ATAN((GC13-GC21)/(GB13-GB21)),ATAN((GC13-GC21)/(GB21-GB13))) ->  | GE21: =IF(GB13>GB21,(GB13-GB21)/COS(GD21),(GB21-GB13)/COS(GD21)) ->  | GG21: 1 | GH21: 2 | GI21: نقطه 3 | GJ21: نقطه قبل از چرخش | GK21: =IF(GH21>GH18,IF(GG21>GG18,GG18+SQRT(POWER(GG21-GG18,2)+POWER(GH21-GH18,2))*COS(ATAN((GH21-GH18)/(GG21-GG18+0.000123))+GH16),GG18-SQRT(POWER(GG21-GG18,2)+POWER(GH21-GH18,2))*COS(ATAN((GH21-GH18)/(GG18-GG21+0.000123))-GH16)),IF(GG21>GG18,GG18+SQRT(POWER(GG21-GG18,2)+POWER(GH21-GH18,2))*COS(ATAN((GH18-GH21)/(GG21-GG18+0.000123))-GH16),GG18-SQRT(POWER(GG21-GG18,2)+POWER(GH21-GH18,2))*COS(ATAN((GH18-GH21)/(GG18-GG21+0.000123))+GH16))) -> 0.6182452327 | GL21: =IF(GH21>GH18,IF(GG21>GG18,GH18+SQRT(POWER(GG21-GG18,2)+POWER(GH21-GH18,2))*SIN(ATAN((GH21-GH18)/(GG21-GG18+0.000123))+GH16),GH18+SQRT(POWER(GG21-GG18,2)+POWER(GH21-GH18,2))*SIN(ATAN((GH21-GH18)/(GG18-GG21+0.000123))-GH16)),IF(GG21>GG18,GH18-SQRT(POWER(GG21-GG18,2)+POWER(GH21-GH18,2))*SIN(ATAN((GH18-GH21)/(GG21-GG18+0.000123))-GH16),GH18-SQRT(POWER(GG21-GG18,2)+POWER(GH21-GH18,2))*SIN(ATAN((GH18-GH21)/(GG18-GG21+0.000123))+GH16))) -> 0.6987463478 | GM21: نقطه چرخیده | GO21: نقطه ورودی بالا | GP21: su3 | GQ21: =#REF! ->  | GR21: =#REF! ->  | GU21: =GU20+GT11 -> -80 | GV21: -1.396263402 | GW21: =HB13+HB10*COS(GV21) ->  | GX21: =HC13-HB10*SIN(GV21) ->  | GY21: =SQRT(POWER((HB12-GW21),2)+POWER((HC12-GX21),2)) ->  | GZ21: =ABS(HB9-GY21) ->  | HO21: =-HK21+HP9 -> 0 | HP21: 0 | NU21: a3 | NV21: =TEXT(0,NV7)&" دانه" -> 23 دانه | NY21: h11 | NZ21: =NZ18 -> -3.338942308 | OA21: =OA18-0.5*NZ9 -> 4.75 | OF21: نوشته ها یقه شومیزیه نوک تیز | OJ21: h11 | OK21: =OK18 -> 1.355769231 | OL21: =OL18-0.5*OK9 -> 4.75 | OQ21: نوشته ها یقه شومیزیه | OU21: h11 | OV21: =OV18 -> -0.5512820513 | OW21: =OW18-0.5*OV9 -> 4.75 | PB21: =X22 -> همه از زیر | PC21: بافت انتخابی یقه ب ب | PF21: h11 | PG21: =PG18 -> 2.309294872 | PH21: =PH18-0.5*PG9 -> 4.75 | PM21: =X22 -> همه از زیر | PN21: بافت انتخابی یقه ب ب | PQ21: h11 | PR21: =PR18 -> 6.695512821 | PS21: =PS18-0.5*PR9 -> 4.75 | PY21: بعد از دانه اول یکدانه اضافه میکنیم | PZ21: علامت اول | QE21: =PX34 -> -48.5 | QF21: =PY34 -> 6.428571429 | QG21: =PZ34 -> t6 | QI21: 12 | QJ21: 135.2293721 | QK21: 26
E22: b12 | F22: =IF(F37=F13,0,ROUND(F14/((F13-F37)*I34),0)) -> -1 | H22: تعداد دانه در یک سانت جلوb0 | I22: =F7+0.68*I24*F7 -> 1.875 | N22: بافت انتخابی یقه شکاری | O22: =OFFSET(AJ6,O21,6) -> کشباف (دوتایی) | R22: =ROUND(OF144-OF143-2/OG50,0) -> 44 | S22: =(S18*40*(G46-2*F42)/I22/OG37)/OG50 -> 38.4 | W22: بافت انتخابی یقه ب ب | X22: =OFFSET(AJ6,IF(X21=0,51,X21),6) -> همه از زیر | AE22: d4 | AF22: =IF((ROUND(F6*AF7,0)-AF20-4)<0,"خطا - بزرگی پشت یقه زیاد شود",(ROUND(F6*AF7,0)-AF20-4)) -> 7 | AH22: 2.571428571 | AI22: 2.814814815 | AJ22: =(10/3)*((AM22/AL22)*(1/I6)-1) -> 0.0176366843 | AK22: =(100/68)*((AO22/AN22)*(1/I7)-1) -> 0.4201680672 | AL22: 13.5 | AM22: 38 | AN22: 14 | AO22: 36 | AP22: تمشکی | AQ22: 16 | CI22: تمام قد | CJ22: =ROUND(CJ21+IF(CJ16>51.5,0.35,IF(CJ16>50.5,0.33,0.31))*CJ16,0) -> 160 | CQ22: نقاط خروجی در مقنعه دراپه | CU22: =CQ24 -> 12 | CV22: =CR24 -> 147.05 | CW22: d2 | DH22: ='طراحی همه الگوها'!U190+'طراحی همه الگوها'!U192+'طراحی همه الگوها'!U202 -> 67.7 | DI22: =DE14+'طراحی همه الگوها'!U203 -> 20 | DJ22: 19 | DL22: اسم نقطه | DM22: مولفه افقی | DN22: مولفه عمودی | DT22: s'''13 | DU22: =DU20+0.55*(DU23-DU20) -> 73.24731983 | DV22: =DV23+0.25*(DV20-DV23) -> 29.23094291 | EI22: =EE16 -> 110 | EJ22: =EF16+'طراحی همه الگوها'!U221 -> 6.1 | EK22: 14 | ET22: =EP29 -> 12 | EU22: =EQ37 -> 93.8575939 | EV22: 12 | EX22: =EP33 -> 32.48382851 | EY22: =EQ33 -> 7.617564284 | EZ22: 7 | FF22: =FF13+'طراحی همه الگوها'!U249-'طراحی همه الگوها'!U253 -> 56.1 | FG22: =FG15-'طراحی همه الگوها'!U254 -> 77 | FH22: 7 | FJ22: =FF18 -> 0 | FK22: =FG18 -> 85.9 | FL22: 5 | FN22: s11 | FO22: =0.7*FO15 -> 13.85772197 | FP22: =FP15-'طراحی همه الگوها'!U263+1.2*SQRT(POWER(FO15-FO14,2)+POWER(FP15-FP14,2)) -> 56.40747236 | FR22: =FO28 -> 12 | FS22: =FP28 -> 165.855 | FT22: s''17 | GA22: 14 | GB22: =GB12+GE12*SIN(RADIANS(GA22)+GA14) ->  | GC22: =GC12+GE12*COS(RADIANS(GA22)+GA14) ->  | GD22: =IF(GB13>GB22,ATAN((GC13-GC22)/(GB13-GB22)),ATAN((GC13-GC22)/(GB22-GB13))) ->  | GE22: =IF(GB13>GB22,(GB13-GB22)/COS(GD22),(GB22-GB13)/COS(GD22)) ->  | GG22: 1 | GH22: 2 | GI22: نقطه 4 | GJ22: نقطه قبل از چرخش | GK22: =IF(GH22>GH18,IF(GG22>GG18,GG18+SQRT(POWER(GG22-GG18,2)+POWER(GH22-GH18,2))*COS(ATAN((GH22-GH18)/(GG22-GG18+0.000123))+GH16),GG18-SQRT(POWER(GG22-GG18,2)+POWER(GH22-GH18,2))*COS(ATAN((GH22-GH18)/(GG18-GG22+0.000123))-GH16)),IF(GG22>GG18,GG18+SQRT(POWER(GG22-GG18,2)+POWER(GH22-GH18,2))*COS(ATAN((GH18-GH22)/(GG22-GG18+0.000123))-GH16),GG18-SQRT(POWER(GG22-GG18,2)+POWER(GH22-GH18,2))*COS(ATAN((GH18-GH22)/(GG18-GG22+0.000123))+GH16))) -> 0.6182452327 | GL22: =IF(GH22>GH18,IF(GG22>GG18,GH18+SQRT(POWER(GG22-GG18,2)+POWER(GH22-GH18,2))*SIN(ATAN((GH22-GH18)/(GG22-GG18+0.000123))+GH16),GH18+SQRT(POWER(GG22-GG18,2)+POWER(GH22-GH18,2))*SIN(ATAN((GH22-GH18)/(GG18-GG22+0.000123))-GH16)),IF(GG22>GG18,GH18-SQRT(POWER(GG22-GG18,2)+POWER(GH22-GH18,2))*SIN(ATAN((GH18-GH22)/(GG22-GG18+0.000123))-GH16),GH18-SQRT(POWER(GG22-GG18,2)+POWER(GH22-GH18,2))*SIN(ATAN((GH18-GH22)/(GG18-GG22+0.000123))+GH16))) -> 0.6987463478 | GM22: نقطه چرخیده | GO22: نقطه ورودی پایین | GP22: sd3 | GQ22: =#REF! ->  | GR22: =#REF! ->  | GT22: به روش تخمین | GU22: =GU21+GT11 -> -78 | GV22: -1.361356817 | GW22: =HB13+HB10*COS(GV22) ->  | GX22: =HC13-HB10*SIN(GV22) ->  | GY22: =SQRT(POWER((HB12-GW22),2)+POWER((HC12-GX22),2)) ->  | GZ22: =ABS(HB9-GY22) ->  | HA22: =HA14 -> k6 | HB22: =#REF! ->  | HC22: =#REF! ->  | HO22: =-HK22+HP9 -> 0 | HP22: 0 | NU22: a4 | NV22: =TEXT(0,NV8)&" دانه" -> 47 دانه | NY22: h12 | NZ22: =NZ19 -> 1.161057692 | OA22: =OA21 -> 4.75 | OB22: =NZ19 -> 1.161057692 | OC22: =OA19 -> 5 | OD22: =NY19 -> h9 | OF22: =OF5 -> e1 | OG22: =TEXT(0,OG5)&" دانه سر می اندازیم" -> 150 دانه سر می اندازیم | OJ22: h12 | OK22: =OK19 -> 5.855769231 | OL22: =OL21 -> 4.75 | OM22: =OK19 -> 5.855769231 | ON22: =OL19 -> 5 | OO22: =OJ19 -> h9 | OQ22: =OQ5 -> e1 | OR22: =TEXT(0,OR5)&" دانه سر می اندازیم" -> 140 دانه سر می اندازیم | OU22: h12 | OV22: =OV19 -> 3.948717949 | OW22: =OW21 -> 4.75 | OX22: =OV19 -> 3.948717949 | OY22: =OW19 -> 5 | OZ22: =OU19 -> h9 | PB22: نوشته ها یقه ب ب | PF22: h12 | PG22: =PG19 -> 6.809294872 | PH22: =PH21 -> 4.75 | PI22: =PG19 -> 6.809294872 | PJ22: =PH19 -> 5 | PK22: =PF19 -> h9 | PM22: نوشته ها یقه ب ب | PQ22: h12 | PR22: =PR19 -> 11.19551282 | PS22: =PS21 -> 4.75 | PT22: =PR19 -> 11.19551282 | PU22: =PS19 -> 5 | PV22: =PQ19 -> h9 | PY22: قبل از دانه آخر یکدانه اضافه میکنیم | PZ22: علامت دوم | QB22: زاویه فلش | QC22: =PY10 -> 0.5 | QD22: f5 | QG22: فلش به سمت چپ | QK22: پهلو صاف | QM22: =QI74 -> 53.33694048 | QN22: =QJ74 -> 124.2732205 | QO22: k''4
E23: محاسبات در بافت بالاتنه و آستین (بافت انتخابی) | H23: جمع شوندگی عمودی بافت جلو f2 | I23: =OFFSET(AJ6,I25,0) -> -0.1587301587 | L23: محاسبات یقه شکاری | R23: پهنای یقه منهای جادکمه روی نقشه بافت | S23: پهنای یقه منهای جادکمه روی بافت | W23: محاسبات یقه ب ب | AE23: d5 | AF23: =AF19+2*AF21 -> 145 | AH23: 2.571428571 | AI23: 2.814814815 | AJ23: =(10/3)*((AM23/AL23)*(1/I6)-1) -> 0.0176366843 | AK23: =(100/68)*((AO23/AN23)*(1/I7)-1) -> 0.4201680672 | AL23: 13.5 | AM23: 38 | AN23: 14 | AO23: 36 | AP23: کج راه | AQ23: 17 | CI23: j4 | CJ23: =IF('متغیرها '!C5<1,'متغیرها '!C5*'متغیرها '!U59,IF('متغیرها '!C5<2,'متغیرها '!U59+('متغیرها '!C5-1)*('متغیرها '!U60-'متغیرها '!U59),IF('متغیرها '!C5<3,'متغیرها '!U60+('متغیرها '!C5-2)*(I105-'متغیرها '!U60),I105+('متغیرها '!C5-3)*(H127-H126)))) -> 100 | CM23: =CI46 -> 24 | CN23: =CJ46 -> 164.1 | CO23: j12 | CQ23: مولفه افقی | CR23: مولفه عمودی | CS23: اسم نقطه | DD23: =DD18+'طراحی همه الگوها'!U192 -> 57.1 | DE23: =DE14 -> 0 | DF23: 8 | DH23: =DD25 -> 78.2 | DI23: =DE25 -> 27.621 | DJ23: 7 | DL23: s6 | DM23: =DM16 -> 12 | DN23: =1.003*DN16 -> 168.48394 | DP23: =DM34 -> 12 | DQ23: =DN34 -> 165.855 | DR23: s17 | DT23: s'13 | DU23: =DM19+0.5*('طراحی همه الگوها'!U216+'طراحی همه الگوها'!U210-'طراحی همه الگوها'!U217-'طراحی همه الگوها'!U218) -> 87.6 | DV23: =EC35+DM44 -> 7 | DX23: =DU27 -> 12 | DY23: =DV27 -> 165.855 | DZ23: s'17 | EE23: =DB37 -> 0 | EF23: =EF14 -> 92.3 | EG23: 4 | ET23: =EP37 -> 69.77062402 | EU23: =EQ37 -> 93.8575939 | EV23: 11 | EX23: =EX22+0.3*(EX25-EX22) -> 46.59320987 | EY23: =MIN(EY22,EY25)+IF(EY25>EY22,0.15,0.9)*ABS(EY25-EY22) -> 8.73812969 | EZ23: 7'' | FJ23: =FJ22+'طراحی همه الگوها'!U264 -> 22.4 | FK23: =FG17-'طراحی همه الگوها'!U265 -> 85 | FL23: 20 | FN23: s12 | FO23: =FO24 -> 32.6275 | FP23: =FP24+'طراحی همه الگوها'!U257 -> 111.5270608 | FR23: =FO29 -> 15.06774 | FS23: =FP29 -> 163.430295 | FT23: s''18 | GA23: 16 | GB23: =GB12+GE12*SIN(RADIANS(GA23)+GA14) ->  | GC23: =GC12+GE12*COS(RADIANS(GA23)+GA14) ->  | GD23: =IF(GB13>GB23,ATAN((GC13-GC23)/(GB13-GB23)),ATAN((GC13-GC23)/(GB23-GB13))) ->  | GE23: =IF(GB13>GB23,(GB13-GB23)/COS(GD23),(GB23-GB13)/COS(GD23)) ->  | GG23: 1 | GH23: 2 | GI23: نقطه 5 | GJ23: نقطه قبل از چرخش | GK23: =IF(GH23>GH18,IF(GG23>GG18,GG18+SQRT(POWER(GG23-GG18,2)+POWER(GH23-GH18,2))*COS(ATAN((GH23-GH18)/(GG23-GG18+0.000123))+GH16),GG18-SQRT(POWER(GG23-GG18,2)+POWER(GH23-GH18,2))*COS(ATAN((GH23-GH18)/(GG18-GG23+0.000123))-GH16)),IF(GG23>GG18,GG18+SQRT(POWER(GG23-GG18,2)+POWER(GH23-GH18,2))*COS(ATAN((GH18-GH23)/(GG23-GG18+0.000123))-GH16),GG18-SQRT(POWER(GG23-GG18,2)+POWER(GH23-GH18,2))*COS(ATAN((GH18-GH23)/(GG18-GG23+0.000123))+GH16))) -> 0.6182452327 | GL23: =IF(GH23>GH18,IF(GG23>GG18,GH18+SQRT(POWER(GG23-GG18,2)+POWER(GH23-GH18,2))*SIN(ATAN((GH23-GH18)/(GG23-GG18+0.000123))+GH16),GH18+SQRT(POWER(GG23-GG18,2)+POWER(GH23-GH18,2))*SIN(ATAN((GH23-GH18)/(GG18-GG23+0.000123))-GH16)),IF(GG23>GG18,GH18-SQRT(POWER(GG23-GG18,2)+POWER(GH23-GH18,2))*SIN(ATAN((GH18-GH23)/(GG23-GG18+0.000123))-GH16),GH18-SQRT(POWER(GG23-GG18,2)+POWER(GH23-GH18,2))*SIN(ATAN((GH18-GH23)/(GG18-GG23+0.000123))+GH16))) -> 0.6987463478 | GM23: نقطه چرخیده | GO23: متغیر ورودی پهنا | GP23: a20 | GQ23: =#REF! ->  | GR23: (سانتیمتر) | GT23: بهینه α1 | GU23: =GU22+GT11 -> -76 | GV23: -1.326450232 | GW23: =HB13+HB10*COS(GV23) ->  | GX23: =HC13-HB10*SIN(GV23) ->  | GY23: =SQRT(POWER((HB12-GW23),2)+POWER((HC12-GX23),2)) ->  | GZ23: =ABS(HB9-GY23) ->  | HA23: =HA12 -> پشتk''5 | HB23: =HB12 ->  | HC23: =HC12 ->  | HO23: =-HK23+HP9 -> 0 | HP23: 0 | NU23: a5 | NV23: =TEXT(0,NV9)&" دانه" -> 71 دانه | NY23: h13 | NZ23: =NZ19 -> 1.161057692 | OA23: =OA20 -> 5.25 | OB23: =NZ15 -> 22.82211538 | OC23: =OA15 -> 5 | OD23: =NY15 -> w2 | OF23: e2 | OG23: =TEXT(0,OG6)&" رج مثل رج قبل میبافیم" -> 6 رج مثل رج قبل میبافیم | OJ23: h13 | OK23: =OK19 -> 5.855769231 | OL23: =OL20 -> 5.25 | OM23: =OK15 -> 32.21153846 | ON23: =OL15 -> 5 | OO23: =OJ15 -> m2 | OQ23: e2 | OR23: =TEXT(0,OR6)&" رج مثل رج قبل میبافیم" -> 6 رج مثل رج قبل میبافیم | OU23: h13 | OV23: =OV19 -> 3.948717949 | OW23: =OW20 -> 5.25 | OX23: =OV15 -> 28.3974359 | OY23: =OW15 -> 5 | OZ23: =OU15 -> m2 | PB23: =PB5 -> c1 | PC23: =TEXT(0,PC5)&" دانه سر می اندازیم" -> 155 دانه سر می اندازیم | PF23: h13 | PG23: =PG19 -> 6.809294872 | PH23: =PH20 -> 5.25 | PI23: =PG15 -> 34.11858974 | PJ23: =PH15 -> 5 | PK23: =PF15 -> n2 | PM23: =PM5 -> c1 | PN23: =TEXT(0,PN5)&" دانه سر می اندازیم" -> 178 دانه سر می اندازیم | PQ23: h13 | PR23: =PR19 -> 11.19551282 | PS23: =PS20 -> 5.25 | PT23: =PR15 -> 42.89102564 | PU23: =PS15 -> 5 | PV23: =PQ15 -> n2 | PY23: یک رج درمیان یکدانه کم میکنیم | PZ23: علامت سوم | QB23: بزرگی فلش | QC23: =PY16 -> 0.5714285714 | QD23: f4 | QE23: =QC25 -> -45 | QF23: =QD25 -> 6.428571429 | QG23: =QB25 -> t5 | QI23: =FN173 -> 35.51687435 | QJ23: =FO173 -> 90.52706078 | QK23: شیفت9 | QM23: =QI73 -> 30.58933939 | QN23: =QJ73 -> 142.2638977 | QO23: 22f
E24: تعداد دانه ها دور گردن + دو تا نیمه جادکمه که از خط مرکزی اضافه شده | F24: =F26+2*F25 -> 127 | H24: جمع شوندگی افقی بافت جلو f3 | I24: =OFFSET(AJ6,I25,1) -> -0.4100678733 | L24: a10 | M24: a11 | N24: a22 | O24: a22 | Q24: محاسبات یقه شومیزیه تا خط جادکمه | W24: c10 | X24: c11 | Y24: c22 | Z24: c22 | AE24: d6 | AF24: =F45 -> 31 | AH24: 2.88 | AI24: 3.111111111 | AJ24: =(10/3)*((AM24/AL24)*(1/I6)-1) -> 0.3703703704 | AK24: =(100/68)*((AO24/AN24)*(1/I7)-1) -> 0.6470588235 | AL24: 13.5 | AM24: 42 | AN24: 12.5 | AO24: 36 | AP24: تیغ ماهی | AQ24: 18 | CI24: رسم دستی چادر 1 یا مقنعه چانه دار(بر حسب سانتیمتر) | CM24: =CI38 -> 24 | CN24: =CJ38 -> 172.7 | CO24: j3 | CQ24: =CQ14 -> 12 | CR24: =CR16+0.1*'متغیرها '!U85-CR19+CR17 -> 147.05 | CS24: d2 | CW24: انحنا | DD24: =DB37+'طراحی همه الگوها'!U189 -> 78.2 | DE24: =DE14 -> 0 | DF24: 6 | DL24: s7 | DM24: =DM23+0.12*(DM27-DM23) -> 18.90290209 | DN24: =DN27+0.94*(DN23-DN27) -> 166.1323716 | DP24: =DM35 -> 15.06774 | DQ24: =DN35 -> 163.430295 | DR24: s18 | DT24: s'14 | DU24: =DM13+DM42*COS(DM40) -> 18.13548 | DV24: =DN13-DM42*SIN(DM40) -> 157.77265 | DX24: =DU28 -> 15.681288 | DY24: =DV28 -> 163.430295 | DZ24: s'18 | EE24: =DB37+'طراحی همه الگوها'!U213 -> 47.7 | EF24: =EF14 -> 92.3 | EG24: 5 | EI24: =EI20 -> 60.48 | EJ24: =EJ20 -> 15 | EK24: 16 | EX24: =EX22+0.7*(EX25-EX22) -> 65.40571834 | EY24: =MIN(EY22,EY25)+0.5*ABS(EY25-EY22) -> 11.3527823 | EZ24: 7''' | FF24: =FF15 -> 83.7 | FG24: =FG15 -> 99.9 | FH24: 4 | FJ24: =FJ22+'طراحی همه الگوها'!U266 -> 44.9 | FK24: =FG17-'طراحی همه الگوها'!U267 -> 81 | FL24: 22 | FN24: 41 شبیه ساز | FO24: =DT395 -> 32.6275 | FP24: =DU395 -> 107.5270608 | FR24: =FO12 -> 18.13548 | FS24: =FP12 -> 157.77265 | FT24: s3 | GA24: 18 | GB24: =GB12+GE12*SIN(RADIANS(GA24)+GA14) ->  | GC24: =GC12+GE12*COS(RADIANS(GA24)+GA14) ->  | GD24: =IF(GB13>GB24,ATAN((GC13-GC24)/(GB13-GB24)),ATAN((GC13-GC24)/(GB24-GB13))) ->  | GE24: =IF(GB13>GB24,(GB13-GB24)/COS(GD24),(GB24-GB13)/COS(GD24)) ->  | GG24: 1 | GH24: 2 | GI24: نقطه 6 | GJ24: نقطه قبل از چرخش | GK24: =IF(GH24>GH18,IF(GG24>GG18,GG18+SQRT(POWER(GG24-GG18,2)+POWER(GH24-GH18,2))*COS(ATAN((GH24-GH18)/(GG24-GG18+0.000123))+GH16),GG18-SQRT(POWER(GG24-GG18,2)+POWER(GH24-GH18,2))*COS(ATAN((GH24-GH18)/(GG18-GG24+0.000123))-GH16)),IF(GG24>GG18,GG18+SQRT(POWER(GG24-GG18,2)+POWER(GH24-GH18,2))*COS(ATAN((GH18-GH24)/(GG24-GG18+0.000123))-GH16),GG18-SQRT(POWER(GG24-GG18,2)+POWER(GH24-GH18,2))*COS(ATAN((GH18-GH24)/(GG18-GG24+0.000123))+GH16))) -> 0.6182452327 | GL24: =IF(GH24>GH18,IF(GG24>GG18,GH18+SQRT(POWER(GG24-GG18,2)+POWER(GH24-GH18,2))*SIN(ATAN((GH24-GH18)/(GG24-GG18+0.000123))+GH16),GH18+SQRT(POWER(GG24-GG18,2)+POWER(GH24-GH18,2))*SIN(ATAN((GH24-GH18)/(GG18-GG24+0.000123))-GH16)),IF(GG24>GG18,GH18-SQRT(POWER(GG24-GG18,2)+POWER(GH24-GH18,2))*SIN(ATAN((GH18-GH24)/(GG24-GG18+0.000123))-GH16),GH18-SQRT(POWER(GG24-GG18,2)+POWER(GH24-GH18,2))*SIN(ATAN((GH18-GH24)/(GG18-GG24+0.000123))+GH16))) -> 0.6987463478 | GM24: نقطه چرخیده | GO24: متغیر ورودی طول | GP24: a21 | GQ24: 1 | GT24: =IF(GZ12>GZ11,GU11,IF(GZ13>GZ12,GU12,IF(GZ14>GZ13,GU13,IF(GZ15>GZ14,GU14,IF(GZ16>GZ15,GU15,IF(GZ17>GZ16,GU16,IF(GZ18>GZ17,GU17,IF(GZ19>GZ18,GU18,IF(GZ20>GZ19,GU19,IF(GZ21>GZ20,GU20,IF(GZ22>GZ21,GU21,IF(GZ23>GZ22,GU22,IF(GZ24>GZ23,GU23,IF(GZ25>GZ24,GU24,IF(GZ26>GZ25,GU25,IF(GZ27>GZ26,GU26,IF(GZ28>GZ27,GU27,IF(GZ29>GZ28,GU28,IF(GZ30>GZ29,GU29,IF(GZ31>GZ30,GU30,IF(GZ32>GZ31,GU31,IF(GZ33>GZ32,GU32,IF(GZ34>GZ33,GU33,IF(GZ35>GZ34,GU34,IF(GZ36>GZ35,GU35,IF(GZ37>GZ36,GU36,IF(GZ38>GZ37,GU37,IF(GZ39>GZ38,GU38,IF(GZ40>GZ39,GU39,IF(GZ41>GZ40,GU40,IF(GZ42>GZ41,GU41,IF(GZ43>GZ42,GU42,IF(GZ44>GZ43,GU43,IF(GZ45>GZ44,GU44,IF(GZ46>GZ45,GU45,IF(GZ47>GZ46,GU46,IF(GZ48>GZ47,GU47,IF(GZ49>GZ48,GU48,IF(GZ50>GZ49,GU49,IF(GZ51>GZ50,GU50,IF(GZ52>GZ51,GU51,GU52))))))))))))))))))))))))))))))))))))))))) ->  | GU24: =GU23+GT11 -> -74 | GV24: -1.291543646 | GW24: =HB13+HB10*COS(GV24) ->  | GX24: =HC13-HB10*SIN(GV24) ->  | GY24: =SQRT(POWER((HB12-GW24),2)+POWER((HC12-GX24),2)) ->  | GZ24: =ABS(HB9-GY24) ->  | HO24: =-HK24+HP9 -> 0 | HP24: 0 | NU24: a6 | NV24: =TEXT(0,NV10)&" رج مثل رج قبل میبافیم" -> 9 رج مثل رج قبل میبافیم | OF24: e3 | OG24: =TEXT(0,OG7)&" دانه" -> 15 دانه | OQ24: e3 | OR24: =TEXT(0,OR7)&" دانه" -> 16 دانه | PB24: =PB6 -> c2 | PC24: =TEXT(0,PC6)&" رج مثل رج قبل میبافیم" -> 4 رج مثل رج قبل میبافیم | PM24: =PM6 -> c2 | PN24: =TEXT(0,PN6)&" رج مثل رج قبل میبافیم" -> 4 رج مثل رج قبل میبافیم | PY24: بکدانه کم میکنیم | PZ24: علامت چهارم | QB24: نقطه ورودی سر فلش | QC24: مولفه افقی | QD24: مولفه عمودی | QE24: =QC27 -> -44.42857143 | QF24: =QD27 -> 6.714285714 | QG24: =QB27 -> f3 | QI24: =AZ113 -> 34.89998649 | QJ24: =BA113 -> 121.9928371 | QK24: 12 | QM24: =QI61 -> 20.01085635 | QN24: =QJ61 -> 145.770561 | QO24: 25
E25: b2 (بدون اعمال بافت اننتخابی) تعداد دانه های اضافه شده از خط مرکزی تا خط جادکمه = نیمه جادکمه | F25: =ROUNDUP(F7*(-AX147),0) -> 5 | H25: بافت انتخابی جلو | I25: ='متغیرها '!C836 -> 1 | L25: =IF(((O33-(G46-2*O41))/(O33+(G46-2*O41)))<1,1,ABS(ROUND(O33/(O33-(G46-2*O41+0.001)),0))) -> 1 | M25: =IF(((O33-(G46-2*O41))/(O33+(G46-2*O41)))<1,1,ABS(ROUND(O33/(O33-(G46-2*O41)+0.0001),0)-1)) -> 1 | N25: =O33-(O33/L25)*(L25-M25)-(G46-2*O41) -> 119 | O25: =ROUNDDOWN(ABS(N25),0) -> 119 | Q25: e10 | R25: e11 | S25: e22 | T25: e22 | W25: =IF(((X15-X16)/(X15+X16))<1,1,ABS(ROUND(X15/(X15-(X16+0.0001)),0))) -> 1 | X25: =IF(((X15-X16)/(X15+X16))<1,1,ABS(ROUND(X15/(X15-X16+0.0001),0)-1)) -> 1 | Y25: =X15-(X15/W25)*(W25-X25)-X16 -> 40 | Z25: =ROUNDDOWN(ABS(Y25),0) -> 40 | AE25: d7 | AF25: =F44 -> 20 | AH25: 3.428571429 | AI25: 2.666666667 | AJ25: =(10/3)*((AM25/AL25)*(1/I6)-1) -> -0.1587301587 | AK25: =(100/68)*((AO25/AN25)*(1/I7)-1) -> 1.050420168 | AL25: 13.5 | AM25: 36 | AN25: 10.5 | AO25: 36 | AP25: اسموکینگ | AQ25: 19 | CQ25: =CQ24 -> 12 | CR25: =CR24+1.41*CR19 -> 183.2165 | CS25: d3 | CU25: =CQ27 -> 12 | CV25: =CR27 -> 98.1015 | CW25: d6 | DD25: =DB37+'طراحی همه الگوها'!U189 -> 78.2 | DE25: =DE14+'طراحی همه الگوها'!U191 -> 27.621 | DF25: 7 | DH25: =DD15 -> 0 | DI25: =DE15 -> 173.7 | DJ25: 1 | DL25: s8 | DM25: =DM23+0.4*(DM27-DM23) -> 35.00967362 | DN25: =DN27+0.5*(DN23-DN27) -> 148.8875364 | DP25: =DM31 -> 18.13548 | DQ25: =DN31 -> 157.77265 | DR25: s14 | DT25: s'16 | DU25: =DM15 -> 12 | DV25: =DN15 -> 123.7 | DX25: =DU24 -> 18.13548 | DY25: =DV24 -> 157.77265 | DZ25: s'14 | EE25: =DB37+'طراحی همه الگوها'!U213+'طراحی همه الگوها'!U214 -> 61.9 | EF25: =EF14 -> 92.3 | EG25: 6 | EI25: =EI20 -> 60.48 | EJ25: =EF15 -> 0 | EK25: 15 | EN25: (3 →6) | EO25: =ROUND(0.2*(EP34-EP30),1) -> 15.4 | ET25: =EP29 -> 12 | EU25: =EQ34 -> 15.08800032 | EV25: 14 | EX25: =EP34 -> 79.5150997 | EY25: =EQ34 -> 15.08800032 | EZ25: 8 | FF25: =FF15 -> 83.7 | FG25: =FG15+'طراحی همه الگوها'!U257 -> 103.9 | FH25: 9 | FJ25: =FF22 -> 56.1 | FK25: =FG22 -> 77 | FL25: 7 | FN25: 41' | FO25: =FO24+0.5*(FO27-FO24) -> 43.23875 | FP25: =FP27+0.7*(FP24-FP27) -> 77.36894254 | GA25: 20 | GB25: =GB12+GE12*SIN(RADIANS(GA25)+GA14) ->  | GC25: =GC12+GE12*COS(RADIANS(GA25)+GA14) ->  | GD25: =IF(GB13>GB25,ATAN((GC13-GC25)/(GB13-GB25)),ATAN((GC13-GC25)/(GB25-GB13))) ->  | GE25: =IF(GB13>GB25,(GB13-GB25)/COS(GD25),(GB25-GB13)/COS(GD25)) ->  | GG25: 1 | GH25: 2 | GI25: نقطه 7 | GJ25: نقطه قبل از چرخش | GK25: =IF(GH25>GH18,IF(GG25>GG18,GG18+SQRT(POWER(GG25-GG18,2)+POWER(GH25-GH18,2))*COS(ATAN((GH25-GH18)/(GG25-GG18+0.000123))+GH16),GG18-SQRT(POWER(GG25-GG18,2)+POWER(GH25-GH18,2))*COS(ATAN((GH25-GH18)/(GG18-GG25+0.000123))-GH16)),IF(GG25>GG18,GG18+SQRT(POWER(GG25-GG18,2)+POWER(GH25-GH18,2))*COS(ATAN((GH18-GH25)/(GG25-GG18+0.000123))-GH16),GG18-SQRT(POWER(GG25-GG18,2)+POWER(GH25-GH18,2))*COS(ATAN((GH18-GH25)/(GG18-GG25+0.000123))+GH16))) -> 0.6182452327 | GL25: =IF(GH25>GH18,IF(GG25>GG18,GH18+SQRT(POWER(GG25-GG18,2)+POWER(GH25-GH18,2))*SIN(ATAN((GH25-GH18)/(GG25-GG18+0.000123))+GH16),GH18+SQRT(POWER(GG25-GG18,2)+POWER(GH25-GH18,2))*SIN(ATAN((GH25-GH18)/(GG18-GG25+0.000123))-GH16)),IF(GG25>GG18,GH18-SQRT(POWER(GG25-GG18,2)+POWER(GH25-GH18,2))*SIN(ATAN((GH18-GH25)/(GG25-GG18+0.000123))-GH16),GH18-SQRT(POWER(GG25-GG18,2)+POWER(GH25-GH18,2))*SIN(ATAN((GH18-GH25)/(GG18-GG25+0.000123))+GH16))) -> 0.6987463478 | GM25: نقطه چرخیده | GQ25: ماکزیمم متغیر ورودی ضریب طول | GR25: 1 | GU25: =GU24+GT11 -> -72 | GV25: -1.256637061 | GW25: =HB13+HB10*COS(GV25) ->  | GX25: =HC13-HB10*SIN(GV25) ->  | GY25: =SQRT(POWER((HB12-GW25),2)+POWER((HC12-GX25),2)) ->  | GZ25: =ABS(HB9-GY25) ->  | HO25: =-HK25+HP9 -> 0 | HP25: 0 | NU25: a10,a11,b1 | NV25: ="تعداد دانه ها"&TEXT(0,NV5)&"میباشد. هر"&TEXT(0,NV11)&" دانه را تبدیل به "&TEXT(0,NV12)&" دانه میکنیم تا تعداد دانه ها "&TEXT(0,NV15)&" شود" -> تعداد دانه ها203میباشد. هر5 دانه را تبدیل به 2 دانه میکنیم تا تعداد دانه ها 84 شود | OA25: نقطه وسط باکس جایی برای لیبل نوشته | OB25: =NZ17 -> -1.088942308 | OC25: =OA17 -> 5 | OD25: =NY17 -> h5 | OF25: e4 | OG25: =TEXT(0,OG8)&" دانه" -> 27 دانه | OL25: نقطه وسط باکس جایی برای لیبل نوشته | OM25: =OK17 -> 3.605769231 | ON25: =OL17 -> 5 | OO25: =OJ17 -> h5 | OQ25: e4 | OR25: =TEXT(0,OR8)&" دانه" -> 32 دانه | OW25: نقطه وسط باکس جایی برای لیبل نوشته | OX25: =OV17 -> 1.698717949 | OY25: =OW17 -> 5 | OZ25: =OU17 -> h5 | PB25: =PB7 -> c3 | PC25: =TEXT(0,PC7)&" رج مثل رج قبل میبافیم" -> 8 رج مثل رج قبل میبافیم | PH25: نقطه وسط باکس جایی برای لیبل نوشته | PI25: =PG17 -> 4.559294872 | PJ25: =PH17 -> 5 | PK25: =PF17 -> h5 | PM25: =PM7 -> c3 | PN25: =TEXT(0,PN7)&" رج مثل رج قبل میبافیم" -> 8 رج مثل رج قبل میبافیم | PS25: نقطه وسط باکس جایی برای لیبل نوشته | PT25: =PR17 -> 8.945512821 | PU25: =PS17 -> 5 | PV25: =PQ17 -> h5 | PY25: یکدانه اضافه میکنیم | PZ25: علامت پنجم | QB25: =PZ33 -> t5 | QC25: =PX33 -> -45 | QD25: =PY33 -> 6.428571429 | QK25: جادکمه
E26: (بدون اعمال بافت اننتخابی) b1 تعداد دانه ها دور تا دور گردن | F26: =F45+2*F44+2*F43+F42 -> 117 | L26: =ABS(ROUND(2*O33/(O33-(G46-2*O41)+0.001),0)) -> 3 | M26: =ABS(ROUND(2*(O33/(O33-(G46-2*O41)+0.001)-1),0)) -> 1 | N26: =O33-(O33/L26)*(L26-M26)-(G46-2*O41) -> -16.33333333 | O26: =ROUNDDOWN(ABS(N26),0) -> 16 | Q26: =IF(((S19-G46)/(S19+G46))<1,1,ABS(ROUND(S19/(S19-(G46+0.0001)),0))) -> 1 | R26: =IF(((S19-G46)/(S19+G46))<1,1,ABS(ROUND(S19/(S19-G46+0.0001),0)-1)) -> 1 | S26: =S19-(S19/Q26)*(Q26-R26)-G46 -> 42.53031006 | T26: =ROUNDDOWN(ABS(S26),0) -> 42 | W26: =ABS(ROUND(2*X15/(X15-(X16)+0.001),0)) -> 6 | X26: =ABS(ROUND(2*(X15/(X15-X16+0.0001)-1),0)) -> 4 | Y26: =X15-(X15/W26)*(W26-X26)-X16 -> -2 | Z26: =ROUNDDOWN(ABS(Y26),0) -> 2 | AE26: d8 | AF26: =ROUND(F7*O238,0) -> 37 | AH26: 2.769230769 | AI26: 2.814814815 | AJ26: =(10/3)*((AM26/AL26)*(1/I6)-1) -> 0.0176366843 | AK26: =(100/68)*((AO26/AN26)*(1/I7)-1) -> 0.5656108597 | AL26: 13.5 | AM26: 38 | AN26: 13 | AO26: 36 | AP26: زنبوری | AQ26: 20 | CM26: =CI45 -> 34.3 | CN26: =CJ45 -> 172.7 | CO26: j11 | CQ26: =0.7*(CR20+CR19)+CQ24 -> 84.345 | CR26: =CR25-0.7*(CR19+CR20) -> 110.8715 | CS26: d4 | CU26: =CQ28 -> 26.469 | CV26: =CR28 -> 98.1015 | CW26: d7 | DD26: =DB37+'طراحی همه الگوها'!U189 -> 78.2 | DE26: =DE15-'طراحی همه الگوها'!U198 -> 155.8 | DF26: 14 | DL26: s9 | DM26: =DM23+0.7*(DM27-DM23) -> 52.26692884 | DN26: =DN27+0.2*(DN23-DN27) -> 137.1296943 | DT26: s'15 | DU26: =DU25+0.7*(DU24-DU25) -> 16.294836 | DV26: =DV25+0.5*(DV24-DV25) -> 140.736325 | DX26: =DU26 -> 16.294836 | DY26: =DV26 -> 140.736325 | DZ26: s'15 | EE26: =EE25 -> 61.9 | EF26: =EF19 -> 96.1 | EG26: 7 | EN26: (5 →7) | EO26: =ROUND(0.2*(EP34-EP31),1) -> 11.8 | ET26: =EP34 -> 79.5150997 | EU26: =EQ34 -> 15.08800032 | EV26: 8 | FF26: =FF13+'طراحی همه الگوها'!U249-'طراحی همه الگوها'!U256 -> -24.1 | FG26: =FG25 -> 103.9 | FH26: 10 | FN26: 41'' | FO26: =FO24+0.88*(FO27-FO24) -> 51.3033 | FP26: =FP27+0.3*(FP24-FP27) -> 37.15811823 | FR26: =FO12 -> 18.13548 | FS26: =FP12 -> 157.77265 | FT26: s3 | GA26: 22 | GB26: =GB12+GE12*SIN(RADIANS(GA26)+GA14) ->  | GC26: =GC12+GE12*COS(RADIANS(GA26)+GA14) ->  | GD26: =IF(GB13>GB26,ATAN((GC13-GC26)/(GB13-GB26)),ATAN((GC13-GC26)/(GB26-GB13))) ->  | GE26: =IF(GB13>GB26,(GB13-GB26)/COS(GD26),(GB26-GB13)/COS(GD26)) ->  | GG26: 1 | GH26: 2 | GI26: نقطه 8 | GJ26: نقطه قبل از چرخش | GK26: =IF(GH26>GH18,IF(GG26>GG18,GG18+SQRT(POWER(GG26-GG18,2)+POWER(GH26-GH18,2))*COS(ATAN((GH26-GH18)/(GG26-GG18+0.000123))+GH16),GG18-SQRT(POWER(GG26-GG18,2)+POWER(GH26-GH18,2))*COS(ATAN((GH26-GH18)/(GG18-GG26+0.000123))-GH16)),IF(GG26>GG18,GG18+SQRT(POWER(GG26-GG18,2)+POWER(GH26-GH18,2))*COS(ATAN((GH18-GH26)/(GG26-GG18+0.000123))-GH16),GG18-SQRT(POWER(GG26-GG18,2)+POWER(GH26-GH18,2))*COS(ATAN((GH18-GH26)/(GG18-GG26+0.000123))+GH16))) -> 0.6182452327 | GL26: =IF(GH26>GH18,IF(GG26>GG18,GH18+SQRT(POWER(GG26-GG18,2)+POWER(GH26-GH18,2))*SIN(ATAN((GH26-GH18)/(GG26-GG18+0.000123))+GH16),GH18+SQRT(POWER(GG26-GG18,2)+POWER(GH26-GH18,2))*SIN(ATAN((GH26-GH18)/(GG18-GG26+0.000123))-GH16)),IF(GG26>GG18,GH18-SQRT(POWER(GG26-GG18,2)+POWER(GH26-GH18,2))*SIN(ATAN((GH18-GH26)/(GG26-GG18+0.000123))-GH16),GH18-SQRT(POWER(GG26-GG18,2)+POWER(GH26-GH18,2))*SIN(ATAN((GH18-GH26)/(GG18-GG26+0.000123))+GH16))) -> 0.6987463478 | GM26: نقطه چرخیده | GO26: m1 | GP26: =IF(GR21>GR22,ATAN((GQ22-GQ21)/(GR21-GR22)),2*RADIANS(90)-ATAN((GQ22-GQ21)/(GR22-GR21))) ->  | GQ26: m2 | GR26: =SQRT(POWER(GQ21-GQ22,2)+POWER(GR21-GR22,2)) ->  | GU26: =GU25+GT11 -> -70 | GV26: -1.221730476 | GW26: =HB13+HB10*COS(GV26) ->  | GX26: =HC13-HB10*SIN(GV26) ->  | GY26: =SQRT(POWER((HB12-GW26),2)+POWER((HC12-GX26),2)) ->  | GZ26: =ABS(HB9-GY26) ->  | HO26: =-HK26+HP9 -> 0 | HP26: 0 | NU26: a25 | NV26: =TEXT(0,NV13)&"دانه" -> 4دانه | OF26: e5 | OG26: =TEXT(0,OG9)&" دانه" -> 42 دانه | OQ26: e5 | OR26: =TEXT(0,OR9)&" دانه" -> 49 دانه | PB26: =PB8 -> c4 | PC26: =TEXT(0,PC8)&" رج مثل رج قبل میبافیم" -> 19 رج مثل رج قبل میبافیم | PM26: =PM8 -> c4 | PN26: =TEXT(0,PN8)&" رج مثل رج قبل میبافیم" -> 20 رج مثل رج قبل میبافیم | PY26: راهنمای نقشه بافت | PZ26: عنوان | QB26: f2 | QC26: =QC25+1*QC23 -> -44.42857143 | QD26: =QD25-QC22*QC23 -> 6.142857143 | QE26: =QC25 -> -45 | QF26: =QD25 -> 6.428571429 | QG26: =QB25 -> t5 | QI26: =FJ146 -> 12 | QJ26: =FK146 -> 52.7 | QK26: 1 | QM26: =QI61 -> 20.01085635 | QN26: 145.770561 | QO26: 25
E27: تعداد رج دوبل برای ایجاد گودی گردن جلو b13 | F27: =ROUNDDOWN(0.25*I21*((AX129-BI128)),0) -> 6 | H27: a01 تعداد رج در یک سانت پشت | I27: =F6+0.3*I29*F6 -> 3.333333333 | L27: =ABS(ROUND(3*O33/(O33-(G46-2*O41)+0.001),0)) -> 5 | M27: =ABS(ROUND(3*(O33/(O33-(G46-2*O41)+0.001)-1),0)) -> 2 | N27: =O33-(O33/L27)*(L27-M27)-(G46-2*O41) -> -2.8 | O27: =ROUNDDOWN(ABS(N27),0) -> 2 | Q27: =ABS(ROUND(2*S19/(S19-(G46)+0.001),0)) -> 6 | R27: =ABS(ROUND(2*(S19/(S19-G46+0.0001)-1),0)) -> 4 | S27: =S19-(S19/Q27)*(Q27-R27)-G46 -> -2.313126626 | T27: =ROUNDDOWN(ABS(S27),0) -> 2 | W27: =ABS(ROUND(3*X15/(X15-X16+0.001),0)) -> 9 | X27: =ABS(ROUND(3*(X15/(X15-X16+0.0001)-1),0)) -> 6 | Y27: =X15-(X15/W27)*(W27-X27)-X16 -> -2 | Z27: =ROUNDDOWN(ABS(Y27),0) -> 2 | AE27: d9 | AF27: =ROUND((F6*AF8)/(F7*AF10),0) -> 4 | AH27: 3.142857143 | AI27: 3.111111111 | AJ27: =(10/3)*((AM27/AL27)*(1/I6)-1) -> 0.3703703704 | AK27: =(100/68)*((AO27/AN27)*(1/I7)-1) -> 0.8403361345 | AL27: 13.5 | AM27: 42 | AN27: 7 | AO27: 22 | AP27: پیچ گیسباف | AQ27: 21 | CM27: =CI46 -> 24 | CN27: =CJ46 -> 164.1 | CO27: j12 | CQ27: =CQ24 -> 12 | CR27: =CR26-CR21+'متغیرها '!C6*0.1*'متغیرها '!U85*0.7 -> 98.1015 | CS27: d6 | CU27: =CQ30 -> 62.6415 | CV27: =CR30 -> 99.3785 | CW27: d9 | DD27: =DD29+'طراحی همه الگوها'!U196 -> 96.6 | DE27: =DE15-'طراحی همه الگوها'!U197 -> 158.6 | DF27: 13 | DI27: صاف | DL27: s10 | DM27: =DM18-('طراحی همه الگوها'!U196-'متغیرها '!C13*'متغیرها '!U83)*COS(DM17) -> 69.52418406 | DN27: =DN18+('طراحی همه الگوها'!U196-'متغیرها '!C13*'متغیرها '!U83)*SIN(DM17) -> 129.2911328 | DP27: =DM31 -> 18.13548 | DQ27: =DN31 -> 157.77265 | DR27: s14 | DT27: s'17 | DU27: =DB400 -> 12 | DV27: =IF('متغیرها '!C22=-1,DQ12,IF('متغیرها '!C22=0,DC400-0.1,DC400-0.25*(DC400-DC404))) -> 165.855 | DX27: =DU25 -> 12 | DY27: =DV25 -> 123.7 | DZ27: s'16 | EE27: =EE24 -> 47.7 | EF27: =EF24 -> 92.3 | EG27: 5 | EI27: =EI19 -> 36.288 | EJ27: =EJ17 -> 0 | EK27: 21 | EO27: نقاط در چادر شماره 4 | EX27: =EP29 -> 12 | EY27: =EQ29 -> 172.7 | EZ27: 1 | FF27: =FF26 -> -24.1 | FG27: =FG17 -> 99.9 | FH27: 11 | FJ27: =FJ23 -> 22.4 | FK27: =FG17 -> 99.9 | FL27: 19 | FN27: s13 | FO27: =FO30+0.5*'طراحی همه الگوها'!U249 -> 53.85 | FP27: =FP30 -> 7 | FR27: =FO33 -> 15.99660099 | FS27: =FP33 -> 117.2265789 | FT27: s'3 | GA27: 24 | GB27: =GB12+GE12*SIN(RADIANS(GA27)+GA14) ->  | GC27: =GC12+GE12*COS(RADIANS(GA27)+GA14) ->  | GD27: =IF(GB13>GB27,ATAN((GC13-GC27)/(GB13-GB27)),ATAN((GC13-GC27)/(GB27-GB13))) ->  | GE27: =IF(GB13>GB27,(GB13-GB27)/COS(GD27),(GB27-GB13)/COS(GD27)) ->  | GG27: 1 | GH27: 2 | GI27: نقطه 9 | GJ27: نقطه قبل از چرخش | GK27: =IF(GH27>GH18,IF(GG27>GG18,GG18+SQRT(POWER(GG27-GG18,2)+POWER(GH27-GH18,2))*COS(ATAN((GH27-GH18)/(GG27-GG18+0.000123))+GH16),GG18-SQRT(POWER(GG27-GG18,2)+POWER(GH27-GH18,2))*COS(ATAN((GH27-GH18)/(GG18-GG27+0.000123))-GH16)),IF(GG27>GG18,GG18+SQRT(POWER(GG27-GG18,2)+POWER(GH27-GH18,2))*COS(ATAN((GH18-GH27)/(GG27-GG18+0.000123))-GH16),GG18-SQRT(POWER(GG27-GG18,2)+POWER(GH27-GH18,2))*COS(ATAN((GH18-GH27)/(GG18-GG27+0.000123))+GH16))) -> 0.6182452327 | GL27: =IF(GH27>GH18,IF(GG27>GG18,GH18+SQRT(POWER(GG27-GG18,2)+POWER(GH27-GH18,2))*SIN(ATAN((GH27-GH18)/(GG27-GG18+0.000123))+GH16),GH18+SQRT(POWER(GG27-GG18,2)+POWER(GH27-GH18,2))*SIN(ATAN((GH27-GH18)/(GG18-GG27+0.000123))-GH16)),IF(GG27>GG18,GH18-SQRT(POWER(GG27-GG18,2)+POWER(GH27-GH18,2))*SIN(ATAN((GH18-GH27)/(GG27-GG18+0.000123))-GH16),GH18-SQRT(POWER(GG27-GG18,2)+POWER(GH27-GH18,2))*SIN(ATAN((GH18-GH27)/(GG18-GG27+0.000123))+GH16))) -> 0.6987463478 | GM27: نقطه چرخیده | GO27: نقطه خروجی بالا | GP27: su9 | GQ27: =GQ21+GQ23*COS(GP26) ->  | GR27: =GR21+GQ23*SIN(GP26) ->  | GU27: =GU26+GT11 -> -68 | GV27: -1.186823891 | GW27: =HB13+HB10*COS(GV27) ->  | GX27: =HC13-HB10*SIN(GV27) ->  | GY27: =SQRT(POWER((HB12-GW27),2)+POWER((HC12-GX27),2)) ->  | GZ27: =ABS(HB9-GY27) ->  | HC27: به دست آوردن نقطه تقاطع دو خط | HD27: مولفه افقی | HE27: مولفه عمودی | HO27: =-HK27+HP9 -> 0 | HP27: 0 | NU27: b''1 | NV27: ="تعداد دانه ها "&TEXT(0,NV17)&" - تقسیم بندی بالاتنه و آستین " -> تعداد دانه ها 92 - تقسیم بندی بالاتنه و آستین | NY27: زاویه فلش | NZ27: =NV38 -> 0.5 | OA27: f5 | OD27: فلش به سمت راست | OF27: e6 | OG27: =TEXT(0,OG10)&" رج مثل رج قبل میبافیم" -> 6 رج مثل رج قبل میبافیم | OJ27: زاویه فلش | OK27: =OG43 -> 0.5 | OL27: f5 | OO27: فلش به سمت راست | OQ27: e6 | OR27: =TEXT(0,OR10)&" رج مثل رج قبل میبافیم" -> 6 رج مثل رج قبل میبافیم | OU27: زاویه فلش | OV27: =OR43 -> 0.5 | OW27: f5 | OZ27: فلش به سمت راست | PC27: ="در اینجا تعداد دانه ها "&TEXT(0,PC12)&" میباشد " -> در اینجا تعداد دانه ها 126 میباشد | PF27: زاویه فلش | PG27: =PC40 -> 0.5 | PH27: f5 | PK27: فلش به سمت راست | PN27: ="در اینجا تعداد دانه ها "&TEXT(0,PN12)&" میباشد " -> در اینجا تعداد دانه ها 126 میباشد | PQ27: زاویه فلش | PR27: =PN40 -> 0.5 | PS27: f5 | PV27: فلش به سمت راست | QB27: f3 | QC27: =QC26 -> -44.42857143 | QD27: =QD25+QC22*QC23 -> 6.714285714 | QE27: =QC26 -> -44.42857143 | QF27: =QD26 -> 6.142857143 | QG27: =QB26 -> f2 | QI27: =FJ145 -> 10.410015 | QJ27: =FK145 -> 52.7 | QK27: 1' | QM27: 18.40868508 | QN27: 140.4999665 | QO27: 30
E28: تعداد رج سوبل برای ایجاد گودی گردن جلو b'''13 | F28: =ROUND((1/8)*I21*((AX129-BI128)),0) -> 3 | H28: تعداد دانه در یک سانت پشتb01 | I28: =F7+0.68*I30*F7 -> 1.875 | L28: =ABS(ROUND(4*O33/(O33-(G46-2*O41)+0.001),0)) -> 7 | M28: =ABS(ROUND(4*(O33/(O33-(G46-2*O41)+0.001)-1),0)) -> 3 | N28: =O33-(O33/L28)*(L28-M28)-(G46-2*O41) -> 3 | O28: =ROUNDDOWN(ABS(N28),0) -> 3 | Q28: =ABS(ROUND(3*S19/(S19-G46+0.001),0)) -> 9 | R28: =ABS(ROUND(3*(S19/(S19-G46+0.0001)-1),0)) -> 6 | S28: =S19-(S19/Q28)*(Q28-R28)-G46 -> -2.313126626 | T28: =ROUNDDOWN(ABS(S28),0) -> 2 | W28: =ABS(ROUND(4*X15/(X15-X16+0.001),0)) -> 13 | X28: =ABS(ROUND(4*(X15/(X15-X16+0.0001)-1),0)) -> 9 | Y28: =X15-(X15/W28)*(W28-X28)-X16 -> 1.230769231 | Z28: =ROUNDDOWN(ABS(Y28),0) -> 1 | AE28: d10 | AF28: =IF(ROUND((F6*(G259-G258))/(F7*G260),0)>40,"----",ROUND((F6*(G259-G258))/(F7*G260),0)) -> 10 | AH28: 3.272727273 | AI28: 2.962962963 | AJ28: =(10/3)*((AM28/AL28)*(1/I6)-1) -> 0.1940035273 | AK28: =(100/68)*((AO28/AN28)*(1/I7)-1) -> 0.935828877 | AL28: 13.5 | AM28: 40 | AN28: 11 | AO28: 36 | AP28: پیچ چپ و راستی | AQ28: =AQ27+1 -> 22 | CQ28: =0.2*(CQ26-CQ24)+CQ24 -> 26.469 | CR28: =CR27 -> 98.1015 | CS28: d7 | CU28: =CQ29 -> 77.1105 | CV28: =CR29 -> 104.4865 | CW28: d8 | DD28: =DD29+'طراحی همه الگوها'!U196 -> 96.6 | DE28: =DE15 -> 173.7 | DF28: 12 | DH28: =DH20 -> 36 | DI28: =DE14 -> 0 | DJ28: 15 | DL28: s12 | DM28: =DM27-'طراحی همه الگوها'!U198*SIN(DM17) -> 63.89189987 | DN28: =DN27-'طراحی همه الگوها'!U198*COS(DM17) -> 112.3003302 | DP28: =DM33 -> 16.294836 | DQ28: =DN33 -> 140.736325 | DR28: s15 | DT28: s'18 | DU28: =DU27+0.6*(DU24-DU27) -> 15.681288 | DV28: =DV27-0.3*(DV27-DV24) -> 163.430295 | EI28: =EI19 -> 36.288 | EJ28: =EJ19 -> 6.8 | EK28: 22 | EN28: افقی شبیه ساز | EO28: اسم نقطه | EP28: مولفه افقی | EQ28: مولفه عمودی | ER28: عمودی شبیه ساز | ET28: =ER43 -> 43 | EU28: =ER44 -> 77.725 | EV28: 15 | EX28: =EP36 -> 80.30651506 | EY28: =EQ36 -> 104.3934849 | EZ28: 10 | FF28: =FF16 -> 76.1 | FG28: =FG16 -> 99.9 | FH28: 8 | FJ28: =FJ23 -> 22.4 | FK28: =FK23 -> 85 | FL28: 20 | FN28: s''17 | FO28: =FO11 -> 12 | FP28: =IF('متغیرها '!C40=-1,FP14,IF('متغیرها '!C40=0,FP11-0.1,FP11-0.25*(FP11-FP13))) -> 165.855 | FR28: =FO22 -> 13.85772197 | FS28: =FP22 -> 56.40747236 | FT28: s11 | GA28: 26 | GB28: =GB12+GE12*SIN(RADIANS(GA28)+GA14) ->  | GC28: =GC12+GE12*COS(RADIANS(GA28)+GA14) ->  | GD28: =IF(GB13>GB28,ATAN((GC13-GC28)/(GB13-GB28)),ATAN((GC13-GC28)/(GB28-GB13))) ->  | GE28: =IF(GB13>GB28,(GB13-GB28)/COS(GD28),(GB28-GB13)/COS(GD28)) ->  | GG28: 1 | GH28: 2 | GI28: نقطه 10 | GJ28: نقطه قبل از چرخش | GK28: =IF(GH28>GH18,IF(GG28>GG18,GG18+SQRT(POWER(GG28-GG18,2)+POWER(GH28-GH18,2))*COS(ATAN((GH28-GH18)/(GG28-GG18+0.000123))+GH16),GG18-SQRT(POWER(GG28-GG18,2)+POWER(GH28-GH18,2))*COS(ATAN((GH28-GH18)/(GG18-GG28+0.000123))-GH16)),IF(GG28>GG18,GG18+SQRT(POWER(GG28-GG18,2)+POWER(GH28-GH18,2))*COS(ATAN((GH18-GH28)/(GG28-GG18+0.000123))-GH16),GG18-SQRT(POWER(GG28-GG18,2)+POWER(GH28-GH18,2))*COS(ATAN((GH18-GH28)/(GG18-GG28+0.000123))+GH16))) -> 0.6182452327 | GL28: =IF(GH28>GH18,IF(GG28>GG18,GH18+SQRT(POWER(GG28-GG18,2)+POWER(GH28-GH18,2))*SIN(ATAN((GH28-GH18)/(GG28-GG18+0.000123))+GH16),GH18+SQRT(POWER(GG28-GG18,2)+POWER(GH28-GH18,2))*SIN(ATAN((GH28-GH18)/(GG18-GG28+0.000123))-GH16)),IF(GG28>GG18,GH18-SQRT(POWER(GG28-GG18,2)+POWER(GH28-GH18,2))*SIN(ATAN((GH18-GH28)/(GG28-GG18+0.000123))-GH16),GH18-SQRT(POWER(GG28-GG18,2)+POWER(GH28-GH18,2))*SIN(ATAN((GH18-GH28)/(GG18-GG28+0.000123))+GH16))) -> 0.6987463478 | GM28: نقطه چرخیده | GO28: نقطه خروجی پایین | GP28: sd8 | GQ28: =GQ29+GQ23*COS(GP26) ->  | GR28: =GR29+GQ23*SIN(GP26) ->  | GU28: =GU27+GT11 -> -66 | GV28: -1.151917306 | GW28: =HB13+HB10*COS(GV28) ->  | GX28: =HC13-HB10*SIN(GV28) ->  | GY28: =SQRT(POWER((HB12-GW28),2)+POWER((HC12-GX28),2)) ->  | GZ28: =ABS(HB9-GY28) ->  | HB28: نقطه اول از خط اول | HC28: f5 | HD28: =#REF! ->  | HE28: =#REF! ->  | HO28: =-HK28+HP9 -> 0 | HP28: 0 | NV28: ="نقشه بافت یقه شکاری با میل "&TEXT(0,NV42)&" بافت "&TEXT(0,NU43) -> نقشه بافت یقه شکاری با میل 2 بافت کشباف (دوتایی) | NY28: بزرگی فلش | NZ28: =NV47 -> 0.36 | OA28: f4 | OB28: =NZ30 -> -20.21778846 | OC28: =OA30 -> 5 | OD28: =NY30 -> w6 | OG28: ="در اینجا تعداد دانه ها "&TEXT(0,OG17)&" میباشد " -> در اینجا تعداد دانه ها 117 میباشد | OJ28: بزرگی فلش | OK28: =OG51 -> 0.2541176471 | OL28: f4 | OM28: =OK30 -> -19.27884615 | ON28: =OL30 -> 5 | OO28: =OJ30 -> m3 | OR28: ="در اینجا تعداد دانه ها "&TEXT(0,OR17)&" میباشد " -> در اینجا تعداد دانه ها 117 میباشد | OU28: بزرگی فلش | OV28: =OR51 -> 0.2541176471 | OW28: f4 | OX28: =OV30 -> -19.66025641 | OY28: =OW30 -> 5 | OZ28: =OU30 -> m3 | PB28: a10,a11,b1 | PC28: ="تعداد دانه"&TEXT(0,PC12)&"میباشد. هر"&TEXT(0,PC9)&" دانه را تبدیل به "&TEXT(0,PC10)&" دانه میکنیم تا تعداد دانه ها "&TEXT(0,PC13)&" شود" -> تعداد دانه126میباشد. هر6 دانه را تبدیل به 4 دانه میکنیم تا تعداد دانه ها 86 شود | PF28: بزرگی فلش | PG28: =PC48 -> 0.2541176471 | PH28: f4 | PI28: =PG30 -> -19.08814103 | PJ28: =PH30 -> 5 | PK28: =PF30 -> n3 | PM28: a10,a11,b1 | PN28: ="تعداد دانه"&TEXT(0,PN12)&"میباشد. هر"&TEXT(0,PN9)&" دانه را تبدیل به "&TEXT(0,PN10)&" دانه میکنیم تا تعداد دانه ها "&TEXT(0,PN13)&" شود" -> تعداد دانه126میباشد. هر6 دانه را تبدیل به 4 دانه میکنیم تا تعداد دانه ها 86 شود | PQ28: بزرگی فلش | PR28: =PN48 -> 0.2541176471 | PS28: f4 | PT28: =PR30 -> -18.21089744 | PU28: =PS30 -> 5 | PV28: =PQ30 -> n3 | PY28: نقاط خروجی | QI28: =BD98 -> 10.410015 | QJ28: =BE98 -> 135.2293721 | QK28: 26' | QM28: 15.20434254 | QN28: 136.283491 | QO28: 28
E29: فاصله گردن تا محل جدا شدن آستین در قسمت جلو (cm) b7 | F29: =ROUNDUP(SQRT(POWER(CI103-CI121,2)+POWER(CJ103-CJ121,2)),0) -> 22 | H29: جمع شوندگی عمودی بافت پشت f02 | I29: =OFFSET(AJ6,I31,0) -> -0.1587301587 | L29: =ABS(ROUND(5*O33/(O33-(G46-2*O41)+0.001),0)) -> 9 | M29: =ABS(ROUND(5*(O33/(O33-(G46-F412*O41)+0.001)-1),0)) -> 1 | N29: =O33-(O33/L29)*(L29-M29)-(G46-2*O41) -> -61.44444444 | O29: =ROUNDDOWN(ABS(N29),0) -> 61 | Q29: =ABS(ROUND(4*S19/(S19-G46+0.001),0)) -> 13 | R29: =ABS(ROUND(4*(S19/(S19-G46+0.0001)-1),0)) -> 9 | S29: =S19-(S19/Q29)*(Q29-R29)-G46 -> 1.136368504 | T29: =ROUNDDOWN(ABS(S29),0) -> 1 | W29: =ABS(ROUND(5*X15/(X15-X16+0.001),0)) -> 16 | X29: =ABS(ROUND(5*(X15/(X15-X16+0.0001)-1),0)) -> 11 | Y29: =X15-(X15/W29)*(W29-X29)-X16 -> 0.625 | Z29: =ROUNDDOWN(ABS(Y29),0) -> 0 | AE29: d12 | AF29: =AF9 -> 84 | AH29: 2.571428571 | AI29: 2.444444444 | AJ29: =(10/3)*((AM29/AL29)*(1/I6)-1) -> -0.4232804233 | AK29: =(100/68)*((AO29/AN29)*(1/I7)-1) -> 0.4201680672 | AL29: 13.5 | AM29: 33 | AN29: 14 | AO29: 36 | AP29: کشباف (یکی) | AQ29: 23 | CM29: =CI40 -> 17.7 | CN29: =CJ40 -> 172.7 | CO29: j6 | CQ29: =0.9*(CQ26-CQ24)+CQ24 -> 77.1105 | CR29: =CR27+0.5*(CR26-CR27) -> 104.4865 | CS29: d8 | CU29: =CQ26 -> 84.345 | CV29: =CR26 -> 110.8715 | CW29: d4 | DD29: =DB37+'طراحی همه الگوها'!U189 -> 78.2 | DE29: =DE15 -> 173.7 | DF29: 3 | DH29: =DH20 -> 36 | DI29: =DI20 -> 4.8 | DJ29: 16 | DL29: s11 | DM29: =DM36-'طراحی همه الگوها'!U197*SIN(DM17) -> 82.23833364 | DN29: =DN36-'طراحی همه الگوها'!U197*COS(DM17) -> 109.1684988 | DP29: =DM32 -> 12 | DQ29: =DN32 -> 123.7 | DR29: s16 | DT29: s'19 | DU29: =EC41+('متغیرها '!C20*'متغیرها '!U83)*COS(DM17+RADIANS(EC40)) -> 72.46358588 | DV29: =ED41-('متغیرها '!C20*'متغیرها '!U83)*SIN(DM17+RADIANS(EC40)) -> 99.95428029 | DX29: =DU18 -> 66.09962485 | DY29: =DV18 -> 106.3182413 | DZ29: s'10 | EE29: =DB37+'طراحی همه الگوها'!U216 -> 110 | EF29: =EF20 -> 124.5 | EG29: 10 | EO29: 1 | EP29: =DM19 -> 12 | EQ29: ='طراحی همه الگوها'!U233+ER39+DM44 -> 172.7 | ET29: =ET28+'طراحی همه الگوها'!U242 -> 50.5 | EU29: =EU28 -> 77.725 | EV29: 16 | FN29: s''18 | FO29: =FO28+0.5*(FO12-FO28) -> 15.06774 | FP29: =FP28-0.3*(FP28-FP12) -> 163.430295 | GA29: 28 | GB29: =GB12+GE12*SIN(RADIANS(GA29)+GA14) ->  | GC29: =GC12+GE12*COS(RADIANS(GA29)+GA14) ->  | GD29: =IF(GB13>GB29,ATAN((GC13-GC29)/(GB13-GB29)),ATAN((GC13-GC29)/(GB29-GB13))) ->  | GE29: =IF(GB13>GB29,(GB13-GB29)/COS(GD29),(GB29-GB13)/COS(GD29)) ->  | GG29: 1 | GH29: 2 | GI29: نقطه 11 | GJ29: نقطه قبل از چرخش | GK29: =IF(GH29>GH18,IF(GG29>GG18,GG18+SQRT(POWER(GG29-GG18,2)+POWER(GH29-GH18,2))*COS(ATAN((GH29-GH18)/(GG29-GG18+0.000123))+GH16),GG18-SQRT(POWER(GG29-GG18,2)+POWER(GH29-GH18,2))*COS(ATAN((GH29-GH18)/(GG18-GG29+0.000123))-GH16)),IF(GG29>GG18,GG18+SQRT(POWER(GG29-GG18,2)+POWER(GH29-GH18,2))*COS(ATAN((GH18-GH29)/(GG29-GG18+0.000123))-GH16),GG18-SQRT(POWER(GG29-GG18,2)+POWER(GH29-GH18,2))*COS(ATAN((GH18-GH29)/(GG18-GG29+0.000123))+GH16))) -> 0.6182452327 | GL29: =IF(GH29>GH18,IF(GG29>GG18,GH18+SQRT(POWER(GG29-GG18,2)+POWER(GH29-GH18,2))*SIN(ATAN((GH29-GH18)/(GG29-GG18+0.000123))+GH16),GH18+SQRT(POWER(GG29-GG18,2)+POWER(GH29-GH18,2))*SIN(ATAN((GH29-GH18)/(GG18-GG29+0.000123))-GH16)),IF(GG29>GG18,GH18-SQRT(POWER(GG29-GG18,2)+POWER(GH29-GH18,2))*SIN(ATAN((GH18-GH29)/(GG29-GG18+0.000123))-GH16),GH18-SQRT(POWER(GG29-GG18,2)+POWER(GH29-GH18,2))*SIN(ATAN((GH18-GH29)/(GG18-GG29+0.000123))+GH16))) -> 0.6987463478 | GM29: نقطه چرخیده | GO29: نقطه خروجی میانه | GQ29: =GQ21+GQ24*GR26*SIN(GP26)/GR25 ->  | GR29: =GR21-GQ24*GR26*COS(GP26)/GR25 ->  | GU29: =GU28+GT11 -> -64 | GV29: -1.117010721 | GW29: =HB13+HB10*COS(GV29) ->  | GX29: =HC13-HB10*SIN(GV29) ->  | GY29: =SQRT(POWER((HB12-GW29),2)+POWER((HC12-GX29),2)) ->  | GZ29: =ABS(HB9-GY29) ->  | HB29: نقطه دوم از خط اول | HC29: f6 | HD29: =#REF! ->  | HE29: =#REF! ->  | HO29: =-HK29+HP9 -> 0 | HP29: 0 | NU29: متغیرهای ورودی | NY29: نقطه ورودی سر فلش | NZ29: مولفه افقی | OA29: مولفه عمودی | OB29: =NZ32 -> -20.57778846 | OC29: =OA32 -> 5.18 | OD29: =NY32 -> f3 | OF29: =OF11 -> e7 | OG29: =TEXT(0,OG11)&" رج مثل رج قبل میبافیم" -> 4 رج مثل رج قبل میبافیم | OJ29: نقطه ورودی سر فلش | OK29: مولفه افقی | OL29: مولفه عمودی | OM29: =OK32 -> -19.5329638 | ON29: =OL32 -> 5.127058824 | OO29: =OJ32 -> f3 | OQ29: =OQ11 -> e7 | OR29: =TEXT(0,OR11)&" رج مثل رج قبل میبافیم" -> 4 رج مثل رج قبل میبافیم | OU29: نقطه ورودی سر فلش | OV29: مولفه افقی | OW29: مولفه عمودی | OX29: =OV32 -> -19.91437406 | OY29: =OW32 -> 5.127058824 | OZ29: =OU32 -> f3 | PC29: ="نقشه بافت یقه ب ب غیر مسطح تا خط مرکزی جلو با میل "&TEXT(0,PB19)&" بافت "&TEXT(0,PB21) -> نقشه بافت یقه ب ب غیر مسطح تا خط مرکزی جلو با میل 2 بافت همه از زیر | PF29: نقطه ورودی سر فلش | PG29: مولفه افقی | PH29: مولفه عمودی | PI29: =PG32 -> -19.34225867 | PJ29: =PH32 -> 5.127058824 | PK29: =PF32 -> f3 | PN29: ="نقشه بافت یقه ب ب معمولی تا خط مرکزی جلو با میل "&TEXT(0,PM19)&" بافت "&TEXT(0,PM21) -> نقشه بافت یقه ب ب معمولی تا خط مرکزی جلو با میل 2 بافت همه از زیر | PQ29: نقطه ورودی سر فلش | PR29: مولفه افقی | PS29: مولفه عمودی | PT29: =PR32 -> -18.46501508 | PU29: =PS32 -> 5.127058824 | PV29: =PQ32 -> f3 | PX29: =PY5 -> -45 | PY29: =PY6 -> 5 | PZ29: t1 | QB29: بزرگی خط عمودی دانه | QC29: =PY11 -> 0.5 | QD29: f9 | QG29: فلش به سمت بالا | QK29: پایین پیراهن | QM29: =QI78 -> 13.589985 | QN29: =QJ78 -> 135.2293721 | QO29: 26''
E30: تعداد دانه های اضافه شده زیر بغل b8 | F30: =F15 -> 12 | H30: جمع شوندگی افقی بافت پشت f03 | I30: =OFFSET(AJ6,I31,1) -> -0.4100678733 | L30: =IF(O33+2*O41-G46=0,1,IF(O25<=2,L25,IF(O26<=2,L26,IF(O27<=2,L27,IF(O28<=2,L28,L29))))) -> 5 | M30: =IF(O33+2*O41-G46=0,1,IF(O25<=2,M25,IF(O26<=2,M26,IF(O27<=2,M27,IF(O28<=2,M28,M29))))) -> 2 | Q30: =ABS(ROUND(5*S19/(S19-G46+0.001),0)) -> 16 | R30: =ABS(ROUND(5*(S19/(S19-G46+0.0001)-1),0)) -> 11 | S30: =S19-(S19/Q30)*(Q30-R30)-G46 -> 0.4895881668 | T30: =ROUNDDOWN(ABS(S30),0) -> 0 | W30: =IF(X33+2*F25-G46=0,1,IF(Z25<=2,W25,IF(Z26<=2,W26,IF(Z27<=2,W27,IF(Z28<=2,W28,W29))))) -> 6 | X30: =IF(X33+2*F25-G46=0,1,IF(Z25<=2,X25,IF(Z26<=2,X26,IF(Z27<=2,X27,IF(Z28<=2,X28,X29))))) -> 4 | AH30: 2.571428571 | AI30: 2.888888889 | AJ30: =(10/3)*((AM30/AL30)*(1/I6)-1) -> 0.1058201058 | AK30: =(100/68)*((AO30/AN30)*(1/I7)-1) -> 0.4201680672 | AL30: 13.5 | AM30: 39 | AN30: 14 | AO30: 36 | AP30: پیچ با فاصله | AQ30: 24 | CM30: =CI42 -> 14.1 | CN30: =CJ42 -> 156.7 | CO30: j8 | CQ30: =0.7*(CQ26-CQ24)+CQ24 -> 62.6415 | CR30: =CR27+0.1*(CR26-CR27) -> 99.3785 | CS30: d9 | DD30: =DB37+'طراحی همه الگوها'!U189 -> 78.2 | DE30: =DE15-'طراحی همه الگوها'!U198 -> 155.8 | DF30: 14 | DH30: =DH14 -> 36 | DI30: =DI14 -> 29.7 | DJ30: 17 | DL30: s13 | DM30: =DM19+'طراحی همه الگوها'!U189-0.5*'طراحی همه الگوها'!U190 -> 82.8 | DN30: =DM45+DM44 -> 7 | DT30: 2' | DU30: =DM19 -> 12 | DV30: =EC35+DM44 -> 7 | DX30: =DU29 -> 72.46358588 | DY30: =DV29 -> 99.95428029 | DZ30: s'19 | EE30: =EI15 -> 171.6 | EF30: =EJ15 -> 124.5 | EG30: 13 | EI30: =DB37 -> 0 | EJ30: =EF13 -> 165.7 | EK30: 1 | EO30: 3 | EP30: =EP29-'طراحی همه الگوها'!U234 -> 2.7 | EQ30: =EQ29-'طراحی همه الگوها'!U232 -> -5 | ET30: =ET28+'طراحی همه الگوها'!U242 -> 50.5 | EU30: =EU28-'طراحی همه الگوها'!U245 -> 55.025 | EV30: 19 | EX30: =EP36 -> 80.30651506 | EY30: =EQ36 -> 104.3934849 | EZ30: 10 | FF30: =FF13+'طراحی همه الگوها'!U260+'طراحی همه الگوها'!U262 -> 94.1 | FG30: =FG25+FC44 -> 110.9 | FH30: 13 | FJ30: =FJ24 -> 44.9 | FK30: =FG17 -> 99.9 | FL30: 21 | FN30: 2 | FO30: =FO14 -> 12 | FP30: =FC42+DM44 -> 7 | FR30: =FO24 -> 32.6275 | FS30: 107.5270608 | FT30: 41شبیه ساز | GA30: 30 | GB30: =GB12+GE12*SIN(RADIANS(GA30)+GA14) ->  | GC30: =GC12+GE12*COS(RADIANS(GA30)+GA14) ->  | GD30: =IF(GB13>GB30,ATAN((GC13-GC30)/(GB13-GB30)),ATAN((GC13-GC30)/(GB30-GB13))) ->  | GE30: =IF(GB13>GB30,(GB13-GB30)/COS(GD30),(GB30-GB13)/COS(GD30)) ->  | GG30: 1 | GH30: 2 | GI30: نقطه 12 | GJ30: نقطه قبل از چرخش | GK30: =IF(GH30>GH18,IF(GG30>GG18,GG18+SQRT(POWER(GG30-GG18,2)+POWER(GH30-GH18,2))*COS(ATAN((GH30-GH18)/(GG30-GG18+0.000123))+GH16),GG18-SQRT(POWER(GG30-GG18,2)+POWER(GH30-GH18,2))*COS(ATAN((GH30-GH18)/(GG18-GG30+0.000123))-GH16)),IF(GG30>GG18,GG18+SQRT(POWER(GG30-GG18,2)+POWER(GH30-GH18,2))*COS(ATAN((GH18-GH30)/(GG30-GG18+0.000123))-GH16),GG18-SQRT(POWER(GG30-GG18,2)+POWER(GH30-GH18,2))*COS(ATAN((GH18-GH30)/(GG18-GG30+0.000123))+GH16))) -> 0.6182452327 | GL30: =IF(GH30>GH18,IF(GG30>GG18,GH18+SQRT(POWER(GG30-GG18,2)+POWER(GH30-GH18,2))*SIN(ATAN((GH30-GH18)/(GG30-GG18+0.000123))+GH16),GH18+SQRT(POWER(GG30-GG18,2)+POWER(GH30-GH18,2))*SIN(ATAN((GH30-GH18)/(GG18-GG30+0.000123))-GH16)),IF(GG30>GG18,GH18-SQRT(POWER(GG30-GG18,2)+POWER(GH30-GH18,2))*SIN(ATAN((GH18-GH30)/(GG30-GG18+0.000123))-GH16),GH18-SQRT(POWER(GG30-GG18,2)+POWER(GH30-GH18,2))*SIN(ATAN((GH18-GH30)/(GG18-GG30+0.000123))+GH16))) -> 0.6987463478 | GM30: نقطه چرخیده | GU30: =GU29+GT11 -> -62 | GV30: -1.082104136 | GW30: =HB13+HB10*COS(GV30) ->  | GX30: =HC13-HB10*SIN(GV30) ->  | GY30: =SQRT(POWER((HB12-GW30),2)+POWER((HC12-GX30),2)) ->  | GZ30: =ABS(HB9-GY30) ->  | HB30: نقطه اول از خط دوم | HC30: f7 | HD30: =#REF! ->  | HE30: =#REF! ->  | HO30: =-HK30+HP9 -> 0 | HP30: 0 | NU30: Xw1 | NV30: ='متغیرها '!C853-20 -> -25 | NW30: جابجایی افقی کل نقشه | NY30: w6 | NZ30: =NU53 -> -20.21778846 | OA30: =NV53 -> 5 | OF30: =OF12 -> e8 | OG30: =TEXT(0,OG12)&" رج مثل رج قبل میبافیم" -> 4 رج مثل رج قبل میبافیم | OJ30: m3 | OK30: =OF62 -> -19.27884615 | OL30: =OG62 -> 5 | OQ30: =OQ12 -> e8 | OR30: =TEXT(0,OR12)&" رج مثل رج قبل میبافیم" -> 4 رج مثل رج قبل میبافیم | OU30: m3 | OV30: =OQ62 -> -19.66025641 | OW30: =OR62 -> 5 | PB30: b2 | PC30: =TEXT(0,PC15)&"دانه" -> 3دانه | PF30: n3 | PG30: =PB62 -> -19.08814103 | PH30: =PC62 -> 5 | PM30: b2 | PN30: =TEXT(0,PN15)&"دانه" -> 3دانه | PQ30: n3 | PR30: =PM62 -> -18.21089744 | PS30: =PN62 -> 5 | PX30: =PX29+3.5 -> -41.5 | PY30: =PY29 -> 5 | PZ30: t2 | QB30: بزرگی فلش دانه | QC30: =PY12 -> 0.3 | QD30: f10 | QE30: =QC37 -> -42.55 | QF30: =QD37 -> 7.428571429 | QG30: =QB37 -> f8 | QI30: =FF156 -> 36.36639748 | QJ30: =FG156 -> 53.22706078 | QK30: شیفت7
E31: تعداد دانه های سرتاسر آستین در قسمت زیر بغل b20 | F31: =F16 -> 95 | H31: بافت انتخابی پشت | I31: ='متغیرها '!C837 -> 1 | N31: یقه شکاری | Q31: =IF(S19=G46,1,IF(T26<=2,Q26,IF(T27<=2,Q27,IF(T28<=2,Q28,IF(T29<=2,Q29,Q30))))) -> 6 | R31: =IF(S19=G46,1,IF(T26<=2,R26,IF(T27<=2,R27,IF(T28<=2,R28,IF(T29<=2,R29,R30))))) -> 4 | W31: یقه ب ب غیر مسطح تا خط مرکزی جلو | Z31: یقه ب ب مسطح تا خط مرکزی جلو | AH31: =AO31/AN31 -> 2.857142857 | AI31: =AM31/AL31 -> 2.888888889 | AJ31: =(10/3)*((AM31/AL31)*(1/I6)-1) -> 0.1058201058 | AK31: =(100/68)*((AO31/AN31)*(1/I7)-1) -> 0.6302521008 | AL31: 13.5 | AM31: 39 | AN31: 3.5 | AO31: 10 | AP31: پیچ متراکم | AQ31: 25 | CQ31: =CQ24 -> 12 | CR31: =CR15-1-0.013*(CR25-CR27) -> 104.893505 | CS31: j'2 | DL31: s14 | DM31: =DM13+DM42*COS(DM40) -> 18.13548 | DN31: =DN13-DM42*SIN(DM40) -> 157.77265 | DP31: =DP25 -> 18.13548 | DQ31: =DQ25 -> 157.77265 | DR31: s14 | EE31: =DB37+'طراحی همه الگوها'!U211+'طراحی همه الگوها'!U219 -> 177.7 | EF31: =EF20 -> 124.5 | EG31: 12 | EI31: =DB37+'طراحی همه الگوها'!U216 -> 110 | EJ31: =EF33 -> 165.7 | EK31: 3 | EO31: 5 | EP31: =EP29+'طراحی همه الگوها'!U235 -> 20.7 | EQ31: =EQ29-'طراحی همه الگوها'!U233 -> 7 | EX31: =EP37 -> 69.77062402 | EY31: =EQ37 -> 93.8575939 | EZ31: 11 | FF31: =FF13 -> 0 | FG31: =FG30 -> 110.9 | FH31: 12 | FJ31: =FJ24 -> 44.9 | FK31: =FK24 -> 81 | FL31: 22 | FN31: s''12 | FO31: =FO30 -> 12 | FP31: =FP24 -> 107.5270608 | FR31: 43.23875 | FS31: 77.36894254 | FT31: 41' | GA31: 32 | GB31: =GB12+GE12*SIN(RADIANS(GA31)+GA14) ->  | GC31: =GC12+GE12*COS(RADIANS(GA31)+GA14) ->  | GD31: =IF(GB13>GB31,ATAN((GC13-GC31)/(GB13-GB31)),ATAN((GC13-GC31)/(GB31-GB13))) ->  | GE31: =IF(GB13>GB31,(GB13-GB31)/COS(GD31),(GB31-GB13)/COS(GD31)) ->  | GG31: 1 | GH31: 2 | GI31: نقطه 13 | GJ31: نقطه قبل از چرخش | GK31: =IF(GH31>GH18,IF(GG31>GG18,GG18+SQRT(POWER(GG31-GG18,2)+POWER(GH31-GH18,2))*COS(ATAN((GH31-GH18)/(GG31-GG18+0.000123))+GH16),GG18-SQRT(POWER(GG31-GG18,2)+POWER(GH31-GH18,2))*COS(ATAN((GH31-GH18)/(GG18-GG31+0.000123))-GH16)),IF(GG31>GG18,GG18+SQRT(POWER(GG31-GG18,2)+POWER(GH31-GH18,2))*COS(ATAN((GH18-GH31)/(GG31-GG18+0.000123))-GH16),GG18-SQRT(POWER(GG31-GG18,2)+POWER(GH31-GH18,2))*COS(ATAN((GH18-GH31)/(GG18-GG31+0.000123))+GH16))) -> 0.6182452327 | GL31: =IF(GH31>GH18,IF(GG31>GG18,GH18+SQRT(POWER(GG31-GG18,2)+POWER(GH31-GH18,2))*SIN(ATAN((GH31-GH18)/(GG31-GG18+0.000123))+GH16),GH18+SQRT(POWER(GG31-GG18,2)+POWER(GH31-GH18,2))*SIN(ATAN((GH31-GH18)/(GG18-GG31+0.000123))-GH16)),IF(GG31>GG18,GH18-SQRT(POWER(GG31-GG18,2)+POWER(GH31-GH18,2))*SIN(ATAN((GH18-GH31)/(GG31-GG18+0.000123))-GH16),GH18-SQRT(POWER(GG31-GG18,2)+POWER(GH31-GH18,2))*SIN(ATAN((GH18-GH31)/(GG18-GG31+0.000123))+GH16))) -> 0.6987463478 | GM31: نقطه چرخیده | GP31: رسم باکس زیپ دامن-باکس چپ | GQ31: مولفه افقی | GR31: مولفه عمودی | GU31: =GU30+GT11 -> -60 | GV31: -1.047197551 | GW31: =HB13+HB10*COS(GV31) ->  | GX31: =HC13-HB10*SIN(GV31) ->  | GY31: =SQRT(POWER((HB12-GW31),2)+POWER((HC12-GX31),2)) ->  | GZ31: =ABS(HB9-GY31) ->  | HB31: نقطه دوم از خط دوم | HC31: f8 | HD31: =#REF! ->  | HE31: =#REF! ->  | HO31: =-HK31+HP9 -> 0 | HP31: 0 | NU31: Yw1 | NV31: ='متغیرها '!C854+5 -> 5 | NW31: جابجایی عمودی کل نقشه | NY31: f2 | NZ31: =NZ30-1*NZ28 -> -20.57778846 | OA31: =OA30-NZ27*NZ28 -> 4.82 | OB31: =NZ30 -> -20.21778846 | OC31: =OA30 -> 5 | OD31: =NY30 -> w6 | OF31: =OF13 -> e9 | OG31: =TEXT(0,OG13)&" رج مثل رج قبل میبافیم" -> 2 رج مثل رج قبل میبافیم | OJ31: f2 | OK31: =OK30-1*OK28 -> -19.5329638 | OL31: =OL30-OK27*OK28 -> 4.872941176 | OM31: =OK30 -> -19.27884615 | ON31: =OL30 -> 5 | OO31: =OJ30 -> m3 | OQ31: =OQ13 -> e9 | OR31: =TEXT(0,OR13)&" رج مثل رج قبل میبافیم" -> 2 رج مثل رج قبل میبافیم | OU31: f2 | OV31: =OV30-1*OV28 -> -19.91437406 | OW31: =OW30-OV27*OV28 -> 4.872941176 | OX31: =OV30 -> -19.66025641 | OY31: =OW30 -> 5 | OZ31: =OU30 -> m3 | PB31: متغیرهای ورودی | PF31: f2 | PG31: =PG30-1*PG28 -> -19.34225867 | PH31: =PH30-PG27*PG28 -> 4.872941176 | PI31: =PG30 -> -19.08814103 | PJ31: =PH30 -> 5 | PK31: =PF30 -> n3 | PM31: متغیرهای ورودی | PQ31: f2 | PR31: =PR30-1*PR28 -> -18.46501508 | PS31: =PS30-PR27*PR28 -> 4.872941176 | PT31: =PR30 -> -18.21089744 | PU31: =PS30 -> 5 | PV31: =PQ30 -> n3 | PX31: =PX30 -> -41.5 | PY31: =PY30+PY7 -> 6.428571429 | PZ31: t3 | QB31: زاویه فلش دانه | QC31: =PY13 -> 0.75 | QD31: f11 | QE31: =QC34 -> -42.55 | QF31: =QD34 -> 6.428571429 | QG31: =QB34 -> t4 | QI31: =FF159 -> 23.43933657 | QJ31: =FG159 -> 52.7 | QK31: شیفت50 | QM31: =QI78 -> 13.589985 | QN31: =QJ78 -> 135.2293721 | QO31: 26''
E32: فاصله زیر بغل تا پایین لباس (cm) b9 | F32: =ROUND(AX113,0) -> 69 | N32: بافت انتخابی | Q32: یقه شومیزیه نوک تیز تا خط جادکمه | T32: یقه شومیزیه معمولی تا خط جادکمه | W32: بافت انتخابی | Z32: بافت انتخابی | AH32: 4 | AI32: 2.518518519 | AJ32: =(10/3)*((AM32/AL32)*(1/I6)-1) -> -0.3350970018 | AK32: =(100/68)*((AO32/AN32)*(1/I7)-1) -> 1.470588235 | AL32: 13.5 | AM32: 34 | AN32: 9 | AO32: 36 | AP32: کشباف سه تایی | AQ32: 26 | CM32: =CI42 -> 14.1 | CN32: =CJ42 -> 156.7 | CO32: j8 | DD32: =DD29 -> 78.2 | DE32: =DE15 -> 173.7 | DF32: 3 | DH32: =DH22 -> 67.7 | DI32: =DE14 -> 0 | DJ32: 18 | DL32: s16 | DM32: =DM15 -> 12 | DN32: =DN15 -> 123.7 | DP32: =DP31+0.32*(DP34-DP31) -> 34.13935145 | DQ32: =DQ34+0.5*(DQ31-DQ34) -> 141.4555014 | DX32: =DX30 -> 72.46358588 | DY32: =DY30 -> 99.95428029 | DZ32: s'19 | EB32: شیفت افقی مچ | EC32: =EE20+10 -> 120 | EE32: =EE31 -> 177.7 | EF32: =EF13 -> 165.7 | EG32: 11 | EO32: 6 | EP32: =EP30+EO25*COS(RADIANS('متغیرها '!C26)) -> 18.07889484 | EQ32: =EQ30-EO25*SIN(RADIANS('متغیرها '!C26)) -> -5.805973726 | ET32: =ET28+'طراحی همه الگوها'!U242 -> 50.5 | EU32: =EU28+'طراحی همه الگوها'!U244 -> 100.425 | EV32: 18 | FF32: =FF13 -> 0 | FG32: =FG31+'طراحی همه الگوها'!U258 -> 124.9 | FH32: 18 | FN32: s'12 | FO32: =FO30 -> 12 | FP32: =FP23 -> 111.5270608 | FR32: 51.3033 | FS32: 37.15811823 | FT32: 41'' | GA32: 34 | GB32: =GB12+GE12*SIN(RADIANS(GA32)+GA14) ->  | GC32: =GC12+GE12*COS(RADIANS(GA32)+GA14) ->  | GD32: =IF(GB13>GB32,ATAN((GC13-GC32)/(GB13-GB32)),ATAN((GC13-GC32)/(GB32-GB13))) ->  | GE32: =IF(GB13>GB32,(GB13-GB32)/COS(GD32),(GB32-GB13)/COS(GD32)) ->  | GG32: 1 | GH32: 2 | GI32: نقطه 14 | GJ32: نقطه قبل از چرخش | GK32: =IF(GH32>GH18,IF(GG32>GG18,GG18+SQRT(POWER(GG32-GG18,2)+POWER(GH32-GH18,2))*COS(ATAN((GH32-GH18)/(GG32-GG18+0.000123))+GH16),GG18-SQRT(POWER(GG32-GG18,2)+POWER(GH32-GH18,2))*COS(ATAN((GH32-GH18)/(GG18-GG32+0.000123))-GH16)),IF(GG32>GG18,GG18+SQRT(POWER(GG32-GG18,2)+POWER(GH32-GH18,2))*COS(ATAN((GH18-GH32)/(GG32-GG18+0.000123))-GH16),GG18-SQRT(POWER(GG32-GG18,2)+POWER(GH32-GH18,2))*COS(ATAN((GH18-GH32)/(GG18-GG32+0.000123))+GH16))) -> 0.6182452327 | GL32: =IF(GH32>GH18,IF(GG32>GG18,GH18+SQRT(POWER(GG32-GG18,2)+POWER(GH32-GH18,2))*SIN(ATAN((GH32-GH18)/(GG32-GG18+0.000123))+GH16),GH18+SQRT(POWER(GG32-GG18,2)+POWER(GH32-GH18,2))*SIN(ATAN((GH32-GH18)/(GG18-GG32+0.000123))-GH16)),IF(GG32>GG18,GH18-SQRT(POWER(GG32-GG18,2)+POWER(GH32-GH18,2))*SIN(ATAN((GH18-GH32)/(GG32-GG18+0.000123))-GH16),GH18-SQRT(POWER(GG32-GG18,2)+POWER(GH32-GH18,2))*SIN(ATAN((GH18-GH32)/(GG18-GG32+0.000123))+GH16))) -> 0.6987463478 | GM32: نقطه چرخیده | GO32: نقطه ورودی بالا | GP32: s'u3 | GQ32: =#REF! ->  | GR32: =#REF! ->  | GU32: =GU31+GT11 -> -58 | GV32: -1.012290966 | GW32: =HB13+HB10*COS(GV32) ->  | GX32: =HC13-HB10*SIN(GV32) ->  | GY32: =SQRT(POWER((HB12-GW32),2)+POWER((HC12-GX32),2)) ->  | GZ32: =ABS(HB9-GY32) ->  | HB32: نقطه تقاطع | HC32: f10 | HD32: =(HE30-HE28+HD28*((HE29-HE28)/(HD29-HD28+0.0001))-HD30*((HE31-HE30)/(HD31-HD30+0.0001)))/(((HE29-HE28)/(HD29-HD28+0.0001))-((HE31-HE30)/(HD31-HD30+0.0001))) ->  | HE32: =HE28+(HD32-HD28)*((HE29-HE28)/(HD29-HD28+0.0001)) ->  | HO32: =-HK32+HP9 -> 0 | HP32: 0 | NU32: w'12 | NV32: ='متغیرها '!C855 -> 42 | NW32: نسبت نقشه بافت به سایز واقعی | NY32: f3 | NZ32: =NZ31 -> -20.57778846 | OA32: =OA30+NZ27*NZ28 -> 5.18 | OB32: =NZ31 -> -20.57778846 | OC32: =OA31 -> 4.82 | OD32: =NY31 -> f2 | OF32: a10,a11,b1 | OG32: ="تعداد دانه ها"&TEXT(0,OG18)&"میباشد. هر"&TEXT(0,OG14)&" دانه را تبدیل به "&TEXT(0,OG15)&" دانه میکنیم تا تعداد دانه ها "&TEXT(0,OG19)&" شود" -> تعداد دانه ها135میباشد. هر6 دانه را تبدیل به 4 دانه میکنیم تا تعداد دانه ها 92 شود | OJ32: f3 | OK32: =OK31 -> -19.5329638 | OL32: =OL30+OK27*OK28 -> 5.127058824 | OM32: =OK31 -> -19.5329638 | ON32: =OL31 -> 4.872941176 | OO32: =OJ31 -> f2 | OQ32: a10,a11,b1 | OR32: ="تعداد دانه ها"&TEXT(0,OR18)&"میباشد. هر"&TEXT(0,OR14)&" دانه را تبدیل به "&TEXT(0,OR15)&" دانه میکنیم تا تعداد دانه ها "&TEXT(0,OR19)&" شود" -> تعداد دانه ها135میباشد. هر6 دانه را تبدیل به 4 دانه میکنیم تا تعداد دانه ها 92 شود | OU32: f3 | OV32: =OV31 -> -19.91437406 | OW32: =OW30+OV27*OV28 -> 5.127058824 | OX32: =OV31 -> -19.91437406 | OY32: =OW31 -> 4.872941176 | OZ32: =OU31 -> f2 | PB32: Xw1 | PC32: =NV30 -> -25 | PD32: جابجایی افقی کل نقشه | PF32: f3 | PG32: =PG31 -> -19.34225867 | PH32: =PH30+PG27*PG28 -> 5.127058824 | PI32: =PG31 -> -19.34225867 | PJ32: =PH31 -> 4.872941176 | PK32: =PF31 -> f2 | PM32: Xw1 | PN32: =NV30 -> -25 | PO32: جابجایی افقی کل نقشه | PQ32: f3 | PR32: =PR31 -> -18.46501508 | PS32: =PS30+PR27*PR28 -> 5.127058824 | PT32: =PR31 -> -18.46501508 | PU32: =PS31 -> 4.872941176 | PV32: =PQ31 -> f2 | PX32: =PX31-2/PY15 -> -42.55 | PY32: =PY31 -> 6.428571429 | PZ32: t4 | QB32: ارتفاع هر رج | QC32: =PY7 -> 1.428571429 | QD32: w11 | QK32: رگلان | QM32: =QI69 -> 10.410015 | QN32: =QJ69 -> 135.2293721 | QO32: 26'
E33: فاصله زیر بغل تا بالای مچ آستین (cm) b10 | F33: =ROUNDUP(SQRT(POWER(DY513-DY520,2)+POWER(DZ513-DZ520,2)),0) -> 17 | H33: a001 تعداد رج در یک سانت آستین | I33: =F6+0.3*I35*F6 -> 3.333333333 | N33: a1 | O33: =ROUND(2*O12*O17,0) -> 203 | Q33: بافت انتخابی | T33: بافت انتخابی | W33: c1 | X33: =ROUND(X20*X11+1.5*(X36+1)+0.5*(X35+1)-0.5*(X34+1)-3,0) -> 155 | Z33: c1 | AA33: =ROUND(X20*X11+2*(X36+1)+1*(X35+1)+X34+1-2,0) -> 178 | AI33: 0 | AJ33: =(10/3)*((AM33/AL33)*(1/I6)-1) -> -3.333333333 | AK33: =(100/68)*((AO33/AN33)*(1/I7)-1) ->  | AL33: 13.5 | AO33: 36 | AQ33: 27 | CM33: =CI41 -> 12 | CN33: =CJ41 -> 156.7 | CO33: j7 | DD33: =DD16 -> 14.8 | DE33: =DE15 -> 173.7 | DF33: 4 | DH33: =DH22 -> 67.7 | DI33: =DI22 -> 20 | DJ33: 19 | DL33: s15 | DM33: =DM32+0.7*(DM31-DM32) -> 16.294836 | DN33: =DN32+0.5*(DN31-DN32) -> 140.736325 | DP33: =DP31+0.67*(DP34-DP31) -> 51.64358585 | DQ33: =DQ34+0.2*(DQ31-DQ34) -> 131.6652123 | DX33: =DU19 -> 63.05906569 | DY33: =DV19 -> 90.5497601 | DZ33: s'11 | EB33: شیفت عمودی مچ | EC33: =EF20-10 -> 114.5 | EE33: =DB37+'طراحی همه الگوها'!U216 -> 110 | EF33: =EF13 -> 165.7 | EG33: 3 | EI33: =EE21 -> 110 | EJ33: =EF21 -> 67.7 | EK33: 9 | EO33: 7 | EP33: =EP31+EO26*COS(RADIANS('متغیرها '!C26)) -> 32.48382851 | EQ33: =EQ31+EO26*SIN(RADIANS('متغیرها '!C26)) -> 7.617564284 | ET33: =ET28+'طراحی همه الگوها'!U242 -> 50.5 | EU33: =EU28 -> 77.725 | EV33: 16 | EX33: =EP37 -> 69.77062402 | EY33: =EQ37 -> 93.8575939 | EZ33: 11 | FF33: =FF13 -> 0 | FG33: =FG32+'طراحی همه الگوها'!U259 -> 216.7 | FH33: 14 | FJ33: =FJ18 -> 22.4 | FK33: =FG31 -> 110.9 | FL33: 23 | FN33: s'3 | FO33: =FO22+0.5*(FO12-FO22) -> 15.99660099 | FP33: =FP22+0.6*(FP12-FP22) -> 117.2265789 | FR33: 53.85 | FS33: 7 | FT33: s13 | GA33: 36 | GB33: =GB12+GE12*SIN(RADIANS(GA33)+GA14) ->  | GC33: =GC12+GE12*COS(RADIANS(GA33)+GA14) ->  | GD33: =IF(GB13>GB33,ATAN((GC13-GC33)/(GB13-GB33)),ATAN((GC13-GC33)/(GB33-GB13))) ->  | GE33: =IF(GB13>GB33,(GB13-GB33)/COS(GD33),(GB33-GB13)/COS(GD33)) ->  | GG33: 1 | GH33: 2 | GI33: نقطه 15 | GJ33: نقطه قبل از چرخش | GK33: =IF(GH33>GH18,IF(GG33>GG18,GG18+SQRT(POWER(GG33-GG18,2)+POWER(GH33-GH18,2))*COS(ATAN((GH33-GH18)/(GG33-GG18+0.000123))+GH16),GG18-SQRT(POWER(GG33-GG18,2)+POWER(GH33-GH18,2))*COS(ATAN((GH33-GH18)/(GG18-GG33+0.000123))-GH16)),IF(GG33>GG18,GG18+SQRT(POWER(GG33-GG18,2)+POWER(GH33-GH18,2))*COS(ATAN((GH18-GH33)/(GG33-GG18+0.000123))-GH16),GG18-SQRT(POWER(GG33-GG18,2)+POWER(GH33-GH18,2))*COS(ATAN((GH18-GH33)/(GG18-GG33+0.000123))+GH16))) -> 0.6182452327 | GL33: =IF(GH33>GH18,IF(GG33>GG18,GH18+SQRT(POWER(GG33-GG18,2)+POWER(GH33-GH18,2))*SIN(ATAN((GH33-GH18)/(GG33-GG18+0.000123))+GH16),GH18+SQRT(POWER(GG33-GG18,2)+POWER(GH33-GH18,2))*SIN(ATAN((GH33-GH18)/(GG18-GG33+0.000123))-GH16)),IF(GG33>GG18,GH18-SQRT(POWER(GG33-GG18,2)+POWER(GH33-GH18,2))*SIN(ATAN((GH18-GH33)/(GG33-GG18+0.000123))-GH16),GH18-SQRT(POWER(GG33-GG18,2)+POWER(GH33-GH18,2))*SIN(ATAN((GH18-GH33)/(GG18-GG33+0.000123))+GH16))) -> 0.6987463478 | GM33: نقطه چرخیده | GO33: نقطه ورودی پایین | GP33: s'd3 | GQ33: =#REF! ->  | GR33: =#REF! ->  | GU33: =GU32+GT11 -> -56 | GV33: -0.9773843811 | GW33: =HB13+HB10*COS(GV33) ->  | GX33: =HC13-HB10*SIN(GV33) ->  | GY33: =SQRT(POWER((HB12-GW33),2)+POWER((HC12-GX33),2)) ->  | GZ33: =ABS(HB9-GY33) ->  | HO33: =-HK33+HP9 -> 0 | HP33: 0 | NU33: w11 | NV33: ='متغیرها '!C856/NV39 -> 0.6 | NW33: ارتفاع هر رج | OG33: ="نقشه بافت یقه شومیزیه نوک تیز با میل "&TEXT(0,OG58)&" بافت "&TEXT(0,OF59) -> نقشه بافت یقه شومیزیه نوک تیز با میل 2 بافت همه از زیر | OR33: ="نقشه بافت یقه شومیزیه معمولی با میل "&TEXT(0,OR58)&" بافت "&TEXT(0,OQ59) -> نقشه بافت یقه شومیزیه معمولی با میل 2 بافت همه از زیر | PB33: Yw1 | PC33: =NV31 -> 5 | PD33: جابجایی عمودی کل نقشه | PM33: Yw1 | PN33: =NV31 -> 5 | PO33: جابجایی عمودی کل نقشه | PX33: =PX29 -> -45 | PY33: =PY31 -> 6.428571429 | PZ33: t5 | QB33: نقطه ورودی سر فلش | QC33: مولفه افقی | QD33: مولفه عمودی | QE33: =QC37 -> -42.55 | QF33: =QD37 -> 7.428571429 | QG33: =QB37 -> f8 | QI33: =FB146 -> 23.36710204 | QJ33: =FC146 -> 133.7557464 | QK33: 5'
E34: گشادی لبه پایین آستین (cm) b'11 | F34: =F13 -> 32 | H34: تعداد دانه در یک سانت آستینb001 | I34: =F7+0.68*I36*F7 -> 1.875 | N34: a2 | O34: =IF((ROUND(0.6*O9,0)-6)<0," خطا ",(ROUND(0.6*O9,0)-6)) -> 7 | Q34: e1 | R34: =ROUND(S19-4*S18*F12+3*R35+15,0) -> 150 | T34: e1 | U34: =ROUND(S19-4*S18*F12+1.5*U35+13.5,0) -> 140 | W34: c2 | X34: =ROUND(X9*X19*X7,0)-1 -> 4 | Z34: c2 | AA34: =X34 -> 4 | AI34: 0 | AJ34: =(10/3)*((AM34/AL34)*(1/I6)-1) -> -3.333333333 | AK34: =(100/68)*((AO34/AN34)*(1/I7)-1) ->  | AL34: 13.5 | AO34: 36 | AQ34: 28 | CI34: نقاط خروجی | DF34: نقاب | DH34: =DH16 -> 67.7 | DI34: =DI16 -> 33.7 | DJ34: 20 | DL34: s17 | DM34: =DB400 -> 12 | DN34: =IF('متغیرها '!C14=-1,DQ12,IF('متغیرها '!C14=0,DC400-0.1,DC400-0.25*(DC400-DC404))) -> 165.855 | DP34: =DM37 -> 68.14757829 | DQ34: =DN37 -> 125.1383529 | DR34: s20 | EB34: زاویه گشادی نسبی جلو به پشت | EC34: 33 | EE34: =DB37+'طراحی همه الگوها'!U216 -> 110 | EF34: =EF20 -> 124.5 | EG34: 10 | EI34: =EI22 -> 110 | EJ34: =EJ22 -> 6.1 | EK34: 14 | EO34: 8 | EP34: =EP35+ER41*SIN(RADIANS('متغیرها '!C30)) -> 79.5150997 | EQ34: =EQ35-ER41*COS(RADIANS('متغیرها '!C30)) -> 15.08800032 | ET34: =ET28+'طراحی همه الگوها'!U242+'طراحی همه الگوها'!U243 -> 58 | EU34: =EU28 -> 77.725 | EV34: 17 | EX34: =EP35 -> 43.91872614 | EY34: =EQ35 -> 112.8882329 | EZ34: 9 | FF34: =FF13+'طراحی همه الگوها'!U263 -> 119.1 | FG34: =FG33 -> 216.7 | FH34: 15 | FJ34: =FJ18 -> 22.4 | FK34: =FK18 -> 125.8 | FL34: 24 | GA34: 38 | GB34: =GB12+GE12*SIN(RADIANS(GA34)+GA14) ->  | GC34: =GC12+GE12*COS(RADIANS(GA34)+GA14) ->  | GD34: =IF(GB13>GB34,ATAN((GC13-GC34)/(GB13-GB34)),ATAN((GC13-GC34)/(GB34-GB13))) ->  | GE34: =IF(GB13>GB34,(GB13-GB34)/COS(GD34),(GB34-GB13)/COS(GD34)) ->  | GG34: 1 | GH34: 2 | GI34: نقطه 16 | GJ34: نقطه قبل از چرخش | GK34: =IF(GH34>GH18,IF(GG34>GG18,GG18+SQRT(POWER(GG34-GG18,2)+POWER(GH34-GH18,2))*COS(ATAN((GH34-GH18)/(GG34-GG18+0.000123))+GH16),GG18-SQRT(POWER(GG34-GG18,2)+POWER(GH34-GH18,2))*COS(ATAN((GH34-GH18)/(GG18-GG34+0.000123))-GH16)),IF(GG34>GG18,GG18+SQRT(POWER(GG34-GG18,2)+POWER(GH34-GH18,2))*COS(ATAN((GH18-GH34)/(GG34-GG18+0.000123))-GH16),GG18-SQRT(POWER(GG34-GG18,2)+POWER(GH34-GH18,2))*COS(ATAN((GH18-GH34)/(GG18-GG34+0.000123))+GH16))) -> 0.6182452327 | GL34: =IF(GH34>GH18,IF(GG34>GG18,GH18+SQRT(POWER(GG34-GG18,2)+POWER(GH34-GH18,2))*SIN(ATAN((GH34-GH18)/(GG34-GG18+0.000123))+GH16),GH18+SQRT(POWER(GG34-GG18,2)+POWER(GH34-GH18,2))*SIN(ATAN((GH34-GH18)/(GG18-GG34+0.000123))-GH16)),IF(GG34>GG18,GH18-SQRT(POWER(GG34-GG18,2)+POWER(GH34-GH18,2))*SIN(ATAN((GH18-GH34)/(GG34-GG18+0.000123))-GH16),GH18-SQRT(POWER(GG34-GG18,2)+POWER(GH34-GH18,2))*SIN(ATAN((GH18-GH34)/(GG18-GG34+0.000123))+GH16))) -> 0.6987463478 | GM34: نقطه چرخیده | GO34: متغیر ورودی پهنا | GP34: a20 | GQ34: =#REF! ->  | GR34: (سانتیمتر) | GU34: =GU33+GT11 -> -54 | GV34: -0.9424777961 | GW34: =HB13+HB10*COS(GV34) ->  | GX34: =HC13-HB10*SIN(GV34) ->  | GY34: =SQRT(POWER((HB12-GW34),2)+POWER((HC12-GX34),2)) ->  | GZ34: =ABS(HB9-GY34) ->  | HE34: قرینه نقطه نسبت به خط با داشتن دو نقطه از یک خط | HO34: =-HK34+HP9 -> 0 | HP34: 0 | NU34: g9 | NV34: ='متغیرها '!C857 -> 0.5 | NW34: پهنای نیم دایره | NY34: نسبت سایز افقی | NZ34: =NV32 -> 42 | OA34: انحنا چپگرد | OD34: =OA34 -> انحنا چپگرد | OF34: متغیرهای ورودی | OJ34: نسبت سایز افقی | OK34: =OG37 -> 42 | OL34: انحنا چپگرد | OO34: =OL34 -> انحنا چپگرد | OQ34: متغیرهای ورودی | OU34: نسبت سایز افقی | OV34: =OR37 -> 42 | OW34: انحنا چپگرد | OZ34: =OW34 -> انحنا چپگرد | PB34: w'12 | PC34: =NV32 -> 42 | PD34: نسبت نقشه بافت به سایز واقعی | PF34: نسبت سایز افقی | PG34: =PC34 -> 42 | PH34: انحنا چپگرد | PK34: =PH34 -> انحنا چپگرد | PM34: w'12 | PN34: =NV32 -> 42 | PO34: نسبت نقشه بافت به سایز واقعی | PQ34: نسبت سایز افقی | PR34: =PN34 -> 42 | PS34: انحنا چپگرد | PV34: =PS34 -> انحنا چپگرد | PX34: =PX29-PX30+PX29 -> -48.5 | PY34: =PY31 -> 6.428571429 | PZ34: t6 | QB34: =PZ32 -> t4 | QC34: =PX32 -> -42.55 | QD34: =PY32 -> 6.428571429 | QE34: =QC35 -> -42.87142857 | QF34: =QD35 -> 7 | QG34: =QB35 -> f6 | QI34: =CI121 -> 31.07701905 | QJ34: =CJ121 -> 123.2479701 | QK34: 18f | QM34: =QI62 -> 18.40868508 | QN34: =QJ62 -> 140.4999665 | QO34: 30
E35: تعداد دانه ها در بالای مچ آستین b'12 | F35: =F14 -> 60 | H35: جمع شوندگی عمودی بافت آستین f002 | I35: =OFFSET(AJ6,I37,0) -> -0.1587301587 | N35: a3 | O35: =ROUND(0.33*O37,0) -> 23 | Q35: e2 | R35: =ROUNDDOWN(0.5*(S17*S10-9),0) -> 6 | T35: e2 | U35: =R35 -> 6 | W35: c3 | X35: =ROUND(X10*X19*X7,0)-1 -> 8 | Z35: c3 | AA35: =X35 -> 8 | AI35: 0 | AJ35: =(10/3)*((AM35/AL35)*(1/I6)-1) -> -3.333333333 | AK35: =(100/68)*((AO35/AN35)*(1/I7)-1) ->  | AL35: 13.5 | AO35: 36 | AQ35: 29 | CI35: مولفه افقی | CJ35: مولفه عمودی | CK35: اسم نقطه | CM35: =CI42 -> 14.1 | CN35: =CJ42 -> 156.7 | CO35: j8 | DD35: =DD15 -> 0 | DE35: =DE15 -> 173.7 | DF35: 1 | DL35: s18 | DM35: =DM34+0.5*(DM31-DM34) -> 15.06774 | DN35: =DN34-0.3*(DN34-DN31) -> 163.430295 | DX35: =DX33 -> 63.05906569 | DY35: =DY33 -> 90.5497601 | DZ35: s'11 | EB35: j4 | EC35: =IF('متغیرها '!C17<1,'متغیرها '!C17*'متغیرها '!U59,IF('متغیرها '!C17<2,'متغیرها '!U59+('متغیرها '!C17-1)*('متغیرها '!U60-'متغیرها '!U59),IF('متغیرها '!C17<3,'متغیرها '!U60+('متغیرها '!C17-2)*(I105-'متغیرها '!U60),I105+('متغیرها '!C17-3)*(H127-H126)))) -> 0 | ED35: چادر 3 | EN35: =EN37-ER45*SIN(ER46-RADIANS(45)+ER42) -> 30.97378532 | EO35: 9 | EP35: =EP37-ER40*SIN(ER46-RADIANS(45)+ER42) -> 43.91872614 | EQ35: =EQ37+ER40*COS(ER46-RADIANS(45)+ER42) -> 112.8882329 | ER35: =ER37+ER45*COS(ER46-RADIANS(45)+ER42) -> 119.2328218 | FR35: =FO18 -> 63.97830451 | FS35: =FP18 -> 108.4395617 | FT35: s''10 | GA35: 40 | GB35: =GB12+GE12*SIN(RADIANS(GA35)+GA14) ->  | GC35: =GC12+GE12*COS(RADIANS(GA35)+GA14) ->  | GD35: =IF(GB13>GB35,ATAN((GC13-GC35)/(GB13-GB35)),ATAN((GC13-GC35)/(GB35-GB13))) ->  | GE35: =IF(GB13>GB35,(GB13-GB35)/COS(GD35),(GB35-GB13)/COS(GD35)) ->  | GO35: متغیر ورودی طول | GP35: a21 | GQ35: 1 | GU35: =GU34+GT11 -> -52 | GV35: -0.907571211 | GW35: =HB13+HB10*COS(GV35) ->  | GX35: =HC13-HB10*SIN(GV35) ->  | GY35: =SQRT(POWER((HB12-GW35),2)+POWER((HC12-GX35),2)) ->  | GZ35: =ABS(HB9-GY35) ->  | HB35: مولفه افقی | HC35: مولفه عمودی | HD35: اسم نقطه ورودی | HO35: =-HK35+HP9 -> 0 | HP35: 0 | NU35: h3 | NV35: ='متغیرها '!C858 -> 4.5 | NW35: طول باکس نوشته | NY35: ارتفاع نیم دایره | NZ35: =NV45 -> 0.6 | OA35: بزرگی فلش | OB35: =NZ38 -> 22.82211538 | OC35: =OA38 -> 5 | OD35: =NY38 -> w2 | OF35: Xm1 | OG35: =NV30 -> -25 | OH35: جابجایی افقی کل نقشه | OJ35: ارتفاع نیم دایره | OK35: =OG49 -> 0.4235294118 | OL35: بزرگی فلش | OM35: =OK38 -> 32.21153846 | ON35: =OL38 -> 5 | OO35: =OJ38 -> m2 | OQ35: Xm1 | OR35: =NV30 -> -25 | OS35: جابجایی افقی کل نقشه | OU35: ارتفاع نیم دایره | OV35: =OR49 -> 0.4235294118 | OW35: بزرگی فلش | OX35: =OV38 -> 28.3974359 | OY35: =OW38 -> 5 | OZ35: =OU38 -> m2 | PB35: wn11 | PC35: ='متغیرها '!C856/PB16 -> 0.4235294118 | PD35: ارتفاع هر رج | PF35: ارتفاع نیم دایره | PG35: =PC46 -> 0.4235294118 | PH35: بزرگی فلش | PI35: =PG38 -> 34.11858974 | PJ35: =PH38 -> 5 | PK35: =PF38 -> n2 | PM35: wn11 | PN35: ='متغیرها '!C856/PM16 -> 0.4235294118 | PO35: ارتفاع هر رج | PQ35: ارتفاع نیم دایره | PR35: =PN46 -> 0.4235294118 | PS35: بزرگی فلش | PT35: =PR38 -> 42.89102564 | PU35: =PS38 -> 5 | PV35: =PQ38 -> n2 | PX35: =PX30+5 -> -36.5 | PY35: =PY30+0.5*PY7 -> 5.714285714 | PZ35: t7 | QB35: f6 | QC35: =QC34-QC31*QC30*QC32 -> -42.87142857 | QD35: =QD37-QC30*QC32 -> 7 | QK35: کیمونو | QM35: =QI72 -> 23.36710204 | QN35: =QJ72 -> 133.7557464 | QO35: 5'
E36: پهنای مچ آستین (cm) b14 | F36: =ROUNDUP(CA513-CA511,0) -> 41 | H36: جمع شوندگی افقی بافت آستین f003 | I36: =OFFSET(AJ6,I37,1) -> -0.4100678733 | N36: a4 | O36: =ROUND(0.66*O37,0) -> 47 | Q36: e3 | R36: =ROUND(0.35*(R38),0) -> 15 | T36: e3 | U36: =ROUND(0.33*(U38),0) -> 16 | W36: c4 | X36: =X8-X34-X35-5 -> 19 | Z36: c4 | AA36: =X8-X34-X35-4 -> 20 | AI36: 0 | AJ36: =(10/3)*((AM36/AL36)*(1/I6)-1) -> -3.333333333 | AK36: =(100/68)*((AO36/AN36)*(1/I7)-1) ->  | AL36: 13.5 | AO36: 36 | AQ36: 30 | CI36: =CI14 -> 12 | CJ36: =CJ23+'طراحی همه الگوها'!U177+CJ15 -> 172.7 | CK36: j1 | CM36: =CI44 -> 14.1 | CN36: =CJ44 -> 119.6 | CO36: j10 | DA36: محاسبات | DD36: =DD15 -> 0 | DE36: =DE15-'طراحی همه الگوها'!U205 -> 168 | DF36: 21 | DL36: s19 | DM36: =DM18+'متغیرها '!C13*'متغیرها '!U83*COS(DM17) -> 86.98959014 | DN36: =DN18-'متغیرها '!C13*'متغیرها '!U83*SIN(DM17) -> 123.5015223 | DP36: =DM27 -> 69.52418406 | DQ36: =DN27 -> 129.2911328 | DR36: s10 | DX36: =DU20 -> 55.70515517 | DY36: =DV20 -> 95.92377164 | DZ36: s'12 | EB36: (1 → 5) | EC36: =DB38-'متغیرها '!C19*'متغیرها '!U83 -> 87.56170539 | EE36: =EC32 -> 120 | EF36: =EC33 -> 114.5 | EG36: 17 | EI36: =EE20 -> 110 | EJ36: =EF20 -> 124.5 | EK36: 10 | EN36: =EP29+DB38*COS(RADIANS(45)) -> 80.27943668 | EO36: 10 | EP36: =EP29+'طراحی همه الگوها'!U236*COS(RADIANS(45)) -> 80.30651506 | EQ36: =EQ29-'طراحی همه الگوها'!U236*SIN(RADIANS(45)) -> 104.3934849 | ER36: =EQ29-DB38*SIN(RADIANS(45)) -> 104.4205633 | ET36: =EP36 -> 80.30651506 | EU36: =EQ36 -> 104.3934849 | EV36: 10 | EX36: =EP35 -> 43.91872614 | EY36: =EQ35 -> 112.8882329 | EZ36: 9 | FF36: =FF31+'طراحی همه الگوها'!U260 -> 56.1 | FG36: =FG31 -> 110.9 | FH36: 16 | FJ36: =FJ19 -> 44.9 | FK36: =FG31 -> 110.9 | FL36: 25 | FR36: =FO19 -> 72.46358588 | FS36: =FP19 -> 99.95428029 | FT36: k4 شبیه ساز | GA36: 42 | GB36: =GB12+GE12*SIN(RADIANS(GA36)+GA14) ->  | GC36: =GC12+GE12*COS(RADIANS(GA36)+GA14) ->  | GD36: =IF(GB13>GB36,ATAN((GC13-GC36)/(GB13-GB36)),ATAN((GC13-GC36)/(GB36-GB13))) ->  | GE36: =IF(GB13>GB36,(GB13-GB36)/COS(GD36),(GB36-GB13)/COS(GD36)) ->  | GQ36: ماکزیمم متغیر ورودی ضریب طول | GR36: 1 | GU36: =GU35+GT11 -> -50 | GV36: -0.872664626 | GW36: =HB13+HB10*COS(GV36) ->  | GX36: =HC13-HB10*SIN(GV36) ->  | GY36: =SQRT(POWER((HB12-GW36),2)+POWER((HC12-GX36),2)) ->  | GZ36: =ABS(HB9-GY36) ->  | HB36: 0 | HC36: 0 | HD36: 1 | HE36: نقطه اول خط تقارن | HF36: نقاط قرینه شده نسبت به خط تقارن | HO36: =-HK36+HP9 -> 0 | HP36: 0 | NU36: h4 | NV36: ='متغیرها '!C859 -> 0.5 | NW36: پهنای باکس نوشته | NY36: پهنای نیم دایره | NZ36: =NV34 -> 0.5 | OA36: =NV47 -> 0.36 | OB36: =NZ42 -> 23.18961538 | OC36: =OA42 -> 5.084 | OD36: =NY42 -> g5 | OF36: Ym1 | OG36: =NV31 -> 5 | OH36: جابجایی عمودی کل نقشه | OJ36: پهنای نیم دایره | OK36: =OG39 -> 0.5 | OL36: =OG51 -> 0.2541176471 | OM36: =OK42 -> 32.57903846 | ON36: =OL42 -> 5.059294118 | OO36: =OJ42 -> g5 | OQ36: Ym1 | OR36: =NV31 -> 5 | OS36: جابجایی عمودی کل نقشه | OU36: پهنای نیم دایره | OV36: =OR39 -> 0.5 | OW36: =OR51 -> 0.2541176471 | OX36: =OV42 -> 28.7649359 | OY36: =OW42 -> 5.059294118 | OZ36: =OU42 -> g5 | PB36: g9 | PC36: =NV34 -> 0.5 | PD36: پهنای نیم دایره | PF36: پهنای نیم دایره | PG36: =PC36 -> 0.5 | PH36: =PC48 -> 0.2541176471 | PI36: =PG42 -> 34.48608974 | PJ36: =PH42 -> 5.059294118 | PK36: =PF42 -> g5 | PM36: g9 | PN36: =NV34 -> 0.5 | PO36: پهنای نیم دایره | PQ36: پهنای نیم دایره | PR36: =PN36 -> 0.5 | PS36: =PN48 -> 0.2541176471 | PT36: =PR42 -> 43.25852564 | PU36: =PS42 -> 5.059294118 | PV36: =PQ42 -> g5 | PX36: =PX29 -> -45 | PY36: =PY34+2*PY7 -> 9.285714286 | PZ36: t8 | QB36: f7 | QC36: =QC34+QC34-QC35 -> -42.22857143 | QD36: =QD35 -> 7 | QE36: =QC37 -> -42.55 | QF36: =QD37 -> 7.428571429 | QG36: =QB37 -> f8 | QI36: =AH384 -> 30.58933939 | QJ36: =AI384 -> 142.2638977 | QK36: 22f | QM36: =QI79 -> 31.07701905 | QN36: =QJ79 -> 121.9928371 | QO36: a1
E37: گشادی مچ جدار در پایین آستین (cm) b15 | F37: =ROUND(BZ520-BZ519,0) -> 57 | H37: بافت انتخابی آستین | I37: ='متغیرها '!C838 -> 1 | N37: a5 | O37: =ROUND(0.35*O33,0) -> 71 | Q37: e4 | R37: =ROUND(0.65*(R38),0) -> 27 | T37: e4 | U37: =ROUND(0.66*(U38),0) -> 32 | W37: c10 | X37: =W30 -> 6 | Z37: c10 | AA37: =X37 -> 6 | AI37: 0 | AJ37: =(10/3)*((AM37/AL37)*(1/I6)-1) -> -3.333333333 | AK37: =(100/68)*((AO37/AN37)*(1/I7)-1) ->  | AL37: 13.5 | AO37: 36 | AQ37: 31 | CI37: =CI36 -> 12 | CJ37: =CJ36-'طراحی همه الگوها'!U177 -> 107 | CK37: j2 | DA37: مولفه افقی نقطه 1 | DB37: =0 -> 0 | DD37: =DD16 -> 14.8 | DE37: =DE16-'طراحی همه الگوها'!U206 -> 169.7 | DF37: 22 | DL37: s20 | DM37: =DM27-0.25*'متغیرها '!U84*SIN(DM17) -> 68.14757829 | DN37: =DN27-0.25*'متغیرها '!U84*COS(DM17) -> 125.1383529 | DP37: =DM36 -> 86.98959014 | DQ37: =DN36 -> 123.5015223 | DR37: s19 | EB37: زاویه مچ | EC37: 15 | EE37: =EC32+'طراحی همه الگوها'!U224 -> 129 | EF37: =EC33 -> 114.5 | EG37: 18 | EI37: =EI15 -> 171.6 | EJ37: =EJ15 -> 124.5 | EK37: 13 | EN37: =EN36-'متغیرها '!U84*COS(RADIANS(45)) -> 67.90506801 | EO37: 11 | EP37: =EP36-'طراحی همه الگوها'!U237*COS(RADIANS(45)) -> 69.77062402 | EQ37: =EQ36-'طراحی همه الگوها'!U237*SIN(RADIANS(45)) -> 93.8575939 | ER37: =ER36-'متغیرها '!U84*SIN(RADIANS(45)) -> 92.04619465 | EX37: =EP34 -> 79.5150997 | EY37: =EQ34 -> 15.08800032 | EZ37: 8 | FF37: =FF36 -> 56.1 | FG37: =FG31+'طراحی همه الگوها'!U261 -> 133.8 | FH37: 17 | FJ37: =FJ19 -> 44.9 | FK37: =FK19 -> 129.8 | FL37: 26 | GA37: 44 | GB37: =GB12+GE12*SIN(RADIANS(GA37)+GA14) ->  | GC37: =GC12+GE12*COS(RADIANS(GA37)+GA14) ->  | GD37: =IF(GB13>GB37,ATAN((GC13-GC37)/(GB13-GB37)),ATAN((GC13-GC37)/(GB37-GB13))) ->  | GE37: =IF(GB13>GB37,(GB13-GB37)/COS(GD37),(GB37-GB13)/COS(GD37)) ->  | GO37: m1 | GP37: =ATAN((-GQ33+GQ32)/(GR32-GR33)) ->  | GQ37: m2 | GR37: =SQRT(POWER(GQ32-GQ33,2)+POWER(GR32-GR33,2)) ->  | GU37: =GU36+GT11 -> -48 | GV37: -0.837758041 | GW37: =HB13+HB10*COS(GV37) ->  | GX37: =HC13-HB10*SIN(GV37) ->  | GY37: =SQRT(POWER((HB12-GW37),2)+POWER((HC12-GX37),2)) ->  | GZ37: =ABS(HB9-GY37) ->  | HB37: =HF29 -> 0 | HC37: =HG29 -> 0 | HD37: 2 | HE37: نقطه دوم خط تقارن | HF37: مولفه افقی | HG37: مولفه عمودی | HH37: اسم نقطه | HO37: =-HK37+HP9 -> 0 | HP37: 0 | NU37: f'4 | NV37: ='متغیرها '!C860 -> 0.6 | NW37: بزرگی فلش رج | NY37: نقطه شروع انحنا | NZ37: مولفه افقی | OA37: مولفه عمودی | OB37: =NZ41 -> 23.34711538 | OC37: =OA41 -> 5.3 | OD37: =NY41 -> g4 | OF37: w'12 | OG37: =NV32 -> 42 | OH37: نسبت نقشه بافت به سایز واقعی | OJ37: نقطه شروع انحنا | OK37: مولفه افقی | OL37: مولفه عمودی | OM37: =OK41 -> 32.73653846 | ON37: =OL41 -> 5.211764706 | OO37: =OJ41 -> g4 | OQ37: w'12 | OR37: =NV32 -> 42 | OS37: نسبت نقشه بافت به سایز واقعی | OU37: نقطه شروع انحنا | OV37: مولفه افقی | OW37: مولفه عمودی | OX37: =OV41 -> 28.9224359 | OY37: =OW41 -> 5.211764706 | OZ37: =OU41 -> g4 | PB37: h3 | PC37: =NV35 -> 4.5 | PD37: طول باکس نوشته | PF37: نقطه شروع انحنا | PG37: مولفه افقی | PH37: مولفه عمودی | PI37: =PG41 -> 34.64358974 | PJ37: =PH41 -> 5.211764706 | PK37: =PF41 -> g4 | PM37: h3 | PN37: =NV35 -> 4.5 | PO37: طول باکس نوشته | PQ37: نقطه شروع انحنا | PR37: مولفه افقی | PS37: مولفه عمودی | PT37: =PR41 -> 43.41602564 | PU37: =PS41 -> 5.211764706 | PV37: =PQ41 -> g4 | PX37: =PX36-PX30+PX29 -> -48.5 | PY37: =PY36 -> 9.285714286 | PZ37: t9 | QB37: f8 | QC37: =QC34 -> -42.55 | QD37: =QD34+2*QC29 -> 7.428571429 | QE37: =QC36 -> -42.22857143 | QF37: =QD36 -> 7 | QG37: =QB36 -> f7 | QI37: =AH385 -> 53.33694048 | QJ37: =AI385 -> 124.2732205 | QK37: k''4
E38: در بالای مچ هر b12 دانه یکی کم شود | F38: =F22 -> -1 | N38: a6 | O38: =ROUND(0.4*O9,0) -> 9 | Q38: e5 | R38: =ROUND(0.28*(R34),0) -> 42 | T38: e5 | U38: =ROUND(0.35*(U34),0) -> 49 | W38: c11 | X38: =X30 -> 4 | Z38: c11 | AA38: =X38 -> 4 | AI38: 0 | AJ38: =(10/3)*((AM38/AL38)*(1/I6)-1) -> -3.333333333 | AK38: =(100/68)*((AO38/AN38)*(1/I7)-1) ->  | AL38: 13.5 | AO38: 36 | AQ38: 32 | CI38: =CI36+'طراحی همه الگوها'!U178 -> 24 | CJ38: =CJ36 -> 172.7 | CK38: j3 | CM38: =CI44 -> 14.1 | CN38: =CJ44 -> 119.6 | CO38: j10 | DA38: نوک سر تا مچ دست شبیه ساز a3 | DB38: =1.03*(SQRT(POWER(0.5*H168,2)+POWER((0.47*'متغیرها '!U85+H167*SIN('متغیرها '!B245)),2)))+'متغیرها '!U83 -> 96.56170539 | DX38: =DX36 -> 55.70515517 | DY38: =DY36 -> 95.92377164 | DZ38: s'12 | EB38: شبیه سازαk1 | EC38: =F423 -> 1.40153158 | EE38: =EC32+'طراحی همه الگوها'!U224 -> 129 | EF38: =EC33-'طراحی همه الگوها'!U226 -> 101.2 | EG38: 20 | FR38: =FO27 -> 53.85 | FS38: =FP27 -> 7 | FT38: s13 | GA38: 46 | GB38: =GB12+GE12*SIN(RADIANS(GA38)+GA14) ->  | GC38: =GC12+GE12*COS(RADIANS(GA38)+GA14) ->  | GD38: =IF(GB13>GB38,ATAN((GC13-GC38)/(GB13-GB38)),ATAN((GC13-GC38)/(GB38-GB13))) ->  | GE38: =IF(GB13>GB38,(GB13-GB38)/COS(GD38),(GB38-GB13)/COS(GD38)) ->  | GO38: نقطه خروجی بالا | GP38: s'u9 | GQ38: =GQ32-GQ34*COS(GP37) ->  | GR38: =GR32+GQ34*SIN(GP37) ->  | GU38: =GU37+GT11 -> -46 | GV38: -0.8028514559 | GW38: =HB13+HB10*COS(GV38) ->  | GX38: =HC13-HB10*SIN(GV38) ->  | GY38: =SQRT(POWER((HB12-GW38),2)+POWER((HC12-GX38),2)) ->  | GZ38: =ABS(HB9-GY38) ->  | HB38: 0 | HC38: 0 | HD38: 3 | HF38: =HB38+2*(SIN(ATAN((HB37-HB36)/(HC37-HC36)))*(HC38-HC36)+COS(ATAN((HB37-HB36)/(HC37-HC36)))*(HB36-HB38))*COS(ATAN((HB37-HB36)/(HC37-HC36))) ->  | HG38: =HC38-2*(SIN(ATAN((HB37-HB36)/(HC37-HC36)))*(HC38-HC36)+COS(ATAN((HB37-HB36)/(HC37-HC36)))*(HB36-HB38))*SIN(ATAN((HB37-HB36)/(HC37-HC36))) ->  | HH38: =HD38 -> 3 | HO38: =-HK38+HP9 -> 0 | HP38: 0 | NU38: f5 | NV38: ='متغیرها '!C861 -> 0.5 | NW38: زاویه فلش رج | NY38: w2 | NZ38: =NU49 -> 22.82211538 | OA38: =NV49 -> 5 | OB38: =NZ43 -> 23.18961538 | OC38: =OA43 -> 5.516 | OD38: =NY43 -> g6 | OF38: w11 | OG38: ='متغیرها '!C856/OG56 -> 0.4235294118 | OH38: ارتفاع هر رج | OJ38: m2 | OK38: =OF61 -> 32.21153846 | OL38: =OG61 -> 5 | OM38: =OK43 -> 32.57903846 | ON38: =OL43 -> 5.364235294 | OO38: =OJ43 -> g6 | OQ38: w11 | OR38: ='متغیرها '!C856/OR56 -> 0.4235294118 | OS38: ارتفاع هر رج | OU38: m2 | OV38: =OQ61 -> 28.3974359 | OW38: =OR61 -> 5 | OX38: =OV43 -> 28.7649359 | OY38: =OW43 -> 5.364235294 | OZ38: =OU43 -> g6 | PB38: h4 | PC38: =NV36 -> 0.5 | PD38: پهنای باکس نوشته | PF38: n2 | PG38: =PB61 -> 34.11858974 | PH38: =PC61 -> 5 | PI38: =PG43 -> 34.48608974 | PJ38: =PH43 -> 5.364235294 | PK38: =PF43 -> g6 | PM38: h4 | PN38: =NV36 -> 0.5 | PO38: پهنای باکس نوشته | PQ38: n2 | PR38: =PM61 -> 42.89102564 | PS38: =PN61 -> 5 | PT38: =PR43 -> 43.25852564 | PU38: =PS43 -> 5.364235294 | PV38: =PQ43 -> g6 | PX38: =PX37 -> -48.5 | PY38: =PY37+PY7 -> 10.71428571 | PZ38: t10 | QI38: =AH388 -> 47.20510807 | QJ38: =AI388 -> 116.5200673 | QK38: k''5 | QM38: =QI79 -> 31.07701905 | QN38: =QJ79 -> 121.9928371 | QO38: a1
E39: هر b11 رج در بافت آستین یکدانه از ابتدا و یکدانه از انتها کم شود | F39: =F19 -> 3 | N39: a10 | O39: =L30 -> 5 | Q39: e6 | R39: =R35 -> 6 | T39: e6 | U39: =U35 -> 6 | W39: خطا | X39: =IF(X34>0," ","خطا : پهنای یقه ب ب زیاد شود ") ->  | Z39: خطا | AA39: =X39 ->  | AI39: 0 | AJ39: =(10/3)*((AM39/AL39)*(1/I6)-1) -> -3.333333333 | AK39: =(100/68)*((AO39/AN39)*(1/I7)-1) ->  | AL39: 13.5 | AO39: 36 | AQ39: 33 | CI39: ='طراحی همه الگوها'!U178+'طراحی همه الگوها'!U177+CI36 -> 89.7 | CJ39: =CJ36 -> 172.7 | CK39: j5 | CM39: =CI43 -> 12 | CN39: =CJ43 -> 119.6 | CO39: j9 | DL39: محاسبات طراحی چادر 2 | DP39: =DP37 -> 86.98959014 | DQ39: =DQ37 -> 123.5015223 | DR39: s19 | DX39: =DU18 -> 66.09962485 | DY39: =DV18 -> 106.3182413 | DZ39: s'10 | EB39: (k4 →k5)شبیه ساز | EC39: =F425 -> 8.889155528 | EE39: =EC32 -> 120 | EF39: =EC33-'طراحی همه الگوها'!U225 -> 99.8 | EG39: 19 | EI39: =EE37 -> 129 | EJ39: =EF37 -> 114.5 | EK39: 18 | EQ39: j4 | ER39: =IF('متغیرها '!C25<1,'متغیرها '!C25*'متغیرها '!U59,IF('متغیرها '!C25<2,'متغیرها '!U59+('متغیرها '!C25-1)*('متغیرها '!U60-'متغیرها '!U59),IF('متغیرها '!C25<3,'متغیرها '!U60+('متغیرها '!C25-2)*(I105-'متغیرها '!U60),I105+('متغیرها '!C25-3)*(H127-H126)))) -> 0 | EX39: =EP29 -> 12 | EY39: =EQ29 -> 172.7 | EZ39: 1 | FF39: =FF13 -> 0 | FG39: =FG33-FC43 -> 204.73 | FH39: 19' | FJ39: =FJ13 -> 112.85 | FK39: =FG33 -> 216.7 | FL39: 27 | FR39: =FO30 -> 12 | FS39: =FP30 -> 7 | FT39: 2 | GA39: 48 | GB39: =GB12+GE12*SIN(RADIANS(GA39)+GA14) ->  | GC39: =GC12+GE12*COS(RADIANS(GA39)+GA14) ->  | GD39: =IF(GB13>GB39,ATAN((GC13-GC39)/(GB13-GB39)),ATAN((GC13-GC39)/(GB39-GB13))) ->  | GE39: =IF(GB13>GB39,(GB13-GB39)/COS(GD39),(GB39-GB13)/COS(GD39)) ->  | GO39: نقطه خروجی پایین | GP39: s'd8 | GQ39: =GQ40-GQ34*COS(GP37) ->  | GR39: =GR40+GQ34*SIN(GP37) ->  | GU39: =GU38+GT11 -> -44 | GV39: -0.7679448709 | GW39: =HB13+HB10*COS(GV39) ->  | GX39: =HC13-HB10*SIN(GV39) ->  | GY39: =SQRT(POWER((HB12-GW39),2)+POWER((HC12-GX39),2)) ->  | GZ39: =ABS(HB9-GY39) ->  | HB39: 0 | HC39: 0 | HD39: 4 | HF39: =HB39+2*(SIN(ATAN((HB37-HB36)/(HC37-HC36)))*(HC39-HC36)+COS(ATAN((HB37-HB36)/(HC37-HC36)))*(HB36-HB39))*COS(ATAN((HB37-HB36)/(HC37-HC36))) ->  | HG39: =HC39-2*(SIN(ATAN((HB37-HB36)/(HC37-HC36)))*(HC39-HC36)+COS(ATAN((HB37-HB36)/(HC37-HC36)))*(HB36-HB39))*SIN(ATAN((HB37-HB36)/(HC37-HC36))) ->  | HH39: =HD39 -> 4 | HO39: =-HK39+HP9 -> 0 | HP39: 0 | NV39: =O16 -> 3.333333333 | NW39: aa0 تعداد رج در یک سانت | NY39: g11 | NZ39: =NZ43+0.8*(NZ41-NZ43) -> 23.31561538 | OA39: =OA41+0.6*(OA43-OA41) -> 5.4296 | OB39: =NZ40 -> 22.82211538 | OC39: =OA40 -> 5.6 | OD39: =NY40 -> g2 | OF39: g9 | OG39: =NV34 -> 0.5 | OH39: پهنای نیم دایره | OJ39: g11 | OK39: =OK43+0.8*(OK41-OK43) -> 32.70503846 | OL39: =OL41+0.6*(OL43-OL41) -> 5.303247059 | OM39: =OK40 -> 32.21153846 | ON39: =OL40 -> 5.423529412 | OO39: =OJ40 -> g2 | OQ39: g9 | OR39: =NV34 -> 0.5 | OS39: پهنای نیم دایره | OU39: g11 | OV39: =OV43+0.8*(OV41-OV43) -> 28.8909359 | OW39: =OW41+0.6*(OW43-OW41) -> 5.303247059 | OX39: =OV40 -> 28.3974359 | OY39: =OW40 -> 5.423529412 | OZ39: =OU40 -> g2 | PB39: f'4 | PC39: =NV37 -> 0.6 | PD39: بزرگی فلش رج | PF39: g11 | PG39: =PG43+0.8*(PG41-PG43) -> 34.61208974 | PH39: =PH41+0.6*(PH43-PH41) -> 5.303247059 | PI39: =PG40 -> 34.11858974 | PJ39: =PH40 -> 5.423529412 | PK39: =PF40 -> g2 | PM39: f'4 | PN39: =NV37 -> 0.6 | PO39: بزرگی فلش رج | PQ39: g11 | PR39: =PR43+0.8*(PR41-PR43) -> 43.38452564 | PS39: =PS41+0.6*(PS43-PS41) -> 5.303247059 | PT39: =PR40 -> 42.89102564 | PU39: =PS40 -> 5.423529412 | PV39: =PQ40 -> g2 | PX39: =PX38+PX31-PX34 -> -41.5 | PY39: =PY38 -> 10.71428571 | PZ39: t11 | QE39: =PX35 -> -36.5 | QF39: =PY35 -> 5.714285714 | QG39: =PZ35 -> t7 | QK39: قرینه یقه گرد جلو | QM39: =QI66 -> 34.89998649 | QN39: =QJ66 -> 121.9928371 | QO39: 12
N40: a11 | O40: =M30 -> 2 | Q40: e7 | R40: =ROUND(S18*F12,0) -> 4 | T40: e7 | U40: =R40 -> 4 | W40: اختلاف دور یقه ب ب خیاطی با بافتنی (سانتیمتر) | X40: =ROUND((X14-X33)/X20,1) -> 10.9 | Z40: اختلاف دور یقه ب ب خیاطی با بافتنی (سانتیمتر) | AA40: =ROUND((X14-AA33)/X20,1) -> 2.5 | AI40: 0 | AJ40: =(10/3)*((AM40/AL40)*(1/I6)-1) -> -3.333333333 | AK40: =(100/68)*((AO40/AN40)*(1/I7)-1) ->  | AL40: 13.5 | AO40: 36 | AQ40: 34 | CI40: ='طراحی همه الگوها'!U179+CI36 -> 17.7 | CJ40: =CJ36 -> 172.7 | CK40: j6 | DL40: αs2 | DM40: =ATAN((DN13-DN14)/(DM14-DM13)) -> 1.279397053 | DP40: =DM29 -> 82.23833364 | DQ40: =DN29 -> 109.1684988 | DR40: s11 | EB40: زاویه خم بودن دست | EC40: =K390 -> 26.66014821 | EE40: =EC32 -> 120 | EF40: =EC33 -> 114.5 | EG40: 17 | EQ40: (9→11) | ER40: ='متغیرها '!C29*ER45+'متغیرها '!C27*'متغیرها '!U83 -> 32.10118137 | EX40: =EP30 -> 2.7 | EY40: =EQ30 -> -5 | EZ40: 3 | FJ40: =FJ13 -> 112.85 | FK40: =FK13 -> 163.8 | FL40: 28 | GA40: 50 | GB40: =GB12+GE12*SIN(RADIANS(GA40)+GA14) ->  | GC40: =GC12+GE12*COS(RADIANS(GA40)+GA14) ->  | GD40: =IF(GB13>GB40,ATAN((GC13-GC40)/(GB13-GB40)),ATAN((GC13-GC40)/(GB40-GB13))) ->  | GE40: =IF(GB13>GB40,(GB13-GB40)/COS(GD40),(GB40-GB13)/COS(GD40)) ->  | GO40: نقطه خروجی میانه | GQ40: =GQ32-GQ35*GR37*SIN(GP37)/GR36 ->  | GR40: =GR32-GQ35*GR37*COS(GP37)/GR36 ->  | GU40: =GU39+GT11 -> -42 | GV40: -0.7330382858 | GW40: =HB13+HB10*COS(GV40) ->  | GX40: =HC13-HB10*SIN(GV40) ->  | GY40: =SQRT(POWER((HB12-GW40),2)+POWER((HC12-GX40),2)) ->  | GZ40: =ABS(HB9-GY40) ->  | HB40: =HF30 -> 0 | HC40: =HG30 -> 0 | HD40: 5 | HF40: =HB40+2*(SIN(ATAN((HB37-HB36)/(HC37-HC36)))*(HC40-HC36)+COS(ATAN((HB37-HB36)/(HC37-HC36)))*(HB36-HB40))*COS(ATAN((HB37-HB36)/(HC37-HC36))) ->  | HG40: =HC40-2*(SIN(ATAN((HB37-HB36)/(HC37-HC36)))*(HC40-HC36)+COS(ATAN((HB37-HB36)/(HC37-HC36)))*(HB36-HB40))*SIN(ATAN((HB37-HB36)/(HC37-HC36))) ->  | HH40: =HD40 -> 5 | HO40: =-HK40+HP9 -> 0 | HP40: 0 | NV40: =O17 -> 4.457142857 | NW40: تعداد دانه در یک سانت ab0 | NY40: g2 | NZ40: =NZ38 -> 22.82211538 | OA40: =OA38+NZ35 -> 5.6 | OF40: h3 | OG40: =NV35 -> 4.5 | OH40: طول باکس نوشته | OJ40: g2 | OK40: =OK38 -> 32.21153846 | OL40: =OL38+OK35 -> 5.423529412 | OQ40: h3 | OR40: =NV35 -> 4.5 | OS40: طول باکس نوشته | OU40: g2 | OV40: =OV38 -> 28.3974359 | OW40: =OW38+OV35 -> 5.423529412 | PB40: f5 | PC40: =NV38 -> 0.5 | PD40: زاویه فلش رج | PF40: g2 | PG40: =PG38 -> 34.11858974 | PH40: =PH38+PG35 -> 5.423529412 | PM40: f5 | PN40: =NV38 -> 0.5 | PO40: زاویه فلش رج | PQ40: g2 | PR40: =PR38 -> 42.89102564 | PS40: =PS38+PR35 -> 5.423529412 | PX40: =PX36 -> -45 | PY40: =PY38 -> 10.71428571 | PZ40: t12 | QI40: =HX179 -> 3.989143651 | QJ40: 145.770561 | QK40: 25
E41: تقسیم بندی بالاتنه | F41: تعداد دانه ها (بافت جودانه یا ساده) | G41: تعداد دانه ها (بافت انتخابی) | N41: a25 | O41: =ROUNDUP(IF((O13-2*F12)<0.1,I16*(O13),I16*2*F12+I22*(O13-2*F12)),0) -> 4 | Q41: e8 | R41: =2*R40-4 -> 4 | T41: e8 | U41: 4 | AI41: 0 | AJ41: =(10/3)*((AM41/AL41)*(1/I6)-1) -> -3.333333333 | AK41: =(100/68)*((AO41/AN41)*(1/I7)-1) ->  | AL41: 13.5 | AO41: 36 | AQ41: 35 | CI41: =CI36 -> 12 | CJ41: =CJ42 -> 156.7 | CK41: j7 | CM41: =CI43 -> 12 | CN41: =CJ43 -> 119.6 | CO41: j9 | DL41: (s2 →s3) | DM41: =SQRT(POWER((DM14-DM13),2)+POWER((DN13-DN14),2)) -> 6.406857601 | DX41: =DU23 -> 87.6 | DY41: =DV23 -> 7 | DZ41: s'13 | EB41: دست خمیده شبیه ساز k4 | EC41: =K384 -> 72.46358588 | ED41: =L384 -> 99.95428029 | EQ41: (8→9) | ER41: =ER37+'متغیرها '!C29*ER45*COS(ER46-RADIANS(45)+ER42)-EQ31 -> 104.0768337 | FR41: =FR39 -> 12 | FS41: =FS39 -> 7 | FT41: 2 | GA41: 52 | GB41: =GB12+GE12*SIN(RADIANS(GA41)+GA14) ->  | GC41: =GC12+GE12*COS(RADIANS(GA41)+GA14) ->  | GD41: =IF(GB13>GB41,ATAN((GC13-GC41)/(GB13-GB41)),ATAN((GC13-GC41)/(GB41-GB13))) ->  | GE41: =IF(GB13>GB41,(GB13-GB41)/COS(GD41),(GB41-GB13)/COS(GD41)) ->  | GU41: =GU40+GT11 -> -40 | GV41: -0.6981317008 | GW41: =HB13+HB10*COS(GV41) ->  | GX41: =HC13-HB10*SIN(GV41) ->  | GY41: =SQRT(POWER((HB12-GW41),2)+POWER((HC12-GX41),2)) ->  | GZ41: =ABS(HB9-GY41) ->  | HO41: =-HK41+HP9 -> 0 | HP41: 0 | NV41: =I16 -> 1.875 | NW41: تعداد دانه در یک سانت جادکمه | NY41: g4 | NZ41: =NZ38+NZ36*NZ34/40 -> 23.34711538 | OA41: =OA38+0.5*NZ35 -> 5.3 | OB41: =NZ45 -> 23.12249961 | OC41: =OA45 -> 5.267704057 | OD41: =NY45 -> g8 | OF41: h4 | OG41: =NV36 -> 0.5 | OH41: پهنای باکس نوشته | OJ41: g4 | OK41: =OK38+OK36*OK34/40 -> 32.73653846 | OL41: =OL38+0.5*OK35 -> 5.211764706 | OM41: =OK45 -> 32.5553377 | ON41: =OL45 -> 5.207164734 | OO41: =OJ45 -> g8 | OQ41: h4 | OR41: =NV36 -> 0.5 | OS41: پهنای باکس نوشته | OU41: g4 | OV41: =OV38+OV36*OV34/40 -> 28.9224359 | OW41: =OW38+0.5*OV35 -> 5.211764706 | OX41: =OV45 -> 28.74123513 | OY41: =OW45 -> 5.207164734 | OZ41: =OU45 -> g8 | PB41: f9 | PC41: =OG44 -> 0.3 | PD41: بزرگی خط عمودی دانه | PF41: g4 | PG41: =PG38+PG36*PG34/40 -> 34.64358974 | PH41: =PH38+0.5*PG35 -> 5.211764706 | PI41: =PG45 -> 34.46238898 | PJ41: =PH45 -> 5.207164734 | PK41: =PF45 -> g8 | PM41: f9 | PN41: =OG44 -> 0.3 | PO41: بزرگی خط عمودی دانه | PQ41: g4 | PR41: =PR38+PR36*PR34/40 -> 43.41602564 | PS41: =PS38+0.5*PR35 -> 5.211764706 | PT41: =PR45 -> 43.23482488 | PU41: =PS45 -> 5.207164734 | PV41: =PQ45 -> g8 | PX41: =PX37+2/PY15 -> -47.45 | PY41: =PY37 -> 9.285714286 | PZ41: t13 | QE41: =PX36 -> -45 | QF41: 9.285714286 | QG41: t8 | QI41: 5.591314921 | QJ41: 140.4999665 | QK41: 30 | QM41: =QI78 -> 13.589985 | QN41: =QJ78 -> 135.2293721 | QO41: 26''
E42: b6 کل پهنای جادکمه | F42: =2*F25 -> 10 | G42: =ROUNDUP(I16*(2*F12),0) -> 6 | N42: خطا | O42: =IF((ROUND(0.6*O9,0)-6)<0," خطا : قد پشت یقه زیاد شود "," ") ->  | Q42: e9 | R42: =IF((ROUNDUP(S12*S17*S9,0)-R40-R41-3)>-1,ROUNDUP(S12*S17*S9,0)-R40-R41-3,"خطا") -> 2 | T42: e9 | U42: 2 | AI42: 0 | AJ42: =(10/3)*((AM42/AL42)*(1/I6)-1) -> -3.333333333 | AK42: =(100/68)*((AO42/AN42)*(1/I7)-1) ->  | AL42: 13.5 | AO42: 36 | AQ42: 36 | CI42: ='طراحی همه الگوها'!U181+CI36 -> 14.1 | CJ42: =CJ36-'طراحی همه الگوها'!U180 -> 156.7 | CK42: j8 | CM42: =CI41 -> 12 | CN42: =CJ41 -> 156.7 | CO42: j7 | DL42: (s2 →s14) | DM42: =DM41*2*('متغیرها '!C10-0.5) -> 6.406857601 | DP42: =DP40 -> 82.23833364 | DQ42: =DQ40 -> 109.1684988 | DR42: s11 | DX42: =DU30 -> 12 | DY42: =DV30 -> 7 | DZ42: 2' | EQ42: α2 | ER42: ='متغیرها '!B245 -> 0.3200907981 | EX42: =ET28 -> 43 | EY42: =EU28 -> 77.725 | EZ42: 15 | FB42: j4 | FC42: =IF('متغیرها '!C37<1,'متغیرها '!C37*'متغیرها '!U59,IF('متغیرها '!C37<2,'متغیرها '!U59+('متغیرها '!C37-1)*('متغیرها '!U60-'متغیرها '!U59),IF('متغیرها '!C37<3,'متغیرها '!U60+('متغیرها '!C37-2)*(I105-'متغیرها '!U60),I105+('متغیرها '!C37-3)*(H127-H126)))) -> 0 | FR42: =FO31 -> 12 | FS42: =FP31 -> 107.5270608 | FT42: s''12 | GA42: 54 | GB42: =GB12+GE12*SIN(RADIANS(GA42)+GA14) ->  | GC42: =GC12+GE12*COS(RADIANS(GA42)+GA14) ->  | GD42: =IF(GB13>GB42,ATAN((GC13-GC42)/(GB13-GB42)),ATAN((GC13-GC42)/(GB42-GB13))) ->  | GE42: =IF(GB13>GB42,(GB13-GB42)/COS(GD42),(GB42-GB13)/COS(GD42)) ->  | GU42: =GU41+GT11 -> -38 | GV42: -0.6632251158 | GW42: =HB13+HB10*COS(GV42) ->  | GX42: =HC13-HB10*SIN(GV42) ->  | GY42: =SQRT(POWER((HB12-GW42),2)+POWER((HC12-GX42),2)) ->  | GZ42: =ABS(HB9-GY42) ->  | HE42: یافتن راس سوم مثلث با داشتن دو راس و یک ضلع و یک زاویه | HO42: =-HK42+HP9 -> 0 | HP42: =HL42 -> 0 | NV42: =IF(NV43<11," مخصوص ",F8) -> 2 | NW42: انتخاب ضخامت میل بافتنی f1 | NY42: g5 | NZ42: =NZ38+0.7*(NZ41-NZ38) -> 23.18961538 | OA42: =OA38+0.28*(OA41-OA38) -> 5.084 | OB42: =NZ39 -> 23.31561538 | OC42: =OA39 -> 5.4296 | OD42: =NY39 -> g11 | OF42: f'4 | OG42: =NV37 -> 0.6 | OH42: بزرگی فلش رج | OJ42: g5 | OK42: =OK38+0.7*(OK41-OK38) -> 32.57903846 | OL42: =OL38+0.28*(OL41-OL38) -> 5.059294118 | OM42: =OK39 -> 32.70503846 | ON42: =OL39 -> 5.303247059 | OO42: =OJ39 -> g11 | OQ42: f'4 | OR42: =NV37 -> 0.6 | OS42: بزرگی فلش رج | OU42: g5 | OV42: =OV38+0.7*(OV41-OV38) -> 28.7649359 | OW42: =OW38+0.28*(OW41-OW38) -> 5.059294118 | OX42: =OV39 -> 28.8909359 | OY42: =OW39 -> 5.303247059 | OZ42: =OU39 -> g11 | PB42: f10 | PC42: =OG45 -> 0.5 | PD42: بزرگی فلش دانه | PF42: g5 | PG42: =PG38+0.7*(PG41-PG38) -> 34.48608974 | PH42: =PH38+0.28*(PH41-PH38) -> 5.059294118 | PI42: =PG39 -> 34.61208974 | PJ42: =PH39 -> 5.303247059 | PK42: =PF39 -> g11 | PM42: f10 | PN42: =OG45 -> 0.5 | PO42: بزرگی فلش دانه | PQ42: g5 | PR42: =PR38+0.7*(PR41-PR38) -> 43.25852564 | PS42: =PS38+0.28*(PS41-PS38) -> 5.059294118 | PT42: =PR39 -> 43.38452564 | PU42: =PS39 -> 5.303247059 | PV42: =PQ39 -> g11 | PX42: =PX35 -> -36.5 | PY42: =PY36+0.5*PY7 -> 10 | PZ42: t14 | QE42: -48.5 | QF42: 9.285714286 | QG42: t9 | QI42: 8.79565746 | QJ42: 136.283491 | QK42: 28 | QM42: =QI77 -> 13.589985 | QN42: =QJ77 -> 52.7 | QO42: 1''
E43: b3 جلو بدون جادکمه بین خط رگلان و خط مرکزی جلو که نیمه جادکمه از آن کم شود | F43: =ROUNDUP(F7*(SQRT(POWER(AX129-AX131,2)+POWER(AX130,2))+SQRT(POWER(AX131-AX133,2)+POWER(AX132-AX130,2))),0)-F25 -> 18 | G43: =ROUNDUP(I22*((SQRT(POWER(AX129-AX131,2)+POWER(AX130,2))+SQRT(POWER(AX131-AX133,2)+POWER(AX132-AX130,2)))-F12),0) -> 14 | N43: a22 خطا | O43: =ROUNDDOWN(O33-(O33/O39)*(O39-O40)-(G46-2*O41),0) -> -2 | Q43: e10 | R43: =Q31 -> 6 | T43: e10 | U43: 6 | AI43: 0 | AJ43: =(10/3)*((AM43/AL43)*(1/I6)-1) -> -3.333333333 | AK43: =(100/68)*((AO43/AN43)*(1/I7)-1) ->  | AL43: 13.5 | AO43: 36 | AQ43: 37 | CI43: =CI36 -> 12 | CJ43: =CJ44 -> 119.6 | CK43: j9 | CO43: انحنا | DL43: شیفت افقی کل | DM43: ='متغیرها '!C51 -> 12 | DP43: =DM28 -> 63.89189987 | DQ43: =DN28 -> 112.3003302 | DR43: s12 | EQ43: شیفت افقی مرغک | ER43: ='متغیرها '!C33*0.5*('متغیرها '!U72-'متغیرها '!U73) -> 43 | EX43: =ET32 -> 50.5 | EY43: =EU32 -> 100.425 | EZ43: 18 | FB43: (14 →19') | FC43: =DM47+0.1*'متغیرها '!C40 -> 11.97 | FF43: رسم چادر شماره 5 برای پرینت | GA43: 56 | GB43: =GB12+GE12*SIN(RADIANS(GA43)+GA14) ->  | GC43: =GC12+GE12*COS(RADIANS(GA43)+GA14) ->  | GD43: =IF(GB13>GB43,ATAN((GC13-GC43)/(GB13-GB43)),ATAN((GC13-GC43)/(GB43-GB13))) ->  | GE43: =IF(GB13>GB43,(GB13-GB43)/COS(GD43),(GB43-GB13)/COS(GD43)) ->  | GU43: =GU42+GT11 -> -36 | GV43: -0.6283185307 | GW43: =HB13+HB10*COS(GV43) ->  | GX43: =HC13-HB10*SIN(GV43) ->  | GY43: =SQRT(POWER((HB12-GW43),2)+POWER((HC12-GX43),2)) ->  | GZ43: =ABS(HB9-GY43) ->  | HB43: اطلاعات ورودی | HO43: =-HK43+HP9 -> 0 | HP43: 0 | NU43: =O22 -> کشباف (دوتایی) | NV43: =O21 -> 14 | NW43: بافت انتخابی یقه شکاری | NY43: g6 | NZ43: =NZ42 -> 23.18961538 | OA43: =OA40-OA42+OA38 -> 5.516 | OF43: f5 | OG43: =NV38 -> 0.5 | OH43: زاویه فلش رج | OJ43: g6 | OK43: =OK42 -> 32.57903846 | OL43: =OL40-OL42+OL38 -> 5.364235294 | OQ43: f5 | OR43: =NV38 -> 0.5 | OS43: زاویه فلش رج | OU43: g6 | OV43: =OV42 -> 28.7649359 | OW43: =OW40-OW42+OW38 -> 5.364235294 | PB43: f11 | PC43: =OG46 -> 0.75 | PD43: زاویه فلش دانه | PF43: g6 | PG43: =PG42 -> 34.48608974 | PH43: =PH40-PH42+PH38 -> 5.364235294 | PM43: f11 | PN43: =OG46 -> 0.75 | PO43: زاویه فلش دانه | PQ43: g6 | PR43: =PR42 -> 43.25852564 | PS43: =PS40-PS42+PS38 -> 5.364235294 | PX43: =PX37 -> -48.5 | PY43: =PY38+PY36-PY29 -> 15 | PZ43: t15 | QB43: نسبت سایز افقی | QC43: =PY17 -> 42 | QD43: انحنا راستگرد | QG43: =QD43 -> انحنا راستگرد | QI43: 12 | QJ43: 135.2293721 | QK43: 26
E44: b4 آستین | F44: =ROUNDDOWN(F7*(DE534+DE535),0) -> 20 | G44: =ROUNDDOWN(I34*(DE534+DE535),0) -> 15 | Q44: e11 | R44: =R31 -> 4 | T44: e11 | U44: 4 | AI44: =AM44/AL44 -> 0 | AJ44: =(10/3)*((AM44/AL44)*(1/I6)-1) -> -3.333333333 | AK44: =(100/68)*((AO44/AN44)*(1/I7)-1) ->  | AL44: 13.5 | AO44: 36 | AQ44: 38 | CI44: =CI42 -> 14.1 | CJ44: =CJ41-'طراحی همه الگوها'!U182 -> 119.6 | CK44: j10 | CM44: =CI39 -> 89.7 | CN44: =CJ39 -> 172.7 | CO44: j5 | DL44: شیفت عمودی کل | DM44: ='متغیرها '!C52 -> 7 | DX44: =DX42 -> 12 | DY44: =DY42 -> 7 | DZ44: 2' | EQ44: شیفت عمودی مرغک | ER44: =IF('متغیرها '!C34<1,'متغیرها '!C34*'متغیرها '!U59,IF('متغیرها '!C34<2,'متغیرها '!U59+('متغیرها '!C34-1)*('متغیرها '!U60-'متغیرها '!U59),IF('متغیرها '!C34<3,'متغیرها '!U60+('متغیرها '!C34-2)*(I105-'متغیرها '!U60),I105+('متغیرها '!C34-3)*(H127-H126))))+'طراحی همه الگوها'!U245 -> 77.725 | FB44: شیفت عمودی الگو دسته | FC44: 7 | FG44: صاف | FH44: برای پرینت | FK44: انحنا | FL44: برای پرینت | FR44: =FR42 -> 12 | FS44: =FS42 -> 107.5270608 | FT44: s''12 | GA44: 58 | GB44: =GB12+GE12*SIN(RADIANS(GA44)+GA14) ->  | GC44: =GC12+GE12*COS(RADIANS(GA44)+GA14) ->  | GD44: =IF(GB13>GB44,ATAN((GC13-GC44)/(GB13-GB44)),ATAN((GC13-GC44)/(GB44-GB13))) ->  | GE44: =IF(GB13>GB44,(GB13-GB44)/COS(GD44),(GB44-GB13)/COS(GD44)) ->  | GU44: =GU43+GT11 -> -34 | GV44: -0.5934119457 | GW44: =HB13+HB10*COS(GV44) ->  | GX44: =HC13-HB10*SIN(GV44) ->  | GY44: =SQRT(POWER((HB12-GW44),2)+POWER((HC12-GX44),2)) ->  | GZ44: =ABS(HB9-GY44) ->  | HB44: مولفه افقی | HC44: مولفه عمودی | HD44: اسم نقطه | HF44: محاسبات | HO44: =-HK44+HP9 -> 0 | HP44: 0 | NU44: محاسبات | NY44: g7 | NZ44: =NZ39+0.7*OA36*SIN(RADIANS(30)+2*ATAN((NZ39-NZ42)/(OA39-OA42+0.0001))) -> 23.55249509 | OA44: =OA39-0.7*OA36*COS(RADIANS(30)+2*ATAN((NZ39-NZ42)/(OA39-OA42+0.0001))) -> 5.343623219 | OB44: =NZ39 -> 23.31561538 | OC44: =OA39 -> 5.4296 | OD44: =NY39 -> g11 | OF44: f9 | OG44: ='متغیرها '!C862 -> 0.3 | OH44: بزرگی خط عمودی دانه | OJ44: g7 | OK44: =OK39+0.7*OL36*SIN(RADIANS(30)+2*ATAN((OK39-OK42)/(OL39-OL42+0.0001))) -> 32.88213514 | OL44: =OL39-0.7*OL36*COS(RADIANS(30)+2*ATAN((OK39-OK42)/(OL39-OL42+0.0001))) -> 5.286546825 | OM44: =OK39 -> 32.70503846 | ON44: =OL39 -> 5.303247059 | OO44: =OJ39 -> g11 | OQ44: f9 | OR44: ='متغیرها '!C862 -> 0.3 | OS44: بزرگی خط عمودی دانه | OU44: g7 | OV44: =OV39+0.7*OW36*SIN(RADIANS(30)+2*ATAN((OV39-OV42)/(OW39-OW42+0.0001))) -> 29.06803258 | OW44: =OW39-0.7*OW36*COS(RADIANS(30)+2*ATAN((OV39-OV42)/(OW39-OW42+0.0001))) -> 5.286546825 | OX44: =OV39 -> 28.8909359 | OY44: =OW39 -> 5.303247059 | OZ44: =OU39 -> g11 | PF44: g7 | PG44: =PG39+0.7*PH36*SIN(RADIANS(30)+2*ATAN((PG39-PG42)/(PH39-PH42+0.0001))) -> 34.78918642 | PH44: =PH39-0.7*PH36*COS(RADIANS(30)+2*ATAN((PG39-PG42)/(PH39-PH42+0.0001))) -> 5.286546825 | PI44: =PG39 -> 34.61208974 | PJ44: =PH39 -> 5.303247059 | PK44: =PF39 -> g11 | PQ44: g7 | PR44: =PR39+0.7*PS36*SIN(RADIANS(30)+2*ATAN((PR39-PR42)/(PS39-PS42+0.0001))) -> 43.56162232 | PS44: =PS39-0.7*PS36*COS(RADIANS(30)+2*ATAN((PR39-PR42)/(PS39-PS42+0.0001))) -> 5.286546825 | PT44: =PR39 -> 43.38452564 | PU44: =PS39 -> 5.303247059 | PV44: =PQ39 -> g11 | PX44: =PX30 -> -41.5 | PY44: =PY43 -> 15 | PZ44: t16 | QB44: ارتفاع نیم دایره | QC44: =PY14 -> 1.428571429 | QD44: بزرگی فلش | QE44: =QC47 -> -48.5 | QF44: =QD47 -> 9.285714286 | QG44: =QB47 -> t9 | QJ44: پشت | QM44: =QI61 -> 20.01085635 | QN44: =QJ61 -> 145.770561 | QO44: 25
E45: b5 پشت | F45: =ROUNDDOWN(F7*2*(SQRT(POWER(BI128-BI130,2)+POWER(BI129,2))+SQRT(POWER(BI130-BI132,2)+POWER(BI131-BI129,2))),0) -> 31 | G45: =ROUNDDOWN(I28*2*(SQRT(POWER(BI128-BI130,2)+POWER(BI129,2))+SQRT(POWER(BI130-BI132,2)+POWER(BI131-BI129,2))),0) -> 22 | Q45: خطا | R45: =IF((ROUNDUP(S12*S17*S9,0)-R40-R41-3)>-1," ","خطا : قد پایه یقه شومیزیه زیاد شود یا پهنای جادکمه جلو کم شود") ->  | T45: خطا | AI45: 0 | AJ45: =(10/3)*((AM45/AL45)*(1/I6)-1) -> -3.333333333 | AK45: =(100/68)*((AO45/AN45)*(1/I7)-1) ->  | AL45: 13.5 | AO45: 36 | AQ45: 39 | CI45: =CI38+'طراحی همه الگوها'!U183 -> 34.3 | CJ45: =CJ36 -> 172.7 | CK45: j11 | CM45: =CI48 -> 87.729 | CN45: 158.246 | CO45: j5' | DL45: j4 | DM45: =IF('متغیرها '!C9<1,'متغیرها '!C9*'متغیرها '!U59,IF('متغیرها '!C9<2,'متغیرها '!U59+('متغیرها '!C9-1)*('متغیرها '!U60-'متغیرها '!U59),IF('متغیرها '!C9<3,'متغیرها '!U60+('متغیرها '!C9-2)*(I105-'متغیرها '!U60),I105+('متغیرها '!C9-3)*(H127-H126)))) -> 0 | DN45: چادر 2 | DP45: =DP43 -> 63.89189987 | DQ45: =DQ43 -> 112.3003302 | DR45: s12 | DX45: =DM15 -> 12 | DY45: =DN15 -> 123.7 | DZ45: خط سینه | EQ45: شبیه ساز آستین(3→19) | ER45: =BL516 -> 45.85883052 | EX45: =ET34 -> 58 | EY45: =EU34 -> 77.725 | EZ45: 17 | FB45: شیفت عمودی الگو دسته برای پرینت | FC45: =-'متغیرها '!U56 -> -99.9 | FF45: =FF13+'طراحی همه الگوها'!U260+'طراحی همه الگوها'!U262 -> 94.1 | FG45: =FG25+FC45 -> 4 | FH45: 13 | FJ45: =FF45 -> 94.1 | FK45: =FG45 -> 4 | FL45: 13 | FR45: =FO32 -> 12 | FS45: =FP32 -> 111.5270608 | FT45: s'12 | GA45: 60 | GB45: =GB12+GE12*SIN(RADIANS(GA45)+GA14) ->  | GC45: =GC12+GE12*COS(RADIANS(GA45)+GA14) ->  | GD45: =IF(GB13>GB45,ATAN((GC13-GC45)/(GB13-GB45)),ATAN((GC13-GC45)/(GB45-GB13))) ->  | GE45: =IF(GB13>GB45,(GB13-GB45)/COS(GD45),(GB45-GB13)/COS(GD45)) ->  | GU45: =GU44+GT11 -> -32 | GV45: -0.5585053606 | GW45: =HB13+HB10*COS(GV45) ->  | GX45: =HC13-HB10*SIN(GV45) ->  | GY45: =SQRT(POWER((HB12-GW45),2)+POWER((HC12-GX45),2)) ->  | GZ45: =ABS(HB9-GY45) ->  | HB45: 5 | HC45: 50 | HD45: 1 | HE45: راس بالا | HF45: =SQRT(POWER(HB46-HB45,2)+POWER(HC45-HC46,2)) -> 10.19803903 | HG45: m2 | HO45: =-HK45+HP9 -> 0 | HP45: 0 | NU45: g3 | NV45: =NV33 -> 0.6 | NW45: ارتفاع نیم دایره | NY45: g8 | NZ45: =NZ39-0.7*OA36*SIN(RADIANS(30)+ATAN((NZ39-NZ42)/(OA39-OA42+0.0001))) -> 23.12249961 | OA45: =OA39-0.7*OA36*COS(RADIANS(30)+ATAN((NZ39-NZ42)/(OA39-OA42+0.0001))) -> 5.267704057 | OB45: =NZ44 -> 23.55249509 | OC45: =OA44 -> 5.343623219 | OD45: =NY44 -> g7 | OF45: f10 | OG45: ='متغیرها '!C863 -> 0.5 | OH45: بزرگی فلش دانه | OJ45: g8 | OK45: =OK39-0.7*OL36*SIN(RADIANS(30)+ATAN((OK39-OK42)/(OL39-OL42+0.0001))) -> 32.5553377 | OL45: =OL39-0.7*OL36*COS(RADIANS(30)+ATAN((OK39-OK42)/(OL39-OL42+0.0001))) -> 5.207164734 | OM45: =OK44 -> 32.88213514 | ON45: =OL44 -> 5.286546825 | OO45: =OJ44 -> g7 | OQ45: f10 | OR45: ='متغیرها '!C863 -> 0.5 | OS45: بزرگی فلش دانه | OU45: g8 | OV45: =OV39-0.7*OW36*SIN(RADIANS(30)+ATAN((OV39-OV42)/(OW39-OW42+0.0001))) -> 28.74123513 | OW45: =OW39-0.7*OW36*COS(RADIANS(30)+ATAN((OV39-OV42)/(OW39-OW42+0.0001))) -> 5.207164734 | OX45: =OV44 -> 29.06803258 | OY45: =OW44 -> 5.286546825 | OZ45: =OU44 -> g7 | PB45: محاسبات | PF45: g8 | PG45: =PG39-0.7*PH36*SIN(RADIANS(30)+ATAN((PG39-PG42)/(PH39-PH42+0.0001))) -> 34.46238898 | PH45: =PH39-0.7*PH36*COS(RADIANS(30)+ATAN((PG39-PG42)/(PH39-PH42+0.0001))) -> 5.207164734 | PI45: =PG44 -> 34.78918642 | PJ45: =PH44 -> 5.286546825 | PK45: =PF44 -> g7 | PM45: محاسبات | PQ45: g8 | PR45: =PR39-0.7*PS36*SIN(RADIANS(30)+ATAN((PR39-PR42)/(PS39-PS42+0.0001))) -> 43.23482488 | PS45: =PS39-0.7*PS36*COS(RADIANS(30)+ATAN((PR39-PR42)/(PS39-PS42+0.0001))) -> 5.207164734 | PT45: =PR44 -> 43.56162232 | PU45: =PS44 -> 5.286546825 | PV45: =PQ44 -> g7 | PX45: =PX29 -> -45 | PY45: =PY43 -> 15 | PZ45: t17 | QB45: پهنای نیم دایره | QC45: =PY8 -> 0.5 | QD45: =PY16 -> 0.5714285714 | QE45: =QC51 -> -48.8675 | QF45: =QD51 -> 9.485714286 | QG45: =QB51 -> g5 | QI45: =CY105 -> -8.738738779 | QJ45: =CZ105 -> 130.2826546 | QK45: 16fقرینه شیفت | QM45: =QI82 -> 18.00834295 | QN45: 144.2065643 | QO45: 28پ
E46: تعداد دانه ها دور گردن + دو تا نیمه جادکمه که از خط مرکزی اضافه شده | F46: =F45+2*F44+2*F43+2*F42 -> 127 | G46: =G45+2*G44+2*G43+2*G42 -> 92 | H46: b''1 | Q46: خطا | R46: =IF(R42>0," ","خطا : قد پایه یقه شومیزیه زیاد شود ") ->  | T46: خطا | AI46: 0 | AJ46: =(10/3)*((AM46/AL46)*(1/I6)-1) -> -3.333333333 | AK46: =(100/68)*((AO46/AN46)*(1/I7)-1) ->  | AL46: 13.5 | AO46: 36 | AQ46: 40 | CI46: =CI38 -> 24 | CJ46: =CJ36-'طراحی همه الگوها'!U184 -> 164.1 | CK46: j12 | CM46: 79.845 | CN46: 139.85 | CO46: j5'' | DL46: (j1 → j2) | DM46: =ROUND(CJ22+0.1*'متغیرها '!U85-DM45,1) -> 165.7 | DP46: =DM27 -> 69.52418406 | DQ46: =DN27 -> 129.2911328 | DR46: s10 | EQ46: شبیه سازαk1 | ER46: =F423 -> 1.40153158 | EX46: =ET30 -> 50.5 | EY46: =EU30 -> 55.025 | EZ46: 19 | FF46: =FF13 -> 0 | FG46: =FG45 -> 4 | FH46: 12 | FJ46: =FJ45+0.45*(FJ49-FJ45) -> 105.35 | FK46: =FK45+0.25*(FK49-FK45) -> 30.45 | FL46: 13' | GA46: 62 | GB46: =GB12+GE12*SIN(RADIANS(GA46)+GA14) ->  | GC46: =GC12+GE12*COS(RADIANS(GA46)+GA14) ->  | GD46: =IF(GB13>GB46,ATAN((GC13-GC46)/(GB13-GB46)),ATAN((GC13-GC46)/(GB46-GB13))) ->  | GE46: =IF(GB13>GB46,(GB13-GB46)/COS(GD46),(GB46-GB13)/COS(GD46)) ->  | GU46: =GU45+GT11 -> -30 | GV46: -0.5235987756 | GW46: =HB13+HB10*COS(GV46) ->  | GX46: =HC13-HB10*SIN(GV46) ->  | GY46: =SQRT(POWER((HB12-GW46),2)+POWER((HC12-GX46),2)) ->  | GZ46: =ABS(HB9-GY46) ->  | HB46: 7 | HC46: 40 | HD46: 2 | HE46: راس پایین | HF46: =ATAN((HB46-HB45)/(HC45-HC46)) -> 0.1973955598 | HG46: γ18 | HO46: =-HK46+HP9 -> 0 | HP46: 0 | NU46: w12 | NV46: =O17*40/NV32 -> 4.244897959 | NW46: ضریب کاهش تعداد دانه ها | OF46: f11 | OG46: ='متغیرها '!C864 -> 0.75 | OH46: زاویه فلش دانه | OQ46: f11 | OR46: ='متغیرها '!C864 -> 0.75 | OS46: زاویه فلش دانه | PB46: g3 | PC46: =PC35 -> 0.4235294118 | PD46: ارتفاع نیم دایره | PM46: g3 | PN46: =PN35 -> 0.4235294118 | PO46: ارتفاع نیم دایره | PX46: =PX30+4 -> -37.5 | PY46: =PY43 -> 15 | PZ46: t18 | QB46: نقطه شروع انحنا | QC46: مولفه افقی | QD46: مولفه عمودی | QE46: =QC50 -> -49.025 | QF46: =QD50 -> 10 | QG46: =QB50 -> g4 | QK46: یقه گرد پشت | QM46: 15.20482419 | QN46: 143.4245659 | QO46: 26پ
AI47: 0 | AJ47: =(10/3)*((AM47/AL47)*(1/I6)-1) -> -3.333333333 | AK47: =(100/68)*((AO47/AN47)*(1/I7)-1) ->  | AL47: 13.5 | AO47: 36 | AQ47: 41 | CI47: =CI38 -> 24 | CJ47: =CJ37 -> 107 | CK47: j13 | CM47: 63.42 | CN47: 122.111 | CO47: j5''' | DL47: (j1 → j3) | DM47: =0.21*CJ16 -> 11.97 | DN47: بدون انتخاب | FF47: =FF13 -> 0 | FG47: =FG46+'طراحی همه الگوها'!U258 -> 18 | FH47: 18 | FJ47: =FJ45+0.75*(FJ49-FJ45) -> 112.85 | FK47: =FK45+0.5*(FK49-FK45) -> 56.9 | FL47: 13'' | FR47: =FR45 -> 12 | FS47: =FS45 -> 111.5270608 | FT47: s'12 | GA47: 64 | GB47: =GB12+GE12*SIN(RADIANS(GA47)+GA14) ->  | GC47: =GC12+GE12*COS(RADIANS(GA47)+GA14) ->  | GD47: =IF(GB13>GB47,ATAN((GC13-GC47)/(GB13-GB47)),ATAN((GC13-GC47)/(GB47-GB13))) ->  | GE47: =IF(GB13>GB47,(GB13-GB47)/COS(GD47),(GB47-GB13)/COS(GD47)) ->  | GU47: =GU46+GT11 -> -28 | GV47: -0.4886921906 | GW47: =HB13+HB10*COS(GV47) ->  | GX47: =HC13-HB10*SIN(GV47) ->  | GY47: =SQRT(POWER((HB12-GW47),2)+POWER((HC12-GX47),2)) ->  | GZ47: =ABS(HB9-GY47) ->  | HB47: 10 | HC47: m4 | HD47: ضلع بالا | HF47: =RADIANS(90)-RADIANS(HF46)-HB48 -> 1.829150512 | HG47: m5 | HO47: =-HK47+HP9 -> 0 | HP47: 0 | NU47: f4 | NV47: =NV37*NV33 -> 0.36 | NW47: بزرگی فلش رج | OA47: باکس نوشته a2 | OD47: =OA47 -> باکس نوشته a2 | OM47: =OF63 -> 32.21153846 | ON47: =OG63 -> 5.423529412 | OO47: m4 | OX47: =OQ63 -> 28.3974359 | OY47: =OR63 -> 5.423529412 | OZ47: m4 | PB47: n0 | PC47: =PB17*40/PC34 -> 2.621848739 | PD47: ضریب کاهش تعداد دانه ها | PI47: =PB63 -> 34.11858974 | PJ47: =PC63 -> 5.423529412 | PK47: n4 | PM47: n0 | PN47: =PM17*40/PN34 -> 2.621848739 | PO47: ضریب کاهش تعداد دانه ها | PT47: =PM63 -> 42.89102564 | PU47: =PN63 -> 5.423529412 | PV47: n4 | PX47: =PX43 -> -48.5 | PY47: =PY43+PY36-PY29 -> 19.28571429 | PZ47: t19 | QB47: =PZ37 -> t9 | QC47: =PX37 -> -48.5 | QD47: =PY37 -> 9.285714286 | QE47: =QC52 -> -48.8675 | QF47: =QD52 -> 10.51428571 | QG47: =QB52 -> g6 | QI47: =GL101 -> 18.01005361 | QJ47: 150.5676661 | QK47: 23پ | QM47: 12.00080274 | QN47: 143.1638998 | QO47: 24پ
AI48: 0 | AJ48: =(10/3)*((AM48/AL48)*(1/I6)-1) -> -3.333333333 | AK48: =(100/68)*((AO48/AN48)*(1/I7)-1) ->  | AL48: 13.5 | AO48: 36 | AQ48: 42 | CI48: =CI47+0.97*(CI39-CI47) -> 87.729 | CJ48: =CJ47+0.78*(CJ39-CJ47) -> 158.246 | CK48: j5' | CM48: 40.425 | CN48: 109.628 | CO48: j5'''' | DP48: =DM30 -> 82.8 | DQ48: =DN30 -> 7 | DR48: s13 | EX48: =ET28 -> 43 | EY48: =EU28 -> 77.725 | EZ48: 15 | FF48: =FF13 -> 0 | FG48: =FG47+'طراحی همه الگوها'!U259 -> 109.8 | FH48: 14 | FJ48: =FJ45+0.95*(FJ49-FJ45) -> 117.85 | FK48: =FK45+0.8*(FK49-FK45) -> 88.64 | FL48: 13''' | FR48: =FO23 -> 32.6275 | FS48: =FP23 -> 111.5270608 | FT48: s12 | GA48: بهینه α | GB48: =IF(GE13<GE16,GA16,IF(GE13<GE17,GA17,IF(GE13<GE18,GA18,IF(GE13<GE19,GA19,IF(GE13<GE20,GA20,IF(GE13<GE21,GA21,IF(GE13<GE22,GA22,IF(GE13<GE23,GA23,IF(GE13<GE24,GA24,IF(GE13<GE25,GA25,IF(GE13<GE26,GA26,IF(GE13<GE27,GA27,IF(GE13<GE28,GA28,IF(GE13<GE29,GA29,IF(GE13<GE30,GA30,IF(GE13<GE31,GA31,IF(GE13<GE32,GA32,IF(GE13<GE33,GA33,IF(GE13<GE34,GA34,IF(GE13<GE35,GA35,IF(GE13<GE36,GA36,IF(GE13<GE37,GA37,IF(GE13<GE38,GA38,IF(GE13<GE39,GA39,IF(GE13<GE40,GA40,IF(GE13<GE41,GA41,IF(GE13<GE42,GA42,IF(GE13<GE43,GA43,IF(GE13<GE44,GA44,IF(GE13<GE45,GA45,IF(GE13<GE46,GA46,GA47))))))))))))))))))))))))))))))) ->  | GC48: =RADIANS(GB48) ->  | GD48: c21 | GE48: =IF(GB13>GB50,ATAN((GC13-GC50)/(GB13-GB50)),ATAN((GC13-GC50)/(GB50-GB13))) ->  | GU48: =GU47+GT11 -> -26 | GV48: -0.4537856055 | GW48: =HB13+HB10*COS(GV48) ->  | GX48: =HC13-HB10*SIN(GV48) ->  | GY48: =SQRT(POWER((HB12-GW48),2)+POWER((HC12-GX48),2)) ->  | GZ48: =ABS(HB9-GY48) ->  | HB48: =RADIANS(-15) -> -0.2617993878 | HC48: m1 | HD48: زاویه ضلع پایین با افق به رادیان ساعتگرزیر افق عدد مثبت | HF48: =HB47*COS(HF49)-HF45*COS(HF47) -> 4.275403846 | HG48: m7 | HO48: =-HK48+HP9 -> 0 | HP48: 0 | NV48: نقاط خروجی | NZ48: متغیرهای ورودی | OB48: =NZ54 -> -25 | OC48: =OA54 -> 5.6 | OD48: =NY54 -> w8 | OF48: محاسبات | OM48: =OF65 -> -25 | ON48: =OG65 -> 5.423529412 | OO48: m6 | OQ48: محاسبات | OX48: =OQ65 -> -25 | OY48: =OR65 -> 5.423529412 | OZ48: m6 | PB48: f4 | PC48: =PC39*PC35 -> 0.2541176471 | PD48: بزرگی فلش رج | PI48: =PB64 -> -25.19070513 | PJ48: =PC64 -> 5.423529412 | PK48: n5 | PM48: f4 | PN48: =PN39*PN35 -> 0.2541176471 | PO48: بزرگی فلش رج | PT48: =PM64 -> -25.38141026 | PU48: =PN64 -> 5.423529412 | PV48: n'5 | PX48: =PX44 -> -41.5 | PY48: =PY47 -> 19.28571429 | PZ48: t20 | QB48: g11 | QC48: =QC52+0.8*(QC50-QC52) -> -48.9935 | QD48: =QD50+0.6*(QD52-QD50) -> 10.30857143 | QE48: =QC49 -> -48.5 | QF48: =QD49 -> 10.71428571 | QG48: =QB49 -> g2 | QI48: 16.0075402 | QJ48: 149.0036694 | QK48: 28پ | QM48: 8.796781302 | QN48: 143.4245659 | QO48: 26پ ق
AH49: =AO49/AN49 ->  | AI49: =AM49/AL49 -> 0 | AJ49: =(10/3)*((AM49/AL49)*(1/I6)-1) -> -3.333333333 | AK49: =(100/68)*((AO49/AN49)*(1/I7)-1) ->  | AL49: 13.5 | AO49: 36 | AQ49: 43 | CI49: =CI47+0.85*(CI39-CI47) -> 79.845 | CJ49: =CJ47+0.5*(CJ39-CJ47) -> 139.85 | CK49: j5'' | CM49: =CI47 -> 24 | CN49: =CJ47 -> 107 | CO49: j13 | DP49: =DM19 -> 12 | DQ49: =DN30 -> 7 | DR49: 2 | EX49: =ET30 -> 50.5 | EY49: =EU30 -> 55.025 | EZ49: 19 | FF49: =FF13+'طراحی همه الگوها'!U263 -> 119.1 | FG49: =FG48 -> 109.8 | FH49: 15 | FJ49: =FF49 -> 119.1 | FK49: =FG49 -> 109.8 | FL49: 15 | GB49: مولفه افقی | GC49: مولفه عمودی | GJ49: پروسیجرها | GU49: =GU48+GT11 -> -24 | GV49: -0.4188790205 | GW49: =HB13+HB10*COS(GV49) ->  | GX49: =HC13-HB10*SIN(GV49) ->  | GY49: =SQRT(POWER((HB12-GW49),2)+POWER((HC12-GX49),2)) ->  | GZ49: =ABS(HB9-GY49) ->  | HB49: راس سوم | HF49: =ASIN(HF50/HB47) -> 1.403019319 | HG49: m8 | HO49: =-HK49+HP9 -> 0 | HP49: 0 | NU49: =NV30+NV5/NV46 -> 22.82211538 | NV49: =NV31 -> 5 | NW49: w2 | NY49: طول باکس نوشته | NZ49: =1.1*NV35 -> 4.95 | OA49: h3 | OB49: =NZ59 -> -3.563942308 | OC49: =OA59 -> 5.6 | OD49: =NY59 -> h8 | OF49: g3 | OG49: =OG38 -> 0.4235294118 | OH49: ارتفاع نیم دایره | OJ49: زاویه فلش | OK49: =OG43 -> 0.5 | OL49: f5 | OO49: فلش به سمت چپ | OQ49: g3 | OR49: =OR38 -> 0.4235294118 | OS49: ارتفاع نیم دایره | OU49: زاویه فلش | OV49: =OR43 -> 0.5 | OW49: f5 | OZ49: فلش به سمت چپ | PB49: n20 | PC49: 0.15 | PD49: فاصله فلش کم کردن | PF49: زاویه فلش | PG49: =PC40 -> 0.5 | PH49: f5 | PK49: فلش به سمت چپ | PM49: n20 | PN49: 0.15 | PO49: فاصله فلش کم کردن | PQ49: زاویه فلش | PR49: =PN40 -> 0.5 | PS49: f5 | PV49: فلش به سمت چپ | PX49: =PX45 -> -45 | PY49: =PY47 -> 19.28571429 | PZ49: t21 | QB49: g2 | QC49: =QC47 -> -48.5 | QD49: =QD47+QC44 -> 10.71428571 | QI49: 13.20402144 | QJ49: 148.221671 | QK49: 26پ | QM49: 5.99326254 | QN49: 144.2065643 | QO49: 28پ ق
AI50: 0 | AJ50: =(10/3)*((AM50/AL50)*(1/I6)-1) -> -3.333333333 | AK50: =(100/68)*((AO50/AN50)*(1/I7)-1) ->  | AL50: 13.5 | AO50: 36 | AQ50: =AQ49+1 -> 44 | CI50: =CI47+0.6*(CI39-CI47) -> 63.42 | CJ50: =CJ47+0.23*(CJ39-CJ47) -> 122.111 | CK50: j5''' | CM50: =CI37 -> 12 | CN50: =CJ37 -> 107 | CO50: j2 | FR50: =FR48 -> 32.6275 | FS50: =FS48 -> 111.5270608 | FT50: s12 | GA50: e23 | GB50: =GB12+GE12*SIN(GC48+GA14) ->  | GC50: =GC12+GE12*COS(GC48+GA14) ->  | GD50: راس سوم | GU50: =GU49+GT11 -> -22 | GV50: -0.3839724354 | GW50: =HB13+HB10*COS(GV50) ->  | GX50: =HC13-HB10*SIN(GV50) ->  | GY50: =SQRT(POWER((HB12-GW50),2)+POWER((HC12-GX50),2)) ->  | GZ50: =ABS(HB9-GY50) ->  | HB50: =HB46+HF48*COS(HB48) -> 11.12972299 | HC50: =HC46-HF48*SIN(HB48) -> 41.10655594 | HD50: 3 | HF50: =HF45*SIN(HF47) -> 9.859584224 | HG50: m9 | HO50: =-HK50+HP9 -> 0 | HP50: 0 | NU50: =NV30 -> -25 | NV50: =NV55+NV33*NV6 -> 9.8 | NW50: w3 | NY50: پهنای باکس نوشته | NZ50: =NV36 -> 0.5 | OA50: h4 | OF50: m0 | OG50: =S18*40/OG37 -> 2.621848739 | OH50: ضریب کاهش تعداد دانه ها | OJ50: بزرگی فلش | OK50: =OG51 -> 0.2541176471 | OL50: f4 | OM50: =OK52 -> -19.27884615 | ON50: =OL52 -> 5.423529412 | OO50: =OJ52 -> m5 | OQ50: m0 | OR50: =S18*40/OR37 -> 2.621848739 | OS50: ضریب کاهش تعداد دانه ها | OU50: بزرگی فلش | OV50: =OR51 -> 0.2541176471 | OW50: f4 | OX50: =OV52 -> -19.66025641 | OY50: =OW52 -> 5.423529412 | OZ50: =OU52 -> m5 | PB50: n40 | PC50: 0.38 | PD50: فاصله فلش کم کردن | PF50: بزرگی فلش | PG50: =PC48 -> 0.2541176471 | PH50: f4 | PI50: =PG52 -> -19.08814103 | PJ50: =PH52 -> 5.423529412 | PK50: =PF52 -> n6 | PM50: n40 | PN50: 0.38 | PO50: فاصله فلش کم کردن | PQ50: بزرگی فلش | PR50: =PN48 -> 0.2541176471 | PS50: f4 | PT50: =PR52 -> -18.21089744 | PU50: =PS52 -> 5.423529412 | PV50: =PQ52 -> n6 | PX50: =PX30+3 -> -38.5 | PY50: =PY47 -> 19.28571429 | PZ50: t22 | QB50: g4 | QC50: =QC47-QC45*QC43/40 -> -49.025 | QD50: =QD47+0.5*QC44 -> 10 | QE50: =QC54 -> -49.24362296 | QF50: =QD54 -> 9.996420012 | QG50: =QB54 -> g8 | QI50: 10 | QJ50: 147.9610049 | QK50: 24پ | QM50: 3.990749138 | QN50: 145.770561 | QO50: 23پ ق
AI51: 0 | AJ51: =(10/3)*((AM51/AL51)*(1/I6)-1) -> -3.333333333 | AK51: =(100/68)*((AO51/AN51)*(1/I7)-1) ->  | AL51: 13.5 | AO51: 36 | AQ51: 45 | CI51: =CI47+0.25*(CI39-CI47) -> 40.425 | CJ51: =CJ47+0.04*(CJ39-CJ47) -> 109.628 | CK51: j5'''' | DP51: =DP49 -> 12 | DQ51: =DQ49 -> 7 | DR51: 2 | EX51: =ET34 -> 58 | EY51: =EU34 -> 77.725 | EZ51: 17 | FF51: =FJ54 -> 56.1 | FG51: =FG46 -> 4 | FH51: 16 | FJ51: =FF47 -> 0 | FK51: =FG47 -> 18 | FL51: 18 | FR51: =FO24 -> 32.6275 | FS51: =FP24 -> 107.5270608 | FT51: 41 شبیه ساز | GU51: =GU50+GT11 -> -20 | GV51: -0.3490658504 | GW51: =HB13+HB10*COS(GV51) ->  | GX51: =HC13-HB10*SIN(GV51) ->  | GY51: =SQRT(POWER((HB12-GW51),2)+POWER((HC12-GX51),2)) ->  | GZ51: =ABS(HB9-GY51) ->  | HO51: =-HK51+HP9 -> 0 | HP51: 0 | NU51: =NU49 -> 22.82211538 | NV51: =NV50 -> 9.8 | NW51: w4 | OB51: =NZ61 -> -3.563942308 | OC51: =OA61 -> 5.85 | OD51: =NY61 -> h10 | OF51: f4 | OG51: =OG42*OG38 -> 0.2541176471 | OH51: بزرگی فلش رج | OJ51: نقطه ورودی سر فلش | OK51: مولفه افقی | OL51: مولفه عمودی | OM51: =OK54 -> -19.02472851 | ON51: =OL54 -> 5.550588235 | OO51: =OJ54 -> f3 | OQ51: f4 | OR51: =OR42*OR38 -> 0.2541176471 | OS51: بزرگی فلش رج | OU51: نقطه ورودی سر فلش | OV51: مولفه افقی | OW51: مولفه عمودی | OX51: =OV54 -> -19.40613876 | OY51: =OW54 -> 5.550588235 | OZ51: =OU54 -> f3 | PB51: n50 | PC51: 0.05 | PD51: فاصله فلش کم کردن | PF51: نقطه ورودی سر فلش | PG51: مولفه افقی | PH51: مولفه عمودی | PI51: =PG54 -> -18.83402338 | PJ51: =PH54 -> 5.550588235 | PK51: =PF54 -> f3 | PM51: n50 | PN51: 0.06 | PO51: فاصله فلش کم کردن | PQ51: نقطه ورودی سر فلش | PR51: مولفه افقی | PS51: مولفه عمودی | PT51: =PR54 -> -17.95677979 | PU51: =PS54 -> 5.550588235 | PV51: =PQ54 -> f3 | PX51: =PX47 -> -48.5 | PY51: =PY47+PY36-PY29 -> 23.57142857 | PZ51: t23 | QB51: g5 | QC51: =QC47+0.7*(QC50-QC47) -> -48.8675 | QD51: =QD47+0.28*(QD50-QD47) -> 9.485714286 | QE51: =QC48 -> -48.9935 | QF51: =QD48 -> 10.30857143 | QG51: =QB48 -> g11 | QK51: قرینه یقه گرد پشت
AI52: 0 | AJ52: =(10/3)*((AM52/AL52)*(1/I6)-1) -> -3.333333333 | AK52: =(100/68)*((AO52/AN52)*(1/I7)-1) ->  | AL52: 13.5 | AO52: 36 | AQ52: 46 | DP52: =DM15 -> 12 | DQ52: =DN15 -> 123.7 | DR52: خط سینه | EX52: =ET32 -> 50.5 | EY52: =EU32 -> 100.425 | EZ52: 18 | FJ52: =FJ18 -> 22.4 | FK52: =FG46+'طراحی همه الگوها'!U269 -> 18.9 | FL52: 24 | GU52: =GU51+GT11 -> -18 | GV52: -0.3141592654 | GW52: =HB13+HB10*COS(GV52) ->  | GX52: =HC13-HB10*SIN(GV52) ->  | GY52: =SQRT(POWER((HB12-GW52),2)+POWER((HC12-GX52),2)) ->  | GZ52: =ABS(HB9-GY52) ->  | HO52: =-HK52+HP9 -> 0 | HP52: 0 | NU52: =NU49 -> 22.82211538 | NV52: =NV31+NV33 -> 5.6 | NW52: w5 | OB52: =NZ62 -> -3.563942308 | OC52: =OA62 -> 5.35 | OD52: =NY62 -> h11 | OF52: m20 | OG52: 0.2 | OH52: فاصله فلش کم کردن | OJ52: m5 | OK52: =OF64 -> -19.27884615 | OL52: =OG64 -> 5.423529412 | OQ52: m20 | OR52: =OG52 -> 0.2 | OS52: فاصله فلش کم کردن | OU52: m5 | OV52: =OQ64 -> -19.66025641 | OW52: =OR64 -> 5.423529412 | PB52: n60 | PC52: 0.75 | PD52: فاصله فلش کم کردن | PF52: n6 | PG52: =PB65 -> -19.08814103 | PH52: =PC65 -> 5.423529412 | PM52: n60 | PN52: 0.4 | PO52: فاصله فلش کم کردن | PQ52: n6 | PR52: =PM65 -> -18.21089744 | PS52: =PN65 -> 5.423529412 | PX52: =PX48 -> -41.5 | PY52: =PY51 -> 23.57142857 | PZ52: t24 | QB52: g6 | QC52: =QC51 -> -48.8675 | QD52: =QD49-QD51+QD47 -> 10.51428571 | QI52: =GP101 -> 1.989946395 | QJ52: 150.5676661 | QK52: 23پ ق
AI53: 0 | AJ53: =(10/3)*((AM53/AL53)*(1/I6)-1) -> -3.333333333 | AK53: =(100/68)*((AO53/AN53)*(1/I7)-1) ->  | AL53: 13.5 | AO53: 36 | AQ53: 47 | FJ53: =FJ19 -> 44.9 | FK53: =FG46+'طراحی همه الگوها'!U271 -> 22.9 | FL53: 26 | FR53: =FR51 -> 32.6275 | FS53: =FS51 -> 107.5270608 | FT53: 41 شبیه ساز | HO53: =-HK53+HP9 -> 0 | HP53: 0 | NU53: =NV30+0.1*(NU49-NV30) -> -20.21778846 | NV53: =NV31 -> 5 | NW53: w6 | NY53: نقطه شروع رج(چپ) | NZ53: مولفه افقی | OA53: مولفه عمودی | OF53: m30 | OG53: 0.25 | OH53: فاصله فلش کم کردن | OJ53: f2 | OK53: =OK52+1*OK50 -> -19.02472851 | OL53: =OL52-OK49*OK50 -> 5.296470588 | OM53: =OK52 -> -19.27884615 | ON53: =OL52 -> 5.423529412 | OO53: =OJ52 -> m5 | OQ53: m30 | OR53: =OG53 -> 0.25 | OS53: فاصله فلش کم کردن | OU53: f2 | OV53: =OV52+1*OV50 -> -19.40613876 | OW53: =OW52-OV49*OV50 -> 5.296470588 | OX53: =OV52 -> -19.66025641 | OY53: =OW52 -> 5.423529412 | OZ53: =OU52 -> m5 | PB53: n61 | PC53: 0.03 | PD53: فاصله فلش کم کردن | PF53: f2 | PG53: =PG52+1*PG50 -> -18.83402338 | PH53: =PH52-PG49*PG50 -> 5.296470588 | PI53: =PG52 -> -19.08814103 | PJ53: =PH52 -> 5.423529412 | PK53: =PF52 -> n6 | PM53: n61 | PN53: 0.11 | PO53: فاصله فلش کم کردن | PQ53: f2 | PR53: =PR52+1*PR50 -> -17.95677979 | PS53: =PS52-PR49*PR50 -> 5.296470588 | PT53: =PR52 -> -18.21089744 | PU53: =PS52 -> 5.423529412 | PV53: =PQ52 -> n6 | PX53: =PX49 -> -45 | PY53: =PY51 -> 23.57142857 | PZ53: t25 | QB53: g7 | QC53: =QC48+0.7*QD45*SIN(RADIANS(30)-2*ATAN((QC48-QC51)/(QD48-QD51+0.0001))) -> -48.69901625 | QD53: =QD48-0.7*QD45*COS(RADIANS(30)-2*ATAN((QC48-QC51)/(QD48-QD51+0.0001))) -> 10.03786989 | QE53: =QC48 -> -48.9935 | QF53: =QD48 -> 10.30857143 | QG53: =QB48 -> g11 | QI53: 3.992459796 | QJ53: 149.0036694 | QK53: 28پ ق
AI54: 0 | AJ54: =(10/3)*((AM54/AL54)*(1/I6)-1) -> -3.333333333 | AK54: =(100/68)*((AO54/AN54)*(1/I7)-1) ->  | AL54: 13.5 | AO54: 36 | AQ54: 48 | EX54: =EP29 -> 12 | EY54: =EQ29 -> 172.7 | EZ54: 1 | FJ54: =FF46+'طراحی همه الگوها'!U260 -> 56.1 | FK54: =FG46+'طراحی همه الگوها'!U261 -> 26.9 | FL54: 17 | FR54: =FO31 -> 12 | FS54: =FP31 -> 107.5270608 | FT54: s''12 | HO54: =-HK54+HP9 -> 0 | HP54: 0 | NU54: =NU55+0.1*(NU52-NU55) -> -20.21778846 | NV54: =NV52 -> 5.6 | NW54: w7 | NY54: w8 | NZ54: =NU55 -> -25 | OA54: =NV55 -> 5.6 | OB54: =NZ61 -> -3.563942308 | OC54: =OA61 -> 5.85 | OD54: =NY61 -> h10 | OF54: m40 | OG54: 0.35 | OH54: فاصله فلش کم کردن | OJ54: f3 | OK54: =OK53 -> -19.02472851 | OL54: =OL52+OK49*OK50 -> 5.550588235 | OM54: =OK53 -> -19.02472851 | ON54: =OL53 -> 5.296470588 | OO54: =OJ53 -> f2 | OQ54: m40 | OR54: =OG54 -> 0.35 | OS54: فاصله فلش کم کردن | OU54: f3 | OV54: =OV53 -> -19.40613876 | OW54: =OW52+OV49*OV50 -> 5.550588235 | OX54: =OV53 -> -19.40613876 | OY54: =OW53 -> 5.296470588 | OZ54: =OU53 -> f2 | PB54: n62 | PC54: 0.4 | PD54: فاصله فلش کم کردن | PF54: f3 | PG54: =PG53 -> -18.83402338 | PH54: =PH52+PG49*PG50 -> 5.550588235 | PI54: =PG53 -> -18.83402338 | PJ54: =PH53 -> 5.296470588 | PK54: =PF53 -> f2 | PM54: n62 | PN54: 0.3 | PO54: فاصله فلش کم کردن | PQ54: f3 | PR54: =PR53 -> -17.95677979 | PS54: =PS52+PR49*PR50 -> 5.550588235 | PT54: =PR53 -> -17.95677979 | PU54: =PS53 -> 5.296470588 | PV54: =PQ53 -> f2 | PX54: =PX50 -> -38.5 | PY54: =PY51 -> 23.57142857 | PZ54: t26 | QB54: g8 | QC54: =QC48-0.7*QD45*SIN(RADIANS(30)-ATAN((QC48-QC51)/(QD48-QD51+0.0001))) -> -49.24362296 | QD54: =QD48-0.7*QD45*COS(RADIANS(30)-ATAN((QC48-QC51)/(QD48-QD51+0.0001))) -> 9.996420012 | QE54: =QC53 -> -48.69901625 | QF54: =QD53 -> 10.03786989 | QG54: =QB53 -> g7 | QI54: 6.795978558 | QJ54: 148.221671 | QK54: 26پ ق
AI55: 0 | AJ55: =(10/3)*((AM55/AL55)*(1/I6)-1) -> -3.333333333 | AK55: =(100/68)*((AO55/AN55)*(1/I7)-1) ->  | AL55: 13.5 | AO55: 36 | AQ55: 49 | EX55: =EP31 -> 20.7 | EY55: =EQ31 -> 7 | EZ55: 5 | HO55: =-HK55+HP9 -> 0 | HP55: 0 | NU55: =NV30 -> -25 | NV55: =NV52 -> 5.6 | NW55: w8 | NY55: نقطه پایان رج(راست) | NZ55: مولفه افقی | OA55: مولفه عمودی | OB55: =NZ64 -> 1.386057692 | OC55: =OA64 -> 5.85 | OD55: =NY64 -> h13 | OF55: m50 | OG55: 0.42 | OH55: فاصله فلش کم کردن | OQ55: m50 | OR55: =OG55 -> 0.42 | OS55: فاصله فلش کم کردن | PX55: =PX34-1 -> -49.5 | PY55: =PY51+2 -> 25.57142857 | PZ55: t27 | QI55: 10 | QJ55: 147.9610049 | QK55: 24پ ق
AI56: 0 | AJ56: =(10/3)*((AM56/AL56)*(1/I6)-1) -> -3.333333333 | AK56: =(100/68)*((AO56/AN56)*(1/I7)-1) ->  | AL56: 13.5 | AO56: 36 | AQ56: 50 | HO56: =-HK56+HP9 -> 0 | HP56: 0 | NU56: =NU50+0.1*(NU51-NU50) -> -20.21778846 | NV56: =NV50 -> 9.8 | NW56: w9 | NY56: w5 | NZ56: =NU52 -> 22.82211538 | OA56: =NV52 -> 5.6 | OG56: =S17 -> 4.722222222 | OH56: ea0 تعداد رج در یک سانت | OJ56: نسبت سایز افقی | OK56: =OG37 -> 42 | OL56: انحنا راستگرد | OO56: =OL56 -> انحنا راستگرد | OR56: =S17 -> 4.722222222 | OS56: ea0 تعداد رج در یک سانت | OU56: نسبت سایز افقی | OV56: =OR37 -> 42 | OW56: انحنا راستگرد | OZ56: =OW56 -> انحنا راستگرد | PF56: بزرگی خط عمودی دانه | PG56: =PC41 -> 0.3 | PH56: f9 | PK56: فلش به سمت بالا | PQ56: بزرگی خط عمودی دانه | PR56: =PN41 -> 0.3 | PS56: f9 | PV56: فلش به سمت بالا | PX56: =PX35+4 -> -32.5 | PY56: =PY55 -> 25.57142857 | PZ56: t28 | QE56: =PX38 -> -48.5 | QF56: 10.71428571 | QG56: t10
AI57: 0 | AJ57: =(10/3)*((AM57/AL57)*(1/I6)-1) -> -3.333333333 | AK57: =(100/68)*((AO57/AN57)*(1/I7)-1) ->  | AL57: 13.5 | AO57: 36 | AQ57: 51 | HO57: =-HK57+HP9 -> 0 | HP57: 0 | NU57: =NU51 -> 22.82211538 | NV57: =NV51+NV33 -> 10.4 | NW57: w10 | NY57: نقاط خروجی | NZ57: مولفه افقی | OA57: مولفه عمودی | OB57: =NZ62 -> -3.563942308 | OC57: =OA62 -> 5.35 | OD57: =NY62 -> h11 | OG57: =S18 -> 2.752941176 | OH57: تعداد دانه در یک سانت eb0 | OJ57: ارتفاع نیم دایره | OK57: =OG49 -> 0.4235294118 | OL57: بزرگی فلش | OM57: =OK60 -> -25 | ON57: =OL60 -> 5.423529412 | OO57: =OJ60 -> m6 | OR57: =S18 -> 2.752941176 | OS57: تعداد دانه در یک سانت eb0 | OU57: ارتفاع نیم دایره | OV57: =OR49 -> 0.4235294118 | OW57: بزرگی فلش | OX57: =OV60 -> -25 | OY57: =OW60 -> 5.423529412 | OZ57: =OU60 -> m6 | PF57: بزرگی فلش دانه | PG57: =PC42 -> 0.5 | PH57: f10 | PI57: =PG64 -> -24.80929487 | PJ57: =PH64 -> 6.023529412 | PK57: =PF64 -> f8 | PQ57: بزرگی فلش دانه | PR57: =PN42 -> 0.5 | PS57: f10 | PT57: =PR64 -> -25 | PU57: =PS64 -> 6.023529412 | PV57: =PQ64 -> f8 | PX57: =PX56 -> -32.5 | PY57: =PY56+2 -> 27.57142857 | PZ57: t29 | QE57: -41.5 | QF57: 10.71428571 | QG57: t11 | QI57: =-QJ11+QJ5+(QI61-QI81) -> 2.000802744 | QJ57: شیفت افقی
AI58: 0 | AJ58: =(10/3)*((AM58/AL58)*(1/I6)-1) -> -3.333333333 | AK58: =(100/68)*((AO58/AN58)*(1/I7)-1) ->  | AL58: 13.5 | AO58: 36 | AQ58: 52 | HO58: =-HK58+HP9 -> 0 | HP58: 0 | NU58: =NU57-NV7/NV46 -> 17.40384615 | NV58: =NV57 -> 10.4 | NW58: w13 | NY58: h5 | NZ58: =NZ54+0.5*(NZ56-NZ54) -> -1.088942308 | OA58: =OA54 -> 5.6 | OB58: =NZ63 -> 1.386057692 | OC58: =OA63 -> 5.35 | OD58: =NY63 -> h12 | OG58: =IF(OG59<11," مخصوص ",F8) -> 2 | OH58: انتخاب ضخامت میل بافتنی f1 | OJ58: پهنای نیم دایره | OK58: =OG39 -> 0.5 | OL58: =OG51 -> 0.2541176471 | OM58: =OK64 -> -25.3675 | ON58: =OL64 -> 5.482823529 | OO58: =OJ64 -> g5 | OR58: =IF(OR59<11," مخصوص ",F8) -> 2 | OS58: انتخاب ضخامت میل بافتنی f1 | OU58: پهنای نیم دایره | OV58: =OR39 -> 0.5 | OW58: =OR51 -> 0.2541176471 | OX58: =OV64 -> -25.3675 | OY58: =OW64 -> 5.482823529 | OZ58: =OU64 -> g5 | PF58: زاویه فلش دانه | PG58: =PC43 -> 0.75 | PH58: f11 | PI58: =PG61 -> -24.80929487 | PJ58: =PH61 -> 5.423529412 | PK58: =PF61 -> n7 | PQ58: زاویه فلش دانه | PR58: =PN43 -> 0.75 | PS58: f11 | PT58: =PR61 -> -25 | PU58: =PS61 -> 5.423529412 | PV58: =PQ61 -> n7 | PX58: =PX55 -> -49.5 | PY58: =PY57 -> 27.57142857 | PZ58: t30 | QB58: زاویه فلش | QC58: =PY10 -> 0.5 | QD58: f5 | QG58: فلش به سمت راست | QI58: =-QJ12+QJ6+(QJ61-QJ81) -> -4.797105116 | QJ58: شیفت عمودی
AI59: 0 | AJ59: =(10/3)*((AM59/AL59)*(1/I6)-1) -> -3.333333333 | AK59: =(100/68)*((AO59/AN59)*(1/I7)-1) ->  | AL59: 13.5 | AO59: 36 | AQ59: 53 | HO59: =-HK59+HP9 -> 0 | HP59: 0 | NU59: =NU58 -> 17.40384615 | NV59: =NV58+NV33 -> 11 | NW59: w14 | NY59: h8 | NZ59: =NZ58-0.5*NZ49 -> -3.563942308 | OA59: =OA54 -> 5.6 | OF59: =S21 -> همه از زیر | OG59: =S20 -> 12 | OH59: بافت انتخابی یقه شومیزیه | OJ59: نقطه شروع انحنا | OK59: مولفه افقی | OL59: مولفه عمودی | OM59: =OK63 -> -25.525 | ON59: =OL63 -> 5.635294118 | OO59: =OJ63 -> g4 | OQ59: =S21 -> همه از زیر | OR59: =S20 -> 12 | OS59: بافت انتخابی یقه شومیزیه | OU59: نقطه شروع انحنا | OV59: مولفه افقی | OW59: مولفه عمودی | OX59: =OV63 -> -25.525 | OY59: =OW63 -> 5.635294118 | OZ59: =OU63 -> g4 | PC59: نقاط خروجی | PF59: ارتفاع هر رج | PG59: =PC35 -> 0.4235294118 | PH59: w11 | PN59: نقاط خروجی | PQ59: ارتفاع هر رج | PR59: =PN35 -> 0.4235294118 | PS59: w11 | PX59: =PX55+0.5*(PX56-PX55) -> -41 | PY59: =PY56+0.5*(PY57-PY56) -> 26.57142857 | PZ59: t31 | QB59: بزرگی فلش | QC59: =PY16 -> 0.5714285714 | QD59: f4 | QE59: =QC61 -> -45 | QF59: =QD61 -> 10.71428571 | QG59: =QB61 -> t12
AI60: 0 | AJ60: =(10/3)*((AM60/AL60)*(1/I6)-1) -> -3.333333333 | AK60: =(100/68)*((AO60/AN60)*(1/I7)-1) ->  | AL60: 13.5 | AO60: 36 | AQ60: 54 | HO60: =-HK60+HP9 -> 0 | HP60: 0 | NU60: =NU57 -> 22.82211538 | NV60: =NV59 -> 11 | NW60: w15 | NY60: h9 | NZ60: =NZ58+0.5*NZ49 -> 1.386057692 | OA60: =OA54 -> 5.6 | OB60: =NZ63 -> 1.386057692 | OC60: =OA63 -> 5.35 | OD60: =NY63 -> h12 | OG60: نقاط خروجی | OJ60: m6 | OK60: =OF65 -> -25 | OL60: =OG65 -> 5.423529412 | OM60: =OK65 -> -25.3675 | ON60: =OL65 -> 5.787764706 | OO60: =OJ65 -> g6 | OR60: نقاط خروجی | OU60: m6 | OV60: =OQ65 -> -25 | OW60: =OR65 -> 5.423529412 | OX60: =OV65 -> -25.3675 | OY60: =OW65 -> 5.787764706 | OZ60: =OU65 -> g6 | PB60: =PC32 -> -25 | PC60: =PC33 -> 5 | PD60: n1 | PF60: نقطه ورودی سر فلش | PG60: مولفه افقی | PH60: مولفه عمودی | PI60: =PG64 -> -24.80929487 | PJ60: =PH64 -> 6.023529412 | PK60: =PF64 -> f8 | PM60: =PN32 -> -25 | PN60: =PN33 -> 5 | PO60: n1 | PQ60: نقطه ورودی سر فلش | PR60: مولفه افقی | PS60: مولفه عمودی | PT60: =PR64 -> -25 | PU60: =PS64 -> 6.023529412 | PV60: =PQ64 -> f8 | PX60: =PX55 -> -49.5 | PY60: =PY29-1 -> 4 | PZ60: t32 | QB60: نقطه ورودی سر فلش | QC60: مولفه افقی | QD60: مولفه عمودی | QE60: =QC63 -> -45.57142857 | QF60: =QD63 -> 11 | QG60: =QB63 -> f3 | QJ60: نقاط خروجی
AI61: 0 | AJ61: =(10/3)*((AM61/AL61)*(1/I6)-1) -> -3.333333333 | AK61: =(100/68)*((AO61/AN61)*(1/I7)-1) ->  | AL61: 13.5 | AO61: 36 | AQ61: 55 | HO61: =-HK61+HP9 -> 0 | HP61: 0 | NU61: =NU59+0.5*(NU60-NU59) -> 20.11298077 | NV61: =NV59 -> 11 | NW61: w16 | NY61: h10 | NZ61: =NZ59 -> -3.563942308 | OA61: =OA59+0.5*NZ50 -> 5.85 | OB61: =NZ64 -> 1.386057692 | OC61: =OA64 -> 5.85 | OD61: =NY64 -> h13 | OF61: =OG35+OG5/OG50 -> 32.21153846 | OG61: =OG36 -> 5 | OH61: m2 | OJ61: g11 | OK61: =OK65+0.8*(OK63-OK65) -> -25.4935 | OL61: =OL63+0.6*(OL65-OL63) -> 5.726776471 | OM61: =OK62 -> -25 | ON61: =OL62 -> 5.847058824 | OO61: =OJ62 -> g2 | OQ61: =OR35+OR5/OR50 -> 28.3974359 | OR61: =OR36 -> 5 | OS61: m2 | OU61: g11 | OV61: =OV65+0.8*(OV63-OV65) -> -25.4935 | OW61: =OW63+0.6*(OW65-OW63) -> 5.726776471 | OX61: =OV62 -> -25 | OY61: =OW62 -> 5.847058824 | OZ61: =OU62 -> g2 | PB61: =PB60+PC5/PC47 -> 34.11858974 | PC61: =PC60 -> 5 | PD61: n2 | PF61: n7 | PG61: =PB66 -> -24.80929487 | PH61: =PC66 -> 5.423529412 | PI61: =PG62 -> -24.9681184 | PJ61: =PH62 -> 5.811764706 | PK61: =PF62 -> f6 | PM61: =PM60+PN5/PN47 -> 42.89102564 | PN61: =PN60 -> 5 | PO61: n2 | PQ61: n7 | PR61: =PM66 -> -25 | PS61: =PN66 -> 5.423529412 | PT61: =PR62 -> -25.15882353 | PU61: =PS62 -> 5.811764706 | PV61: =PQ62 -> f6 | PX61: =PX56 -> -32.5 | PY61: =PY60 -> 4 | PZ61: t33 | QB61: =PZ40 -> t12 | QC61: =PX40 -> -45 | QD61: =PY40 -> 10.71428571 | QI61: =QI18-QJ9+QJ5 -> 20.01085635 | QJ61: =QJ18-QJ10+QJ6 -> 145.770561 | QK61: 25
AI62: 0 | AJ62: =(10/3)*((AM62/AL62)*(1/I6)-1) -> -3.333333333 | AK62: =(100/68)*((AO62/AN62)*(1/I7)-1) ->  | AL62: 13.5 | AO62: 36 | AQ62: 56 | HO62: =-HK62+HP9 -> 0 | HP62: 0 | NU62: =NU60 -> 22.82211538 | NV62: =NV60+NV33 -> 11.6 | NW62: w17 | NY62: h11 | NZ62: =NZ59 -> -3.563942308 | OA62: =OA59-0.5*NZ50 -> 5.35 | OF62: =OG35+0.1*(OF61-OG35) -> -19.27884615 | OG62: =OG36 -> 5 | OH62: m3 | OJ62: g2 | OK62: =OK60 -> -25 | OL62: =OL60+OK57 -> 5.847058824 | OQ62: =OR35+0.1*(OQ61-OR35) -> -19.66025641 | OR62: =OR36 -> 5 | OS62: m3 | OU62: g2 | OV62: =OV60 -> -25 | OW62: =OW60+OV57 -> 5.847058824 | PB62: =PB60+0.1*(PB61-PB60) -> -19.08814103 | PC62: =PC60 -> 5 | PD62: n3 | PF62: f6 | PG62: =PG61-PG58*PG57*PG59 -> -24.9681184 | PH62: =PH64-PG57*PG59 -> 5.811764706 | PM62: =PM60+0.1*(PM61-PM60) -> -18.21089744 | PN62: =PN60 -> 5 | PO62: n3 | PQ62: f6 | PR62: =PR61-PR58*PR57*PR59 -> -25.15882353 | PS62: =PS64-PR57*PR59 -> 5.811764706 | QB62: f2 | QC62: =QC61-1*QC59 -> -45.57142857 | QD62: =QD61-QC58*QC59 -> 10.42857143 | QE62: =QC61 -> -45 | QF62: =QD61 -> 10.71428571 | QG62: =QB61 -> t12 | QI62: =QI19-QJ9+QJ5 -> 18.40868508 | QJ62: =QJ19-QJ10+QJ6 -> 140.4999665 | QK62: 30
... 75 more rows

Sheet متغیرها (hidden)
A3: متغیرهای ورودی چادر | E3: تبدیل رنج متغیر ورودی | F3: توضیح متغیر ورودی برای صفحه نمایش
A4: متغیر ورودی چادر شماره 1 یا مقنعه | F4: متغیر ورودی چادر شماره 1 یا مقنعه | G4: x1 | H4: y1 | I4: x2 | J4: y2(بهینه) | K4: a | L4: b | N4: کمترین | P4: بیشترین | U4: انتخاب ستون سلول مرجع برای انتخاب سایز در رسم الگو | V4: انتخاب نوع الگو | W4: انتخاب نوع اندازه گیری | X4: اندازه جدید یا اندازه موجود | Y4: انتخاب ستون سلول مرجع برای انتخاب سایز در بررسی اندازه ها
A5: ضریب فاصله لبه چادر یا مقنعه تا زمین j0 | B5: (از -0.1 الی 4.5) | C5: =K5*E5+L5 -> 3 | D5: خط زمین=0 خط زانو=1 خط باسن=2 خط کمر=3 خط سینه=4 | E5: ='طراحی همه الگوها'!Q177 -> 70 | F5: ضریب فاصله لبه چادر یا مقنعه تا زمین | G5: 10 | H5: 0 | I5: 30 | J5: 1 | K5: =(J5-H5)/(I5-G5) -> 0.05 | L5: =H5-G5*K5 -> -0.5 | M5: 2 | N5: =(M5-L5)/K5 -> 50 | O5: 4 | P5: =(O5-L5)/K5 -> 90 | Q5: 3 | R5: =(Q5-L5)/K5 -> 70 | T5: سلول مرجع | U5: =MATCH('طراحی مدل 213'!A325,'متغیرها '!AJ51:AJ179,0) -> 18 | V5: 1 | W5: 3 | X5: 2 | Y5: 32
A6: انتخاب چادر تا پایین پیشانی=1 انتخاب چادر تا بالای پیشانی=0 انتخاب چادر روی سر = -1 | B6: -1 یا 0 یا 1 | C6: =K6*E6+L6 -> 0 | E6: ='طراحی همه الگوها'!Q178 -> 2 | F6: انتخاب چادر تا پایین پیشانی=3 انتخاب چادر تا بالای پیشانی=2 انتخاب چادر روی سر = 1 | G6: 2 | H6: 0 | I6: 1 | J6: -1 | K6: =(J6-H6)/(I6-G6) -> 1 | L6: =H6-G6*K6 -> -2 | M6: 0 | N6: =(M6-L6)/K6 -> 2 | O6: 2 | P6: =(O6-L6)/K6 -> 4 | Q6: 1 | R6: =(Q6-L6)/K6 -> 3 | U6: 1ماهه | V6: 1 تا 3 ماهه | W6: 3 تا 6 ماهه | X6: 6ماهه تا یکساله | Y6: بچگانه 1 ساله | Z6: بچگانه 2 ساله | AA6: بچگانه 3 ساله | AB6: بچگانه 4 ساله | AC6: بچگانه 5 ساله | AD6: بچگانه 6 ساله | AE6: بچگانه 7 ساله | AF6: بچگانه 8 ساله | AG6: بچگانه 9 ساله | AH6: بچگانه 10 ساله | AI6: بچگانه 11 ساله | AJ6: بچگانه 12 ساله | AK6: بچگانه 13 ساله | AL6: بچگانه 14 ساله | AM6: 34زنانه | AN6: 36زنانه | AO6: 38زنانه | AP6: 40زنانه | AQ6: 42زنانه | AR6: 44زنانه | AS6: 46زنانه | AT6: 48زنانه | AU6: 50زنانه | AV6: 52زنانه | AW6: 54زنانه | AX6: 56زنانه | AY6: 58زنانه | AZ6: 60زنانه | BA6: 37 مردانه | BB6: 38 مردانه | BC6: 39 مردانه | BD6: 40 مردانه | BE6: 41 مردانه | BF6: 42 مردانه | BG6: 43 مردانه | BH6: 44 مردانه | BI6: 45 مردانه | BJ6: 46 مردانه | BK6: 47 مردانه | BL6: 48 مردانه | BM6: 49 مردانه | BN6: 50 مردانه | BO6: 6ماهه تا یکساله کت | BP6: 1ساله کت | BQ6: 2ساله کت | BR6: 3ساله کت | BS6: 4ساله کت | BT6: 5ساله کت | BU6: 6ساله کت | BV6: 7ساله کت | BW6: 8ساله کت | BX6: 9ساله کت | BY6: 10ساله کت | BZ6: 11ساله کت | CA6: 12ساله کت | CB6: 13ساله کت | CC6: 14ساله کت | CD6: 34زنانه کمر پهن | CE6: 36زنانه کمر پهن | CF6: 38زنانه کمر پهن | CG6: 40زنانه کمر پهن | CH6: 42زنانه کمر پهن | CI6: 44زنانه کمر پهن | CJ6: 46زنانه کمر پهن | CK6: 48زنانه کمر پهن | CL6: 50زنانه کمر پهن | CM6: 52زنانه کمر پهن | CN6: 54زنانه کمر پهن | CO6: 56زنانه کمر پهن | CP6: 58زنانه کمر پهن | CQ6: 60زنانه کمر پهن | CR6: 37مردانه کت | CS6: 38مردانه کت | CT6: 39مردانه کت | CU6: 40مردانه کت | CV6: 41مردانه کت | CW6: 42مردانه کت | CX6: 43مردانه کت | CY6: 44مردانه کت | CZ6: 45مردانه کت | DA6: 46 مردانه کت | DB6: 47 مردانه کت | DC6: 48 مردانه کت | DD6: 49 مردانه کت | DE6: 50 مردانه کت | DF6: ='اندازه های شخصی'!G5 -> عنوان 1 | DG6: ='اندازه های شخصی'!I5 -> عنوان 2 | DH6: ='اندازه های شخصی'!K5 -> عنوان 3 | DI6: ='اندازه های شخصی'!M5 -> عنوان 4 | DJ6: ='اندازه های شخصی'!O5 -> عنوان 5 | DK6: ='اندازه های شخصی'!Q5 -> عنوان 6 | DL6: ='اندازه های شخصی'!S5 -> عنوان 7 | DM6: ='اندازه های شخصی'!U5 -> عنوان 8 | DN6: ='اندازه های شخصی'!W5 -> عنوان 9 | DO6: ='اندازه های شخصی'!Y5 -> عنوان 10 | DP6: ='اندازه های شخصی'!AA5 -> عنوان 11 | DQ6: ='اندازه های شخصی'!AC5 -> عنوان 12 | DR6: ='اندازه های شخصی'!AE5 -> عنوان 13 | DS6: ='اندازه های شخصی'!AG5 -> عنوان 14 | DT6: ='اندازه های شخصی'!AI5 -> عنوان 15 | DU6: ='اندازه های شخصی'!AK5 -> عنوان 16 | DV6: ='اندازه های شخصی'!AM5 -> عنوان 17 | DW6: ='اندازه های شخصی'!AO5 -> عنوان 18 | DX6: ='اندازه های شخصی'!AQ5 -> عنوان 19 | DY6: ='اندازه های شخصی'!AS5 -> عنوان 20 | DZ6: ='اندازه های شخصی'!AU5 -> عنوان 21 | EA6: ='اندازه های شخصی'!AW5 -> عنوان 22 | EB6: ='اندازه های شخصی'!AY5 -> عنوان 23 | EC6: ='اندازه های شخصی'!BA5 -> عنوان 24 | ED6: ='اندازه های شخصی'!BC5 -> عنوان 25 | EE6: ='اندازه های شخصی'!BE5 -> عنوان 26 | EF6: ='اندازه های شخصی'!BG5 -> عنوان 27 | EG6: ='اندازه های شخصی'!BI5 -> عنوان 28 | EH6: ='اندازه های شخصی'!BK5 -> عنوان 29 | EI6: ='اندازه های شخصی'!BM5 -> عنوان 30 | EJ6: ='اندازه های شخصی'!BO5 -> عنوان 31 | EK6: ='اندازه های شخصی'!BQ5 -> عنوان 32 | EL6: ='اندازه های شخصی'!BS5 -> عنوان 33 | EM6: ='اندازه های شخصی'!BU5 -> عنوان 34 | EN6: ='اندازه های شخصی'!BW5 -> عنوان 35 | EO6: ='اندازه های شخصی'!BY5 -> عنوان 36 | EP6: ='اندازه های شخصی'!CA5 -> عنوان 37 | EQ6: ='اندازه های شخصی'!CC5 -> عنوان 38 | ER6: ='اندازه های شخصی'!CE5 -> عنوان 39 | ES6: ='اندازه های شخصی'!CG5 -> عنوان 40
T7: a | U7: 41 | V7: 42 | W7: 45 | X7: 47 | Y7: 48 | Z7: 49 | AA7: 51 | AB7: 53 | AC7: 55 | AD7: 57 | AE7: 59 | AF7: 61 | AG7: 63 | AH7: 65.5 | AI7: 68 | AJ7: 71 | AK7: 73 | AL7: 75 | AM7: 63 | AN7: 65 | AO7: 68 | AP7: 72 | AQ7: 77 | AR7: 82 | AS7: 87 | AT7: 92 | AU7: 97 | AV7: 103 | AW7: 110 | AX7: 117 | AY7: 124 | AZ7: 131 | BA7: 74 | BB7: 78 | BC7: 82 | BD7: 86 | BE7: 90 | BF7: 94 | BG7: 98 | BH7: 102 | BI7: 106 | BJ7: 111 | BK7: 116 | BL7: 121 | BM7: 126 | BN7: 131 | BO7: 47 | BP7: 48 | BQ7: 49 | BR7: 51 | BS7: 53 | BT7: 55 | BU7: 57 | BV7: 59 | BW7: 61 | BX7: 63 | BY7: 65.5 | BZ7: 68 | CA7: 71 | CB7: 73 | CC7: 75 | CD7: 67 | CE7: 69 | CF7: 72 | CG7: 76 | CH7: 81 | CI7: 86 | CJ7: 91 | CK7: 96 | CL7: 101 | CM7: 107 | CN7: 114 | CO7: 121 | CP7: 127 | CQ7: 135 | CR7: 75.5 | CS7: 79.6 | CT7: 83.6 | CU7: 87.7 | CV7: 91.8 | CW7: 95.9 | CX7: 100 | CY7: 104 | CZ7: 108.1 | DA7: 113.2 | DB7: 118.3 | DC7: 123.4 | DD7: 128.5 | DE7: 133.6 | DF7: ='اندازه های شخصی'!G8 -> 0 | DG7: ='اندازه های شخصی'!I8 -> 0 | DH7: ='اندازه های شخصی'!K8 -> 0 | DI7: ='اندازه های شخصی'!M8 -> 0 | DJ7: ='اندازه های شخصی'!O8 -> 0 | DK7: ='اندازه های شخصی'!Q8 -> 0 | DL7: ='اندازه های شخصی'!S8 -> 0 | DM7: ='اندازه های شخصی'!U8 -> 0 | DN7: ='اندازه های شخصی'!W8 -> 0 | DO7: ='اندازه های شخصی'!Y8 -> 0 | DP7: ='اندازه های شخصی'!AA8 -> 0 | DQ7: ='اندازه های شخصی'!AC8 -> 0 | DR7: ='اندازه های شخصی'!AE8 -> 0 | DS7: ='اندازه های شخصی'!AG8 -> 0 | DT7: ='اندازه های شخصی'!AI8 -> 0 | DU7: ='اندازه های شخصی'!AK8 -> 0 | DV7: ='اندازه های شخصی'!AM8 -> 0 | DW7: ='اندازه های شخصی'!AO8 -> 0 | DX7: ='اندازه های شخصی'!AQ8 -> 0 | DY7: ='اندازه های شخصی'!AS8 -> 0 | DZ7: ='اندازه های شخصی'!AU8 -> 0 | EA7: ='اندازه های شخصی'!AW8 -> 0 | EB7: ='اندازه های شخصی'!AY8 -> 0 | EC7: ='اندازه های شخصی'!BA8 -> 0 | ED7: ='اندازه های شخصی'!BC8 -> 0 | EE7: ='اندازه های شخصی'!BE8 -> 0 | EF7: ='اندازه های شخصی'!BG8 -> 0 | EG7: ='اندازه های شخصی'!BI8 -> 0 | EH7: ='اندازه های شخصی'!BK8 -> 0 | EI7: ='اندازه های شخصی'!BM8 -> 0 | EJ7: ='اندازه های شخصی'!BO8 -> 0 | EK7: ='اندازه های شخصی'!BQ8 -> 0 | EL7: ='اندازه های شخصی'!BS8 -> 0 | EM7: ='اندازه های شخصی'!BU8 -> 0 | EN7: ='اندازه های شخصی'!BW8 -> 0 | EO7: ='اندازه های شخصی'!BY8 -> 0 | EP7: ='اندازه های شخصی'!CA8 -> 0 | EQ7: ='اندازه های شخصی'!CC8 -> 0 | ER7: ='اندازه های شخصی'!CE8 -> 0 | ES7: ='اندازه های شخصی'!CG8 -> 0
A8: متغیرهای ورودی چادر شماره 2 | F8: متغیرهای ورودی چادر شماره 2 | G8: x1 | H8: y1 | I8: x2 | J8: y2(بهینه) | K8: a | L8: b | N8: کمترین | P8: بیشترین | T8: b | U8: 20.1 | V8: 20.6 | W8: 22.1 | X8: 23 | Y8: 23.5 | Z8: 24 | AA8: 25 | AB8: 26 | AC8: 27 | AD8: 27.9 | AE8: 28.9 | AF8: 29.9 | AG8: 30.9 | AH8: 32.1 | AI8: 33.3 | AJ8: 34.8 | AK8: 35.8 | AL8: 36.8 | AM8: 32.2 | AN8: 32.7 | AO8: 33.7 | AP8: 35.2 | AQ8: 36.9 | AR8: 38.7 | AS8: 40.6 | AT8: 42.3 | AU8: 44.3 | AV8: 47.5 | AW8: 51 | AX8: 54.8 | AY8: 59.2 | AZ8: 63.6 | BA8: 37 | BB8: 39 | BC8: 41 | BD8: 43 | BE8: 45 | BF8: 47 | BG8: 49 | BH8: 51 | BI8: 53 | BJ8: 55.5 | BK8: 58 | BL8: 60.5 | BM8: 63 | BN8: 65.5 | BO8: 23 | BP8: 23.5 | BQ8: 24 | BR8: 25 | BS8: 26 | BT8: 27 | BU8: 27.9 | BV8: 28.9 | BW8: 29.9 | BX8: 30.9 | BY8: 32.1 | BZ8: 33.3 | CA8: 34.8 | CB8: 35.8 | CC8: 36.8 | CD8: 34.2 | CE8: 34.7 | CF8: 35.7 | CG8: 37.1 | CH8: 38.8 | CI8: 40.6 | CJ8: 42.4 | CK8: 44.2 | CL8: 46.1 | CM8: 49.4 | CN8: 52.8 | CO8: 56.7 | CP8: 60.7 | CQ8: 64.5 | CR8: 37.8 | CS8: 39.8 | CT8: 41.8 | CU8: 43.9 | CV8: 45.9 | CW8: 48 | CX8: 50 | CY8: 52 | CZ8: 54.1 | DA8: 56.6 | DB8: 59.2 | DC8: 61.7 | DD8: 64.3 | DE8: 66.8 | DF8: ='اندازه های شخصی'!G9 -> 0 | DG8: ='اندازه های شخصی'!I9 -> 0 | DH8: ='اندازه های شخصی'!K9 -> 0 | DI8: ='اندازه های شخصی'!M9 -> 0 | DJ8: ='اندازه های شخصی'!O9 -> 0 | DK8: ='اندازه های شخصی'!Q9 -> 0 | DL8: ='اندازه های شخصی'!S9 -> 0 | DM8: ='اندازه های شخصی'!U9 -> 0 | DN8: ='اندازه های شخصی'!W9 -> 0 | DO8: ='اندازه های شخصی'!Y9 -> 0 | DP8: ='اندازه های شخصی'!AA9 -> 0 | DQ8: ='اندازه های شخصی'!AC9 -> 0 | DR8: ='اندازه های شخصی'!AE9 -> 0 | DS8: ='اندازه های شخصی'!AG9 -> 0 | DT8: ='اندازه های شخصی'!AI9 -> 0 | DU8: ='اندازه های شخصی'!AK9 -> 0 | DV8: ='اندازه های شخصی'!AM9 -> 0 | DW8: ='اندازه های شخصی'!AO9 -> 0 | DX8: ='اندازه های شخصی'!AQ9 -> 0 | DY8: ='اندازه های شخصی'!AS9 -> 0 | DZ8: ='اندازه های شخصی'!AU9 -> 0 | EA8: ='اندازه های شخصی'!AW9 -> 0 | EB8: ='اندازه های شخصی'!AY9 -> 0 | EC8: ='اندازه های شخصی'!BA9 -> 0 | ED8: ='اندازه های شخصی'!BC9 -> 0 | EE8: ='اندازه های شخصی'!BE9 -> 0 | EF8: ='اندازه های شخصی'!BG9 -> 0 | EG8: ='اندازه های شخصی'!BI9 -> 0 | EH8: ='اندازه های شخصی'!BK9 -> 0 | EI8: ='اندازه های شخصی'!BM9 -> 0 | EJ8: ='اندازه های شخصی'!BO9 -> 0 | EK8: ='اندازه های شخصی'!BQ9 -> 0 | EL8: ='اندازه های شخصی'!BS9 -> 0 | EM8: ='اندازه های شخصی'!BU9 -> 0 | EN8: ='اندازه های شخصی'!BW9 -> 0 | EO8: ='اندازه های شخصی'!BY9 -> 0 | EP8: ='اندازه های شخصی'!CA9 -> 0 | EQ8: ='اندازه های شخصی'!CC9 -> 0 | ER8: ='اندازه های شخصی'!CE9 -> 0 | ES8: ='اندازه های شخصی'!CG9 -> 0
A9: ضریب فاصله لبه چادر تا زمین j0 | B9: (از -0.1 الی 0.5) | C9: =K9*E9+L9 -> 0 | D9: خط زمین=0 خط زانو=1 | E9: ='طراحی همه الگوها'!Q188 -> 10 | F9: ضریب فاصله لبه چادر تا زمین | G9: 10 | H9: 0 | I9: 30 | J9: 1 | K9: =(J9-H9)/(I9-G9) -> 0.05 | L9: =H9-G9*K9 -> -0.5 | M9: -0.1 | N9: =(M9-L9)/K9 -> 8 | O9: 0.5 | P9: =(O9-L9)/K9 -> 20 | Q9: 0 | R9: =(Q9-L9)/K9 -> 10 | T9: c | U9: 43 | V9: 45 | W9: 48 | X9: 50 | Y9: 53 | Z9: 56 | AA9: 59 | AB9: 62 | AC9: 65 | AD9: 68 | AE9: 71 | AF9: 74 | AG9: 77 | AH9: 80 | AI9: 83 | AJ9: 85 | AK9: 89 | AL9: 93 | AM9: 85 | AN9: 89 | AO9: 93 | AP9: 97 | AQ9: 102 | AR9: 107 | AS9: 112 | AT9: 117 | AU9: 122 | AV9: 126 | AW9: 132 | AX9: 138 | AY9: 144 | AZ9: 150 | BA9: 92 | BB9: 96 | BC9: 100 | BD9: 104 | BE9: 108 | BF9: 112 | BG9: 116 | BH9: 120 | BI9: 124 | BJ9: 128 | BK9: 132 | BL9: 136 | BM9: 140 | BN9: 144 | BO9: 50 | BP9: 53 | BQ9: 56 | BR9: 59 | BS9: 62 | BT9: 65 | BU9: 68 | BV9: 71 | BW9: 74 | BX9: 77 | BY9: 80 | BZ9: 83 | CA9: 85 | CB9: 89 | CC9: 93 | CD9: 85 | CE9: 89 | CF9: 93 | CG9: 97 | CH9: 102 | CI9: 107 | CJ9: 112 | CK9: 117 | CL9: 122 | CM9: 126 | CN9: 132 | CO9: 138 | CP9: 144 | CQ9: 150 | CR9: 92 | CS9: 96 | CT9: 100 | CU9: 104 | CV9: 108 | CW9: 112 | CX9: 116 | CY9: 120 | CZ9: 124 | DA9: 128 | DB9: 132 | DC9: 136 | DD9: 140 | DE9: 144 | DF9: ='اندازه های شخصی'!G10 -> 0 | DG9: ='اندازه های شخصی'!I10 -> 0 | DH9: ='اندازه های شخصی'!K10 -> 0 | DI9: ='اندازه های شخصی'!M10 -> 0 | DJ9: ='اندازه های شخصی'!O10 -> 0 | DK9: ='اندازه های شخصی'!Q10 -> 0 | DL9: ='اندازه های شخصی'!S10 -> 0 | DM9: ='اندازه های شخصی'!U10 -> 0 | DN9: ='اندازه های شخصی'!W10 -> 0 | DO9: ='اندازه های شخصی'!Y10 -> 0 | DP9: ='اندازه های شخصی'!AA10 -> 0 | DQ9: ='اندازه های شخصی'!AC10 -> 0 | DR9: ='اندازه های شخصی'!AE10 -> 0 | DS9: ='اندازه های شخصی'!AG10 -> 0 | DT9: ='اندازه های شخصی'!AI10 -> 0 | DU9: ='اندازه های شخصی'!AK10 -> 0 | DV9: ='اندازه های شخصی'!AM10 -> 0 | DW9: ='اندازه های شخصی'!AO10 -> 0 | DX9: ='اندازه های شخصی'!AQ10 -> 0 | DY9: ='اندازه های شخصی'!AS10 -> 0 | DZ9: ='اندازه های شخصی'!AU10 -> 0 | EA9: ='اندازه های شخصی'!AW10 -> 0 | EB9: ='اندازه های شخصی'!AY10 -> 0 | EC9: ='اندازه های شخصی'!BA10 -> 0 | ED9: ='اندازه های شخصی'!BC10 -> 0 | EE9: ='اندازه های شخصی'!BE10 -> 0 | EF9: ='اندازه های شخصی'!BG10 -> 0 | EG9: ='اندازه های شخصی'!BI10 -> 0 | EH9: ='اندازه های شخصی'!BK10 -> 0 | EI9: ='اندازه های شخصی'!BM10 -> 0 | EJ9: ='اندازه های شخصی'!BO10 -> 0 | EK9: ='اندازه های شخصی'!BQ10 -> 0 | EL9: ='اندازه های شخصی'!BS10 -> 0 | EM9: ='اندازه های شخصی'!BU10 -> 0 | EN9: ='اندازه های شخصی'!BW10 -> 0 | EO9: ='اندازه های شخصی'!BY10 -> 0 | EP9: ='اندازه های شخصی'!CA10 -> 0 | EQ9: ='اندازه های شخصی'!CC10 -> 0 | ER9: ='اندازه های شخصی'!CE10 -> 0 | ES9: ='اندازه های شخصی'!CG10 -> 0
A10: ضریب قرارگیری نقطه اتصال جلو چادر به پشت چادر a0 | B10: (از 0.5 الی 1.2) | C10: 1 | D10: روی پیشانی=0.5 بالای گوش=1 | E10: ='طراحی همه الگوها'!Q189 -> 20 | F10: مکان نقطه اتصال جلو چادر به پشت چادر | G10: 10 | H10: 0.5 | I10: 20 | J10: 1 | K10: 0.05 | L10: 0 | M10: 0.5 | N10: 10 | O10: 1.2 | P10: 24 | Q10: 0.5 | R10: 10 | T10: d | U10: 24.1 | V10: 25.2 | W10: 26.9 | X10: 28 | Y10: 29.7 | Z10: 31.4 | AA10: 31.3 | AB10: 32.9 | AC10: 34.5 | AD10: 36 | AE10: 37.6 | AF10: 39.2 | AG10: 40.8 | AH10: 42.4 | AI10: 44 | AJ10: 45.1 | AK10: 47.2 | AL10: 49.3 | AM10: 47.5 | AN10: 49 | AO10: 50.4 | AP10: 51.9 | AQ10: 53.6 | AR10: 55.4 | AS10: 57.2 | AT10: 59 | AU10: 61 | AV10: 63.7 | AW10: 67 | AX10: 70.8 | AY10: 75.3 | AZ10: 79.8 | BA10: 50.6 | BB10: 52.8 | BC10: 55 | BD10: 57.2 | BE10: 59.4 | BF10: 61.6 | BG10: 63.8 | BH10: 66 | BI10: 68.2 | BJ10: 70.4 | BK10: 72.6 | BL10: 74.8 | BM10: 77 | BN10: 79.2 | BO10: 28 | BP10: 29.7 | BQ10: 31.4 | BR10: 31.3 | BS10: 33.5 | BT10: 35.1 | BU10: 36.7 | BV10: 38.3 | BW10: 40 | BX10: 41.6 | BY10: 43.2 | BZ10: 44 | CA10: 45.1 | CB10: 47.2 | CC10: 49.3 | CD10: 47.5 | CE10: 49 | CF10: 50.4 | CG10: 51.9 | CH10: 53.6 | CI10: 55.4 | CJ10: 57.2 | CK10: 59 | CL10: 61 | CM10: 63.7 | CN10: 67 | CO10: 70.8 | CP10: 75.3 | CQ10: 79.8 | CR10: 48.3 | CS10: 50.4 | CT10: 52.5 | CU10: 54.6 | CV10: 56.7 | CW10: 58.8 | CX10: 60.9 | CY10: 63 | CZ10: 65.1 | DA10: 67.2 | DB10: 69.3 | DC10: 71.4 | DD10: 73.5 | DE10: 75.6 | DF10: ='اندازه های شخصی'!G11 -> 0 | DG10: ='اندازه های شخصی'!I11 -> 0 | DH10: ='اندازه های شخصی'!K11 -> 0 | DI10: ='اندازه های شخصی'!M11 -> 0 | DJ10: ='اندازه های شخصی'!O11 -> 0 | DK10: ='اندازه های شخصی'!Q11 -> 0 | DL10: ='اندازه های شخصی'!S11 -> 0 | DM10: ='اندازه های شخصی'!U11 -> 0 | DN10: ='اندازه های شخصی'!W11 -> 0 | DO10: ='اندازه های شخصی'!Y11 -> 0 | DP10: ='اندازه های شخصی'!AA11 -> 0 | DQ10: ='اندازه های شخصی'!AC11 -> 0 | DR10: ='اندازه های شخصی'!AE11 -> 0 | DS10: ='اندازه های شخصی'!AG11 -> 0 | DT10: ='اندازه های شخصی'!AI11 -> 0 | DU10: ='اندازه های شخصی'!AK11 -> 0 | DV10: ='اندازه های شخصی'!AM11 -> 0 | DW10: ='اندازه های شخصی'!AO11 -> 0 | DX10: ='اندازه های شخصی'!AQ11 -> 0 | DY10: ='اندازه های شخصی'!AS11 -> 0 | DZ10: ='اندازه های شخصی'!AU11 -> 0 | EA10: ='اندازه های شخصی'!AW11 -> 0 | EB10: ='اندازه های شخصی'!AY11 -> 0 | EC10: ='اندازه های شخصی'!BA11 -> 0 | ED10: ='اندازه های شخصی'!BC11 -> 0 | EE10: ='اندازه های شخصی'!BE11 -> 0 | EF10: ='اندازه های شخصی'!BG11 -> 0 | EG10: ='اندازه های شخصی'!BI11 -> 0 | EH10: ='اندازه های شخصی'!BK11 -> 0 | EI10: ='اندازه های شخصی'!BM11 -> 0 | EJ10: ='اندازه های شخصی'!BO11 -> 0 | EK10: ='اندازه های شخصی'!BQ11 -> 0 | EL10: ='اندازه های شخصی'!BS11 -> 0 | EM10: ='اندازه های شخصی'!BU11 -> 0 | EN10: ='اندازه های شخصی'!BW11 -> 0 | EO10: ='اندازه های شخصی'!BY11 -> 0 | EP10: ='اندازه های شخصی'!CA11 -> 0 | EQ10: ='اندازه های شخصی'!CC11 -> 0 | ER10: ='اندازه های شخصی'!CE11 -> 0 | ES10: ='اندازه های شخصی'!CG11 -> 0
A11: ضریب گشادی عرضی چادر a1 | B11: (از 0.35 الی 0.53) | C11: 0.45 | D11: بهینه=0.45 | E11: ='طراحی همه الگوها'!Q190 -> 20 | F11: ضریب گشادی عرضی چادر | G11: 21 | H11: 0.46 | I11: 20 | J11: 0.45 | K11: 0.01 | L11: 0.25 | M11: 0.35 | N11: 10 | O11: 0.53 | P11: 28 | Q11: 0.45 | R11: 20 | T11: e | U11: 23 | V11: 25 | W11: 32 | X11: 38 | Y11: 42 | Z11: 48 | AA11: 53.9 | AB11: 60.4 | AC11: 66.4 | AD11: 70.4 | AE11: 74.4 | AF11: 77.9 | AG11: 80.9 | AH11: 84.4 | AI11: 87.9 | AJ11: 91.9 | AK11: 95.9 | AL11: 99.9 | AM11: 101 | AN11: 102 | AO11: 103 | AP11: 104 | AQ11: 104.4 | AR11: 104.9 | AS11: 105.4 | AT11: 105.9 | AU11: 106.4 | AV11: 106.9 | AW11: 107.4 | AX11: 107.9 | AY11: 108.4 | AZ11: 108.9 | BA11: 103.8 | BB11: 105.1 | BC11: 106.5 | BD11: 107.2 | BE11: 107.8 | BF11: 108.4 | BG11: 109 | BH11: 109.6 | BI11: 110.2 | BJ11: 110.7 | BK11: 111.2 | BL11: 111.7 | BM11: 112.2 | BN11: 112.7 | BO11: 38 | BP11: 42 | BQ11: 48 | BR11: 53.9 | BS11: 60.4 | BT11: 66.4 | BU11: 70.4 | BV11: 74.4 | BW11: 77.9 | BX11: 80.9 | BY11: 84.4 | BZ11: 87.9 | CA11: 91.9 | CB11: 95.9 | CC11: 99.9 | CD11: 101 | CE11: 102 | CF11: 103 | CG11: 104 | CH11: 104.4 | CI11: 104.9 | CJ11: 105.4 | CK11: 105.9 | CL11: 106.4 | CM11: 106.9 | CN11: 107.4 | CO11: 107.9 | CP11: 108.4 | CQ11: 108.9 | CR11: 104.7 | CS11: 106.1 | CT11: 107.5 | CU11: 108.2 | CV11: 108.8 | CW11: 109.4 | CX11: 110 | CY11: 110.6 | CZ11: 111.2 | DA11: 111.7 | DB11: 112.2 | DC11: 112.7 | DD11: 113.2 | DE11: 113.7 | DF11: ='اندازه های شخصی'!G12 -> 0 | DG11: ='اندازه های شخصی'!I12 -> 0 | DH11: ='اندازه های شخصی'!K12 -> 0 | DI11: ='اندازه های شخصی'!M12 -> 0 | DJ11: ='اندازه های شخصی'!O12 -> 0 | DK11: ='اندازه های شخصی'!Q12 -> 0 | DL11: ='اندازه های شخصی'!S12 -> 0 | DM11: ='اندازه های شخصی'!U12 -> 0 | DN11: ='اندازه های شخصی'!W12 -> 0 | DO11: ='اندازه های شخصی'!Y12 -> 0 | DP11: ='اندازه های شخصی'!AA12 -> 0 | DQ11: ='اندازه های شخصی'!AC12 -> 0 | DR11: ='اندازه های شخصی'!AE12 -> 0 | DS11: ='اندازه های شخصی'!AG12 -> 0 | DT11: ='اندازه های شخصی'!AI12 -> 0 | DU11: ='اندازه های شخصی'!AK12 -> 0 | DV11: ='اندازه های شخصی'!AM12 -> 0 | DW11: ='اندازه های شخصی'!AO12 -> 0 | DX11: ='اندازه های شخصی'!AQ12 -> 0 | DY11: ='اندازه های شخصی'!AS12 -> 0 | DZ11: ='اندازه های شخصی'!AU12 -> 0 | EA11: ='اندازه های شخصی'!AW12 -> 0 | EB11: ='اندازه های شخصی'!AY12 -> 0 | EC11: ='اندازه های شخصی'!BA12 -> 0 | ED11: ='اندازه های شخصی'!BC12 -> 0 | EE11: ='اندازه های شخصی'!BE12 -> 0 | EF11: ='اندازه های شخصی'!BG12 -> 0 | EG11: ='اندازه های شخصی'!BI12 -> 0 | EH11: ='اندازه های شخصی'!BK12 -> 0 | EI11: ='اندازه های شخصی'!BM12 -> 0 | EJ11: ='اندازه های شخصی'!BO12 -> 0 | EK11: ='اندازه های شخصی'!BQ12 -> 0 | EL11: ='اندازه های شخصی'!BS12 -> 0 | EM11: ='اندازه های شخصی'!BU12 -> 0 | EN11: ='اندازه های شخصی'!BW12 -> 0 | EO11: ='اندازه های شخصی'!BY12 -> 0 | EP11: ='اندازه های شخصی'!CA12 -> 0 | EQ11: ='اندازه های شخصی'!CC12 -> 0 | ER11: ='اندازه های شخصی'!CE12 -> 0 | ES11: ='اندازه های شخصی'!CG12 -> 0
A12: ضریب گشادی دور مچ a2 | B12: (از 1.1 الی 2) | C12: 1.7 | D12: بهینه=1.7 | E12: ='طراحی همه الگوها'!Q191 -> 7 | F12: ضریب گشادی دور مچ | G12: 1 | H12: 1.1 | I12: 0 | J12: 1 | K12: 0.1 | L12: 1 | M12: 1.1 | N12: 1 | O12: 2 | P12: 10 | Q12: 1.7 | R12: 7 | T12: f | U12: 23 | V12: 25 | W12: 32 | X12: 38 | Y12: 42 | Z12: 48 | AA12: 54 | AB12: 60.5 | AC12: 66.5 | AD12: 70.5 | AE12: 74.5 | AF12: 78 | AG12: 81 | AH12: 84.5 | AI12: 88 | AJ12: 92 | AK12: 96 | AL12: 100 | AM12: 102 | AN12: 103 | AO12: 104 | AP12: 105 | AQ12: 105.5 | AR12: 106 | AS12: 106.5 | AT12: 107 | AU12: 107.5 | AV12: 108 | AW12: 108.5 | AX12: 109 | AY12: 109.5 | AZ12: 110 | BA12: 104.8 | BB12: 106.2 | BC12: 107.6 | BD12: 108.3 | BE12: 108.9 | BF12: 109.5 | BG12: 110.1 | BH12: 110.7 | BI12: 111.3 | BJ12: 111.8 | BK12: 112.3 | BL12: 112.8 | BM12: 113.3 | BN12: 113.8 | BO12: 38 | BP12: 42 | BQ12: 48 | BR12: 54 | BS12: 60.5 | BT12: 66.5 | BU12: 70.5 | BV12: 74.5 | BW12: 78 | BX12: 81 | BY12: 84.5 | BZ12: 88 | CA12: 92 | CB12: 96 | CC12: 100 | CD12: 102 | CE12: 103 | CF12: 104 | CG12: 105 | CH12: 105.5 | CI12: 106 | CJ12: 106.5 | CK12: 107 | CL12: 107.5 | CM12: 108 | CN12: 108.5 | CO12: 109 | CP12: 109.5 | CQ12: 110 | CR12: 104.8 | CS12: 106.2 | CT12: 107.6 | CU12: 108.3 | CV12: 108.9 | CW12: 109.5 | CX12: 110.1 | CY12: 110.7 | CZ12: 111.3 | DA12: 111.8 | DB12: 112.3 | DC12: 112.8 | DD12: 113.3 | DE12: 113.8 | DF12: ='اندازه های شخصی'!G13 -> 0 | DG12: ='اندازه های شخصی'!I13 -> 0 | DH12: ='اندازه های شخصی'!K13 -> 0 | DI12: ='اندازه های شخصی'!M13 -> 0 | DJ12: ='اندازه های شخصی'!O13 -> 0 | DK12: ='اندازه های شخصی'!Q13 -> 0 | DL12: ='اندازه های شخصی'!S13 -> 0 | DM12: ='اندازه های شخصی'!U13 -> 0 | DN12: ='اندازه های شخصی'!W13 -> 0 | DO12: ='اندازه های شخصی'!Y13 -> 0 | DP12: ='اندازه های شخصی'!AA13 -> 0 | DQ12: ='اندازه های شخصی'!AC13 -> 0 | DR12: ='اندازه های شخصی'!AE13 -> 0 | DS12: ='اندازه های شخصی'!AG13 -> 0 | DT12: ='اندازه های شخصی'!AI13 -> 0 | DU12: ='اندازه های شخصی'!AK13 -> 0 | DV12: ='اندازه های شخصی'!AM13 -> 0 | DW12: ='اندازه های شخصی'!AO13 -> 0 | DX12: ='اندازه های شخصی'!AQ13 -> 0 | DY12: ='اندازه های شخصی'!AS13 -> 0 | DZ12: ='اندازه های شخصی'!AU13 -> 0 | EA12: ='اندازه های شخصی'!AW13 -> 0 | EB12: ='اندازه های شخصی'!AY13 -> 0 | EC12: ='اندازه های شخصی'!BA13 -> 0 | ED12: ='اندازه های شخصی'!BC13 -> 0 | EE12: ='اندازه های شخصی'!BE13 -> 0 | EF12: ='اندازه های شخصی'!BG13 -> 0 | EG12: ='اندازه های شخصی'!BI13 -> 0 | EH12: ='اندازه های شخصی'!BK13 -> 0 | EI12: ='اندازه های شخصی'!BM13 -> 0 | EJ12: ='اندازه های شخصی'!BO13 -> 0 | EK12: ='اندازه های شخصی'!BQ13 -> 0 | EL12: ='اندازه های شخصی'!BS13 -> 0 | EM12: ='اندازه های شخصی'!BU13 -> 0 | EN12: ='اندازه های شخصی'!BW13 -> 0 | EO12: ='اندازه های شخصی'!BY13 -> 0 | EP12: ='اندازه های شخصی'!CA13 -> 0 | EQ12: ='اندازه های شخصی'!CC13 -> 0 | ER12: ='اندازه های شخصی'!CE13 -> 0 | ES12: ='اندازه های شخصی'!CG13 -> 0
A13: ضریب بلند شدن آستین نسبت به مچ a4 | B13: (از -0.4 الی 0.4) | C13: 0 | D13: آستین تا مچ=0 آستین کوتاه تر از مچ = منفی آستین بلند تر از مچ = مثبت | E13: ='طراحی همه الگوها'!Q192 -> 10 | F13: بلند شدن آستین چادر نسبت به مچ اندام | G13: 30 | H13: -0.45 | I13: 10 | J13: 0 | K13: -0.0225 | L13: 0.225 | M13: -0.4 | N13: 27.77777778 | O13: 0.4 | P13: -7.777777778 | Q13: 0 | R13: 10 | T13: g | U13: 23 | V13: 25 | W13: 32 | X13: 38 | Y13: 42 | Z13: 48 | AA13: 54.1 | AB13: 60.6 | AC13: 66.6 | AD13: 70.6 | AE13: 74.6 | AF13: 78.1 | AG13: 81.1 | AH13: 84.6 | AI13: 88.1 | AJ13: 92.1 | AK13: 96.1 | AL13: 100.1 | AM13: 103 | AN13: 104 | AO13: 105 | AP13: 106.1 | AQ13: 106.6 | AR13: 107.1 | AS13: 107.6 | AT13: 108.1 | AU13: 108.6 | AV13: 109.1 | AW13: 109.6 | AX13: 110.1 | AY13: 110.6 | AZ13: 111.1 | BA13: 105.8 | BB13: 107.3 | BC13: 108.7 | BD13: 109.4 | BE13: 110 | BF13: 110.6 | BG13: 111.2 | BH13: 111.8 | BI13: 112.4 | BJ13: 112.9 | BK13: 113.4 | BL13: 113.9 | BM13: 114.4 | BN13: 114.9 | BO13: 38 | BP13: 42 | BQ13: 48 | BR13: 54.1 | BS13: 60.6 | BT13: 66.6 | BU13: 70.6 | BV13: 74.6 | BW13: 78.1 | BX13: 81.1 | BY13: 84.6 | BZ13: 88.1 | CA13: 92.1 | CB13: 96.1 | CC13: 100.1 | CD13: 103 | CE13: 104 | CF13: 105 | CG13: 106.1 | CH13: 106.6 | CI13: 107.1 | CJ13: 107.6 | CK13: 108.1 | CL13: 108.6 | CM13: 109.1 | CN13: 109.6 | CO13: 110.1 | CP13: 110.6 | CQ13: 111.1 | CR13: 104.9 | CS13: 106.3 | CT13: 107.7 | CU13: 108.4 | CV13: 109 | CW13: 109.6 | CX13: 110.2 | CY13: 110.8 | CZ13: 111.4 | DA13: 111.9 | DB13: 112.4 | DC13: 112.9 | DD13: 113.4 | DE13: 113.9 | DF13: ='اندازه های شخصی'!G14 -> 0 | DG13: ='اندازه های شخصی'!I14 -> 0 | DH13: ='اندازه های شخصی'!K14 -> 0 | DI13: ='اندازه های شخصی'!M14 -> 0 | DJ13: ='اندازه های شخصی'!O14 -> 0 | DK13: ='اندازه های شخصی'!Q14 -> 0 | DL13: ='اندازه های شخصی'!S14 -> 0 | DM13: ='اندازه های شخصی'!U14 -> 0 | DN13: ='اندازه های شخصی'!W14 -> 0 | DO13: ='اندازه های شخصی'!Y14 -> 0 | DP13: ='اندازه های شخصی'!AA14 -> 0 | DQ13: ='اندازه های شخصی'!AC14 -> 0 | DR13: ='اندازه های شخصی'!AE14 -> 0 | DS13: ='اندازه های شخصی'!AG14 -> 0 | DT13: ='اندازه های شخصی'!AI14 -> 0 | DU13: ='اندازه های شخصی'!AK14 -> 0 | DV13: ='اندازه های شخصی'!AM14 -> 0 | DW13: ='اندازه های شخصی'!AO14 -> 0 | DX13: ='اندازه های شخصی'!AQ14 -> 0 | DY13: ='اندازه های شخصی'!AS14 -> 0 | DZ13: ='اندازه های شخصی'!AU14 -> 0 | EA13: ='اندازه های شخصی'!AW14 -> 0 | EB13: ='اندازه های شخصی'!AY14 -> 0 | EC13: ='اندازه های شخصی'!BA14 -> 0 | ED13: ='اندازه های شخصی'!BC14 -> 0 | EE13: ='اندازه های شخصی'!BE14 -> 0 | EF13: ='اندازه های شخصی'!BG14 -> 0 | EG13: ='اندازه های شخصی'!BI14 -> 0 | EH13: ='اندازه های شخصی'!BK14 -> 0 | EI13: ='اندازه های شخصی'!BM14 -> 0 | EJ13: ='اندازه های شخصی'!BO14 -> 0 | EK13: ='اندازه های شخصی'!BQ14 -> 0 | EL13: ='اندازه های شخصی'!BS14 -> 0 | EM13: ='اندازه های شخصی'!BU14 -> 0 | EN13: ='اندازه های شخصی'!BW14 -> 0 | EO13: ='اندازه های شخصی'!BY14 -> 0 | EP13: ='اندازه های شخصی'!CA14 -> 0 | EQ13: ='اندازه های شخصی'!CC14 -> 0 | ER13: ='اندازه های شخصی'!CE14 -> 0 | ES13: ='اندازه های شخصی'!CG14 -> 0
A14: انتخاب چادر تا پایین پیشانی=1 انتخاب چادر تا بالای پیشانی=0 انتخاب چادر روی سر = -1 | B14: -1 یا 0 یا 1 | C14: 0 | E14: ='طراحی همه الگوها'!Q193 -> 2 | F14: انتخاب چادر تا پایین پیشانی=3 انتخاب چادر تا بالای پیشانی=2 انتخاب چادر روی سر = 1 | G14: 2 | H14: 0 | I14: 1 | J14: -1 | K14: 1 | L14: -2 | M14: 0 | N14: 2 | O14: 1 | P14: 3 | Q14: 1 | R14: 3 | T14: h | U14: 7.4 | V14: 8.4 | W14: 11.1 | X14: 13.4 | Y14: 14.9 | Z14: 17.2 | AA14: 24.9 | AB14: 27.4 | AC14: 30.3 | AD14: 32.1 | AE14: 33.9 | AF14: 35.4 | AG14: 36.6 | AH14: 38.2 | AI14: 39.7 | AJ14: 41.4 | AK14: 43.5 | AL14: 45.7 | AM14: 44.5 | AN14: 45 | AO14: 45.5 | AP14: 46 | AQ14: 46 | AR14: 46 | AS14: 46 | AT14: 46 | AU14: 46.3 | AV14: 46.3 | AW14: 46.4 | AX14: 46.5 | AY14: 46.6 | AZ14: 46.7 | BA14: 48.1 | BB14: 48.8 | BC14: 49.6 | BD14: 50 | BE14: 50.4 | BF14: 50.8 | BG14: 51.2 | BH14: 51.5 | BI14: 51.9 | BJ14: 52.3 | BK14: 52.6 | BL14: 53 | BM14: 53.2 | BN14: 53.6 | BO14: 13.4 | BP14: 14.9 | BQ14: 17.2 | BR14: 24.9 | BS14: 27.4 | BT14: 30.3 | BU14: 32.1 | BV14: 33.9 | BW14: 35.4 | BX14: 36.6 | BY14: 38.2 | BZ14: 39.7 | CA14: 41.4 | CB14: 43.5 | CC14: 45.7 | CD14: 44.5 | CE14: 45 | CF14: 45.5 | CG14: 46 | CH14: 46 | CI14: 46 | CJ14: 46 | CK14: 46 | CL14: 46.3 | CM14: 46.3 | CN14: 46.4 | CO14: 46.5 | CP14: 46.6 | CQ14: 46.7 | CR14: 48.1 | CS14: 48.8 | CT14: 49.6 | CU14: 50 | CV14: 50.3 | CW14: 50.8 | CX14: 51.2 | CY14: 51.5 | CZ14: 51.9 | DA14: 52.3 | DB14: 52.6 | DC14: 52.9 | DD14: 53.3 | DE14: 53.6 | DF14: ='اندازه های شخصی'!G15 -> 0 | DG14: ='اندازه های شخصی'!I15 -> 0 | DH14: ='اندازه های شخصی'!K15 -> 0 | DI14: ='اندازه های شخصی'!M15 -> 0 | DJ14: ='اندازه های شخصی'!O15 -> 0 | DK14: ='اندازه های شخصی'!Q15 -> 0 | DL14: ='اندازه های شخصی'!S15 -> 0 | DM14: ='اندازه های شخصی'!U15 -> 0 | DN14: ='اندازه های شخصی'!W15 -> 0 | DO14: ='اندازه های شخصی'!Y15 -> 0 | DP14: ='اندازه های شخصی'!AA15 -> 0 | DQ14: ='اندازه های شخصی'!AC15 -> 0 | DR14: ='اندازه های شخصی'!AE15 -> 0 | DS14: ='اندازه های شخصی'!AG15 -> 0 | DT14: ='اندازه های شخصی'!AI15 -> 0 | DU14: ='اندازه های شخصی'!AK15 -> 0 | DV14: ='اندازه های شخصی'!AM15 -> 0 | DW14: ='اندازه های شخصی'!AO15 -> 0 | DX14: ='اندازه های شخصی'!AQ15 -> 0 | DY14: ='اندازه های شخصی'!AS15 -> 0 | DZ14: ='اندازه های شخصی'!AU15 -> 0 | EA14: ='اندازه های شخصی'!AW15 -> 0 | EB14: ='اندازه های شخصی'!AY15 -> 0 | EC14: ='اندازه های شخصی'!BA15 -> 0 | ED14: ='اندازه های شخصی'!BC15 -> 0 | EE14: ='اندازه های شخصی'!BE15 -> 0 | EF14: ='اندازه های شخصی'!BG15 -> 0 | EG14: ='اندازه های شخصی'!BI15 -> 0 | EH14: ='اندازه های شخصی'!BK15 -> 0 | EI14: ='اندازه های شخصی'!BM15 -> 0 | EJ14: ='اندازه های شخصی'!BO15 -> 0 | EK14: ='اندازه های شخصی'!BQ15 -> 0 | EL14: ='اندازه های شخصی'!BS15 -> 0 | EM14: ='اندازه های شخصی'!BU15 -> 0 | EN14: ='اندازه های شخصی'!BW15 -> 0 | EO14: ='اندازه های شخصی'!BY15 -> 0 | EP14: ='اندازه های شخصی'!CA15 -> 0 | EQ14: ='اندازه های شخصی'!CC15 -> 0 | ER14: ='اندازه های شخصی'!CE15 -> 0 | ES14: ='اندازه های شخصی'!CG15 -> 0
T15: j | U15: 15.8 | V15: 17.9 | W15: 23.8 | X15: 28.7 | Y15: 31.8 | Z15: 36.7 | AA15: 45.2 | AB15: 49.8 | AC15: 55.1 | AD15: 58.3 | AE15: 61.6 | AF15: 64.3 | AG15: 66.5 | AH15: 69.4 | AI15: 72.1 | AJ15: 75.3 | AK15: 79.1 | AL15: 83 | AM15: 82.5 | AN15: 82.7 | AO15: 83.4 | AP15: 84.1 | AQ15: 84.3 | AR15: 84.5 | AS15: 84.7 | AT15: 85 | AU15: 85.3 | AV15: 85.7 | AW15: 86.1 | AX15: 86.5 | AY15: 86.9 | AZ15: 87.3 | BA15: 87.4 | BB15: 88.8 | BC15: 90.2 | BD15: 90.9 | BE15: 91.6 | BF15: 92.3 | BG15: 93 | BH15: 93.7 | BI15: 94.3 | BJ15: 95 | BK15: 95.7 | BL15: 96.3 | BM15: 96.8 | BN15: 97.5 | BO15: 28.7 | BP15: 31.8 | BQ15: 36.7 | BR15: 45.2 | BS15: 49.8 | BT15: 55.1 | BU15: 58.3 | BV15: 61.6 | BW15: 64.3 | BX15: 66.5 | BY15: 69.4 | BZ15: 72.1 | CA15: 75.3 | CB15: 79.1 | CC15: 83 | CD15: 82.5 | CE15: 82.7 | CF15: 83.4 | CG15: 84.1 | CH15: 84.3 | CI15: 84.5 | CJ15: 84.7 | CK15: 85 | CL15: 85.3 | CM15: 85.7 | CN15: 86.1 | CO15: 86.5 | CP15: 86.9 | CQ15: 87.3 | CR15: 87.4 | CS15: 88.8 | CT15: 90.2 | CU15: 90.9 | CV15: 91.5 | CW15: 92.3 | CX15: 93 | CY15: 93.6 | CZ15: 94.4 | DA15: 95 | DB15: 95.7 | DC15: 96.2 | DD15: 96.9 | DE15: 97.5 | DF15: ='اندازه های شخصی'!G16 -> 0 | DG15: ='اندازه های شخصی'!I16 -> 0 | DH15: ='اندازه های شخصی'!K16 -> 0 | DI15: ='اندازه های شخصی'!M16 -> 0 | DJ15: ='اندازه های شخصی'!O16 -> 0 | DK15: ='اندازه های شخصی'!Q16 -> 0 | DL15: ='اندازه های شخصی'!S16 -> 0 | DM15: ='اندازه های شخصی'!U16 -> 0 | DN15: ='اندازه های شخصی'!W16 -> 0 | DO15: ='اندازه های شخصی'!Y16 -> 0 | DP15: ='اندازه های شخصی'!AA16 -> 0 | DQ15: ='اندازه های شخصی'!AC16 -> 0 | DR15: ='اندازه های شخصی'!AE16 -> 0 | DS15: ='اندازه های شخصی'!AG16 -> 0 | DT15: ='اندازه های شخصی'!AI16 -> 0 | DU15: ='اندازه های شخصی'!AK16 -> 0 | DV15: ='اندازه های شخصی'!AM16 -> 0 | DW15: ='اندازه های شخصی'!AO16 -> 0 | DX15: ='اندازه های شخصی'!AQ16 -> 0 | DY15: ='اندازه های شخصی'!AS16 -> 0 | DZ15: ='اندازه های شخصی'!AU16 -> 0 | EA15: ='اندازه های شخصی'!AW16 -> 0 | EB15: ='اندازه های شخصی'!AY16 -> 0 | EC15: ='اندازه های شخصی'!BA16 -> 0 | ED15: ='اندازه های شخصی'!BC16 -> 0 | EE15: ='اندازه های شخصی'!BE16 -> 0 | EF15: ='اندازه های شخصی'!BG16 -> 0 | EG15: ='اندازه های شخصی'!BI16 -> 0 | EH15: ='اندازه های شخصی'!BK16 -> 0 | EI15: ='اندازه های شخصی'!BM16 -> 0 | EJ15: ='اندازه های شخصی'!BO16 -> 0 | EK15: ='اندازه های شخصی'!BQ16 -> 0 | EL15: ='اندازه های شخصی'!BS16 -> 0 | EM15: ='اندازه های شخصی'!BU16 -> 0 | EN15: ='اندازه های شخصی'!BW16 -> 0 | EO15: ='اندازه های شخصی'!BY16 -> 0 | EP15: ='اندازه های شخصی'!CA16 -> 0 | EQ15: ='اندازه های شخصی'!CC16 -> 0 | ER15: ='اندازه های شخصی'!CE16 -> 0 | ES15: ='اندازه های شخصی'!CG16 -> 0
A16: متغیرهای ورودی چادر شماره 3 | F16: متغیرهای ورودی چادر شماره 3 | G16: x1 | H16: y1 | I16: x2 | J16: y2(بهینه) | K16: a | L16: b | N16: کمترین | P16: بیشترین | T16: L | U16: 17.6 | V16: 18.5 | W16: 19.7 | X16: 20.5 | Y16: 21.7 | Z16: 23 | AA16: 24.2 | AB16: 25.4 | AC16: 26.7 | AD16: 27.9 | AE16: 29.1 | AF16: 30.3 | AG16: 31.6 | AH16: 32.8 | AI16: 34 | AJ16: 34.9 | AK16: 36.5 | AL16: 38.1 | AM16: 34.9 | AN16: 36.5 | AO16: 38.1 | AP16: 39.8 | AQ16: 41.8 | AR16: 43.9 | AS16: 45.9 | AT16: 48 | AU16: 50 | AV16: 51.7 | AW16: 54.1 | AX16: 56.6 | AY16: 59 | AZ16: 61.5 | BA16: 37.7 | BB16: 39.4 | BC16: 41 | BD16: 42.6 | BE16: 44.3 | BF16: 45.9 | BG16: 47.6 | BH16: 49.2 | BI16: 50.8 | BJ16: 52.5 | BK16: 54.1 | BL16: 55.8 | BM16: 57.4 | BN16: 59 | BO16: 20.5 | BP16: 21.7 | BQ16: 23 | BR16: 24.2 | BS16: 25.4 | BT16: 26.7 | BU16: 27.9 | BV16: 29.1 | BW16: 30.3 | BX16: 31.6 | BY16: 32.8 | BZ16: 34 | CA16: 34.9 | CB16: 36.5 | CC16: 38.1 | CD16: 34.9 | CE16: 36.5 | CF16: 38.1 | CG16: 39.8 | CH16: 41.8 | CI16: 43.9 | CJ16: 45.9 | CK16: 48 | CL16: 50 | CM16: 51.7 | CN16: 54.1 | CO16: 56.6 | CP16: 59 | CQ16: 61.5 | CR16: 37.7 | CS16: 39.4 | CT16: 41 | CU16: 42.6 | CV16: 44.3 | CW16: 45.9 | CX16: 47.6 | CY16: 49.2 | CZ16: 50.8 | DA16: 52.5 | DB16: 54.1 | DC16: 55.8 | DD16: 57.4 | DE16: 59 | DF16: ='اندازه های شخصی'!G17 -> 0 | DG16: ='اندازه های شخصی'!I17 -> 0 | DH16: ='اندازه های شخصی'!K17 -> 0 | DI16: ='اندازه های شخصی'!M17 -> 0 | DJ16: ='اندازه های شخصی'!O17 -> 0 | DK16: ='اندازه های شخصی'!Q17 -> 0 | DL16: ='اندازه های شخصی'!S17 -> 0 | DM16: ='اندازه های شخصی'!U17 -> 0 | DN16: ='اندازه های شخصی'!W17 -> 0 | DO16: ='اندازه های شخصی'!Y17 -> 0 | DP16: ='اندازه های شخصی'!AA17 -> 0 | DQ16: ='اندازه های شخصی'!AC17 -> 0 | DR16: ='اندازه های شخصی'!AE17 -> 0 | DS16: ='اندازه های شخصی'!AG17 -> 0 | DT16: ='اندازه های شخصی'!AI17 -> 0 | DU16: ='اندازه های شخصی'!AK17 -> 0 | DV16: ='اندازه های شخصی'!AM17 -> 0 | DW16: ='اندازه های شخصی'!AO17 -> 0 | DX16: ='اندازه های شخصی'!AQ17 -> 0 | DY16: ='اندازه های شخصی'!AS17 -> 0 | DZ16: ='اندازه های شخصی'!AU17 -> 0 | EA16: ='اندازه های شخصی'!AW17 -> 0 | EB16: ='اندازه های شخصی'!AY17 -> 0 | EC16: ='اندازه های شخصی'!BA17 -> 0 | ED16: ='اندازه های شخصی'!BC17 -> 0 | EE16: ='اندازه های شخصی'!BE17 -> 0 | EF16: ='اندازه های شخصی'!BG17 -> 0 | EG16: ='اندازه های شخصی'!BI17 -> 0 | EH16: ='اندازه های شخصی'!BK17 -> 0 | EI16: ='اندازه های شخصی'!BM17 -> 0 | EJ16: ='اندازه های شخصی'!BO17 -> 0 | EK16: ='اندازه های شخصی'!BQ17 -> 0 | EL16: ='اندازه های شخصی'!BS17 -> 0 | EM16: ='اندازه های شخصی'!BU17 -> 0 | EN16: ='اندازه های شخصی'!BW17 -> 0 | EO16: ='اندازه های شخصی'!BY17 -> 0 | EP16: ='اندازه های شخصی'!CA17 -> 0 | EQ16: ='اندازه های شخصی'!CC17 -> 0 | ER16: ='اندازه های شخصی'!CE17 -> 0 | ES16: ='اندازه های شخصی'!CG17 -> 0
A17: ضریب فاصله لبه چادر تا زمین j0 | B17: (از -0.1 الی 0.5) | C17: =K17*E17+L17 -> 0 | D17: خط زمین=0 خط زانو=1 | E17: ='طراحی همه الگوها'!Q210 -> 10 | F17: ضریب فاصله لبه چادر تا زمین | G17: 10 | H17: 0 | I17: 30 | J17: 1 | K17: =(J17-H17)/(I17-G17) -> 0.05 | L17: =H17-G17*K17 -> -0.5 | M17: -0.1 | N17: =(M17-L17)/K17 -> 8 | O17: 0.5 | P17: =(O17-L17)/K17 -> 20 | Q17: 0 | R17: =(Q17-L17)/K17 -> 10 | T17: m | U17: 10 | V17: 10 | W17: 11 | X17: 12 | Y17: 13 | Z17: 14 | AA17: 14 | AB17: 16 | AC17: 17 | AD17: 18 | AE17: 19 | AF17: 20 | AG17: 21 | AH17: 22 | AI17: 23 | AJ17: 24 | AK17: 24.5 | AL17: 25 | AM17: 25.1 | AN17: 25.8 | AO17: 26.4 | AP17: 27.1 | AQ17: 27.8 | AR17: 28.4 | AS17: 29.1 | AT17: 29.7 | AU17: 30.3 | AV17: 31 | AW17: 31.6 | AX17: 32.3 | AY17: 32.9 | AZ17: 33.5 | BA17: 23.1 | BB17: 23.5 | BC17: 23.8 | BD17: 24.2 | BE17: 24.5 | BF17: 24.7 | BG17: 25 | BH17: 25.3 | BI17: 25.6 | BJ17: 25.8 | BK17: 26.1 | BL17: 26.4 | BM17: 26.7 | BN17: 26.9 | BO17: 12 | BP17: 13 | BQ17: 14 | BR17: 14 | BS17: 16 | BT17: 17 | BU17: 18 | BV17: 19 | BW17: 20 | BX17: 21 | BY17: 22 | BZ17: 23 | CA17: 24 | CB17: 24.5 | CC17: 25 | CD17: 25.1 | CE17: 25.8 | CF17: 26.4 | CG17: 27.1 | CH17: 27.8 | CI17: 28.4 | CJ17: 29.1 | CK17: 29.7 | CL17: 30.3 | CM17: 31 | CN17: 31.6 | CO17: 32.3 | CP17: 32.9 | CQ17: 33.5 | CR17: 23.1 | CS17: 23.5 | CT17: 23.8 | CU17: 24.2 | CV17: 24.5 | CW17: 24.7 | CX17: 25 | CY17: 25.3 | CZ17: 25.5 | DA17: 25.8 | DB17: 26.1 | DC17: 26.4 | DD17: 26.6 | DE17: 26.9 | DF17: ='اندازه های شخصی'!G18 -> 0 | DG17: ='اندازه های شخصی'!I18 -> 0 | DH17: ='اندازه های شخصی'!K18 -> 0 | DI17: ='اندازه های شخصی'!M18 -> 0 | DJ17: ='اندازه های شخصی'!O18 -> 0 | DK17: ='اندازه های شخصی'!Q18 -> 0 | DL17: ='اندازه های شخصی'!S18 -> 0 | DM17: ='اندازه های شخصی'!U18 -> 0 | DN17: ='اندازه های شخصی'!W18 -> 0 | DO17: ='اندازه های شخصی'!Y18 -> 0 | DP17: ='اندازه های شخصی'!AA18 -> 0 | DQ17: ='اندازه های شخصی'!AC18 -> 0 | DR17: ='اندازه های شخصی'!AE18 -> 0 | DS17: ='اندازه های شخصی'!AG18 -> 0 | DT17: ='اندازه های شخصی'!AI18 -> 0 | DU17: ='اندازه های شخصی'!AK18 -> 0 | DV17: ='اندازه های شخصی'!AM18 -> 0 | DW17: ='اندازه های شخصی'!AO18 -> 0 | DX17: ='اندازه های شخصی'!AQ18 -> 0 | DY17: ='اندازه های شخصی'!AS18 -> 0 | DZ17: ='اندازه های شخصی'!AU18 -> 0 | EA17: ='اندازه های شخصی'!AW18 -> 0 | EB17: ='اندازه های شخصی'!AY18 -> 0 | EC17: ='اندازه های شخصی'!BA18 -> 0 | ED17: ='اندازه های شخصی'!BC18 -> 0 | EE17: ='اندازه های شخصی'!BE18 -> 0 | EF17: ='اندازه های شخصی'!BG18 -> 0 | EG17: ='اندازه های شخصی'!BI18 -> 0 | EH17: ='اندازه های شخصی'!BK18 -> 0 | EI17: ='اندازه های شخصی'!BM18 -> 0 | EJ17: ='اندازه های شخصی'!BO18 -> 0 | EK17: ='اندازه های شخصی'!BQ18 -> 0 | EL17: ='اندازه های شخصی'!BS18 -> 0 | EM17: ='اندازه های شخصی'!BU18 -> 0 | EN17: ='اندازه های شخصی'!BW18 -> 0 | EO17: ='اندازه های شخصی'!BY18 -> 0 | EP17: ='اندازه های شخصی'!CA18 -> 0 | EQ17: ='اندازه های شخصی'!CC18 -> 0 | ER17: ='اندازه های شخصی'!CE18 -> 0 | ES17: ='اندازه های شخصی'!CG18 -> 0
A18: ضریب گشادی دور مچ b2 | B18: (از 1.1 الی 2) | C18: 1.5 | D18: بهینه=1.5 | E18: ='طراحی همه الگوها'!Q211 -> 5 | F18: ضریب گشادی دور مچ | G18: 1 | H18: 1.1 | I18: 0 | J18: 1 | K18: 0.1 | L18: 1 | M18: 1.1 | N18: 1 | O18: 2 | P18: 10 | Q18: 1.5 | R18: 5 | T18: q | U18: 29.1 | V18: 29.6 | W18: 32.8 | X18: 35.7 | Y18: 38.5 | Z18: 41.7 | AA18: 37.7 | AB18: 42.6 | AC18: 45 | AD18: 47.6 | AE18: 50 | AF18: 52.7 | AG18: 55.3 | AH18: 57.7 | AI18: 60.3 | AJ18: 62.6 | AK18: 64.4 | AL18: 66 | AM18: 65.2 | AN18: 67.2 | AO18: 69.2 | AP18: 71.1 | AQ18: 73.4 | AR18: 75.2 | AS18: 77.3 | AT18: 79.4 | AU18: 81.2 | AV18: 83.3 | AW18: 85.3 | AX18: 87.5 | AY18: 89.7 | AZ18: 91.7 | BA18: 66.5 | BB18: 67.8 | BC18: 69.2 | BD18: 70.5 | BE18: 71.6 | BF18: 72.8 | BG18: 73.9 | BH18: 75.1 | BI18: 76.4 | BJ18: 77.4 | BK18: 78.5 | BL18: 79.6 | BM18: 80.9 | BN18: 81.8 | BO18: 35.7 | BP18: 38.5 | BQ18: 41.7 | BR18: 37.7 | BS18: 42.6 | BT18: 45 | BU18: 47.6 | BV18: 50.1 | BW18: 52.7 | BX18: 55.3 | BY18: 57.7 | BZ18: 60.3 | CA18: 62.6 | CB18: 64.4 | CC18: 66 | CD18: 65.2 | CE18: 67.2 | CF18: 69.2 | CG18: 71.1 | CH18: 73.4 | CI18: 75.2 | CJ18: 77.3 | CK18: 79.4 | CL18: 81.2 | CM18: 83.3 | CN18: 85.3 | CO18: 87.5 | CP18: 89.7 | CQ18: 91.7 | CR18: 66.3 | CS18: 67.7 | CT18: 69 | CU18: 70.3 | CV18: 71.7 | CW18: 72.6 | CX18: 73.8 | CY18: 75.1 | CZ18: 76.1 | DA18: 77.2 | DB18: 78.3 | DC18: 79.6 | DD18: 80.5 | DE18: 81.7 | DF18: ='اندازه های شخصی'!G19 -> 0 | DG18: ='اندازه های شخصی'!I19 -> 0 | DH18: ='اندازه های شخصی'!K19 -> 0 | DI18: ='اندازه های شخصی'!M19 -> 0 | DJ18: ='اندازه های شخصی'!O19 -> 0 | DK18: ='اندازه های شخصی'!Q19 -> 0 | DL18: ='اندازه های شخصی'!S19 -> 0 | DM18: ='اندازه های شخصی'!U19 -> 0 | DN18: ='اندازه های شخصی'!W19 -> 0 | DO18: ='اندازه های شخصی'!Y19 -> 0 | DP18: ='اندازه های شخصی'!AA19 -> 0 | DQ18: ='اندازه های شخصی'!AC19 -> 0 | DR18: ='اندازه های شخصی'!AE19 -> 0 | DS18: ='اندازه های شخصی'!AG19 -> 0 | DT18: ='اندازه های شخصی'!AI19 -> 0 | DU18: ='اندازه های شخصی'!AK19 -> 0 | DV18: ='اندازه های شخصی'!AM19 -> 0 | DW18: ='اندازه های شخصی'!AO19 -> 0 | DX18: ='اندازه های شخصی'!AQ19 -> 0 | DY18: ='اندازه های شخصی'!AS19 -> 0 | DZ18: ='اندازه های شخصی'!AU19 -> 0 | EA18: ='اندازه های شخصی'!AW19 -> 0 | EB18: ='اندازه های شخصی'!AY19 -> 0 | EC18: ='اندازه های شخصی'!BA19 -> 0 | ED18: ='اندازه های شخصی'!BC19 -> 0 | EE18: ='اندازه های شخصی'!BE19 -> 0 | EF18: ='اندازه های شخصی'!BG19 -> 0 | EG18: ='اندازه های شخصی'!BI19 -> 0 | EH18: ='اندازه های شخصی'!BK19 -> 0 | EI18: ='اندازه های شخصی'!BM19 -> 0 | EJ18: ='اندازه های شخصی'!BO19 -> 0 | EK18: ='اندازه های شخصی'!BQ19 -> 0 | EL18: ='اندازه های شخصی'!BS19 -> 0 | EM18: ='اندازه های شخصی'!BU19 -> 0 | EN18: ='اندازه های شخصی'!BW19 -> 0 | EO18: ='اندازه های شخصی'!BY19 -> 0 | EP18: ='اندازه های شخصی'!CA19 -> 0 | EQ18: ='اندازه های شخصی'!CC19 -> 0 | ER18: ='اندازه های شخصی'!CE19 -> 0 | ES18: ='اندازه های شخصی'!CG19 -> 0
A19: ضریب بلندی طول مچ b3 معادل ضریب تنگی پایین چادر | B19: (از0 الی 0.4) | C19: 0.15 | D19: بهینه=0.15 | E19: ='طراحی همه الگوها'!Q212 -> 15 | F19: گشادی پایین چادر (معادل بلندی طول مچ) | G19: 1 | H19: 0.01 | I19: 0 | J19: 0 | K19: 0.01 | L19: 0 | M19: 0 | N19: 0 | O19: 0.4 | P19: 40 | Q19: 0.15 | R19: 15 | T19: r | U19: 13.5 | V19: 13.5 | W19: 14.2 | X19: 14.9 | Y19: 16.2 | Z19: 16.2 | AA19: 17.6 | AB19: 17.6 | AC19: 17.6 | AD19: 18.9 | AE19: 18.9 | AF19: 20.3 | AG19: 21.6 | AH19: 20.3 | AI19: 21.6 | AJ19: 22.3 | AK19: 23 | AL19: 23.6 | AM19: 23 | AN19: 23.5 | AO19: 24 | AP19: 24.5 | AQ19: 25.1 | AR19: 25.7 | AS19: 26.3 | AT19: 26.9 | AU19: 27.5 | AV19: 28 | AW19: 28.5 | AX19: 29 | AY19: 29.5 | AZ19: 30 | BA19: 24 | BB19: 25 | BC19: 26 | BD19: 27 | BE19: 28 | BF19: 29 | BG19: 29 | BH19: 29 | BI19: 29 | BJ19: 29.4 | BK19: 29.8 | BL19: 30.2 | BM19: 32.6 | BN19: 31 | BO19: 14.9 | BP19: 16.2 | BQ19: 16.2 | BR19: 17.6 | BS19: 17.6 | BT19: 17.6 | BU19: 18.9 | BV19: 18.9 | BW19: 20.3 | BX19: 21.6 | BY19: 20.3 | BZ19: 21.6 | CA19: 22.3 | CB19: 23 | CC19: 23.6 | CD19: 23 | CE19: 23.5 | CF19: 24 | CG19: 24.5 | CH19: 25.1 | CI19: 25.7 | CJ19: 26.3 | CK19: 26.9 | CL19: 27.5 | CM19: 28 | CN19: 28.5 | CO19: 29 | CP19: 29.5 | CQ19: 30 | CR19: 24 | CS19: 25 | CT19: 26 | CU19: 27 | CV19: 28 | CW19: 29 | CX19: 29 | CY19: 29 | CZ19: 29 | DA19: 29.4 | DB19: 29.8 | DC19: 30.2 | DD19: 32.6 | DE19: 31 | DF19: ='اندازه های شخصی'!G20 -> 0 | DG19: ='اندازه های شخصی'!I20 -> 0 | DH19: ='اندازه های شخصی'!K20 -> 0 | DI19: ='اندازه های شخصی'!M20 -> 0 | DJ19: ='اندازه های شخصی'!O20 -> 0 | DK19: ='اندازه های شخصی'!Q20 -> 0 | DL19: ='اندازه های شخصی'!S20 -> 0 | DM19: ='اندازه های شخصی'!U20 -> 0 | DN19: ='اندازه های شخصی'!W20 -> 0 | DO19: ='اندازه های شخصی'!Y20 -> 0 | DP19: ='اندازه های شخصی'!AA20 -> 0 | DQ19: ='اندازه های شخصی'!AC20 -> 0 | DR19: ='اندازه های شخصی'!AE20 -> 0 | DS19: ='اندازه های شخصی'!AG20 -> 0 | DT19: ='اندازه های شخصی'!AI20 -> 0 | DU19: ='اندازه های شخصی'!AK20 -> 0 | DV19: ='اندازه های شخصی'!AM20 -> 0 | DW19: ='اندازه های شخصی'!AO20 -> 0 | DX19: ='اندازه های شخصی'!AQ20 -> 0 | DY19: ='اندازه های شخصی'!AS20 -> 0 | DZ19: ='اندازه های شخصی'!AU20 -> 0 | EA19: ='اندازه های شخصی'!AW20 -> 0 | EB19: ='اندازه های شخصی'!AY20 -> 0 | EC19: ='اندازه های شخصی'!BA20 -> 0 | ED19: ='اندازه های شخصی'!BC20 -> 0 | EE19: ='اندازه های شخصی'!BE20 -> 0 | EF19: ='اندازه های شخصی'!BG20 -> 0 | EG19: ='اندازه های شخصی'!BI20 -> 0 | EH19: ='اندازه های شخصی'!BK20 -> 0 | EI19: ='اندازه های شخصی'!BM20 -> 0 | EJ19: ='اندازه های شخصی'!BO20 -> 0 | EK19: ='اندازه های شخصی'!BQ20 -> 0 | EL19: ='اندازه های شخصی'!BS20 -> 0 | EM19: ='اندازه های شخصی'!BU20 -> 0 | EN19: ='اندازه های شخصی'!BW20 -> 0 | EO19: ='اندازه های شخصی'!BY20 -> 0 | EP19: ='اندازه های شخصی'!CA20 -> 0 | EQ19: ='اندازه های شخصی'!CC20 -> 0 | ER19: ='اندازه های شخصی'!CE20 -> 0 | ES19: ='اندازه های شخصی'!CG20 -> 0
A20: ضریب بلند شدن آستین نسبت به مچ b5 | B20: (از -0.4 الی 0.4) | C20: 0 | D20: آستین تا مچ=0 آستین کوتاه تر از مچ = منفی آستین بلند تر از مچ = مثبت | E20: ='طراحی همه الگوها'!Q213 -> 10 | F20: بلند شدن آستین چادر نسبت به مچ اندام | G20: 30 | H20: -0.45 | I20: 10 | J20: 0 | K20: -0.0225 | L20: 0.225 | M20: -0.4 | N20: 27.77777778 | O20: 0.4 | P20: -7.777777778 | Q20: 0 | R20: 10
A21: عرض پارچه به سانتیمتر b1 | B21: (از 90 الی 200) | C21: 110 | D21: 90 یا 100 یا 110 115 یا 120 یا ... | E21: ='طراحی همه الگوها'!Q214 -> 110 | F21: عرض پارچه | G21: 2 | H21: 2 | I21: 1 | J21: 1 | K21: 1 | L21: 0 | M21: 90 | N21: 90 | O21: 200 | P21: 200 | Q21: 100 | R21: 100 | U21: 2 | V21: 2 | W21: 2 | X21: 2 | Y21: 2 | Z21: 2 | AA21: 0 | AB21: 0 | AC21: 0 | AD21: 0 | AE21: 0 | AF21: 0 | AG21: 0 | AH21: 0 | AI21: 0 | AJ21: 0 | AK21: 0 | AL21: 0 | AM21: 0 | AN21: 0 | AO21: 0 | AP21: 0 | AQ21: 0 | AR21: 0 | AS21: 0 | AT21: 0 | AU21: 0 | AV21: 0 | AW21: 0 | AX21: 0 | AY21: 0 | AZ21: 0 | BA21: 1 | BB21: 1 | BC21: 1 | BD21: 1 | BE21: 1 | BF21: 1 | BG21: 1 | BH21: 1 | BI21: 1 | BJ21: 1 | BK21: 1 | BL21: 1 | BM21: 1 | BN21: 1 | BO21: 2 | BP21: 2 | BQ21: 2 | BR21: 0 | BS21: 0 | BT21: 0 | BU21: 0 | BV21: 0 | BW21: 0 | BX21: 0 | BY21: 0 | BZ21: 0 | CA21: 0 | CB21: 0 | CC21: 0 | CD21: 0 | CE21: 0 | CF21: 0 | CG21: 0 | CH21: 0 | CI21: 0 | CJ21: 0 | CK21: 0 | CL21: 0 | CM21: 0 | CN21: 0 | CO21: 0 | CP21: 0 | CQ21: 0 | CR21: 1 | CS21: 1 | CT21: 1 | CU21: 1 | CV21: 1 | CW21: 1 | CX21: 1 | CY21: 1 | CZ21: 1 | DA21: 1 | DB21: 1 | DC21: 1 | DD21: 1 | DE21: 1 | DF21: ='اندازه های شخصی'!G21 -> 0 | DG21: ='اندازه های شخصی'!I21 -> 0 | DH21: ='اندازه های شخصی'!K21 -> 0 | DI21: ='اندازه های شخصی'!M21 -> 0 | DJ21: ='اندازه های شخصی'!O21 -> 0 | DK21: ='اندازه های شخصی'!Q21 -> 0 | DL21: ='اندازه های شخصی'!S21 -> 0 | DM21: ='اندازه های شخصی'!U21 -> 0 | DN21: ='اندازه های شخصی'!W21 -> 0 | DO21: ='اندازه های شخصی'!Y21 -> 0 | DP21: ='اندازه های شخصی'!AA21 -> 0 | DQ21: ='اندازه های شخصی'!AC21 -> 0 | DR21: ='اندازه های شخصی'!AE21 -> 0 | DS21: ='اندازه های شخصی'!AG21 -> 0 | DT21: ='اندازه های شخصی'!AI21 -> 0 | DU21: ='اندازه های شخصی'!AK21 -> 0 | DV21: ='اندازه های شخصی'!AM21 -> 0 | DW21: ='اندازه های شخصی'!AO21 -> 0 | DX21: ='اندازه های شخصی'!AQ21 -> 0 | DY21: ='اندازه های شخصی'!AS21 -> 0 | DZ21: ='اندازه های شخصی'!AU21 -> 0 | EA21: ='اندازه های شخصی'!AW21 -> 0 | EB21: ='اندازه های شخصی'!AY21 -> 0 | EC21: ='اندازه های شخصی'!BA21 -> 0 | ED21: ='اندازه های شخصی'!BC21 -> 0 | EE21: ='اندازه های شخصی'!BE21 -> 0 | EF21: ='اندازه های شخصی'!BG21 -> 0 | EG21: ='اندازه های شخصی'!BI21 -> 0 | EH21: ='اندازه های شخصی'!BK21 -> 0 | EI21: ='اندازه های شخصی'!BM21 -> 0 | EJ21: ='اندازه های شخصی'!BO21 -> 0 | EK21: ='اندازه های شخصی'!BQ21 -> 0 | EL21: ='اندازه های شخصی'!BS21 -> 0 | EM21: ='اندازه های شخصی'!BU21 -> 0 | EN21: ='اندازه های شخصی'!BW21 -> 0 | EO21: ='اندازه های شخصی'!BY21 -> 0 | EP21: ='اندازه های شخصی'!CA21 -> 0 | EQ21: ='اندازه های شخصی'!CC21 -> 0 | ER21: ='اندازه های شخصی'!CE21 -> 0 | ES21: ='اندازه های شخصی'!CG21 -> 0
A22: انتخاب چادر تا پایین پیشانی=1 انتخاب چادر تا بالای پیشانی=0 انتخاب چادر روی سر = -1 | B22: -1 یا 0 یا 1 | C22: 0 | E22: ='طراحی همه الگوها'!Q215 -> 2 | F22: انتخاب چادر تا پایین پیشانی=3 انتخاب چادر تا بالای پیشانی=2 انتخاب چادر روی سر = 1 | G22: 2 | H22: 0 | I22: 1 | J22: -1 | K22: 1 | L22: -2 | M22: 0 | N22: 2 | O22: 2 | P22: 4 | Q22: 1 | R22: 3
A24: متغیرهای ورودی چادر شماره 4 | F24: متغیرهای ورودی چادر شماره 4 | G24: x1 | H24: y1 | I24: x2 | J24: y2(بهینه) | K24: a | L24: b | N24: کمترین | P24: بیشترین | U24: اندازه شخص | V24: اندازه شخص | W24: اندازه شخص | X24: اندازه شخص | Y24: اندازه شخص | Z24: اندازه شخص | AA24: اندازه شخص | AB24: اندازه شخص | AC24: اندازه شخص | AD24: اندازه شخص | AE24: اندازه شخص | AF24: اندازه شخص | AG24: اندازه شخص | AH24: اندازه شخص | AI24: اندازه شخص | AJ24: اندازه شخص | AK24: اندازه شخص | AL24: اندازه شخص | AM24: اندازه شخص | AN24: اندازه شخص | AO24: اندازه شخص | AP24: اندازه شخص | AQ24: اندازه شخص | AR24: اندازه شخص | AS24: اندازه شخص | AT24: اندازه شخص | AU24: اندازه شخص | AV24: اندازه شخص | AW24: اندازه شخص | AX24: اندازه شخص | AY24: اندازه شخص | AZ24: اندازه شخص | BA24: اندازه شخص | BB24: اندازه شخص | BC24: اندازه شخص | BD24: اندازه شخص | BE24: اندازه شخص | BF24: اندازه شخص | BG24: اندازه شخص | BH24: اندازه شخص | BI24: اندازه شخص | BJ24: اندازه شخص | BK24: اندازه شخص | BL24: اندازه شخص | BM24: اندازه شخص | BN24: اندازه شخص | BO24: اندازه شخص | BP24: اندازه شخص | BQ24: اندازه شخص | BR24: اندازه شخص | BS24: اندازه شخص | BT24: اندازه شخص | BU24: اندازه شخص | BV24: اندازه شخص | BW24: اندازه شخص | BX24: اندازه شخص | BY24: اندازه شخص | BZ24: اندازه شخص | CA24: اندازه شخص | CB24: اندازه شخص | CC24: اندازه شخص | CD24: اندازه شخص | CE24: اندازه شخص | CF24: اندازه شخص | CG24: اندازه شخص | CH24: اندازه شخص | CI24: اندازه شخص | CJ24: اندازه شخص | CK24: اندازه شخص | CL24: اندازه شخص | CM24: اندازه شخص | CN24: اندازه شخص | CO24: اندازه شخص | CP24: اندازه شخص | CQ24: اندازه شخص | CR24: اندازه شخص | CS24: اندازه شخص | CT24: اندازه شخص | CU24: اندازه شخص | CV24: اندازه شخص | CW24: اندازه شخص | CX24: اندازه شخص | CY24: اندازه شخص | CZ24: اندازه شخص | DA24: اندازه شخص | DB24: اندازه شخص | DC24: اندازه شخص | DD24: اندازه شخص | DE24: اندازه شخص
A25: ضریب فاصله لبه چادر تا زمین j0 | B25: (از -0.1 الی 0.5) | C25: =K25*E25+L25 -> 0 | D25: خط زمین=0 خط زانو=1 | E25: ='طراحی همه الگوها'!Q232 -> 10 | F25: ضریب فاصله لبه چادر تا زمین | G25: 10 | H25: 0 | I25: 30 | J25: 1 | K25: =(J25-H25)/(I25-G25) -> 0.05 | L25: =H25-G25*K25 -> -0.5 | M25: -0.1 | N25: =(M25-L25)/K25 -> 8 | O25: 0.5 | P25: =(O25-L25)/K25 -> 20 | Q25: 0 | R25: =(Q25-L25)/K25 -> 10 | T25: a | U25: 41 | V25: 42 | W25: 45 | X25: 47 | Y25: 48 | Z25: 49 | AA25: 51 | AB25: 53 | AC25: 55 | AD25: 57 | AE25: 59 | AF25: 61 | AG25: 63 | AH25: 65.5 | AI25: 68 | AJ25: 71 | AK25: 73 | AL25: 75 | AM25: 63 | AN25: 65 | AO25: 68 | AP25: 72 | AQ25: 77 | AR25: 82 | AS25: 87 | AT25: 92 | AU25: 97 | AV25: 103 | AW25: 110 | AX25: 117 | AY25: 124 | AZ25: 131 | BA25: 74 | BB25: 78 | BC25: 82 | BD25: 86 | BE25: 90 | BF25: 94 | BG25: 98 | BH25: 102 | BI25: 106 | BJ25: 111 | BK25: 116 | BL25: 121 | BM25: 126 | BN25: 131 | BO25: 47 | BP25: 48 | BQ25: 49 | BR25: 51 | BS25: 53 | BT25: 55 | BU25: 57 | BV25: 59 | BW25: 61 | BX25: 63 | BY25: 65.5 | BZ25: 68 | CA25: 71 | CB25: 73 | CC25: 75 | CD25: 67 | CE25: 69 | CF25: 72 | CG25: 76 | CH25: 81 | CI25: 86 | CJ25: 91 | CK25: 96 | CL25: 101 | CM25: 107 | CN25: 114 | CO25: 121 | CP25: 127 | CQ25: 135 | CR25: 75.5 | CS25: 79.6 | CT25: 83.6 | CU25: 87.7 | CV25: 91.8 | CW25: 95.9 | CX25: 100 | CY25: 104 | CZ25: 108.1 | DA25: 113.2 | DB25: 118.3 | DC25: 123.4 | DD25: 128.5 | DE25: 133.6 | DF25: =DF7 -> 0 | DG25: 0 | DH25: 0 | DI25: 0 | DJ25: 0 | DK25: 0 | DL25: 0 | DM25: 0 | DN25: 0 | DO25: 0 | DP25: 0 | DQ25: 0 | DR25: 0 | DS25: 0 | DT25: 0 | DU25: 0 | DV25: 0 | DW25: 0 | DX25: 0 | DY25: 0 | DZ25: =DZ7 -> 0 | EA25: 0 | EB25: 0 | EC25: =EC7 -> 0 | ED25: =ED7 -> 0 | EE25: 0 | EF25: 0 | EG25: =EG7 -> 0 | EH25: =EH7 -> 0 | EI25: 0 | EJ25: 0 | EK25: =EK7 -> 0 | EL25: =EL7 -> 0 | EM25: 0 | EN25: 0 | EO25: =EO7 -> 0 | EP25: =EP7 -> 0 | EQ25: 0 | ER25: 0 | ES25: 0
A26: ضریب گشادی پشت چادر نسبت به جلو چادر (به درجه) c1 | B26: (از -5 الی 5) | C26: 3 | D26: بهینه=3 | E26: ='طراحی همه الگوها'!Q233 -> 3 | F26: ضریب گشادی پشت چادر نسبت به جلو چادر (درجه) | G26: 1 | H26: 1 | I26: 0 | J26: 0 | K26: 1 | L26: 0 | M26: -5 | N26: -5 | O26: 5 | P26: 5 | Q26: 3 | R26: 3 | T26: b | U26: 20.1 | V26: 20.6 | W26: 22.1 | X26: 23 | Y26: 23.5 | Z26: 24 | AA26: 25 | AB26: 26 | AC26: 27 | AD26: 27.9 | AE26: 28.9 | AF26: 29.9 | AG26: 30.9 | AH26: 32.1 | AI26: 33.3 | AJ26: 34.8 | AK26: 35.8 | AL26: 36.8 | AM26: 32.2 | AN26: 32.7 | AO26: 33.7 | AP26: 35.2 | AQ26: 36.9 | AR26: 38.7 | AS26: 40.6 | AT26: 42.3 | AU26: 44.3 | AV26: 47.5 | AW26: 51 | AX26: 54.8 | AY26: 59.2 | AZ26: 63.6 | BA26: 37 | BB26: 39 | BC26: 41 | BD26: 43 | BE26: 45 | BF26: 47 | BG26: 49 | BH26: 51 | BI26: 53 | BJ26: 55.5 | BK26: 58 | BL26: 60.5 | BM26: 63 | BN26: 65.5 | BO26: 23 | BP26: 23.5 | BQ26: 24 | BR26: 25 | BS26: 26 | BT26: 27 | BU26: 27.9 | BV26: 28.9 | BW26: 29.9 | BX26: 30.9 | BY26: 32.1 | BZ26: 33.3 | CA26: 34.8 | CB26: 35.8 | CC26: 36.8 | CD26: 34.2 | CE26: 34.7 | CF26: 35.7 | CG26: 37.1 | CH26: 38.8 | CI26: 40.6 | CJ26: 42.4 | CK26: 44.2 | CL26: 46.1 | CM26: 49.4 | CN26: 52.8 | CO26: 56.7 | CP26: 60.7 | CQ26: 64.5 | CR26: 37.8 | CS26: 39.8 | CT26: 41.8 | CU26: 43.9 | CV26: 45.9 | CW26: 48 | CX26: 50 | CY26: 52 | CZ26: 54.1 | DA26: 56.6 | DB26: 59.2 | DC26: 61.7 | DD26: 64.3 | DE26: 66.8 | DF26: =DF8 -> 0 | DG26: 0 | DH26: 0 | DI26: 0 | DJ26: 0 | DK26: 0 | DL26: 0 | DM26: 0 | DN26: 0 | DO26: 0 | DP26: 0 | DQ26: 0 | DR26: 0 | DS26: 0 | DT26: 0 | DU26: 0 | DV26: 0 | DW26: 0 | DX26: 0 | DY26: 0 | DZ26: 0 | EA26: 0 | EB26: 0 | EC26: =EC8 -> 0 | ED26: 0 | EE26: 0 | EF26: 0 | EG26: =EG8 -> 0 | EH26: 0 | EI26: 0 | EJ26: 0 | EK26: =EK8 -> 0 | EL26: 0 | EM26: 0 | EN26: 0 | EO26: =EO8 -> 0 | EP26: 0 | EQ26: 0 | ER26: 0 | ES26: 0
A27: ضریب بلند شدن آستین نسبت به مچ c2 | B27: (از -0.4 الی 0.4) | C27: 0 | D27: آستین تا مچ=0 آستین کوتاه تر از مچ = منفی آستین بلند تر از مچ = مثبت | E27: ='طراحی همه الگوها'!Q234 -> 10 | F27: بلند شدن آستین چادر نسبت به مچ اندام | G27: 30 | H27: -0.45 | I27: 10 | J27: 0 | K27: -0.0225 | L27: 0.225 | M27: -0.4 | N27: 27.77777778 | O27: 0.4 | P27: -7.777777778 | Q27: 0 | R27: 10 | T27: s1 | U27: 43 | V27: 45 | W27: 47 | X27: 50 | Y27: 52 | Z27: 54 | AA27: 56 | AB27: 58 | AC27: 60 | AD27: 62 | AE27: 64 | AF27: 66 | AG27: 68 | AH27: 71 | AI27: 75 | AJ27: 78 | AK27: 82 | AL27: 86 | AM27: 80 | AN27: 84 | AO27: 88 | AP27: 92 | AQ27: 97 | AR27: 102 | AS27: 107 | AT27: 112 | AU27: 117 | AV27: 122 | AW27: 128 | AX27: 134 | AY27: 140 | AZ27: 146 | BA27: 88 | BB27: 92 | BC27: 96 | BD27: 100 | BE27: 104 | BF27: 108 | BG27: 112 | BH27: 116 | BI27: 120 | BJ27: 124 | BK27: 128 | BL27: 132 | BM27: 136 | BN27: 140 | BO27: 50 | BP27: 52 | BQ27: 54 | BR27: 56 | BS27: 58 | BT27: 60 | BU27: 62 | BV27: 64 | BW27: 66 | BX27: 68 | BY27: 71 | BZ27: 75 | CA27: 78 | CB27: 82 | CC27: 86 | CD27: 80 | CE27: 84 | CF27: 88 | CG27: 92 | CH27: 97 | CI27: 102 | CJ27: 107 | CK27: 112 | CL27: 117 | CM27: 122 | CN27: 128 | CO27: 134 | CP27: 140 | CQ27: 146 | CR27: 88 | CS27: 92 | CT27: 96 | CU27: 100 | CV27: 104 | CW27: 108 | CX27: 112 | CY27: 116 | CZ27: 120 | DA27: 124 | DB27: 128 | DC27: 132 | DD27: 136 | DE27: 140 | DF27: ='اندازه های شخصی'!G22 -> 0 | DG27: ='اندازه های شخصی'!I22 -> 0 | DH27: ='اندازه های شخصی'!K22 -> 0 | DI27: ='اندازه های شخصی'!M22 -> 0 | DJ27: ='اندازه های شخصی'!O22 -> 0 | DK27: ='اندازه های شخصی'!Q22 -> 0 | DL27: ='اندازه های شخصی'!S22 -> 0 | DM27: ='اندازه های شخصی'!U22 -> 0 | DN27: ='اندازه های شخصی'!W22 -> 0 | DO27: ='اندازه های شخصی'!Y22 -> 0 | DP27: ='اندازه های شخصی'!AA22 -> 0 | DQ27: ='اندازه های شخصی'!AC22 -> 0 | DR27: ='اندازه های شخصی'!AE22 -> 0 | DS27: ='اندازه های شخصی'!AG22 -> 0 | DT27: ='اندازه های شخصی'!AI22 -> 0 | DU27: ='اندازه های شخصی'!AK22 -> 0 | DV27: ='اندازه های شخصی'!AM22 -> 0 | DW27: ='اندازه های شخصی'!AO22 -> 0 | DX27: ='اندازه های شخصی'!AQ22 -> 0 | DY27: ='اندازه های شخصی'!AS22 -> 0 | DZ27: ='اندازه های شخصی'!AU22 -> 0 | EA27: ='اندازه های شخصی'!AW22 -> 0 | EB27: ='اندازه های شخصی'!AY22 -> 0 | EC27: ='اندازه های شخصی'!BA22 -> 0 | ED27: ='اندازه های شخصی'!BC22 -> 0 | EE27: ='اندازه های شخصی'!BE22 -> 0 | EF27: ='اندازه های شخصی'!BG22 -> 0 | EG27: ='اندازه های شخصی'!BI22 -> 0 | EH27: ='اندازه های شخصی'!BK22 -> 0 | EI27: ='اندازه های شخصی'!BM22 -> 0 | EJ27: ='اندازه های شخصی'!BO22 -> 0 | EK27: ='اندازه های شخصی'!BQ22 -> 0 | EL27: ='اندازه های شخصی'!BS22 -> 0 | EM27: ='اندازه های شخصی'!BU22 -> 0 | EN27: ='اندازه های شخصی'!BW22 -> 0 | EO27: ='اندازه های شخصی'!BY22 -> 0 | EP27: ='اندازه های شخصی'!CA22 -> 0 | EQ27: ='اندازه های شخصی'!CC22 -> 0 | ER27: ='اندازه های شخصی'!CE22 -> 0 | ES27: ='اندازه های شخصی'!CG22 -> 0
A28: ضریب گشادی دور مچ c3 | B28: (از 1.1 الی 3) | C28: 1.7 | D28: بدون گشادی=1 | E28: ='طراحی همه الگوها'!Q235 -> 7 | F28: ضریب گشادی دور مچ | G28: 1 | H28: 1.1 | I28: 0 | J28: 1 | K28: 0.1 | L28: 1 | M28: 1.1 | N28: 1 | O28: 3 | P28: 20 | Q28: 1 | R28: 0 | T28: s2 | U28: 21.5 | V28: 22.5 | W28: 23.5 | X28: 25 | Y28: 26 | Z28: 27 | AA28: 28 | AB28: 29 | AC28: 30 | AD28: 31 | AE28: 32 | AF28: 33 | AG28: 34 | AH28: 35.5 | AI28: 37.5 | AJ28: 39 | AK28: 41 | AL28: 43 | AM28: 38.9 | AN28: 40.2 | AO28: 41.5 | AP28: 42.8 | AQ28: 44.3 | AR28: 45.9 | AS28: 47.5 | AT28: 49.1 | AU28: 50.9 | AV28: 53.6 | AW28: 56.5 | AX28: 59.8 | AY28: 63.7 | AZ28: 67.5 | BA28: 44 | BB28: 46 | BC28: 48 | BD28: 50 | BE28: 52 | BF28: 54 | BG28: 56 | BH28: 58 | BI28: 60 | BJ28: 62 | BK28: 64 | BL28: 66 | BM28: 68 | BN28: 70 | BO28: 25 | BP28: 26 | BQ28: 27 | BR28: 28 | BS28: 29 | BT28: 30 | BU28: 31 | BV28: 32 | BW28: 33 | BX28: 34 | BY28: 35.5 | BZ28: 37.5 | CA28: 39 | CB28: 41 | CC28: 43 | CD28: 38.9 | CE28: 40.2 | CF28: 41.5 | CG28: 42.8 | CH28: 44.3 | CI28: 45.9 | CJ28: 47.5 | CK28: 49.1 | CL28: 50.9 | CM28: 53.6 | CN28: 56.5 | CO28: 59.8 | CP28: 63.7 | CQ28: 67.5 | CR28: 44 | CS28: 46 | CT28: 48 | CU28: 50 | CV28: 52 | CW28: 54 | CX28: 56 | CY28: 58 | CZ28: 60 | DA28: 62 | DB28: 64 | DC28: 66 | DD28: 68 | DE28: 70 | DF28: ='اندازه های شخصی'!G23 -> 0 | DG28: ='اندازه های شخصی'!I23 -> 0 | DH28: ='اندازه های شخصی'!K23 -> 0 | DI28: ='اندازه های شخصی'!M23 -> 0 | DJ28: ='اندازه های شخصی'!O23 -> 0 | DK28: ='اندازه های شخصی'!Q23 -> 0 | DL28: ='اندازه های شخصی'!S23 -> 0 | DM28: ='اندازه های شخصی'!U23 -> 0 | DN28: ='اندازه های شخصی'!W23 -> 0 | DO28: ='اندازه های شخصی'!Y23 -> 0 | DP28: ='اندازه های شخصی'!AA23 -> 0 | DQ28: ='اندازه های شخصی'!AC23 -> 0 | DR28: ='اندازه های شخصی'!AE23 -> 0 | DS28: ='اندازه های شخصی'!AG23 -> 0 | DT28: ='اندازه های شخصی'!AI23 -> 0 | DU28: ='اندازه های شخصی'!AK23 -> 0 | DV28: ='اندازه های شخصی'!AM23 -> 0 | DW28: ='اندازه های شخصی'!AO23 -> 0 | DX28: ='اندازه های شخصی'!AQ23 -> 0 | DY28: ='اندازه های شخصی'!AS23 -> 0 | DZ28: ='اندازه های شخصی'!AU23 -> 0 | EA28: ='اندازه های شخصی'!AW23 -> 0 | EB28: ='اندازه های شخصی'!AY23 -> 0 | EC28: ='اندازه های شخصی'!BA23 -> 0 | ED28: ='اندازه های شخصی'!BC23 -> 0 | EE28: ='اندازه های شخصی'!BE23 -> 0 | EF28: ='اندازه های شخصی'!BG23 -> 0 | EG28: ='اندازه های شخصی'!BI23 -> 0 | EH28: ='اندازه های شخصی'!BK23 -> 0 | EI28: ='اندازه های شخصی'!BM23 -> 0 | EJ28: ='اندازه های شخصی'!BO23 -> 0 | EK28: ='اندازه های شخصی'!BQ23 -> 0 | EL28: ='اندازه های شخصی'!BS23 -> 0 | EM28: ='اندازه های شخصی'!BU23 -> 0 | EN28: ='اندازه های شخصی'!BW23 -> 0 | EO28: ='اندازه های شخصی'!BY23 -> 0 | EP28: ='اندازه های شخصی'!CA23 -> 0 | EQ28: ='اندازه های شخصی'!CC23 -> 0 | ER28: ='اندازه های شخصی'!CE23 -> 0 | ES28: ='اندازه های شخصی'!CG23 -> 0
A29: ضریب بلند شدن آستین به سمت زیر بغل c4 | B29: (از 0 الی 1) | C29: 0.7 | D29: آستین تا زیر بغل=0 بدون آستین= 1 | E29: ='طراحی همه الگوها'!Q236 -> 30 | F29: بلند شدن آستین به سمت زیر بغل | G29: 30 | H29: 0.7 | I29: 10 | J29: 0.1 | K29: 0.03 | L29: -0.2 | M29: 0 | N29: 6.666666667 | O29: 1 | P29: 40 | Q29: 0 | R29: 6.666666667 | T29: t1 | U29: 15.8 | V29: 16.2 | W29: 18.3 | X29: 20.3 | Y29: 21.3 | Z29: 24.4 | AA29: 26.5 | AB29: 26.9 | AC29: 28.6 | AD29: 30.2 | AE29: 31.8 | AF29: 33.3 | AG29: 35.5 | AH29: 36.5 | AI29: 37.3 | AJ29: 38.2 | AK29: 39 | AL29: 39.8 | AM29: 43.6 | AN29: 43.8 | AO29: 44.1 | AP29: 44.4 | AQ29: 44.8 | AR29: 45 | AS29: 45 | AT29: 45.6 | AU29: 45.9 | AV29: 46.3 | AW29: 46.3 | AX29: 46.6 | AY29: 46.3 | AZ29: 46.5 | BA29: 43.9 | BB29: 44.2 | BC29: 44.3 | BD29: 44.5 | BE29: 44.8 | BF29: 44.8 | BG29: 44.9 | BH29: 44.9 | BI29: 45.2 | BJ29: 45.1 | BK29: 45.3 | BL29: 45.6 | BM29: 45.5 | BN29: 45.7 | BO29: 21.8 | BP29: 22.8 | BQ29: 25.8 | BR29: 28.2 | BS29: 28.4 | BT29: 30.2 | BU29: 31.7 | BV29: 33.3 | BW29: 34.9 | BX29: 37.2 | BY29: 38.2 | BZ29: 39.1 | CA29: 39.7 | CB29: 40.5 | CC29: 40.9 | CD29: 43.6 | CE29: 43.8 | CF29: 44.1 | CG29: 44.4 | CH29: 44.8 | CI29: 45 | CJ29: 45 | CK29: 45.6 | CL29: 45.9 | CM29: 46.3 | CN29: 46.3 | CO29: 46.6 | CP29: 46.3 | CQ29: 46.5 | CR29: 46.3 | CS29: 46.3 | CT29: 46 | CU29: 46 | CV29: 45.6 | CW29: 45.6 | CX29: 45.4 | CY29: 45 | CZ29: 44.8 | DA29: 44.4 | DB29: 44.4 | DC29: 44.2 | DD29: 44 | DE29: 43.6 | DF29: ='اندازه های شخصی'!G24 -> 0 | DG29: ='اندازه های شخصی'!I24 -> 0 | DH29: ='اندازه های شخصی'!K24 -> 0 | DI29: ='اندازه های شخصی'!M24 -> 0 | DJ29: ='اندازه های شخصی'!O24 -> 0 | DK29: ='اندازه های شخصی'!Q24 -> 0 | DL29: ='اندازه های شخصی'!S24 -> 0 | DM29: ='اندازه های شخصی'!U24 -> 0 | DN29: ='اندازه های شخصی'!W24 -> 0 | DO29: ='اندازه های شخصی'!Y24 -> 0 | DP29: ='اندازه های شخصی'!AA24 -> 0 | DQ29: ='اندازه های شخصی'!AC24 -> 0 | DR29: ='اندازه های شخصی'!AE24 -> 0 | DS29: ='اندازه های شخصی'!AG24 -> 0 | DT29: ='اندازه های شخصی'!AI24 -> 0 | DU29: ='اندازه های شخصی'!AK24 -> 0 | DV29: ='اندازه های شخصی'!AM24 -> 0 | DW29: ='اندازه های شخصی'!AO24 -> 0 | DX29: ='اندازه های شخصی'!AQ24 -> 0 | DY29: ='اندازه های شخصی'!AS24 -> 0 | DZ29: ='اندازه های شخصی'!AU24 -> 0 | EA29: ='اندازه های شخصی'!AW24 -> 0 | EB29: ='اندازه های شخصی'!AY24 -> 0 | EC29: ='اندازه های شخصی'!BA24 -> 0 | ED29: ='اندازه های شخصی'!BC24 -> 0 | EE29: ='اندازه های شخصی'!BE24 -> 0 | EF29: ='اندازه های شخصی'!BG24 -> 0 | EG29: ='اندازه های شخصی'!BI24 -> 0 | EH29: ='اندازه های شخصی'!BK24 -> 0 | EI29: ='اندازه های شخصی'!BM24 -> 0 | EJ29: ='اندازه های شخصی'!BO24 -> 0 | EK29: ='اندازه های شخصی'!BQ24 -> 0 | EL29: ='اندازه های شخصی'!BS24 -> 0 | EM29: ='اندازه های شخصی'!BU24 -> 0 | EN29: ='اندازه های شخصی'!BW24 -> 0 | EO29: ='اندازه های شخصی'!BY24 -> 0 | EP29: ='اندازه های شخصی'!CA24 -> 0 | EQ29: ='اندازه های شخصی'!CC24 -> 0 | ER29: ='اندازه های شخصی'!CE24 -> 0 | ES29: ='اندازه های شخصی'!CG24 -> 0
A30: ضریب گشادی پایین چادر (به درجه) c5 | B30: (از 0 الی حداکثر) | C30: 20 | D30: چادر راسته بدون گشادی=0 | E30: ='طراحی همه الگوها'!Q237 -> 20 | F30: ضریب گشادی پایین چادر (درجه) | G30: 21 | H30: 21 | I30: 20 | J30: 20 | K30: 1 | L30: 0 | M30: 0 | N30: 0 | O30: 2 | P30: 2 | Q30: 0 | R30: 0 | T30: t2 | U30: 19.4 | V30: 19.9 | W30: 22.2 | X30: 24.5 | Y30: 25.7 | Z30: 28.7 | AA30: 31 | AB30: 31.6 | AC30: 33.4 | AD30: 35.2 | AE30: 36.9 | AF30: 38.6 | AG30: 40.9 | AH30: 42.1 | AI30: 43.3 | AJ30: 44.5 | AK30: 45.7 | AL30: 46.9 | AM30: 50.8 | AN30: 51.4 | AO30: 51.9 | AP30: 52.5 | AQ30: 53.5 | AR30: 54.3 | AS30: 55.1 | AT30: 56.4 | AU30: 57.5 | AV30: 58.7 | AW30: 59.8 | AX30: 61 | AY30: 62.1 | AZ30: 63.3 | BA30: 50.7 | BB30: 51.3 | BC30: 51.7 | BD30: 52.3 | BE30: 52.7 | BF30: 53 | BG30: 53.6 | BH30: 54 | BI30: 54.6 | BJ30: 55 | BK30: 55.4 | BL30: 56 | BM30: 56.4 | BN30: 56.9 | BO30: 26.6 | BP30: 27.9 | BQ30: 31.1 | BR30: 33.6 | BS30: 34.2 | BT30: 36.1 | BU30: 37.9 | BV30: 39.8 | BW30: 41.8 | BX30: 44.3 | BY30: 45.5 | BZ30: 46.9 | CA30: 48 | CB30: 49.4 | CC30: 50.6 | CD30: 50.8 | CE30: 51.4 | CF30: 51.9 | CG30: 52.5 | CH30: 53.5 | CI30: 54.3 | CJ30: 55.1 | CK30: 56.4 | CL30: 57.5 | CM30: 58.7 | CN30: 59.8 | CO30: 61 | CP30: 62.1 | CQ30: 63.3 | CR30: 55.9 | CS30: 56.4 | CT30: 56.7 | CU30: 57.3 | CV30: 57.7 | CW30: 58.3 | CX30: 58.9 | CY30: 59.3 | CZ30: 59.9 | DA30: 60.2 | DB30: 60.8 | DC30: 61.4 | DD30: 62 | DE30: 62.4 | DF30: ='اندازه های شخصی'!G25 -> 0 | DG30: ='اندازه های شخصی'!I25 -> 0 | DH30: ='اندازه های شخصی'!K25 -> 0 | DI30: ='اندازه های شخصی'!M25 -> 0 | DJ30: ='اندازه های شخصی'!O25 -> 0 | DK30: ='اندازه های شخصی'!Q25 -> 0 | DL30: ='اندازه های شخصی'!S25 -> 0 | DM30: ='اندازه های شخصی'!U25 -> 0 | DN30: ='اندازه های شخصی'!W25 -> 0 | DO30: ='اندازه های شخصی'!Y25 -> 0 | DP30: ='اندازه های شخصی'!AA25 -> 0 | DQ30: ='اندازه های شخصی'!AC25 -> 0 | DR30: ='اندازه های شخصی'!AE25 -> 0 | DS30: ='اندازه های شخصی'!AG25 -> 0 | DT30: ='اندازه های شخصی'!AI25 -> 0 | DU30: ='اندازه های شخصی'!AK25 -> 0 | DV30: ='اندازه های شخصی'!AM25 -> 0 | DW30: ='اندازه های شخصی'!AO25 -> 0 | DX30: ='اندازه های شخصی'!AQ25 -> 0 | DY30: ='اندازه های شخصی'!AS25 -> 0 | DZ30: ='اندازه های شخصی'!AU25 -> 0 | EA30: ='اندازه های شخصی'!AW25 -> 0 | EB30: ='اندازه های شخصی'!AY25 -> 0 | EC30: ='اندازه های شخصی'!BA25 -> 0 | ED30: ='اندازه های شخصی'!BC25 -> 0 | EE30: ='اندازه های شخصی'!BE25 -> 0 | EF30: ='اندازه های شخصی'!BG25 -> 0 | EG30: ='اندازه های شخصی'!BI25 -> 0 | EH30: ='اندازه های شخصی'!BK25 -> 0 | EI30: ='اندازه های شخصی'!BM25 -> 0 | EJ30: ='اندازه های شخصی'!BO25 -> 0 | EK30: ='اندازه های شخصی'!BQ25 -> 0 | EL30: ='اندازه های شخصی'!BS25 -> 0 | EM30: ='اندازه های شخصی'!BU25 -> 0 | EN30: ='اندازه های شخصی'!BW25 -> 0 | EO30: ='اندازه های شخصی'!BY25 -> 0 | EP30: ='اندازه های شخصی'!CA25 -> 0 | EQ30: ='اندازه های شخصی'!CC25 -> 0 | ER30: ='اندازه های شخصی'!CE25 -> 0 | ES30: ='اندازه های شخصی'!CG25 -> 0
A31: حداکثر مقدار c5 برای اندام شما | B31: =ROUND(DEGREES(محاسبات!ER46-RADIANS(45)+محاسبات!ER42),0) -> 54 | F31: حداکثر مقدار ضریب گشادی پایین چادر برای اندام شما | T31: t3 | U31: 33 | V31: 34 | W31: 38 | X31: 42 | Y31: 44 | Z31: 49 | AA31: 53 | AB31: 54 | AC31: 57 | AD31: 60 | AE31: 63 | AF31: 66 | AG31: 70 | AH31: 72 | AI31: 74 | AJ31: 76 | AK31: 78 | AL31: 80 | AM31: 80 | AN31: 81 | AO31: 82 | AP31: 83 | AQ31: 84.4 | AR31: 85.7 | AS31: 87 | AT31: 88.9 | AU31: 90.8 | AV31: 92.6 | AW31: 94.5 | AX31: 96.3 | AY31: 98.2 | AZ31: 100 | BA31: 86.8 | BB31: 87.6 | BC31: 88.4 | BD31: 89.2 | BE31: 90 | BF31: 90.8 | BG31: 91.6 | BH31: 92.4 | BI31: 93.2 | BJ31: 94 | BK31: 94.8 | BL31: 95.6 | BM31: 96.4 | BN31: 97.2 | BO31: 42 | BP31: 44 | BQ31: 49 | BR31: 53 | BS31: 54 | BT31: 57 | BU31: 60 | BV31: 63 | BW31: 66 | BX31: 70 | BY31: 72 | BZ31: 74 | CA31: 76 | CB31: 78 | CC31: 80 | CD31: 80 | CE31: 81 | CF31: 82 | CG31: 83 | CH31: 84.4 | CI31: 85.7 | CJ31: 87 | CK31: 88.9 | CL31: 90.8 | CM31: 92.6 | CN31: 94.5 | CO31: 96.3 | CP31: 98.2 | CQ31: 100 | CR31: 88.2 | CS31: 89 | CT31: 89.7 | CU31: 90.5 | CV31: 91.3 | CW31: 92.1 | CX31: 92.9 | CY31: 93.7 | CZ31: 94.5 | DA31: 95.3 | DB31: 96.1 | DC31: 97.1 | DD31: 97.9 | DE31: 98.7 | DF31: ='اندازه های شخصی'!G26 -> 0 | DG31: ='اندازه های شخصی'!I26 -> 0 | DH31: ='اندازه های شخصی'!K26 -> 0 | DI31: ='اندازه های شخصی'!M26 -> 0 | DJ31: ='اندازه های شخصی'!O26 -> 0 | DK31: ='اندازه های شخصی'!Q26 -> 0 | DL31: ='اندازه های شخصی'!S26 -> 0 | DM31: ='اندازه های شخصی'!U26 -> 0 | DN31: ='اندازه های شخصی'!W26 -> 0 | DO31: ='اندازه های شخصی'!Y26 -> 0 | DP31: ='اندازه های شخصی'!AA26 -> 0 | DQ31: ='اندازه های شخصی'!AC26 -> 0 | DR31: ='اندازه های شخصی'!AE26 -> 0 | DS31: ='اندازه های شخصی'!AG26 -> 0 | DT31: ='اندازه های شخصی'!AI26 -> 0 | DU31: ='اندازه های شخصی'!AK26 -> 0 | DV31: ='اندازه های شخصی'!AM26 -> 0 | DW31: ='اندازه های شخصی'!AO26 -> 0 | DX31: ='اندازه های شخصی'!AQ26 -> 0 | DY31: ='اندازه های شخصی'!AS26 -> 0 | DZ31: ='اندازه های شخصی'!AU26 -> 0 | EA31: ='اندازه های شخصی'!AW26 -> 0 | EB31: ='اندازه های شخصی'!AY26 -> 0 | EC31: ='اندازه های شخصی'!BA26 -> 0 | ED31: ='اندازه های شخصی'!BC26 -> 0 | EE31: ='اندازه های شخصی'!BE26 -> 0 | EF31: ='اندازه های شخصی'!BG26 -> 0 | EG31: ='اندازه های شخصی'!BI26 -> 0 | EH31: ='اندازه های شخصی'!BK26 -> 0 | EI31: ='اندازه های شخصی'!BM26 -> 0 | EJ31: ='اندازه های شخصی'!BO26 -> 0 | EK31: ='اندازه های شخصی'!BQ26 -> 0 | EL31: ='اندازه های شخصی'!BS26 -> 0 | EM31: ='اندازه های شخصی'!BU26 -> 0 | EN31: ='اندازه های شخصی'!BW26 -> 0 | EO31: ='اندازه های شخصی'!BY26 -> 0 | EP31: ='اندازه های شخصی'!CA26 -> 0 | EQ31: ='اندازه های شخصی'!CC26 -> 0 | ER31: ='اندازه های شخصی'!CE26 -> 0 | ES31: ='اندازه های شخصی'!CG26 -> 0
A32: انتخاب چادر تا پایین پیشانی=1 انتخاب چادر تا بالای پیشانی=0 انتخاب چادر روی سر = -1 | B32: -1 یا 0 یا 1 | C32: =K32*E32+L32 -> 0 | E32: ='طراحی همه الگوها'!Q239 -> 2 | F32: انتخاب چادر تا پایین پیشانی=3 انتخاب چادر تا بالای پیشانی=2 انتخاب چادر روی سر = 1 | G32: 2 | H32: 0 | I32: 1 | J32: -1 | K32: =(J32-H32)/(I32-G32) -> 1 | L32: =H32-G32*K32 -> -2 | M32: 0 | N32: =(M32-L32)/K32 -> 2 | O32: 1 | P32: =(O32-L32)/K32 -> 3 | Q32: 0 | R32: =(Q32-L32)/K32 -> 2 | T32: t4 | U32: 8.1 | V32: 8.3 | W32: 9.4 | X32: 10.4 | Y32: 10.9 | Z32: 12.5 | AA32: 13.6 | AB32: 13.8 | AC32: 14.7 | AD32: 15.5 | AE32: 16.3 | AF32: 17.1 | AG32: 18.2 | AH32: 18.7 | AI32: 19.1 | AJ32: 19.6 | AK32: 20 | AL32: 20.4 | AM32: 21.9 | AN32: 22.1 | AO32: 22.3 | AP32: 22.5 | AQ32: 22.8 | AR32: 23 | AS32: 23.1 | AT32: 23.5 | AU32: 23.7 | AV32: 23.9 | AW32: 23.9 | AX32: 24 | AY32: 23.8 | AZ32: 23.8 | BA32: 21.9 | BB32: 22 | BC32: 22 | BD32: 22.1 | BE32: 22.2 | BF32: 22.2 | BG32: 22.2 | BH32: 22.2 | BI32: 22.3 | BJ32: 22.2 | BK32: 22.3 | BL32: 22.4 | BM32: 22.3 | BN32: 22.4 | BO32: 10.8 | BP32: 11.3 | BQ32: 12.8 | BR32: 14 | BS32: 14.1 | BT32: 15 | BU32: 15.8 | BV32: 16.6 | BW32: 17.4 | BX32: 18.6 | BY32: 19 | BZ32: 19.4 | CA32: 19.7 | CB32: 20.1 | CC32: 20.3 | CD32: 21.9 | CE32: 22.1 | CF32: 22.3 | CG32: 22.5 | CH32: 22.8 | CI32: 23 | CJ32: 23.1 | CK32: 23.5 | CL32: 23.7 | CM32: 23.9 | CN32: 23.9 | CO32: 24 | CP32: 23.8 | CQ32: 23.8 | CR32: 22.9 | CS32: 22.9 | CT32: 22.7 | CU32: 22.7 | CV32: 22.5 | CW32: 22.5 | CX32: 22.4 | CY32: 22.2 | CZ32: 22.1 | DA32: 21.9 | DB32: 21.9 | DC32: 21.8 | DD32: 21.7 | DE32: 21.5 | DF32: ='اندازه های شخصی'!G27 -> 0 | DG32: ='اندازه های شخصی'!I27 -> 0 | DH32: ='اندازه های شخصی'!K27 -> 0 | DI32: ='اندازه های شخصی'!M27 -> 0 | DJ32: ='اندازه های شخصی'!O27 -> 0 | DK32: ='اندازه های شخصی'!Q27 -> 0 | DL32: ='اندازه های شخصی'!S27 -> 0 | DM32: ='اندازه های شخصی'!U27 -> 0 | DN32: ='اندازه های شخصی'!W27 -> 0 | DO32: ='اندازه های شخصی'!Y27 -> 0 | DP32: ='اندازه های شخصی'!AA27 -> 0 | DQ32: ='اندازه های شخصی'!AC27 -> 0 | DR32: ='اندازه های شخصی'!AE27 -> 0 | DS32: ='اندازه های شخصی'!AG27 -> 0 | DT32: ='اندازه های شخصی'!AI27 -> 0 | DU32: ='اندازه های شخصی'!AK27 -> 0 | DV32: ='اندازه های شخصی'!AM27 -> 0 | DW32: ='اندازه های شخصی'!AO27 -> 0 | DX32: ='اندازه های شخصی'!AQ27 -> 0 | DY32: ='اندازه های شخصی'!AS27 -> 0 | DZ32: ='اندازه های شخصی'!AU27 -> 0 | EA32: ='اندازه های شخصی'!AW27 -> 0 | EB32: ='اندازه های شخصی'!AY27 -> 0 | EC32: ='اندازه های شخصی'!BA27 -> 0 | ED32: ='اندازه های شخصی'!BC27 -> 0 | EE32: ='اندازه های شخصی'!BE27 -> 0 | EF32: ='اندازه های شخصی'!BG27 -> 0 | EG32: ='اندازه های شخصی'!BI27 -> 0 | EH32: ='اندازه های شخصی'!BK27 -> 0 | EI32: ='اندازه های شخصی'!BM27 -> 0 | EJ32: ='اندازه های شخصی'!BO27 -> 0 | EK32: ='اندازه های شخصی'!BQ27 -> 0 | EL32: ='اندازه های شخصی'!BS27 -> 0 | EM32: ='اندازه های شخصی'!BU27 -> 0 | EN32: ='اندازه های شخصی'!BW27 -> 0 | EO32: ='اندازه های شخصی'!BY27 -> 0 | EP32: ='اندازه های شخصی'!CA27 -> 0 | EQ32: ='اندازه های شخصی'!CC27 -> 0 | ER32: ='اندازه های شخصی'!CE27 -> 0 | ES32: ='اندازه های شخصی'!CG27 -> 0
A33: ضریب فاصله افقی مرغک از خط مرکزی جلو | B33: (از -1 الی 4) | C33: =K33*E33+L33 -> 2 | D33: خط مرکزی جلو=0 خط پهلو=1 | E33: ='طراحی همه الگوها'!Q240 -> 40 | F33: ضریب فاصله افقی مرغک از خط مرکزی جلو | G33: 20 | H33: 1 | I33: 0 | J33: 0 | K33: =(J33-H33)/(I33-G33) -> 0.05 | L33: =H33-G33*K33 -> 0 | M33: -1 | N33: =(M33-L33)/K33 -> -20 | O33: 4 | P33: =(O33-L33)/K33 -> 80 | Q33: 0 | R33: =(Q33-L33)/K33 -> 0 | T33: t5 | U33: 10.1 | V33: 10.4 | W33: 11.6 | X33: 12.8 | Y33: 13.4 | Z33: 15 | AA33: 16.2 | AB33: 16.5 | AC33: 17.5 | AD33: 18.4 | AE33: 19.3 | AF33: 20.2 | AG33: 21.4 | AH33: 22 | AI33: 22.6 | AJ33: 23.3 | AK33: 23.9 | AL33: 24.5 | AM33: 25.4 | AN33: 25.7 | AO33: 26 | AP33: 26.3 | AQ33: 26.7 | AR33: 27 | AS33: 27.3 | AT33: 27.8 | AU33: 28.2 | AV33: 28.7 | AW33: 29.1 | AX33: 29.6 | AY33: 30 | AZ33: 30.5 | BA33: 26 | BB33: 26.3 | BC33: 26.5 | BD33: 26.8 | BE33: 27 | BF33: 27.2 | BG33: 27.5 | BH33: 27.7 | BI33: 28 | BJ33: 28.2 | BK33: 28.4 | BL33: 28.7 | BM33: 28.9 | BN33: 29.2 | BO33: 13.7 | BP33: 14.4 | BQ33: 16 | BR33: 17.3 | BS33: 17.6 | BT33: 18.6 | BU33: 19.6 | BV33: 20.6 | BW33: 21.6 | BX33: 22.9 | BY33: 23.5 | BZ33: 24.2 | CA33: 24.8 | CB33: 25.5 | CC33: 26.1 | CD33: 25.4 | CE33: 25.7 | CF33: 26 | CG33: 26.3 | CH33: 26.7 | CI33: 27 | CJ33: 27.3 | CK33: 27.8 | CL33: 28.2 | CM33: 28.7 | CN33: 29.1 | CO33: 29.6 | CP33: 30 | CQ33: 30.5 | CR33: 28.8 | CS33: 29.1 | CT33: 29.3 | CU33: 29.6 | CV33: 29.8 | CW33: 30.1 | CX33: 30.4 | CY33: 30.6 | CZ33: 30.9 | DA33: 31.1 | DB33: 31.4 | DC33: 31.7 | DD33: 32 | DE33: 32.2 | DF33: ='اندازه های شخصی'!G28 -> 0 | DG33: ='اندازه های شخصی'!I28 -> 0 | DH33: ='اندازه های شخصی'!K28 -> 0 | DI33: ='اندازه های شخصی'!M28 -> 0 | DJ33: ='اندازه های شخصی'!O28 -> 0 | DK33: ='اندازه های شخصی'!Q28 -> 0 | DL33: ='اندازه های شخصی'!S28 -> 0 | DM33: ='اندازه های شخصی'!U28 -> 0 | DN33: ='اندازه های شخصی'!W28 -> 0 | DO33: ='اندازه های شخصی'!Y28 -> 0 | DP33: ='اندازه های شخصی'!AA28 -> 0 | DQ33: ='اندازه های شخصی'!AC28 -> 0 | DR33: ='اندازه های شخصی'!AE28 -> 0 | DS33: ='اندازه های شخصی'!AG28 -> 0 | DT33: ='اندازه های شخصی'!AI28 -> 0 | DU33: ='اندازه های شخصی'!AK28 -> 0 | DV33: ='اندازه های شخصی'!AM28 -> 0 | DW33: ='اندازه های شخصی'!AO28 -> 0 | DX33: ='اندازه های شخصی'!AQ28 -> 0 | DY33: ='اندازه های شخصی'!AS28 -> 0 | DZ33: ='اندازه های شخصی'!AU28 -> 0 | EA33: ='اندازه های شخصی'!AW28 -> 0 | EB33: ='اندازه های شخصی'!AY28 -> 0 | EC33: ='اندازه های شخصی'!BA28 -> 0 | ED33: ='اندازه های شخصی'!BC28 -> 0 | EE33: ='اندازه های شخصی'!BE28 -> 0 | EF33: ='اندازه های شخصی'!BG28 -> 0 | EG33: ='اندازه های شخصی'!BI28 -> 0 | EH33: ='اندازه های شخصی'!BK28 -> 0 | EI33: ='اندازه های شخصی'!BM28 -> 0 | EJ33: ='اندازه های شخصی'!BO28 -> 0 | EK33: ='اندازه های شخصی'!BQ28 -> 0 | EL33: ='اندازه های شخصی'!BS28 -> 0 | EM33: ='اندازه های شخصی'!BU28 -> 0 | EN33: ='اندازه های شخصی'!BW28 -> 0 | EO33: ='اندازه های شخصی'!BY28 -> 0 | EP33: ='اندازه های شخصی'!CA28 -> 0 | EQ33: ='اندازه های شخصی'!CC28 -> 0 | ER33: ='اندازه های شخصی'!CE28 -> 0 | ES33: ='اندازه های شخصی'!CG28 -> 0
A34: ضریب فاصله عمودی مرغک از زمین | B34: (از 0 الی 5) | C34: =K34*E34+L34 -> 1.25 | D34: خط زمین=0 خط زانو=1 خط باسن=2 خط کمر=3 خط سینه=4 | E34: ='طراحی همه الگوها'!Q241 -> 35 | F34: ضریب فاصله عمودی مرغک از زمین | G34: 10 | H34: 0 | I34: 30 | J34: 1 | K34: =(J34-H34)/(I34-G34) -> 0.05 | L34: =H34-G34*K34 -> -0.5 | M34: 0 | N34: =(M34-L34)/K34 -> 10 | O34: 5 | P34: =(O34-L34)/K34 -> 110 | Q34: 0 | R34: =(Q34-L34)/K34 -> 10 | T34: t6 | U34: 16.8 | V34: 17.3 | W34: 19.4 | X34: 21.4 | Y34: 22.4 | Z34: 25 | AA34: 27 | AB34: 27.5 | AC34: 29.1 | AD34: 30.6 | AE34: 32.1 | AF34: 33.7 | AG34: 35.7 | AH34: 36.7 | AI34: 37.7 | AJ34: 38.8 | AK34: 39.8 | AL34: 40.8 | AM34: 39 | AN34: 39.5 | AO34: 40 | AP34: 40.5 | AQ34: 41 | AR34: 41.5 | AS34: 42 | AT34: 42.7 | AU34: 43.4 | AV34: 44.1 | AW34: 44.8 | AX34: 45.5 | AY34: 46.2 | AZ34: 46.9 | BA34: 43.4 | BB34: 43.8 | BC34: 44.2 | BD34: 44.6 | BE34: 45 | BF34: 45.4 | BG34: 45.8 | BH34: 46.2 | BI34: 46.6 | BJ34: 47 | BK34: 47.4 | BL34: 47.8 | BM34: 48.2 | BN34: 48.6 | BO34: 21.1 | BP34: 22.1 | BQ34: 24.6 | BR34: 26.6 | BS34: 27.1 | BT34: 28.6 | BU34: 30.2 | BV34: 31.7 | BW34: 33.2 | BX34: 35.2 | BY34: 36.2 | BZ34: 37.2 | CA34: 38.2 | CB34: 39.2 | CC34: 40.2 | CD34: 39 | CE34: 39.5 | CF34: 40 | CG34: 40.5 | CH34: 41 | CI34: 41.5 | CJ34: 42 | CK34: 42.7 | CL34: 43.4 | CM34: 44.1 | CN34: 44.8 | CO34: 45.5 | CP34: 46.2 | CQ34: 46.9 | CR34: 44.3 | CS34: 44.7 | CT34: 45.1 | CU34: 45.5 | CV34: 45.9 | CW34: 46.3 | CX34: 46.7 | CY34: 47.1 | CZ34: 47.5 | DA34: 47.9 | DB34: 48.3 | DC34: 48.8 | DD34: 49.2 | DE34: 49.6 | DF34: ='اندازه های شخصی'!G29 -> 0 | DG34: ='اندازه های شخصی'!I29 -> 0 | DH34: ='اندازه های شخصی'!K29 -> 0 | DI34: ='اندازه های شخصی'!M29 -> 0 | DJ34: ='اندازه های شخصی'!O29 -> 0 | DK34: ='اندازه های شخصی'!Q29 -> 0 | DL34: ='اندازه های شخصی'!S29 -> 0 | DM34: ='اندازه های شخصی'!U29 -> 0 | DN34: ='اندازه های شخصی'!W29 -> 0 | DO34: ='اندازه های شخصی'!Y29 -> 0 | DP34: ='اندازه های شخصی'!AA29 -> 0 | DQ34: ='اندازه های شخصی'!AC29 -> 0 | DR34: ='اندازه های شخصی'!AE29 -> 0 | DS34: ='اندازه های شخصی'!AG29 -> 0 | DT34: ='اندازه های شخصی'!AI29 -> 0 | DU34: ='اندازه های شخصی'!AK29 -> 0 | DV34: ='اندازه های شخصی'!AM29 -> 0 | DW34: ='اندازه های شخصی'!AO29 -> 0 | DX34: ='اندازه های شخصی'!AQ29 -> 0 | DY34: ='اندازه های شخصی'!AS29 -> 0 | DZ34: ='اندازه های شخصی'!AU29 -> 0 | EA34: ='اندازه های شخصی'!AW29 -> 0 | EB34: ='اندازه های شخصی'!AY29 -> 0 | EC34: ='اندازه های شخصی'!BA29 -> 0 | ED34: ='اندازه های شخصی'!BC29 -> 0 | EE34: ='اندازه های شخصی'!BE29 -> 0 | EF34: ='اندازه های شخصی'!BG29 -> 0 | EG34: ='اندازه های شخصی'!BI29 -> 0 | EH34: ='اندازه های شخصی'!BK29 -> 0 | EI34: ='اندازه های شخصی'!BM29 -> 0 | EJ34: ='اندازه های شخصی'!BO29 -> 0 | EK34: ='اندازه های شخصی'!BQ29 -> 0 | EL34: ='اندازه های شخصی'!BS29 -> 0 | EM34: ='اندازه های شخصی'!BU29 -> 0 | EN34: ='اندازه های شخصی'!BW29 -> 0 | EO34: ='اندازه های شخصی'!BY29 -> 0 | EP34: ='اندازه های شخصی'!CA29 -> 0 | EQ34: ='اندازه های شخصی'!CC29 -> 0 | ER34: ='اندازه های شخصی'!CE29 -> 0 | ES34: ='اندازه های شخصی'!CG29 -> 0
T35: v | U35: 25 | V35: 27 | W35: 27 | X35: 28 | Y35: 28 | Z35: 30 | AA35: 30 | AB35: 31 | AC35: 31 | AD35: 32 | AE35: 32 | AF35: 33 | AG35: 34 | AH35: 35 | AI35: 36 | AJ35: 37 | AK35: 38 | AL35: 39 | AM35: 36 | AN35: 37 | AO35: 38 | AP35: 39 | AQ35: 40.2 | AR35: 41.4 | AS35: 42.6 | AT35: 43.8 | AU35: 45 | AV35: 46 | AW35: 47 | AX35: 48 | AY35: 49 | AZ35: 50 | BA35: 39 | BB35: 40 | BC35: 41 | BD35: 42 | BE35: 43 | BF35: 44 | BG35: 45 | BH35: 46 | BI35: 47 | BJ35: 48 | BK35: 49 | BL35: 50 | BM35: 51 | BN35: 52 | BO35: 28 | BP35: 28 | BQ35: 30 | BR35: 30 | BS35: 31 | BT35: 31 | BU35: 32 | BV35: 32 | BW35: 33 | BX35: 34 | BY35: 35 | BZ35: 36 | CA35: 37 | CB35: 38 | CC35: 39 | CD35: 36 | CE35: 37 | CF35: 38 | CG35: 39 | CH35: 40.2 | CI35: 41.4 | CJ35: 42.6 | CK35: 43.8 | CL35: 45 | CM35: 46 | CN35: 47 | CO35: 48 | CP35: 49 | CQ35: 50 | CR35: 39 | CS35: 40 | CT35: 41 | CU35: 42 | CV35: 43 | CW35: 44 | CX35: 45 | CY35: 46 | CZ35: 47 | DA35: 48 | DB35: 49 | DC35: 50 | DD35: 51 | DE35: 52 | DF35: ='اندازه های شخصی'!G30 -> 0 | DG35: ='اندازه های شخصی'!I30 -> 0 | DH35: ='اندازه های شخصی'!K30 -> 0 | DI35: ='اندازه های شخصی'!M30 -> 0 | DJ35: ='اندازه های شخصی'!O30 -> 0 | DK35: ='اندازه های شخصی'!Q30 -> 0 | DL35: ='اندازه های شخصی'!S30 -> 0 | DM35: ='اندازه های شخصی'!U30 -> 0 | DN35: ='اندازه های شخصی'!W30 -> 0 | DO35: ='اندازه های شخصی'!Y30 -> 0 | DP35: ='اندازه های شخصی'!AA30 -> 0 | DQ35: ='اندازه های شخصی'!AC30 -> 0 | DR35: ='اندازه های شخصی'!AE30 -> 0 | DS35: ='اندازه های شخصی'!AG30 -> 0 | DT35: ='اندازه های شخصی'!AI30 -> 0 | DU35: ='اندازه های شخصی'!AK30 -> 0 | DV35: ='اندازه های شخصی'!AM30 -> 0 | DW35: ='اندازه های شخصی'!AO30 -> 0 | DX35: ='اندازه های شخصی'!AQ30 -> 0 | DY35: ='اندازه های شخصی'!AS30 -> 0 | DZ35: ='اندازه های شخصی'!AU30 -> 0 | EA35: ='اندازه های شخصی'!AW30 -> 0 | EB35: ='اندازه های شخصی'!AY30 -> 0 | EC35: ='اندازه های شخصی'!BA30 -> 0 | ED35: ='اندازه های شخصی'!BC30 -> 0 | EE35: ='اندازه های شخصی'!BE30 -> 0 | EF35: ='اندازه های شخصی'!BG30 -> 0 | EG35: ='اندازه های شخصی'!BI30 -> 0 | EH35: ='اندازه های شخصی'!BK30 -> 0 | EI35: ='اندازه های شخصی'!BM30 -> 0 | EJ35: ='اندازه های شخصی'!BO30 -> 0 | EK35: ='اندازه های شخصی'!BQ30 -> 0 | EL35: ='اندازه های شخصی'!BS30 -> 0 | EM35: ='اندازه های شخصی'!BU30 -> 0 | EN35: ='اندازه های شخصی'!BW30 -> 0 | EO35: ='اندازه های شخصی'!BY30 -> 0 | EP35: ='اندازه های شخصی'!CA30 -> 0 | EQ35: ='اندازه های شخصی'!CC30 -> 0 | ER35: ='اندازه های شخصی'!CE30 -> 0 | ES35: ='اندازه های شخصی'!CG30 -> 0
A36: متغیرهای ورودی چادر شماره 5 | F36: متغیرهای ورودی چادر شماره 5 | G36: x1 | H36: y1 | I36: x2 | J36: y2(بهینه) | K36: a | L36: b | N36: کمترین | P36: بیشترین | T36: v3 | U36: 17.7 | V36: 18.4 | W36: 19.2 | X36: 20.4 | Y36: 21.2 | Z36: 22 | AA36: 22.7 | AB36: 23.5 | AC36: 24.2 | AD36: 25.2 | AE36: 26 | AF36: 27 | AG36: 27.8 | AH36: 28.9 | AI36: 30.5 | AJ36: 31.8 | AK36: 33.4 | AL36: 35.1 | AM36: 31.9 | AN36: 32.9 | AO36: 33.9 | AP36: 34.8 | AQ36: 36 | AR36: 37.1 | AS36: 38.3 | AT36: 39.5 | AU36: 40.9 | AV36: 43.2 | AW36: 45.7 | AX36: 48.6 | AY36: 52.1 | AZ36: 55.5 | BA36: 35.2 | BB36: 36.9 | BC36: 38.6 | BD36: 40.2 | BE36: 41.9 | BF36: 43.6 | BG36: 45.4 | BH36: 47.3 | BI36: 49.1 | BJ36: 51.8 | BK36: 52.8 | BL36: 54.6 | BM36: 56.5 | BN36: 58.3 | BO36: 20.4 | BP36: 21.2 | BQ36: 22 | BR36: 22.7 | BS36: 23.5 | BT36: 24.2 | BU36: 25.2 | BV36: 26 | BW36: 27 | BX36: 27.8 | BY36: 28.9 | BZ36: 30.5 | CA36: 31.8 | CB36: 33.4 | CC36: 35.1 | CD36: 31.9 | CE36: 32.9 | CF36: 33.9 | CG36: 34.8 | CH36: 36 | CI36: 37.1 | CJ36: 38.3 | CK36: 39.5 | CL36: 40.9 | CM36: 43.2 | CN36: 45.7 | CO36: 48.6 | CP36: 52.1 | CQ36: 55.5 | CR36: 35.5 | CS36: 37.2 | CT36: 38.9 | CU36: 40.6 | CV36: 42.3 | CW36: 44 | CX36: 45.8 | CY36: 47.7 | CZ36: 49.5 | DA36: 51.4 | DB36: 53.2 | DC36: 55.1 | DD36: 56.9 | DE36: 58.8 | DF36: ='اندازه های شخصی'!G31 -> 0 | DG36: ='اندازه های شخصی'!I31 -> 0 | DH36: ='اندازه های شخصی'!K31 -> 0 | DI36: ='اندازه های شخصی'!M31 -> 0 | DJ36: ='اندازه های شخصی'!O31 -> 0 | DK36: ='اندازه های شخصی'!Q31 -> 0 | DL36: ='اندازه های شخصی'!S31 -> 0 | DM36: ='اندازه های شخصی'!U31 -> 0 | DN36: ='اندازه های شخصی'!W31 -> 0 | DO36: ='اندازه های شخصی'!Y31 -> 0 | DP36: ='اندازه های شخصی'!AA31 -> 0 | DQ36: ='اندازه های شخصی'!AC31 -> 0 | DR36: ='اندازه های شخصی'!AE31 -> 0 | DS36: ='اندازه های شخصی'!AG31 -> 0 | DT36: ='اندازه های شخصی'!AI31 -> 0 | DU36: ='اندازه های شخصی'!AK31 -> 0 | DV36: ='اندازه های شخصی'!AM31 -> 0 | DW36: ='اندازه های شخصی'!AO31 -> 0 | DX36: ='اندازه های شخصی'!AQ31 -> 0 | DY36: ='اندازه های شخصی'!AS31 -> 0 | DZ36: ='اندازه های شخصی'!AU31 -> 0 | EA36: ='اندازه های شخصی'!AW31 -> 0 | EB36: ='اندازه های شخصی'!AY31 -> 0 | EC36: ='اندازه های شخصی'!BA31 -> 0 | ED36: ='اندازه های شخصی'!BC31 -> 0 | EE36: ='اندازه های شخصی'!BE31 -> 0 | EF36: ='اندازه های شخصی'!BG31 -> 0 | EG36: ='اندازه های شخصی'!BI31 -> 0 | EH36: ='اندازه های شخصی'!BK31 -> 0 | EI36: ='اندازه های شخصی'!BM31 -> 0 | EJ36: ='اندازه های شخصی'!BO31 -> 0 | EK36: ='اندازه های شخصی'!BQ31 -> 0 | EL36: ='اندازه های شخصی'!BS31 -> 0 | EM36: ='اندازه های شخصی'!BU31 -> 0 | EN36: ='اندازه های شخصی'!BW31 -> 0 | EO36: ='اندازه های شخصی'!BY31 -> 0 | EP36: ='اندازه های شخصی'!CA31 -> 0 | EQ36: ='اندازه های شخصی'!CC31 -> 0 | ER36: ='اندازه های شخصی'!CE31 -> 0 | ES36: ='اندازه های شخصی'!CG31 -> 0
A37: ضریب فاصله لبه چادر تا زمین j0 | B37: (از -0.1 الی 0.5) | C37: =K37*E37+L37 -> 0 | D37: خط زمین=0 خط زانو=1 | E37: ='طراحی همه الگوها'!Q249 -> 10 | F37: ضریب فاصله لبه چادر تا زمین | G37: 10 | H37: 0 | I37: 30 | J37: 1 | K37: =(J37-H37)/(I37-G37) -> 0.05 | L37: =H37-G37*K37 -> -0.5 | M37: -0.1 | N37: =(M37-L37)/K37 -> 8 | O37: 0.5 | P37: =(O37-L37)/K37 -> 20 | Q37: 0 | R37: =(Q37-L37)/K37 -> 10 | T37: w2 | U37: 16 | V37: 17 | W37: 18 | X37: 19 | Y37: 20 | Z37: 21 | AA37: 22 | AB37: 23 | AC37: 24 | AD37: 24 | AE37: 25 | AF37: 25 | AG37: 26 | AH37: 27.5 | AI37: 29 | AJ37: 30 | AK37: 31.5 | AL37: 33 | AM37: 27 | AN37: 28.2 | AO37: 29.4 | AP37: 30.6 | AQ37: 32 | AR37: 33.8 | AS37: 35.4 | AT37: 37 | AU37: 38.5 | AV37: 40 | AW37: 41.5 | AX37: 43 | AY37: 44.5 | AZ37: 46 | BA37: 33.9 | BB37: 35.1 | BC37: 36.3 | BD37: 37.6 | BE37: 38.8 | BF37: 40 | BG37: 40.7 | BH37: 41.3 | BI37: 41.9 | BJ37: 42.5 | BK37: 43.1 | BL37: 43.7 | BM37: 44.4 | BN37: 45 | BO37: 19 | BP37: 20 | BQ37: 21 | BR37: 22 | BS37: 23 | BT37: 24 | BU37: 24 | BV37: 25 | BW37: 25 | BX37: 26 | BY37: 27.5 | BZ37: 29 | CA37: 30 | CB37: 31.5 | CC37: 33 | CD37: 27 | CE37: 28.2 | CF37: 29.4 | CG37: 30.6 | CH37: 32 | CI37: 33.8 | CJ37: 35.4 | CK37: 37 | CL37: 38.5 | CM37: 40 | CN37: 41.5 | CO37: 43 | CP37: 44.5 | CQ37: 46 | CR37: 33.9 | CS37: 35.1 | CT37: 36.3 | CU37: 37.6 | CV37: 38.8 | CW37: 40 | CX37: 40.7 | CY37: 41.3 | CZ37: 41.9 | DA37: 42.5 | DB37: 43.1 | DC37: 43.7 | DD37: 44.4 | DE37: 45 | DF37: ='اندازه های شخصی'!G32 -> 0 | DG37: ='اندازه های شخصی'!I32 -> 0 | DH37: ='اندازه های شخصی'!K32 -> 0 | DI37: ='اندازه های شخصی'!M32 -> 0 | DJ37: ='اندازه های شخصی'!O32 -> 0 | DK37: ='اندازه های شخصی'!Q32 -> 0 | DL37: ='اندازه های شخصی'!S32 -> 0 | DM37: ='اندازه های شخصی'!U32 -> 0 | DN37: ='اندازه های شخصی'!W32 -> 0 | DO37: ='اندازه های شخصی'!Y32 -> 0 | DP37: ='اندازه های شخصی'!AA32 -> 0 | DQ37: ='اندازه های شخصی'!AC32 -> 0 | DR37: ='اندازه های شخصی'!AE32 -> 0 | DS37: ='اندازه های شخصی'!AG32 -> 0 | DT37: ='اندازه های شخصی'!AI32 -> 0 | DU37: ='اندازه های شخصی'!AK32 -> 0 | DV37: ='اندازه های شخصی'!AM32 -> 0 | DW37: ='اندازه های شخصی'!AO32 -> 0 | DX37: ='اندازه های شخصی'!AQ32 -> 0 | DY37: ='اندازه های شخصی'!AS32 -> 0 | DZ37: ='اندازه های شخصی'!AU32 -> 0 | EA37: ='اندازه های شخصی'!AW32 -> 0 | EB37: ='اندازه های شخصی'!AY32 -> 0 | EC37: ='اندازه های شخصی'!BA32 -> 0 | ED37: ='اندازه های شخصی'!BC32 -> 0 | EE37: ='اندازه های شخصی'!BE32 -> 0 | EF37: ='اندازه های شخصی'!BG32 -> 0 | EG37: ='اندازه های شخصی'!BI32 -> 0 | EH37: ='اندازه های شخصی'!BK32 -> 0 | EI37: ='اندازه های شخصی'!BM32 -> 0 | EJ37: ='اندازه های شخصی'!BO32 -> 0 | EK37: ='اندازه های شخصی'!BQ32 -> 0 | EL37: ='اندازه های شخصی'!BS32 -> 0 | EM37: ='اندازه های شخصی'!BU32 -> 0 | EN37: ='اندازه های شخصی'!BW32 -> 0 | EO37: ='اندازه های شخصی'!BY32 -> 0 | EP37: ='اندازه های شخصی'!CA32 -> 0 | EQ37: ='اندازه های شخصی'!CC32 -> 0 | ER37: ='اندازه های شخصی'!CE32 -> 0 | ES37: ='اندازه های شخصی'!CG32 -> 0
A38: ضریب گشادی دامن چادر d1 | B38: (از 1.5 الی 2.3) | C38: =K38*E38+L38 -> 1.8 | D38: بهینه=1.8 | E38: ='طراحی همه الگوها'!Q250 -> 20 | F38: ضریب گشادی دامن چادر | G38: 21 | H38: 1.85 | I38: 20 | J38: 1.8 | K38: =(J38-H38)/(I38-G38) -> 0.05 | L38: =H38-G38*K38 -> 0.8 | M38: 1.5 | N38: =(M38-L38)/K38 -> 14 | O38: 2.3 | P38: =(O38-L38)/K38 -> 30 | Q38: 1.8 | R38: =(Q38-L38)/K38 -> 20 | T38: w10 | U38: 17 | V38: 18 | W38: 21 | X38: 23 | Y38: 27 | Z38: 31 | AA38: 35 | AB38: 38 | AC38: 41 | AD38: 44 | AE38: 46 | AF38: 48 | AG38: 50 | AH38: 52 | AI38: 54 | AJ38: 56 | AK38: 58 | AL38: 60 | AM38: 57.2 | AN38: 57.8 | AO38: 58.4 | AP38: 59 | AQ38: 59.5 | AR38: 60 | AS38: 60.5 | AT38: 61 | AU38: 61.2 | AV38: 62 | AW38: 62.5 | AX38: 63 | AY38: 63.5 | AZ38: 64 | BA38: 60 | BB38: 60.3 | BC38: 60.8 | BD38: 61.4 | BE38: 62 | BF38: 62.5 | BG38: 63 | BH38: 63.5 | BI38: 64 | BJ38: 64.4 | BK38: 64.8 | BL38: 65.2 | BM38: 65.6 | BN38: 66 | BO38: 23 | BP38: 27 | BQ38: 31 | BR38: 35 | BS38: 38 | BT38: 41 | BU38: 44 | BV38: 46 | BW38: 48 | BX38: 50 | BY38: 52 | BZ38: 54 | CA38: 56 | CB38: 58 | CC38: 60 | CD38: 57.2 | CE38: 57.8 | CF38: 58.4 | CG38: 59 | CH38: 59.5 | CI38: 60 | CJ38: 60.5 | CK38: 61 | CL38: 61.2 | CM38: 62 | CN38: 62.5 | CO38: 63 | CP38: 63.5 | CQ38: 64 | CR38: 60 | CS38: 60.3 | CT38: 60.8 | CU38: 61.4 | CV38: 62 | CW38: 62.5 | CX38: 63 | CY38: 63.5 | CZ38: 64 | DA38: 64.4 | DB38: 64.8 | DC38: 65.2 | DD38: 65.6 | DE38: 66 | DF38: ='اندازه های شخصی'!G33 -> 0 | DG38: ='اندازه های شخصی'!I33 -> 0 | DH38: ='اندازه های شخصی'!K33 -> 0 | DI38: ='اندازه های شخصی'!M33 -> 0 | DJ38: ='اندازه های شخصی'!O33 -> 0 | DK38: ='اندازه های شخصی'!Q33 -> 0 | DL38: ='اندازه های شخصی'!S33 -> 0 | DM38: ='اندازه های شخصی'!U33 -> 0 | DN38: ='اندازه های شخصی'!W33 -> 0 | DO38: ='اندازه های شخصی'!Y33 -> 0 | DP38: ='اندازه های شخصی'!AA33 -> 0 | DQ38: ='اندازه های شخصی'!AC33 -> 0 | DR38: ='اندازه های شخصی'!AE33 -> 0 | DS38: ='اندازه های شخصی'!AG33 -> 0 | DT38: ='اندازه های شخصی'!AI33 -> 0 | DU38: ='اندازه های شخصی'!AK33 -> 0 | DV38: ='اندازه های شخصی'!AM33 -> 0 | DW38: ='اندازه های شخصی'!AO33 -> 0 | DX38: ='اندازه های شخصی'!AQ33 -> 0 | DY38: ='اندازه های شخصی'!AS33 -> 0 | DZ38: ='اندازه های شخصی'!AU33 -> 0 | EA38: ='اندازه های شخصی'!AW33 -> 0 | EB38: ='اندازه های شخصی'!AY33 -> 0 | EC38: ='اندازه های شخصی'!BA33 -> 0 | ED38: ='اندازه های شخصی'!BC33 -> 0 | EE38: ='اندازه های شخصی'!BE33 -> 0 | EF38: ='اندازه های شخصی'!BG33 -> 0 | EG38: ='اندازه های شخصی'!BI33 -> 0 | EH38: ='اندازه های شخصی'!BK33 -> 0 | EI38: ='اندازه های شخصی'!BM33 -> 0 | EJ38: ='اندازه های شخصی'!BO33 -> 0 | EK38: ='اندازه های شخصی'!BQ33 -> 0 | EL38: ='اندازه های شخصی'!BS33 -> 0 | EM38: ='اندازه های شخصی'!BU33 -> 0 | EN38: ='اندازه های شخصی'!BW33 -> 0 | EO38: ='اندازه های شخصی'!BY33 -> 0 | EP38: ='اندازه های شخصی'!CA33 -> 0 | EQ38: ='اندازه های شخصی'!CC33 -> 0 | ER38: ='اندازه های شخصی'!CE33 -> 0 | ES38: ='اندازه های شخصی'!CG33 -> 0
A39: ضریب بلند شدن دسته چادر d2 | B39: (از 0.1 الی 1) | C39: =K39*E39+L39 -> 0.5 | D39: بهینه=0.5 | E39: ='طراحی همه الگوها'!Q251 -> 20 | F39: ضریب بلند شدن دسته چادر | G39: 21 | H39: 0.55 | I39: 20 | J39: 0.5 | K39: =(J39-H39)/(I39-G39) -> 0.05 | L39: =H39-G39*K39 -> -0.5 | M39: 0.1 | N39: =(M39-L39)/K39 -> 12 | O39: 1 | P39: =(O39-L39)/K39 -> 30 | Q39: 0.5 | R39: =(Q39-L39)/K39 -> 20 | T39: w11 | U39: 10 | V39: 10 | W39: 10.5 | X39: 11 | Y39: 12 | Z39: 12 | AA39: 13 | AB39: 13 | AC39: 13 | AD39: 14 | AE39: 14 | AF39: 15 | AG39: 16 | AH39: 15 | AI39: 16 | AJ39: 16.5 | AK39: 17 | AL39: 17.5 | AM39: 16.5 | AN39: 17 | AO39: 17.5 | AP39: 18 | AQ39: 18.5 | AR39: 19 | AS39: 19.5 | AT39: 20 | AU39: 20.5 | AV39: 21 | AW39: 21.5 | AX39: 22 | AY39: 22.5 | AZ39: 23 | BA39: 17.9 | BB39: 18.3 | BC39: 18.7 | BD39: 19.1 | BE39: 19.5 | BF39: 19.9 | BG39: 20.3 | BH39: 20.7 | BI39: 21.1 | BJ39: 21.5 | BK39: 21.9 | BL39: 22.3 | BM39: 22.7 | BN39: 23.1 | BO39: 11 | BP39: 12 | BQ39: 12 | BR39: 13 | BS39: 13 | BT39: 13 | BU39: 14 | BV39: 14 | BW39: 15 | BX39: 16 | BY39: 15 | BZ39: 16 | CA39: 16.5 | CB39: 17 | CC39: 17.5 | CD39: 16.5 | CE39: 17 | CF39: 17.5 | CG39: 18 | CH39: 18.5 | CI39: 19 | CJ39: 19.5 | CK39: 20 | CL39: 20.5 | CM39: 21 | CN39: 21.5 | CO39: 22 | CP39: 22.5 | CQ39: 23 | CR39: 17.9 | CS39: 18.3 | CT39: 18.7 | CU39: 19.1 | CV39: 19.5 | CW39: 19.9 | CX39: 20.3 | CY39: 20.7 | CZ39: 21.1 | DA39: 21.5 | DB39: 21.9 | DC39: 22.3 | DD39: 22.7 | DE39: 23.1 | DF39: ='اندازه های شخصی'!G34 -> 0 | DG39: ='اندازه های شخصی'!I34 -> 0 | DH39: ='اندازه های شخصی'!K34 -> 0 | DI39: ='اندازه های شخصی'!M34 -> 0 | DJ39: ='اندازه های شخصی'!O34 -> 0 | DK39: ='اندازه های شخصی'!Q34 -> 0 | DL39: ='اندازه های شخصی'!S34 -> 0 | DM39: ='اندازه های شخصی'!U34 -> 0 | DN39: ='اندازه های شخصی'!W34 -> 0 | DO39: ='اندازه های شخصی'!Y34 -> 0 | DP39: ='اندازه های شخصی'!AA34 -> 0 | DQ39: ='اندازه های شخصی'!AC34 -> 0 | DR39: ='اندازه های شخصی'!AE34 -> 0 | DS39: ='اندازه های شخصی'!AG34 -> 0 | DT39: ='اندازه های شخصی'!AI34 -> 0 | DU39: ='اندازه های شخصی'!AK34 -> 0 | DV39: ='اندازه های شخصی'!AM34 -> 0 | DW39: ='اندازه های شخصی'!AO34 -> 0 | DX39: ='اندازه های شخصی'!AQ34 -> 0 | DY39: ='اندازه های شخصی'!AS34 -> 0 | DZ39: ='اندازه های شخصی'!AU34 -> 0 | EA39: ='اندازه های شخصی'!AW34 -> 0 | EB39: ='اندازه های شخصی'!AY34 -> 0 | EC39: ='اندازه های شخصی'!BA34 -> 0 | ED39: ='اندازه های شخصی'!BC34 -> 0 | EE39: ='اندازه های شخصی'!BE34 -> 0 | EF39: ='اندازه های شخصی'!BG34 -> 0 | EG39: ='اندازه های شخصی'!BI34 -> 0 | EH39: ='اندازه های شخصی'!BK34 -> 0 | EI39: ='اندازه های شخصی'!BM34 -> 0 | EJ39: ='اندازه های شخصی'!BO34 -> 0 | EK39: ='اندازه های شخصی'!BQ34 -> 0 | EL39: ='اندازه های شخصی'!BS34 -> 0 | EM39: ='اندازه های شخصی'!BU34 -> 0 | EN39: ='اندازه های شخصی'!BW34 -> 0 | EO39: ='اندازه های شخصی'!BY34 -> 0 | EP39: ='اندازه های شخصی'!CA34 -> 0 | EQ39: ='اندازه های شخصی'!CC34 -> 0 | ER39: ='اندازه های شخصی'!CE34 -> 0 | ES39: ='اندازه های شخصی'!CG34 -> 0
A40: انتخاب چادر تا پایین پیشانی=1 انتخاب چادر تا بالای پیشانی=0 انتخاب چادر روی سر = -1 | B40: -1 یا 0 یا 1 | C40: =K40*E40+L40 -> 0 | E40: ='طراحی همه الگوها'!Q252 -> 2 | F40: انتخاب چادر تا پایین پیشانی=3 انتخاب چادر تا بالای پیشانی=2 انتخاب چادر روی سر = 1 | G40: 2 | H40: 0 | I40: 1 | J40: -1 | K40: =(J40-H40)/(I40-G40) -> 1 | L40: =H40-G40*K40 -> -2 | M40: 0 | N40: =(M40-L40)/K40 -> 2 | O40: 1 | P40: =(O40-L40)/K40 -> 3 | Q40: 0 | R40: =(Q40-L40)/K40 -> 2 | T40: w12 | U40: 37 | V40: 38 | W40: 42 | X40: 45 | Y40: 47 | Z40: 49 | AA40: 50 | AB40: 51 | AC40: 52 | AD40: 53 | AE40: 53.5 | AF40: 54 | AG40: 54.5 | AH40: 55 | AI40: 55.5 | AJ40: 56 | AK40: 56.5 | AL40: 57 | AM40: 57 | AN40: 57 | AO40: 57 | AP40: 57 | AQ40: 57 | AR40: 57 | AS40: 57 | AT40: 57 | AU40: 57 | AV40: 57 | AW40: 57 | AX40: 57 | AY40: 57 | AZ40: 57 | BA40: 59 | BB40: 59 | BC40: 59 | BD40: 59 | BE40: 59 | BF40: 59 | BG40: 59 | BH40: 59 | BI40: 59 | BJ40: 59 | BK40: 59 | BL40: 59 | BM40: 59 | BN40: 59 | BO40: 45 | BP40: 47 | BQ40: 49 | BR40: 50 | BS40: 51 | BT40: 52 | BU40: 53 | BV40: 53.5 | BW40: 54 | BX40: 54.5 | BY40: 55 | BZ40: 55.5 | CA40: 56 | CB40: 56.5 | CC40: 57 | CD40: 57 | CE40: 57 | CF40: 57 | CG40: 57 | CH40: 57 | CI40: 57 | CJ40: 57 | CK40: 57 | CL40: 57 | CM40: 57 | CN40: 57 | CO40: 57 | CP40: 57 | CQ40: 57 | CR40: 59 | CS40: 59 | CT40: 59 | CU40: 59 | CV40: 59 | CW40: 59 | CX40: 59 | CY40: 59 | CZ40: 59 | DA40: 59 | DB40: 59 | DC40: 59 | DD40: 59 | DE40: 59 | DF40: ='اندازه های شخصی'!G35 -> 0 | DG40: ='اندازه های شخصی'!I35 -> 0 | DH40: ='اندازه های شخصی'!K35 -> 0 | DI40: ='اندازه های شخصی'!M35 -> 0 | DJ40: ='اندازه های شخصی'!O35 -> 0 | DK40: ='اندازه های شخصی'!Q35 -> 0 | DL40: ='اندازه های شخصی'!S35 -> 0 | DM40: ='اندازه های شخصی'!U35 -> 0 | DN40: ='اندازه های شخصی'!W35 -> 0 | DO40: ='اندازه های شخصی'!Y35 -> 0 | DP40: ='اندازه های شخصی'!AA35 -> 0 | DQ40: ='اندازه های شخصی'!AC35 -> 0 | DR40: ='اندازه های شخصی'!AE35 -> 0 | DS40: ='اندازه های شخصی'!AG35 -> 0 | DT40: ='اندازه های شخصی'!AI35 -> 0 | DU40: ='اندازه های شخصی'!AK35 -> 0 | DV40: ='اندازه های شخصی'!AM35 -> 0 | DW40: ='اندازه های شخصی'!AO35 -> 0 | DX40: ='اندازه های شخصی'!AQ35 -> 0 | DY40: ='اندازه های شخصی'!AS35 -> 0 | DZ40: ='اندازه های شخصی'!AU35 -> 0 | EA40: ='اندازه های شخصی'!AW35 -> 0 | EB40: ='اندازه های شخصی'!AY35 -> 0 | EC40: ='اندازه های شخصی'!BA35 -> 0 | ED40: ='اندازه های شخصی'!BC35 -> 0 | EE40: ='اندازه های شخصی'!BE35 -> 0 | EF40: ='اندازه های شخصی'!BG35 -> 0 | EG40: ='اندازه های شخصی'!BI35 -> 0 | EH40: ='اندازه های شخصی'!BK35 -> 0 | EI40: ='اندازه های شخصی'!BM35 -> 0 | EJ40: ='اندازه های شخصی'!BO35 -> 0 | EK40: ='اندازه های شخصی'!BQ35 -> 0 | EL40: ='اندازه های شخصی'!BS35 -> 0 | EM40: ='اندازه های شخصی'!BU35 -> 0 | EN40: ='اندازه های شخصی'!BW35 -> 0 | EO40: ='اندازه های شخصی'!BY35 -> 0 | EP40: ='اندازه های شخصی'!CA35 -> 0 | EQ40: ='اندازه های شخصی'!CC35 -> 0 | ER40: ='اندازه های شخصی'!CE35 -> 0 | ES40: ='اندازه های شخصی'!CG35 -> 0
U42: سایز مناسب برای الگوهای شلوار | V42: =IF(W43=1,(IF(Y43<U9-1," کوچکتر از یک ماهه ",IF(Y43<V9-1,U6,IF(Y43<W9-1,V6,IF(Y43<X9-1,W6,IF(Y43<Y9-1,X6,IF(Y43<Z9-1,Y6,IF(Y43<AA9-1,Z6,IF(Y43<AB9-1,AA6,IF(Y43<AC9-1,AB6,IF(Y43<AD9-1,AC6,IF(Y43<AE9-1,AD6,IF(Y43<AF9-1,AE6,IF(Y43<AG9-1,AF6,IF(Y43<AH9-1,AG6,IF(Y43<AI9-1,AH6,IF(Y43<AJ9-1,AI6,IF(Y43<AK9-1,AJ6,IF(Y43<AL9-1,AK6,IF(Y43<AL9+3,AL6," بزرگتر از 14 ساله ")))))))))))))))))))),IF(W43=2,(IF(Y43<AM9-1," کوچکتر از سایز 34 ",IF(Y43<AN9-1,AM6,IF(Y43<AO9-1,AN6,IF(Y43<AP9-1,AO6,IF(Y43<AQ9-1,AP6,IF(Y43<AR9-1,AQ6,IF(Y43<AS9-1,AR6,IF(Y43<AT9-1,AS6,IF(Y43<AU9-1,AT6,IF(Y43<AV9-1,AU6,IF(Y43<AW9-1,AV6,IF(Y43<AX9-1,AW6,IF(Y43<AY9-1,AX6,IF(Y43<AZ9-1,AY6,IF(Y43<AZ9+3,AZ6," بزرگتر از سایز 60 ")))))))))))))))),IF(Y43<BA9-1," کوچکتراز سایز 37 ",IF(Y43<BB9-1,BA6,IF(Y43<BC9-1,BB6,IF(Y43<BD9-1,BC6,IF(Y43<BE9-1,BD6,IF(Y43<BF9-1,BE6,IF(Y43<BG9-1,BF6,IF(Y43<BH9-1,BG6,IF(Y43<BI9-1,BH6,IF(Y43<BJ9-1,BI6,IF(Y43<BK9-1,BJ6,IF(Y43<BL9-1,BK6,IF(Y43<BM9-1,BL6,IF(Y43<BN9-1,BM6,IF(Y43<BN9+3,BN6," بزرگتر از سایز 50 "))))))))))))))))) -> کوچکتر از سایز 34 | W42: انتخاب نوع اندازه گیری | X42: کمر اندام | Y42: باسن اندام | Z42: دور سینه اندام
U43: سایز مناسب برای الگوهای دامن | V43: =IF(W43=1,(IF(X43<U7-1," کوچکتر از یک ماهه ",IF(X43<V7-1,U6,IF(X43<W7-1,V6,IF(X43<X7-1,W6,IF(X43<Y7-1,X6,IF(X43<Z7-1,Y6,IF(X43<AA7-1,Z6,IF(X43<AB7-1,AA6,IF(X43<AC7-1,AB6,IF(X43<AD7-1,AC6,IF(X43<AE7-1,AD6,IF(X43<AF7-1,AE6,IF(X43<AG7-1,AF6,IF(X43<AH7-1,AG6,IF(X43<AI7-1,AH6,IF(X43<AJ7-1,AI6,IF(X43<AK7-1,AJ6,IF(X43<AL7-1,AK6,IF(X43<AL7+3,AL6," بزرگتر از 14 ساله ")))))))))))))))))))),IF(W43=2,(IF(X43<AM7-1," کوچکتر از سایز 34 ",IF(X43<AN7-1,AM6,IF(X43<AO7-1,AN6,IF(X43<AP7-1,AO6,IF(X43<AQ7-1,AP6,IF(X43<AR7-1,AQ6,IF(X43<AS7-1,AR6,IF(X43<AT7-1,AS6,IF(X43<AU7-1,AT6,IF(X43<AV7-1,AU6,IF(X43<AW7-1,AV6,IF(X43<AX7-1,AW6,IF(X43<AY7-1,AX6,IF(X43<AZ7-1,AY6,IF(X43<AZ7+3,AZ6," بزرگتر از سایز 60 ")))))))))))))))),IF(X43<BA7-1," کوچکتر از سایز 37 ",IF(X43<BB7-1,BA6,IF(X43<BC7-1,BB6,IF(X43<BD7-1,BC6,IF(X43<BE7-1,BD6,IF(X43<BF7-1,BE6,IF(X43<BG7-1,BF6,IF(X43<BH7-1,BG6,IF(X43<BI7-1,BH6,IF(X43<BJ7-1,BI6,IF(X43<BK7-1,BJ6,IF(X43<BL7-1,BK6,IF(X43<BM7-1,BL6,IF(X43<BN7-1,BM6,IF(X43<BN7+3,BN6," بزرگتر از سایز 50 "))))))))))))))))) -> کوچکتر از سایز 34 | W43: 2 | X43: ='اندازه گیری و تحلیل'!E275 -> 0 | Y43: ='اندازه گیری و تحلیل'!E272 -> 0 | Z43: ='اندازه گیری و تحلیل'!E269 -> 0
U44: سایز مناسب برای الگوهای پیراهن | V44: =IF(W43=1,(IF(Z43<U27-1," کوچکتر از یک ماهه ",IF(Z43<V27-1,U6,IF(Z43<W27-1,V6,IF(Z43<X27-1,W6,IF(Z43<Y27-1,X6,IF(Z43<Z27-1,Y6,IF(Z43<AA27-1,Z6,IF(Z43<AB27-1,AA6,IF(Z43<AC27-1,AB6,IF(Z43<AD27-1,AC6,IF(Z43<AE27-1,AD6,IF(Z43<AF27-1,AE6,IF(Z43<AG27-1,AF6,IF(Z43<AH27-1,AG6,IF(Z43<AI27-1,AH6,IF(Z43<AJ27-1,AI6,IF(Z43<AK27-1,AJ6,IF(Z43<AL27-1,AK6,IF(Z43<AL27+3,AL6," بزرگتر از 14 ساله ")))))))))))))))))))),IF(W43=2,(IF(Z43<AM27-1," کوچکتر از سایز 34 ",IF(Z43<AN27-1,AM6,IF(Z43<AO27-1,AN6,IF(Z43<AP27-1,AO6,IF(Z43<AQ27-1,AP6,IF(Z43<AR27-1,AQ6,IF(Z43<AS27-1,AR6,IF(Z43<AT27-1,AS6,IF(Z43<AU27-1,AT6,IF(Z43<AV27-1,AU6,IF(Z43<AW27-1,AV6,IF(Z43<AX27-1,AW6,IF(Z43<AY27-1,AX6,IF(Z43<AZ27-1,AY6,IF(Z43<AZ27+3,AZ6," بزرگتر از سایز 60 ")))))))))))))))),IF(Z43<BA27-1," کوچکتر از سایز 37 ",IF(Z43<BB27-1,BA6,IF(Z43<BC27-1,BB6,IF(Z43<BD27-1,BC6,IF(Z43<BE27-1,BD6,IF(Z43<BF27-1,BE6,IF(Z43<BG27-1,BF6,IF(Z43<BH27-1,BG6,IF(Z43<BI27-1,BH6,IF(Z43<BJ27-1,BI6,IF(Z43<BK27-1,BJ6,IF(Z43<BL27-1,BK6,IF(Z43<BM27-1,BL6,IF(Z43<BN27-1,BM6,IF(Z43<BN27+3,BN6," بزرگتر از سایز 50 "))))))))))))))))) -> کوچکتر از سایز 34
A46: متغیرهای ورودی پیراهن | F46: متغیرهای ورودی پیراهن
B48: برچسب الگو : | F48: پنج ساله میل سه
A50: متغیرهای ورودی - شیفت الگو پیراهن | F50: متغیرهای ورودی - شیفت الگو پیراهن | G50: x1 | H50: y1 | I50: x2 | J50: y2(بهینه) | K50: a | L50: b | M50: کمترین قبلی | N50: کمترین جدید | O50: بیشترین قبلی | P50: بیشترین جدید | S50: اندازه های خوانده شده در محاسبه الگوها | W50: اندازه های خوانده شده برای بررسی اندازه ها | AJ50: رنج تغییرات اندزه ها | AK50: رنج تغییرات متغیرها مثبت و منفی | AL50: رنج تغییرات متغیرها مثبت | AO50: انتخاب نوع سایزبندی | AP50: رنج تغییرات کوچک متغیرها مثبت و منفی | AQ50: دامن فون
A51: شیفت افقی کل الگو جلو پیراهن برحسب سانتیمتر | B51: (از -100 الی100) | C51: =K51*E51+L51 -> 12 | D51: بدون شیفت=0 | E51: ='طراحی مدل 213'!B331 -> 12 | F51: شیفت افقی کل الگو جلو پیراهن (سانتیمتر) | G51: 1 | H51: 1 | I51: 0 | J51: 0 | K51: =(J51-H51)/(I51-G51) -> 1 | L51: =H51-G51*K51 -> 0 | M51: -100 | N51: =(M51-L51)/K51 -> -100 | O51: 100 | P51: =(O51-L51)/K51 -> 100 | S51: اندازه ها در دامن و شلوار | U51: اندازه شخص | W51: اندازه شخص | AJ51: =U6 -> 1ماهه | AK51: -100 | AL51: 1 | AM51: اندازه جدید | AO51: سایزبندی بچگانه | AP51: -50 | AQ51: 1
A52: شیفت عمودی کل الگو جلو پیراهن برحسب سانتیمتر | B52: (از -100 الی100) | C52: 7 | D52: بدون شیفت =0 | E52: ='طراحی مدل 213'!B332 -> 7 | F52: شیفت عمودی کل الگو جلو پیراهن (سانتیمتر) | G52: 1 | H52: 1 | I52: 0 | J52: 0 | K52: 1 | L52: 0 | M52: -100 | N52: -100 | O52: 100 | P52: 100 | S52: دور کمر | T52: a | U52: =OFFSET('متغیرها '!T5,2,'متغیرها '!U5) -> 75 | W52: =OFFSET('متغیرها '!T5,2,'متغیرها '!Y5) -> 131 | AJ52: =V6 -> 1 تا 3 ماهه | AK52: -99 | AL52: 2 | AM52: اندازه های موجود | AO52: سایزبندی زنانه | AP52: -49.5 | AQ52: =AQ51+0.5 -> 1.5
A53: شیفت افقی کل الگو پشت پیراهن برحسب سانتیمتر | B53: (از -100 الی100) | C53: 10 | D53: بدون شیفت=0 | E53: ='طراحی مدل 213'!B333 -> 10 | F53: شیفت افقی کل الگو پشت پیراهن (سانتیمتر) | G53: 1 | H53: 1 | I53: 0 | J53: 0 | K53: 1 | L53: 0 | M53: -100 | N53: -100 | O53: 100 | P53: 100 | S53: نوار کمر از پشت بین دو خط پهلو | T53: b | U53: =OFFSET('متغیرها '!T5,3,'متغیرها '!U5) -> 36.8 | W53: =OFFSET('متغیرها '!T5,3,'متغیرها '!Y5) -> 63.6 | AJ53: =W6 -> 3 تا 6 ماهه | AK53: -98 | AL53: 3 | AM53: انتخاب نوع اندازه گیری | AO53: سایزبندی مردانه | AP53: -49 | AQ53: 2
A54: شیفت عمودی کل الگو پشت پیراهن برحسب سانتیمتر | B54: (از -100 الی100) | C54: 10 | D54: بدون شیفت =0 | E54: ='طراحی مدل 213'!B334 -> 10 | F54: شیفت عمودی کل الگو پشت پیراهن (سانتیمتر) | G54: 1 | H54: 1 | I54: 0 | J54: 0 | K54: 1 | L54: 0 | M54: -100 | N54: -100 | O54: 100 | P54: 100 | S54: دور باسن | T54: c | U54: =OFFSET('متغیرها '!T5,4,'متغیرها '!U5) -> 93 | W54: =OFFSET('متغیرها '!T5,4,'متغیرها '!Y5) -> 150 | AJ54: =X6 -> 6ماهه تا یکساله | AK54: -97 | AL54: 4 | AM54: اندازه گیری پیشرفته و با جزئیات | AP54: -48.5 | AQ54: 2.5
A55: شیفت افقی تکه پهلو جلو برحسب سانتیمتر | B55: (از -100 الی100) | C55: 0 | D55: بدون شیفت=0 | E55: ='طراحی مدل 213'!B335 -> 0 | F55: شیفت افقی تکه پهلو جلو (سانتیمتر) | G55: 1 | H55: 1 | I55: 0 | J55: 0 | K55: 1 | L55: 0 | M55: -100 | N55: -100 | O55: 100 | P55: 100 | S55: نوار باسن از پشت بین دو خط پهلو | T55: d | U55: =OFFSET('متغیرها '!T5,5,'متغیرها '!U5) -> 49.3 | W55: =OFFSET('متغیرها '!T5,5,'متغیرها '!Y5) -> 79.8 | AJ55: =Y6 -> بچگانه 1 ساله | AK55: -96 | AL55: 5 | AM55: اندازه گیری مردان و بچه ها | AP55: -48 | AQ55: 3
A56: شیفت افقی تکه پهلو پشت برحسب سانتیمتر | B56: (از -100 الی100) | C56: 0 | D56: بدون شیفت=0 | E56: ='طراحی مدل 213'!B336 -> 0 | F56: شیفت افقی تکه پهلو پشت (سانتیمتر) | G56: 1 | H56: 1 | I56: 0 | J56: 0 | K56: 1 | L56: 0 | M56: -100 | N56: -100 | O56: 100 | P56: 100 | S56: فاصله نوار کمر تا زمین، از قسمت جلو | T56: e | U56: =OFFSET('متغیرها '!T5,6,'متغیرها '!U5) -> 99.9 | W56: =OFFSET('متغیرها '!T5,6,'متغیرها '!Y5) -> 108.9 | AJ56: =Z6 -> بچگانه 2 ساله | AK56: -95 | AL56: 6 | AM56: اندازه گیری زنان | AP56: -47.5 | AQ56: 3.5
A57: شیفت عمودی تکه پهلو پشت برحسب سانتیمتر | B57: (از -100 الی100) | C57: 0 | D57: بدون شیفت=0 | E57: ='طراحی مدل 213'!B337 -> 0 | F57: شیفت عمودی تکه پهلو پشت (سانتیمتر) | G57: 1 | H57: 1 | I57: 0 | J57: 0 | K57: 1 | L57: 0 | M57: -100 | N57: -100 | O57: 100 | P57: 100 | S57: فاصله نوار کمر تا زمین، از قسمت پهلو | T57: f | U57: =OFFSET('متغیرها '!T5,7,'متغیرها '!U5) -> 100 | W57: =OFFSET('متغیرها '!T5,7,'متغیرها '!Y5) -> 110 | AJ57: =AA6 -> بچگانه 3 ساله | AK57: -94 | AL57: 7 | AM57: اندازه گیری پیشرفته زنان | AP57: -47 | AQ57: 4
S58: فاصله نوار کمر تا زمین، از قسمت پشت | T58: g | U58: =OFFSET('متغیرها '!T5,8,'متغیرها '!U5) -> 100.1 | W58: =OFFSET('متغیرها '!T5,8,'متغیرها '!Y5) -> 111.1 | AJ58: =AB6 -> بچگانه 4 ساله | AK58: -93 | AL58: 8 | AP58: -46.5 | AQ58: 4.5
A59: متغیرهای ورودی - گشاد یا تنگ شدن پیراهن | F59: متغیرهای ورودی - گشاد یا تنگ شدن پیراهن | G59: x1 | H59: y1 | I59: x2 | J59: y2(بهینه) | K59: a | L59: b | M59: کمترین قبلی | N59: کمترین جدید | O59: بیشترین قبلی | P59: بیشترین جدید | S59: فاصله نوار زانو تا زمین | T59: h | U59: =OFFSET('متغیرها '!T5,9,'متغیرها '!U5) -> 45.7 | W59: =OFFSET('متغیرها '!T5,9,'متغیرها '!Y5) -> 46.7 | AJ59: =AC6 -> بچگانه 5 ساله | AK59: -92 | AL59: 9 | AP59: -46 | AQ59: 5
A60: ضریب تغییر اندازه های عرضی در پیراهن f2 | B60: (از -0.2 الی 0.2) | C60: =K60*E60+L60 -> 0.03 | D60: اندامی =0 | E60: ='طراحی مدل 213'!B340 -> 3 | F60: اندازه های عرضی در پیراهن | G60: 1 | H60: 0.01 | I60: 0 | J60: 0 | K60: =(J60-H60)/(I60-G60) -> 0.01 | L60: =H60-G60*K60 -> 0 | M60: -0.2 | N60: =(M60-L60)/K60 -> -20 | O60: 0.2 | P60: =(O60-L60)/K60 -> 20 | S60: فاصله نوار باسن تا زمین | T60: j | U60: =OFFSET('متغیرها '!T5,10,'متغیرها '!U5) -> 83 | W60: =OFFSET('متغیرها '!T5,10,'متغیرها '!Y5) -> 87.3 | AJ60: =AD6 -> بچگانه 6 ساله | AK60: -91 | AL60: 10 | AM60: انتخاب نوع الگو | AP60: -45.5 | AQ60: 5.5
A61: ضریب گشاد یا تنگ شدن از خط پهلو زیر حلقهf3 | B61: (از -0.03 الی 0.03) | C61: =K61*E61+L61 -> 0.01 | D61: اندامی =0 | E61: ='طراحی مدل 213'!B341 -> 2 | F61: گشاد یا تنگ شدن از خط پهلو زیر حلقه | G61: 1 | H61: 0.005 | I61: 0 | J61: 0 | K61: =(J61-H61)/(I61-G61) -> 0.005 | L61: =H61-G61*K61 -> 0 | M61: -0.03 | N61: =(M61-L61)/K61 -> -6 | O61: 0.03 | P61: =(O61-L61)/K61 -> 6 | S61: دور زانو | T61: L | U61: =OFFSET('متغیرها '!T5,11,'متغیرها '!U5) -> 38.1 | W61: =OFFSET('متغیرها '!T5,11,'متغیرها '!Y5) -> 61.5 | AJ61: =AE6 -> بچگانه 7 ساله | AK61: -90 | AL61: 11 | AM61: فاق معمولی مناسب زنان و بچه ها | AP61: -45 | AQ61: 6
A62: ضریب گشاد یا تنگ شدن از خط پهلو دور باسن f4 | B62: (از -0.03 الی 0.08) | C62: =K62*E62+L62 -> 0 | D62: اندامی =0 | E62: ='طراحی مدل 213'!B342 -> 0 | F62: گشاد یا تنگ شدن از خط پهلو دور باسن | G62: 1 | H62: 0.005 | I62: 0 | J62: 0 | K62: =(J62-H62)/(I62-G62) -> 0.005 | L62: =H62-G62*K62 -> 0 | M62: -0.03 | N62: =(M62-L62)/K62 -> -6 | O62: 0.08 | P62: =(O62-L62)/K62 -> 16 | S62: بلندی فاق | T62: m | U62: =OFFSET('متغیرها '!T5,12,'متغیرها '!U5) -> 25 | W62: =OFFSET('متغیرها '!T5,12,'متغیرها '!Y5) -> 33.5 | AJ62: =AF6 -> بچگانه 8 ساله | AK62: -89 | AL62: 12 | AM62: فاق کمی بلند مناسب مردان | AP62: -44.5 | AQ62: 6.5
A63: ضریب تغییر اندازه های طولی در پیراهن f5 | B63: (از -0.2 الی 0.2) | C63: =K63*E63+L63 -> 0 | D63: اندامی =0 | E63: ='طراحی همه الگوها'!B259 -> 0 | F63: اندازه های طولی در پیراهن | G63: 1 | H63: 0.01 | I63: 0 | J63: 0 | K63: =(J63-H63)/(I63-G63) -> 0.01 | L63: =H63-G63*K63 -> 0 | M63: -0.2 | N63: =(M63-L63)/K63 -> -20 | O63: 0.2 | P63: =(O63-L63)/K63 -> 20 | S63: آنفورشور | T63: q | U63: =OFFSET('متغیرها '!T5,13,'متغیرها '!U5) -> 66 | W63: =OFFSET('متغیرها '!T5,13,'متغیرها '!Y5) -> 91.7 | AJ63: =AG6 -> بچگانه 9 ساله | AK63: -88 | AL63: 13 | AM63: فاق کاملا بلند مناسب بچه با پوشک | AP63: -44 | AQ63: 7
S64: دور مچ پا | T64: r | U64: =OFFSET('متغیرها '!T5,14,'متغیرها '!U5) -> 23.6 | W64: =OFFSET('متغیرها '!T5,14,'متغیرها '!Y5) -> 30 | AJ64: =AH6 -> بچگانه 10 ساله | AK64: -87 | AL64: 14 | AP64: -43.5 | AQ64: 7.5
A65: متغیرهای ورودی - جادکمه و پایین لباس | F65: متغیرهای ورودی - جادکمه و پایین لباس | G65: x1 | H65: y1 | I65: x2 | J65: y2(بهینه) | K65: a | L65: b | M65: کمترین قبلی | N65: کمترین جدید | O65: بیشترین قبلی | P65: بیشترین جدید | AJ65: =AI6 -> بچگانه 11 ساله | AK65: -86 | AL65: 15 | AM65: ارتفاع یقه گرد کش | AP65: -43 | AQ65: 8
A66: ضریب بزرگی پهنای جادکمه جلو مرحله اول | B66: (از 0 الی 0.1) | C66: =K66*E66+L66 -> 0.015 | D66: بهینه=0.015 | E66: ='طراحی مدل 213'!B345 -> 3 | F66: پهنای جادکمه جلو مرحله اول در طراحی یقه انگلیسی | G66: 0 | H66: 0 | I66: 1 | J66: 0.005 | K66: =(J66-H66)/(I66-G66) -> 0.005 | L66: =H66-G66*K66 -> 0 | M66: 0 | N66: =(M66-L66)/K66 -> 0 | O66: 0.1 | P66: =(O66-L66)/K66 -> 20 | S66: شلوار زنانه و بچگانه = 0 مردانه=1 بچه با پوشک=2 | U66: =OFFSET('متغیرها '!T5,16,'متغیرها '!U5) -> 0 | W66: =OFFSET('متغیرها '!T5,16,'متغیرها '!Y5) -> 0 | AJ66: =AJ6 -> بچگانه 12 ساله | AK66: -85 | AL66: 16 | AM66: 0.5 | AN66: نوع آستین | AP66: -42.5 | AQ66: 8.5
A67: ضریب فاصله لبه دامن یا پیراهن تا زمین k0 | B67: (از 0 الی 4) | C67: =K67*E67+L67 -> 1 | D67: خط زمین=0 خط زانو=1 خط باسن=2 خط کمر=3 خط سینه=4 | E67: ='طراحی مدل 213'!B354 -> 30 | F67: لبه پایین لباس | G67: 10 | H67: 0 | I67: 30 | J67: 1 | K67: =(J67-H67)/(I67-G67) -> 0.05 | L67: =H67-G67*K67 -> -0.5 | M67: 0 | N67: =(M67-L67)/K67 -> 10 | O67: 4 | P67: =(O67-L67)/K67 -> 90 | AJ67: =AK6 -> بچگانه 13 ساله | AK67: -84 | AL67: 17 | AM67: 1 | AN67: 1 | AP67: -42 | AQ67: 9
A68: ضریب انحنا لبه پایین لباس | B68: (از 0 الی 0.9) | C68: =K68*E68+L68 -> 0 | D68: بهینه =0.1 | E68: ='طراحی همه الگوها'!B206 -> 0 | F68: انحنا لبه پایین لباس نزدیک خط پهلو | G68: 0 | H68: 0 | I68: 1 | J68: 0.05 | K68: =(J68-H68)/(I68-G68) -> 0.05 | L68: =H68-G68*K68 -> 0 | M68: 0 | N68: =(M68-L68)/K68 -> 0 | O68: 0.9 | P68: =(O68-L68)/K68 -> 18 | AJ68: =AL6 -> بچگانه 14 ساله | AK68: -83 | AL68: 18 | AM68: 1.5 | AN68: 2 | AP68: -41.5 | AQ68: 9.5
A69: ضریب طول انحنا لبه پایین لباس نزدیک خط پهلو | B69: (از 0 الی 1) | C69: =K69*E69+L69 -> 0.9 | D69: بهینه =0.9 | E69: ='طراحی همه الگوها'!B207 -> 18 | F69: طول انحنا لبه پایین لباس نزدیک خط پهلو | G69: 0 | H69: 0 | I69: 1 | J69: 0.05 | K69: =(J69-H69)/(I69-G69) -> 0.05 | L69: =H69-G69*K69 -> 0 | M69: 0 | N69: =(M69-L69)/K69 -> 0 | O69: 1 | P69: =(O69-L69)/K69 -> 20 | S69: اندازه ها در بالاتنه | U69: اندازه شخص | W69: اندازه شخص | AJ69: =AM6 -> 34زنانه | AK69: -82 | AL69: 19 | AM69: 2 | AN69: 4 | AP69: -41 | AQ69: 10
A70: متغیرهای ورودی - یقه | F70: متغیرهای ورودی - یقه | G70: x1 | H70: y1 | I70: x2 | J70: y2(بهینه) | K70: a | L70: b | M70: کمترین قبلی | N70: کمترین جدید | O70: بیشترین قبلی | P70: بیشترین جدید | S70: دور کمر | T70: a | U70: =OFFSET('متغیرها '!T5,20,'متغیرها '!U5) -> 75 | W70: =OFFSET('متغیرها '!T5,20,'متغیرها '!Y5) -> 131 | AJ70: =AN6 -> 36زنانه | AK70: -81 | AL70: 20 | AM70: 2.5 | AP70: -40.5 | AQ70: 10.5
A71: ضریب باز شدن یقه روی سرشانه (گرد یا مربعی یا دلبری) مرحله دوم x6 | B71: (از 0 الی 0.99) | C71: =K71*E71+L71 -> 0.2 | D71: یقه کیپ=0 | E71: ='طراحی مدل 213'!E319 -> 4 | F71: باز شدن یقه روی سرشانه (گرد یا مربعی یا دلبری) مرحله دوم در طراحی یقه انگلیسی | G71: 0 | H71: 0 | I71: 1 | J71: 0.05 | K71: =(J71-H71)/(I71-G71) -> 0.05 | L71: =H71-G71*K71 -> 0 | M71: 0 | N71: =(M71-L71)/K71 -> 0 | O71: 0.95 | P71: =(O71-L71)/K71 -> 19 | S71: نوار کمر از پشت بین دو خط پهلو | T71: b | U71: =OFFSET('متغیرها '!T5,21,'متغیرها '!U5) -> 36.8 | W71: =OFFSET('متغیرها '!T5,21,'متغیرها '!Y5) -> 63.6 | AJ71: =AO6 -> 38زنانه | AK71: -80 | AL71: 21 | AM71: 3 | AP71: -40 | AQ71: 11
A72: ضریب باز شدن یقه روی خط مرکزی جلو (گرد یا مربعی یا قایقی یا پروانه ای) x'6 | B72: (از 0 الی 3) | C72: =K72*E72+L72 -> 0.4 | D72: یقه کیپ=0 | E72: ='طراحی مدل 213'!E320 -> 8 | F72: باز شدن یقه روی خط مرکزی جلو (گرد یا مربعی یا قایقی یا پروانه ای) | G72: 0 | H72: 0 | I72: 1 | J72: 0.05 | K72: =(J72-H72)/(I72-G72) -> 0.05 | L72: =H72-G72*K72 -> 0 | M72: 0 | N72: =(M72-L72)/K72 -> 0 | O72: 3 | P72: =(O72-L72)/K72 -> 60 | S72: دور سینه : از برجسته ترین قسمت سینه | T72: s1 | U72: =OFFSET('متغیرها '!T5,22,'متغیرها '!U5) -> 86 | W72: =OFFSET('متغیرها '!T5,22,'متغیرها '!Y5) -> 146 | AJ72: =AP6 -> 40زنانه | AK72: -79 | AL72: 22 | AM72: 3.5 | AP72: -39.5 | AQ72: 11.5
A73: ضریب باز شدن یقه روی خط مرکزی پشت (گرد یا مربعی یا قایقی یا پروانه ای) مرحله دوم x7 | B73: (از 0 الی 3) | C73: =K73*E73+L73 -> 0.15 | D73: یقه کیپ=0 | E73: ='طراحی مدل 213'!E321 -> 3 | F73: باز شدن یقه روی خط مرکزی پشت(گرد؛ مربعی؛ قایقی؛ پروانه ای)مرحله دوم در طراحی یقه انگلیسی | G73: 0 | H73: 0 | I73: 1 | J73: 0.05 | K73: =(J73-H73)/(I73-G73) -> 0.05 | L73: =H73-G73*K73 -> 0 | M73: 0 | N73: =(M73-L73)/K73 -> 0 | O73: 3 | P73: =(O73-L73)/K73 -> 60 | S73: پشت نوار سینه، بین دو خط پهلو | T73: s2 | U73: =OFFSET('متغیرها '!T5,23,'متغیرها '!U5) -> 43 | W73: =OFFSET('متغیرها '!T5,23,'متغیرها '!Y5) -> 67.5 | AJ73: =AQ6 -> 42زنانه | AK73: -78 | AL73: 23 | AM73: 4 | AP73: -39 | AQ73: 12
S74: فاصله عمودی از خط سینه جلو تا خط سینه پشت که از کنار حلقه آستین بگذرد | T74: t1 | U74: =OFFSET('متغیرها '!T5,24,'متغیرها '!U5) -> 39.8 | W74: =OFFSET('متغیرها '!T5,24,'متغیرها '!Y5) -> 46.5 | AJ74: =AR6 -> 44زنانه | AK74: -77 | AL74: 24 | AM74: 4.5 | AP74: -38.5 | AQ74: 12.5
A75: متغیرهای ورودی - سرشانه و حلقه آستین | F75: متغیرهای ورودی - سرشانه و حلقه آستین | G75: x1 | H75: y1 | I75: x2 | J75: y2(بهینه) | K75: a | L75: b | M75: کمترین قبلی | N75: کمترین جدید | O75: بیشترین قبلی | P75: بیشترین جدید | S75: فاصله عمودی از خط سینه جلو تا خط سینه پشت که از کنارگردن بگذرد | T75: t2 | U75: =OFFSET('متغیرها '!T5,25,'متغیرها '!U5) -> 46.9 | W75: =OFFSET('متغیرها '!T5,25,'متغیرها '!Y5) -> 63.3 | AJ75: =AS6 -> 46زنانه | AK75: -76 | AL75: 25 | AM75: 5 | AP75: -38 | AQ75: 13
A76: میزان کم شدن سرشانه x8 | B76: (از -0.5 الی 0.9) | C76: =K76*E76+L76 -> 0 | D76: اندامی =0 | E76: ='طراحی مدل 213'!B348 -> 0 | F76: ضریب کم شدن سرشانه | G76: 0 | H76: 0 | I76: 1 | J76: 0.05 | K76: =(J76-H76)/(I76-G76) -> 0.05 | L76: =H76-G76*K76 -> 0 | M76: -0.5 | N76: =(M76-L76)/K76 -> -10 | O76: 0.9 | P76: =(O76-L76)/K76 -> 18 | S76: فاصله عمودی از خط کمر جلو تا خط کمر پشت که از کنار گردن بگذرد | T76: t3 | U76: =OFFSET('متغیرها '!T5,26,'متغیرها '!U5) -> 80 | W76: =OFFSET('متغیرها '!T5,26,'متغیرها '!Y5) -> 100 | AJ76: =AT6 -> 48زنانه | AK76: -75 | AL76: 26 | AP76: -37.5 | AQ76: 13.5
A77: میزان بزرگ شدن زیر حلقه آستین x9 | B77: (از -0.5 الی 1.5) | C77: =K77*E77+L77 -> 0.15 | D77: اندامی =0 | E77: ='طراحی مدل 213'!B349 -> 3 | F77: ضریب بزرگ شدن زیر حلقه آستین | G77: 0 | H77: 0 | I77: 1 | J77: 0.05 | K77: =(J77-H77)/(I77-G77) -> 0.05 | L77: =H77-G77*K77 -> 0 | M77: -0.5 | N77: =(M77-L77)/K77 -> -10 | O77: 1.5 | P77: =(O77-L77)/K77 -> 30 | S77: فاصله عمودی بین خط سینه پشت و سرشانه، نزدیک دست | T77: t4 | U77: =OFFSET('متغیرها '!T5,27,'متغیرها '!U5) -> 20.4 | W77: =OFFSET('متغیرها '!T5,27,'متغیرها '!Y5) -> 23.8 | AJ77: =AU6 -> 50زنانه | AK77: -74 | AL77: 27 | AM77: متغیر ورودی به سانتیمتر | AN77: متغیر ورودی به سانتیمتر | AP77: -37 | AQ77: 14
A78: میزان زیاد شدن سرشانه x10 | B78: (از -0.5 الی 0.5) | C78: =K78*E78+L78 -> 0 | D78: اندامی =0 | E78: ='طراحی مدل 213'!B350 -> 0 | F78: ضریب زیاد شدن سرشانه | G78: 0 | H78: 0 | I78: 1 | J78: 0.05 | K78: =(J78-H78)/(I78-G78) -> 0.05 | L78: =H78-G78*K78 -> 0 | M78: -0.5 | N78: =(M78-L78)/K78 -> -10 | O78: 0.5 | P78: =(O78-L78)/K78 -> 10 | S78: فاصله عمودی بین خط سینه پشت و سرشانه، نزدیک گردن | T78: t5 | U78: =OFFSET('متغیرها '!T5,28,'متغیرها '!U5) -> 24.5 | W78: =OFFSET('متغیرها '!T5,28,'متغیرها '!Y5) -> 30.5 | AJ78: =AV6 -> 52زنانه | AK78: -73 | AL78: 28 | AM78: -10 | AN78: 0 | AP78: -36.5 | AQ78: 14.5
A79: انتخاب آستین حلقه ای یا پیش سینه رکابی یا تکه پهلو جدا=0 و انتخاب آستین دیگر=1 | B79: 0 یا 1 | C79: =K79*E79+L79 -> 1 | E79: ='طراحی مدل 213'!B351 -> 2 | F79: انتخاب آستین حلقه ای یا پیش سینه رکابی یا تکه پهلو جدا=1 و انتخاب آستین دیگر=2 | G79: 1 | H79: 0 | I79: 2 | J79: 1 | K79: =(J79-H79)/(I79-G79) -> 1 | L79: =H79-G79*K79 -> -1 | N79: 1 | P79: 2 | S79: فاصله عمودی بین خط کمرپشت و سرشانه، نزدیک گردن | T79: t6 | U79: =OFFSET('متغیرها '!T5,29,'متغیرها '!U5) -> 40.8 | W79: =OFFSET('متغیرها '!T5,29,'متغیرها '!Y5) -> 46.9 | AJ79: =AW6 -> 54زنانه | AK79: -72 | AL79: 29 | AM79: -9.5 | AN79: 0.1 | AP79: -36 | AQ79: 15
S80: دور گردن (متر به طور عمودی دور گردن قرار می گیرد و از روی استخوان ترقوه می گذرد) | T80: v | U80: =OFFSET('متغیرها '!T5,30,'متغیرها '!U5) -> 39 | W80: =OFFSET('متغیرها '!T5,30,'متغیرها '!Y5) -> 50 | AJ80: =AX6 -> 56زنانه | AK80: -71 | AL80: 30 | AM80: -9 | AN80: 0.2 | AP80: -35.5 | AQ80: 15.5
A81: متغیرهای ورودی - تنظیم ساسون های بالای کمر مجموع ضرایب پهنای دو ساسون پشت باید کمتر از یک یا مساوی یک باشد. با تغییر ضرایب پهنای ساسون، باقیمانده ساسون ها روی خط پهلو قرار میگیرد. | F81: متغیرهای ورودی - تنظیم ساسون های بالای کمر مجموع ضرایب پهنای دو ساسون پشت باید کمتر از یک یا مساوی یک باشد. با تغییر ضرایب پهنای ساسون، باقیمانده ساسون ها روی خط پهلو قرار میگیرد. | G81: x1 | H81: y1 | I81: x2 | J81: y2 | K81: a | L81: b | N81: کمترین | P81: بیشترین | R81: تست جدید | S81: کارور پشت (بین دو خط امتداد زیر بغل) | T81: v3 | U81: =OFFSET('متغیرها '!T5,31,'متغیرها '!U5) -> 35.1 | W81: =OFFSET('متغیرها '!T5,31,'متغیرها '!Y5) -> 55.5 | AJ81: =AY6 -> 58زنانه | AK81: -70 | AL81: 31 | AM81: -8.5 | AN81: 0.3 | AP81: -35 | AQ81: 16
A82: ضریب پهنای ساسون روی خط مرکزی پشت بالاتنه y'1 | B82: (از 0 الی 1) | C82: =K82*E82+L82 -> 0 | D82: بدون ساسون=0 بهینه=0.5 | E82: ='طراحی مدل 213'!B415 -> 0 | F82: ضریب پهنای ساسون روی خط مرکزی پشت بالاتنه | G82: 0 | H82: 0 | I82: 1 | J82: 0.05 | K82: =(J82-H82)/(I82-G82) -> 0.05 | L82: =H82-G82*K82 -> 0 | M82: 0 | N82: =(M82-L82)/K82 -> 0 | O82: 1 | P82: =(O82-L82)/K82 -> 20 | Q82: 0.5 | R82: =(Q82-L82)/K82 -> 10 | S82: دور بازو از ناحیه زیر بغل | T82: w2 | U82: =OFFSET('متغیرها '!T5,32,'متغیرها '!U5) -> 33 | W82: =OFFSET('متغیرها '!T5,32,'متغیرها '!Y5) -> 46 | AJ82: =AZ6 -> 60زنانه | AK82: -69 | AL82: 32 | AM82: -8 | AN82: 0.4 | AO82: متغیر ورودی خاص شلوار | AP82: -34.5 | AQ82: 16.5
A83: ضریب طول ساسون روی خط مرکزی پشت بالاتنه y'3 | B83: (از0.1 الی 0.9) | C83: 0.75 | D83: بهینه=0.75 | E83: ='طراحی مدل 213'!B416 -> 15 | F83: ضریب طول ساسون روی خط مرکزی پشت بالاتنه | G83: 0 | H83: 0 | I83: 1 | J83: 0.05 | K83: =(J83-H83)/(I83-G83) -> 0.05 | L83: =H83-G83*K83 -> 0 | M83: 0.1 | N83: 2 | O83: 0.9 | P83: 18 | Q83: 0.75 | R83: 15 | S83: قد آستین (دست به طور خمیده، قد از سرشانه تا مچ) | T83: w10 | U83: =OFFSET('متغیرها '!T5,33,'متغیرها '!U5) -> 60 | W83: =OFFSET('متغیرها '!T5,33,'متغیرها '!Y5) -> 64 | AJ83: =BA6 -> 37 مردانه | AK83: -68 | AL83: 33 | AM83: -7.5 | AN83: 0.5 | AO83: 0.5 | AP83: -34 | AQ83: 17
A84: ضریب پهنای ساسون میانی پشت بالاتنه y'2 | B84: (از 0 الی 1) | C84: 0.75 | D84: بدون ساسون=0 بهینه=0.5 | E84: ='طراحی مدل 213'!B417 -> 15 | F84: ضریب پهنای ساسون میانی پشت بالاتنه | G84: 0 | H84: 0 | I84: 1 | J84: 0.05 | K84: =(J84-H84)/(I84-G84) -> 0.05 | L84: =H84-G84*K84 -> 0 | M84: 0 | N84: 0 | O84: 1 | P84: 20 | Q84: 0.5 | R84: 10 | S84: دور مچ دست | T84: w11 | U84: =OFFSET('متغیرها '!T5,34,'متغیرها '!U5) -> 17.5 | W84: =OFFSET('متغیرها '!T5,34,'متغیرها '!Y5) -> 23 | AJ84: =BB6 -> 38 مردانه | AK84: -67 | AL84: 34 | AM84: -7 | AN84: 0.6 | AO84: 0.55 | AP84: -33.5 | AQ84: 17.5
A85: ضریب طول ساسون میانی پشت بالاتنه y'4 | B85: (از 0.3 الی 1) | C85: 0.75 | D85: بهینه =0.9 | E85: ='طراحی مدل 213'!B418 -> 15 | F85: ضریب طول ساسون میانی پشت بالاتنه | G85: 0 | H85: 0 | I85: 1 | J85: 0.05 | K85: 0.05 | L85: 0 | M85: 0.3 | N85: 6 | O85: 1 | P85: 20 | Q85: 0.9 | R85: 18 | S85: دور سر | T85: w12 | U85: =OFFSET('متغیرها '!T5,35,'متغیرها '!U5) -> 57 | W85: =OFFSET('متغیرها '!T5,35,'متغیرها '!Y5) -> 57 | AJ85: =BC6 -> 39 مردانه | AK85: -66 | AL85: 35 | AM85: -6.5 | AN85: 0.7 | AO85: 0.6 | AP85: -33 | AQ85: 18
A86: ضریب فاصله افقی ساسون وسط بالاتنه از خط مرکزی پشت y'5 | B86: (از0.2 الی 0.8) | C86: 0.5 | D86: بهینه=0.5 | E86: ='طراحی مدل 213'!B419 -> 25 | F86: ضریب فاصله افقی ساسون وسط بالاتنه از خط مرکزی پشت | G86: 0 | H86: 0 | I86: 1 | J86: 0.02 | K86: 0.02 | L86: 0 | M86: 0.2 | N86: 10 | O86: 0.8 | P86: 40 | Q86: 0.5 | R86: 25 | AJ86: =BD6 -> 40 مردانه | AK86: -65 | AL86: 36 | AM86: -6 | AN86: 0.8 | AO86: 0.65 | AP86: -32.5 | AQ86: 18.5
A87: ضریب پهنای ساسون میانی جلو بالاتنه y'6 | B87: (از 0 الی 0.5) | C87: 0.35 | D87: بدون ساسون=0 بهینه=0.333 | E87: ='طراحی مدل 213'!B420 -> 7 | F87: ضریب پهنای ساسون میانی جلو بالاتنه | G87: 0 | H87: 0 | I87: 1 | J87: 0.05 | K87: 0.05 | L87: 0 | M87: 0 | N87: 0 | O87: 0.5 | P87: 10 | Q87: 0.35 | R87: 7 | AJ87: =BE6 -> 41 مردانه | AK87: -64 | AL87: 37 | AM87: -5.5 | AN87: 0.9 | AO87: 0.7 | AP87: -32 | AQ87: 19
A88: ضریب طول ساسون میانی جلو بالاتنه y'7 | B88: (از 0 الی 0.5) | C88: 0.1 | D88: بهینه =0.2 تا خط سینه=0 | E88: ='طراحی مدل 213'!B421 -> 18 | F88: ضریب طول ساسون میانی جلو بالاتنه | G88: 20 | H88: 0 | I88: 0 | J88: 1 | K88: -0.05 | L88: 1 | M88: 0 | N88: 20 | O88: 0.5 | P88: 10 | Q88: 0.2 | R88: 16 | AJ88: =BF6 -> 42 مردانه | AK88: -63 | AL88: 38 | AM88: -5 | AN88: 1 | AO88: 0.75 | AP88: -31.5 | AQ88: 19.5
A89: ضریب فاصله افقی ساسون میانی بالاتنه از خط مرکزی جلو y'8 | B89: (از0.2 الی 0.8) | C89: 0.5 | D89: بهینه=0.5 | E89: ='طراحی مدل 213'!B422 -> 25 | F89: ضریب فاصله افقی ساسون میانی بالاتنه از خط مرکزی جلو | G89: 0 | H89: 0 | I89: 1 | J89: 0.02 | K89: 0.02 | L89: 0 | M89: 0.2 | N89: 10 | O89: 0.8 | P89: 40 | Q89: 0.5 | R89: 25 | AJ89: =BG6 -> 43 مردانه | AK89: -62 | AL89: 39 | AM89: -4.5 | AN89: 1.1 | AO89: 0.8 | AP89: -31 | AQ89: 20
A90: ضریب نوک ساسون سرشانه جلو تا نوک سینه y'15 | B90: (از 0 الی 0.5) | C90: 0 | D90: بهینه =0.2 تا خط سینه=0 | E90: ='طراحی مدل 213'!B423 -> 20 | F90: ضریب نوک ساسون سرشانه جلو تا نوک سینه | G90: 20 | H90: 0 | I90: 0 | J90: 1 | K90: =(J90-H90)/(I90-G90) -> -0.05 | L90: =H90-G90*K90 -> 1 | M90: 0 | N90: 20 | O90: 0.5 | P90: 10 | Q90: 0.2 | R90: 16 | AJ90: =BH6 -> 44 مردانه | AK90: -61 | AL90: 40 | AM90: -4 | AN90: 1.2 | AO90: 0.85 | AP90: -30.5 | AQ90: 20.5
AJ91: =BI6 -> 45 مردانه | AK91: -60 | AL91: 41 | AM91: -3.5 | AN91: 1.3 | AO91: 0.9 | AP91: -30 | AQ91: 21
A92: متغیرهای ورودی - تنظیم ساسون های پایین کمر مجموع پهنای دو ساسون پشت باید کمتر از یک یا مساوی یک باشد. با تغییر ضرایب پهنای ساسون، باقیمانده ساسون ها روی خط پهلو قرار میگیرد. | F92: متغیرهای ورودی - تنظیم ساسون های پایین کمر مجموع پهنای دو ساسون پشت باید کمتر از یک یا مساوی یک باشد. با تغییر ضرایب پهنای ساسون، باقیمانده ساسون ها روی خط پهلو قرار میگیرد. | G92: x1 | H92: y1 | I92: x2 | J92: y2(بهینه) | K92: a | L92: b | N92: کمترین | P92: بیشترین | AJ92: =BJ6 -> 46 مردانه | AK92: -59 | AL92: 42 | AM92: -3 | AN92: 1.4 | AO92: 0.95 | AP92: -29.5 | AQ92: 21.5
A93: ضریب پهنای ساسون روی خط مرکزی پشت دامن y'9 | B93: (از 0 الی 1) | C93: =K93*E93+L93 -> 0 | D93: بدون ساسون=0 بهینه=025 | E93: ='طراحی مدل 213'!B428 -> 0 | F93: ضریب پهنای ساسون روی خط مرکزی پشت دامن | G93: 0 | H93: 0 | I93: 1 | J93: 0.05 | K93: =(J93-H93)/(I93-G93) -> 0.05 | L93: =H93-G93*K93 -> 0 | M93: 0 | N93: =(M93-L93)/K93 -> 0 | O93: 1 | P93: =(O93-L93)/K93 -> 20 | Q93: 0.25 | R93: =(Q93-L93)/K93 -> 5 | AJ93: =BK6 -> 47 مردانه | AK93: -58 | AL93: 43 | AM93: -2.5 | AN93: 1.5 | AO93: 1 | AP93: -29 | AQ93: 22
A94: ضریب طول ساسون روی خط مرکزی پشت دامن y'10 غیر فعال | B94: (از0.1 الی 0.9) | C94: 1 | D94: بهینه=0.9 | E94: ='طراحی همه الگوها'!B221 -> 20 | F94: ضریب طول ساسون روی خط مرکزی پشت دامن غیر فعال | G94: 0 | H94: 0 | I94: 1 | J94: 0.05 | K94: 0.05 | L94: 0 | M94: 0.1 | N94: 2 | O94: 0.9 | P94: 18 | Q94: 0.9 | R94: 18 | AJ94: =BL6 -> 48 مردانه | AK94: -57 | AL94: 44 | AM94: -2 | AN94: 1.6 | AO94: 1.05 | AP94: -28.5 | AQ94: 22.5
A95: ضریب پهنای ساسون میانی پشت دامن y'11 | B95: (از 0 الی 1) | C95: 0.5 | D95: بدون ساسون=0 بهینه=0.5 | E95: ='طراحی مدل 213'!B429 -> 10 | F95: ضریب پهنای ساسون میانی پشت دامن | G95: 0 | H95: 0 | I95: 1 | J95: 0.05 | K95: 0.05 | L95: 0 | M95: 0 | N95: 0 | O95: 1 | P95: 20 | Q95: 0.5 | R95: 10 | AJ95: =BM6 -> 49 مردانه | AK95: -56 | AL95: 45 | AM95: -1.5 | AN95: 1.7 | AO95: 1.1 | AP95: -28 | AQ95: 23
A96: ضریب طول ساسون میانی پشت دامن y'12 | B96: (از 0.3 الی 1) | C96: 0.9 | D96: بلندی ساسون تا خط باسن=1 بهینه =0.9 | E96: ='طراحی مدل 213'!B430 -> 18 | F96: ضریب طول ساسون میانی پشت دامن | G96: 0 | H96: 0 | I96: 1 | J96: 0.05 | K96: 0.05 | L96: 0 | M96: 0.3 | N96: 6 | O96: 1 | P96: 20 | Q96: 0.9 | R96: 18 | AJ96: =BN6 -> 50 مردانه | AK96: -55 | AL96: 46 | AM96: -1 | AN96: 1.8 | AO96: 1.15 | AP96: -27.5 | AQ96: 23.5
A97: ضریب پهنای ساسون میانی جلو دامن y'13 | B97: (از 0 الی 0.5) | C97: 0.25 | D97: بدون ساسون=0 بهینه=0.25 | E97: ='طراحی مدل 213'!B431 -> 5 | F97: ضریب پهنای ساسون میانی جلو دامن | G97: 0 | H97: 0 | I97: 1 | J97: 0.05 | K97: 0.05 | L97: 0 | M97: 0 | N97: 0 | O97: 0.5 | P97: 10 | Q97: 0.25 | R97: 5 | AJ97: =BO6 -> 6ماهه تا یکساله کت | AK97: -54 | AL97: 47 | AM97: -0.5 | AN97: 1.9 | AO97: 1.2 | AP97: -27 | AQ97: 24
A98: ضریب طول ساسون میانی جلو دامن y'14 | B98: (از 0.3 الی 0.99) | C98: 0.9 | D98: بلندی ساسون تا خط باسن=1 بهینه =0.9 | E98: ='طراحی مدل 213'!B432 -> 18 | F98: ضریب طول ساسون میانی جلو دامن | G98: 0 | H98: 0 | I98: 1 | J98: 0.05 | K98: 0.05 | L98: 0 | M98: 0.3 | N98: 6 | O98: 0.95 | P98: 19 | Q98: 0.9 | R98: 18 | AJ98: =BP6 -> 1ساله کت | AK98: -53 | AL98: 48 | AM98: 0 | AN98: 2 | AO98: 1.25 | AP98: -26.5 | AQ98: 24.5
AJ99: =BQ6 -> 2ساله کت | AK99: -52 | AL99: 49 | AM99: 0.5 | AN99: 2.1 | AO99: 1.3 | AP99: -26 | AQ99: 25
A100: متغیرهای ورودی-بالاتنه عصایی ساسون ها | F100: متغیرهای ورودی-بالاتنه عصایی ساسون ها | G100: x1 | H100: y1 | I100: x2 | J100: y2(بهینه) | K100: a | L100: b | N100: کمترین | P100: بیشترین | AJ100: =BR6 -> 3ساله کت | AK100: -51 | AL100: 50 | AM100: 1 | AN100: 2.2 | AO100: 1.35 | AP100: -25.5 | AQ100: 25.5
A101: انتخاب بالاتنه عصایی=1 انتخاب دیگر=0 | B101: 0 یا 1 | C101: =K101*E101+L101 -> 1 | E101: ='طراحی مدل 213'!B435 -> 2 | F101: انتخاب بالاتنه عصایی=2 انتخاب دیگر=1 | G101: 1 | H101: 0 | I101: 2 | J101: 1 | K101: =(J101-H101)/(I101-G101) -> 1 | L101: =H101-G101*K101 -> -1 | M101: 0 | N101: =(M101-L101)/K101 -> 1 | O101: 1 | P101: =(O101-L101)/K101 -> 2 | Q101: 1 | R101: =(Q101-L101)/K101 -> 2 | AJ101: =BS6 -> 4ساله کت | AK101: -50 | AL101: 51 | AM101: 1.5 | AN101: 2.3 | AO101: 1.4 | AP101: -25 | AQ101: 26
A102: ضریب مکان ساسون جلو عصایی در بالاتنه | B102: (از 0.1 الی 0.3) | C102: =K102*E102+L102 -> 0.2 | D102: بهینه عصایی=0.2 | E102: ='طراحی مدل 213'!B436 -> 4 | F102: مکان ساسون عصایی جلو در حلقه آستین بالاتنه | G102: 0 | H102: 0 | I102: 1 | J102: 0.05 | K102: =(J102-H102)/(I102-G102) -> 0.05 | L102: =H102-G102*K102 -> 0 | M102: 0.1 | N102: =(M102-L102)/K102 -> 2 | O102: 0.3 | P102: =(O102-L102)/K102 -> 6 | Q102: 0.2 | R102: =(Q102-L102)/K102 -> 4 | AJ102: =BT6 -> 5ساله کت | AK102: -49 | AL102: 52 | AM102: 2 | AN102: 2.4 | AO102: 1.45 | AP102: -24.5 | AQ102: 26.5
A103: ضریب مکان ساسون پشت عصایی در بالاتنه | B103: (از 0.1 الی 0.4) | C103: =K103*E103+L103 -> 0.3 | D103: بهینه عصایی=0.3 | E103: ='طراحی مدل 213'!B437 -> 6 | F103: مکان ساسون عصایی پشت در حلقه آستین بالاتنه | G103: 0 | H103: 0 | I103: 1 | J103: 0.05 | K103: =(J103-H103)/(I103-G103) -> 0.05 | L103: =H103-G103*K103 -> 0 | M103: 0.1 | N103: =(M103-L103)/K103 -> 2 | O103: 0.4 | P103: =(O103-L103)/K103 -> 8 | Q103: 0.3 | R103: =(Q103-L103)/K103 -> 6 | AJ103: =BU6 -> 6ساله کت | AK103: -48 | AL103: 53 | AM103: 2.5 | AN103: 2.5 | AO103: 1.5 | AP103: -24 | AQ103: 27
AJ104: =BV6 -> 7ساله کت | AK104: -47 | AL104: 54 | AM104: 3 | AN104: 2.6 | AO104: 1.55 | AP104: -23.5 | AQ104: 27.5
A105: متغیرهای ورودی- انتقال ساسون سرشانه به زیر بغل، عصایی یا خط مرکزی جلو برای حذف کامل ساسون سرشانه مجموع c1 و c2 باید 1 شود. | F105: متغیرهای ورودی- انتقال ساسون سرشانه به زیر بغل، عصایی یا خط مرکزی جلو برای حذف کامل ساسون سرشانه مجموع c1 و c2 باید 30 شود. | G105: x1 | H105: y1 | I105: x2 | J105: y2(بهینه) | K105: a | L105: b | N105: کمترین | P105: بیشترین | AJ105: =BW6 -> 8ساله کت | AK105: -46 | AL105: 55 | AM105: 3.5 | AN105: 2.7 | AO105: 1.6 | AP105: -23 | AQ105: 28
A106: ضریب انتقال ساسون سرشانه جلو به ساسون زیر بغل یا ساسون عصایی c1 | B106: (از 0 الی 1) | C106: =K106*E106+L106 -> 1 | D106: بدون انتقال=0 بهیه برای کت جلو باز=0.8 | E106: ='طراحی مدل 213'!B399 -> 10 | F106: انتقال ساسون سرشانه جلو به ساسون زیر بغل یا ساسون عصایی c1 | G106: 0 | H106: 0 | I106: 10 | J106: 1 | K106: =(J106-H106)/(I106-G106) -> 0.1 | L106: =H106-G106*K106 -> 0 | M106: 0 | N106: =(M106-L106)/K106 -> 0 | O106: 1 | P106: =(O106-L106)/K106 -> 10 | AJ106: =BX6 -> 9ساله کت | AK106: -45 | AL106: 56 | AM106: 4 | AN106: 2.8 | AO106: 1.65 | AP106: -22.5 | AQ106: 28.5
A107: ضریب انتقال ساسون سرشانه به خط مرکزی جلو c2 | B107: (از 0 الی 1) | C107: =K107*E107+L107 -> 0 | D107: بدون انتقال=0 بهیه برای کت جلو باز=0.2 | E107: ='طراحی مدل 213'!B400 -> 0 | F107: انتقال ساسون سرشانه به خط مرکزی جلو c2 | G107: 0 | H107: 0 | I107: 10 | J107: 1 | K107: =(J107-H107)/(I107-G107) -> 0.1 | L107: =H107-G107*K107 -> 0 | M107: 0 | N107: =(M107-L107)/K107 -> 0 | O107: 1 | P107: =(O107-L107)/K107 -> 10 | AJ107: =BY6 -> 10ساله کت | AK107: -44 | AL107: 57 | AM107: 4.5 | AN107: 2.9 | AO107: 1.7 | AP107: -22 | AQ107: 29
A108: انتخاب (اصلاح سرشانه و حلقه آستین برای c1 >1 ) = 1 و انتخاب دیگر=0 | B108: 0 یا 1 | C108: =K108*E108+L108 -> 0 | E108: ='طراحی مدل 213'!B401 -> 1 | F108: انتخاب (اصلاح سرشانه و حلقه آستین برای c1 >30 ) = 2 انتخاب دیگر=1 | G108: 1 | H108: 0 | I108: 2 | J108: 1 | K108: =(J108-H108)/(I108-G108) -> 1 | L108: =H108-G108*K108 -> -1 | M108: 0 | N108: =(M108-L108)/K108 -> 1 | O108: 1 | P108: =(O108-L108)/K108 -> 2 | AJ108: =BZ6 -> 11ساله کت | AK108: -43 | AL108: 58 | AM108: 5 | AN108: 3 | AO108: 1.75 | AP108: -21.5 | AQ108: 29.5
AJ109: =CA6 -> 12ساله کت | AK109: -42 | AL109: 59 | AM109: 5.5 | AN109: 3.1 | AO109: 1.8 | AP109: -21 | AQ109: 30
